Workbook

Sheet Introduction
A1: Introduction
A2: This spreadsheet contains scores for highway projects, which are subject to North Carolina’s new Strategic Transportation Investments (STI) Law. Note the rank order must still be subject to other STI requirements such as 10% corridor cap and federal action regarding tolling of existing Interstate lanes for programming purposes. Also note that transitional projects (projects let for construction prior to July 1, 2015) are not subject to STI scoring and therefore are not listed in the spreadsheet. Please note that a final review is being conducted to ensure scores in this spreadsheet match the project scores in the Department's SPOT On!ine application (this will be complete prior to the Local Input Point window opening on June 2nd).
A4: All data used for scoring and evaluating projects, including scores and initial point-in-time cost estimates, have been generated by either the Department and/or through coordination with local governments. The results are intended for use in the Department’s Strategic Prioritization Process and for preliminary level planning, scoring, and evaluation purposes only. From June 2nd to August 29th, MPOs, RPOs and NCDOT Divisions will assign local input points to produce final project scores and rankings. Per the STI law, these scores will be used in the development of NCDOT’s Draft State Transportation Improvement Program to be released in late 2014.
A6: Blue highlighted projects found in this spreadsheet represent Statewide Mobility projects fully funded for construction which will not be eligible for local input point assignment during the June 2 – August 29, 2014 window.
A8: Instructions
A9: This spreadsheet uses macros. Full functionality requires Microsoft Excel 2007® or later. Earlier versions of Excel may disable some features. You may need to enable editing, if prompted.
A11: Projects are organized by SPOT ID, the unique identifier given to each project. Columns A - T contain basic information about the project and the scores. Columns V - CR contain more detailed information about the project, including the Division, MPO/RPO, and County, the data used in the scoring process and the costs associated with the project. Note that columns A - F will remain in place as you scroll to the right.
A13: Search for projects by division, county or Metropolitan and Rural Planning Organization (MPO/RPO) by clicking on the tan boxes at the top of the spreadsheet. You can also filter or sort projects by route, funding category, scoring criteria, etc. by clicking the arrow on each column header.
A15: To remove all filters you have applied, click the green Clear Search box at the top of the spreadsheet. Note that clicking the Clear Search box twice may result in an error message (click End to clear the message).
A18: Last updated May 14, 2014

Sheet Regional
C4: Project's Score = Quantiative Score + MPO/RPO Points (15%) + Division Points (15%)
CT6: Division Methodology Criteria
A7: SPOT ID | B7: Project Category | C7: TIP | D7: Route | E7: From / Cross Street | F7: To | G7: Description | H7: Specific Improvement Type | I7: Cost to NCDOT | J7: Statewide Mobility Quantiative Score (Out of 100) | K7: Regional Impact Quantiative Score (Out of 70) | L7: Division Needs Quantiative Score (Out of 50) | M7: Congestion | N7: [Travel Time] Benefit/Cost | O7: Safety | P7: Multimodal + [Freight & Military] | Q7: Economic Competitiveness | R7: Accessibility / Connectivity | S7: Lane Width | T7: [Paved] Shoulder Width | V7: First MPO/RPO | W7: First MPO/RPO % | X7: Second MPO/RPO | Y7: Second MPO/RPO % | Z7: Third MPO/RPO | AA7: Third MPO/RPO % | AB7: First Division | AC7: First Division % | AD7: Second Division | AE7: Second Division % | AF7: Third Division | AG7: Third Division % | AH7: First County | AI7: First County % | AJ7: Second County | AK7: Second County % | AL7: Third County | AM7: Third County % | AN7: Fourth County | AO7: Fourth County % | AP7: Highest Division | AQ7: Funding Region | AR7: All Divisions | AS7: All MPOs/RPOs | AT7: All Counties | AU7: Existing Length (Miles) | AV7: Project Length (Miles) | AW7: Existing Facility Type | AX7: Project Facility Type | AY7: Existing Lanes Per Direction | AZ7: Project Lanes Per Direction | BA7: Existing Median Type | BB7: Project Median Type | BC7: Existing Speed Limit | BD7: Project Speed Limit | BE7: Truck % | BF7: Auto % | BG7: Existing Volume | BH7: Existing Capacity | BI7: Existing Volume / Capacity Ratio | BJ7: Auto Volume | BK7: Truck Volume | BL7: Travel Time Savings Over 30 Years Autos (Hrs) | BM7: Travel Time Savings Over 30 Years Trucks (Hrs) | BN7: Travel Time Savings Over 30 Years Total (Hrs) | BO7: Travel Time Savings Over 30 Years Total ($) | BP7: Crash Density Points Segment | BQ7: Crash Severity Points Segment | BR7: Critical Crash Rate Points Segment | BS7: Crash Frequency Points Intersection | BT7: Severity Index Points Intersection | BU7: Long Term Employment | BV7: Percent Change In Value Added | BW7: Non-Interstate STRAHNet Route | BX7: Direct Connection to Transportation Terminal | BY7: Existing Lane Width | BZ7: DOT Design Standard Lane Width | CA7: Existing Roadway Has Curb & Gutter | CB7: Existing Paved Shoulder Width | CC7: DOT Design Paved Shoulder Width | CD7: Existing Cross Section | CE7: Project Cross Section | CF7: Existing Access Control | CG7: Project Access Control | CH7: County Tier | CI7: Upgrade Roadway Eligible | CJ7: Census Average Commute Time | CK7: Construction Cost | CL7: Right-Of-Way Cost | CM7: Utilities Cost | CN7: Actual Project Cost | CO7: Other Funds | CP7: Cost to NCDOT | CQ7: Cost Used in Benefit/Cost Analysis | CR7: Other Funds Source | CS7: Division Points | CT7: Congestion | CU7: Safety | CV7: Cost Effectiveness | CW7: Freight | CX7: Division Methodology Score | CY7: Division Methodology Score + Regional Impact Score | CZ7: Congestion score | DA7: safety score | DB7: Cost Eff. | DC7: Freight | DD7: DRAFT Division Project Points | DE7: Comments
A8: H090001-A | B8: Statewide Mobility | C8: A-0009A | D8: US-74 New Route - Corridor K | E8: US 19 Business in Andrews | F8: US 129 | G8: Construct Multi-Lanes, on New Location. | H8: 5 - Construct Roadway on New Location | I8: 381225000 | J8: 15.7183345 | K8: 10.21038606 | L8: 7.849862593 | M8: 15.67324924 | N8: 0.6607611186 | O8: 45.83060522 | P8: 7.658391124 | Q8: 47.03392646 | R8: 15.43822944 | S8: N/A | T8: N/A | V8: Southwestern RPO | W8: 100 | AB8: 14 | AC8: 100 | AH8: Graham | AI8: 54.17 | AJ8: Cherokee | AK8: 45.83 | AP8: 14 | AQ8: G | AR8: 14, , | AS8: Southwestern RPO, , | AT8: Graham, Cherokee, , | AU8: 23.7 | AV8: 27.1 | AW8: Arterial | AX8: Multi-Lane Highway | AY8: 1 | AZ8: 2 | BA8: Undivided | BB8: Divided | BC8: 49 | BD8: 55 | BE8: 7.716752865 | BF8: 92.28324713 | BG8: 5146.076481 | BH8: 22678.56788 | BI8: 0.2269136441 | BJ8: 4748.966477 | BK8: 397.1100043 | BL8: 11907368.23 | BM8: 995697.7109 | BN8: 12903065.94 | BO8: 292997999 | BP8: 46.81652783 | BQ8: 47.66948375 | BR8: 43.01955463 | BU8: 181 | BV8: 0.0007596785292 | BW8: Yes | BX8: No | BY8: 11 | BZ8: 12 | CA8: No | CB8: 1 | CC8: 2 | CD8: New Roadway | CE8: 4A - 4 Lane Divided (46' Depressed Median) with Paved Shoulders | CF8: None | CG8: Limited | CH8: 1 | CI8: Yes | CJ8: 20 | CK8: 366000000 | CL8: 14300000 | CM8: 925000 | CN8: 381225000 | CP8: 381225000 | CQ8: 443425000
A9: H090001-B | B9: Statewide Mobility | C9: A-0009B | D9: US-74 New Route - Corridor K | E9: US 129 | F9: NC 143 North of Cheoah | G9: Construct Multi-Lanes, on New Location. | H9: 5 - Construct Roadway on New Location | I9: 51500000 | J9: 15.7183345 | K9: 10.21038606 | L9: 7.849862593 | M9: 15.67324924 | N9: 0.6607611186 | O9: 45.83060522 | P9: 7.658391124 | Q9: 47.03392646 | R9: 15.43822944 | S9: N/A | T9: N/A | V9: Southwestern RPO | W9: 100 | AB9: 14 | AC9: 100 | AH9: Graham | AI9: 100 | AP9: 14 | AQ9: G | AR9: 14, , | AS9: Southwestern RPO, , | AT9: Graham, , , | AU9: 23.7 | AV9: 27.1 | AW9: Arterial | AX9: Multi-Lane Highway | AY9: 1 | AZ9: 2 | BA9: Undivided | BB9: Divided | BC9: 49 | BD9: 55 | BE9: 7.716752865 | BF9: 92.28324713 | BG9: 5146.076481 | BH9: 22678.56788 | BI9: 0.2269136441 | BJ9: 4748.966477 | BK9: 397.1100043 | BL9: 11907368.23 | BM9: 995697.7109 | BN9: 12903065.94 | BO9: 292997999 | BP9: 46.81652783 | BQ9: 47.66948375 | BR9: 43.01955463 | BU9: 181 | BV9: 0.0007596785292 | BW9: Yes | BX9: No | BY9: 11 | BZ9: 12 | CA9: No | CB9: 1 | CC9: 2 | CD9: New Roadway | CE9: 4A - 4 Lane Divided (46' Depressed Median) with Paved Shoulders | CF9: None | CG9: Limited | CH9: 1 | CI9: Yes | CJ9: 18 | CK9: 40500000 | CL9: 11000000 | CM9: 0 | CN9: 51500000 | CP9: 51500000 | CQ9: 443425000
A10: H090001-C | B10: Statewide Mobility | C10: A-0009C | D10: US-74 New Route - Corridor K | E10: NC 143 North of Cheoah | F10: NC 28 at Stecoah | G10: Construct Multi-Lanes, on New Location | H10: 5 - Construct Roadway on New Location | I10: 10700000 | J10: 15.7183345 | K10: 11.01038606 | L10: 7.849862593 | M10: 15.67324924 | N10: 0.6607611186 | O10: 45.83060522 | P10: 7.658391124 | Q10: 47.03392646 | R10: 23.43822944 | S10: N/A | T10: N/A | V10: Southwestern RPO | W10: 100 | AB10: 14 | AC10: 100 | AH10: Graham | AI10: 100 | AP10: 14 | AQ10: G | AR10: 14, , | AS10: Southwestern RPO, , | AT10: Graham, , , | AU10: 23.7 | AV10: 27.1 | AW10: Arterial | AX10: Multi-Lane Highway | AY10: 1 | AZ10: 2 | BA10: Undivided | BB10: Divided | BC10: 49 | BD10: 55 | BE10: 7.716752865 | BF10: 92.28324713 | BG10: 5146.076481 | BH10: 22678.56788 | BI10: 0.2269136441 | BJ10: 4748.966477 | BK10: 397.1100043 | BL10: 11907368.23 | BM10: 995697.7109 | BN10: 12903065.94 | BO10: 292997999 | BP10: 46.81652783 | BQ10: 47.66948375 | BR10: 43.01955463 | BU10: 181 | BV10: 0.0007596785292 | BW10: Yes | BX10: No | BY10: 11 | BZ10: 12 | CA10: No | CB10: 1 | CC10: 2 | CD10: New Roadway | CE10: 4A - 4 Lane Divided (46' Depressed Median) with Paved Shoulders | CF10: None | CG10: Limited | CH10: 1 | CI10: Yes | CJ10: 24 | CK10: 277200000 | CL10: 14500000 | CM10: 0 | CN10: 291700000 | CO10: 281000000 | CP10: 10700000 | CQ10: 443425000 | CR10: Appalachian Development Highway System Funding
A11: H090002-AA | B11: Statewide Mobility | C11: A-0010AA | D11: I-26 , US-23 , US-19 | E11: North of I-240 in Asheville | F11: US 25 | G11: Upgrade Roadway to interstate Standards and Add Additional Lanes. | H11: 1 - Widen Existing Roadway | I11: 87000000 | J11: 28.81854276 | K11: 23.63851561 | L11: 18.6366786 | M11: 63.43863161 | N11: 2.178410241 | O11: 55.13270231 | P11: 13.21053315 | Q11: 9.780533379 | R11: 17.20984912 | S11: N/A | T11: N/A | V11: French Broad River MPO | W11: 100 | AB11: 13 | AC11: 100 | AH11: Buncombe | AI11: 100 | AP11: 13 | AQ11: G | AR11: 13, , | AS11: French Broad River MPO, , | AT11: Buncombe, , , | AU11: 7.87935572 | AV11: 7.87935572 | AW11: Freeway | AX11: Freeway | AY11: 2 | AZ11: 4 | BA11: Divided | BB11: Divided | BC11: 59 | BD11: 60 | BE11: 5.117431325 | BF11: 94.88256867 | BG11: 51629.54737 | BH11: 72400.17775 | BI11: 0.7131135444 | BJ11: 48987.44074 | BK11: 2642.10663 | BL11: 8003066.447 | BM11: 431640.3266 | BN11: 8434706.773 | BO11: 189521691 | BP11: 66.77051374 | BQ11: 60.44408773 | BR11: 38.20004693 | BU11: 158 | BV11: 3.761066757e-05 | BW11: No | BX11: No | BY11: 12 | BZ11: 12 | CA11: No | CB11: 10 | CC11: 10 | CD11: 4 Lane with Median - Full Control | CE11: 8B - 8 Lane Divided (27' Median with Jersey Barrier with Paved Shoulders | CF11: Full | CG11: Full | CH11: 3 | CI11: No | CJ11: 18 | CK11: 86000000 | CL11: 1000000 | CM11: 0 | CN11: 87000000 | CP11: 87000000 | CQ11: 87000000
A12: H090002-AB | B12: Statewide Mobility | C12: A-0010AB | D12: I-26 , US-23 , US-19 | E12: US 25 | F12: SR 2207 | G12: Upgrade Roadway to interstate Standards and Add Additional Lanes. | H12: 1 - Widen Existing Roadway | I12: 70500000 | J12: 19.96263742 | K12: 17.34205121 | L12: 13.96167873 | M12: 41.20196271 | N12: 0.05068757447 | O12: 57.11148671 | P12: 9.285733114 | Q12: 0.1854704435 | R12: 13.17739971 | S12: N/A | T12: N/A | V12: French Broad River MPO | W12: 100 | AB12: 13 | AC12: 100 | AH12: Buncombe | AI12: 100 | AP12: 13 | AQ12: G | AR12: 13, , | AS12: French Broad River MPO, , | AT12: Buncombe, , , | AU12: 1.82104538 | AV12: 1.82104538 | AW12: Freeway | AX12: Freeway | AY12: 2 | AZ12: 3 | BA12: Divided | BB12: Divided | BC12: 60 | BD12: 60 | BE12: 5.538397929 | BF12: 94.46160207 | BG12: 33532.19914 | BH12: 72400.08403 | BI12: 0.4631513843 | BJ12: 31675.05252 | BK12: 1857.146623 | BL12: 149972.4409 | BM12: 8793.065521 | BN12: 158765.5064 | BO12: 3573474 | BP12: 70.62872122 | BQ12: 52.34707839 | BR12: 48.37579567 | BU12: 3 | BV12: 7.094088697e-07 | BW12: No | BX12: No | BY12: 12 | BZ12: 12 | CA12: No | CB12: 4 | CC12: 10 | CD12: 4 Lane with Median - Full Control | CE12: 6A - 6 Lane Divided (46' Depressed Median) with Paved Shoulders | CF12: Full | CG12: Full | CH12: 3 | CI12: No | CJ12: 21 | CK12: 70000000 | CL12: 500000 | CM12: 0 | CN12: 70500000 | CP12: 70500000 | CQ12: 70500000
A13: H090002-AC | B13: Statewide Mobility | C13: A-0010AC | D13: I-26 , US-23 , US-19 | E13: SR 2207 | F13: South of SR 2148 | G13: Upgrade Roadway to interstate Standards and Add Additional Lanes | H13: 17 - Upgrade Freeway to Interstate Standards | I13: 26500000 | J13: 17.24099279 | K13: 15.79854254 | L13: 12.46877828 | M13: 32.79943086 | N13: 0 | O13: 59.08892109 | P13: 7.461357101 | Q13: 0 | R13: 16.89792714 | S13: N/A | T13: N/A | V13: French Broad River MPO | W13: 100 | AB13: 13 | AC13: 100 | AH13: Buncombe | AI13: 100 | AP13: 13 | AQ13: G | AR13: 13, , | AS13: French Broad River MPO, , | AT13: Buncombe, , , | AU13: 3.95792144 | AV13: 3.95792144 | AW13: Freeway | AX13: Freeway | AY13: 2 | AZ13: 2 | BA13: Divided | BB13: Divided | BC13: 60 | BD13: 60 | BE13: 5.590333559 | BF13: 94.40966644 | BG13: 26693.78141 | BH13: 72400 | BI13: 0.3686986383 | BJ13: 25201.50999 | BK13: 1492.27142 | BL13: 0 | BM13: 0 | BN13: 0 | BO13: 0 | BP13: 61.66679834 | BQ13: 71.40995722 | BR13: 44.20773615 | BU13: 0 | BV13: 0 | BW13: No | BX13: No | BY13: 12 | BZ13: 12 | CA13: No | CB13: 4 | CC13: 10 | CD13: 4 Lane with Median - Full Control | CF13: Full | CG13: Full | CH13: 3 | CI13: No | CJ13: 24 | CK13: 26000000 | CL13: 500000 | CM13: 0 | CN13: 26500000 | CP13: 26500000 | CQ13: 26500000
A14: H090005-C | B14: Statewide Mobility | C14: A-0011C | D14: NC-69 | E14: Georgia State Line | F14: US 64 (Hayesville Bypass) | G14: Widen to Multi-Lanes. | H14: 1 - Widen Existing Roadway | I14: 43700000 | J14: 15.03747241 | K14: 15.16912312 | L14: 11.3337014 | M14: 31.84972566 | N14: 0.1149868879 | O14: 49.40758887 | P14: 2.062639835 | Q14: 0.9477179027 | R14: 22.37186099 | S14: N/A | T14: N/A | V14: Southwestern RPO | W14: 100 | AB14: 14 | AC14: 100 | AH14: Clay | AI14: 100 | AP14: 14 | AQ14: G | AR14: 14, , | AS14: Southwestern RPO, , | AT14: Clay, , , | AU14: 3.51838081 | AV14: 3.51838081 | AW14: Two Lane Highway | AX14: Multi-Lane Highway | AY14: 1 | AZ14: 2 | BA14: Undivided | BB14: Divided | BC14: 55 | BD14: 55 | BE14: 5.531877305 | BF14: 94.4681227 | BG14: 7457.286998 | BH14: 15500.05721 | BI14: 0.4811135144 | BJ14: 7044.759031 | BK14: 412.527967 | BL14: 210907.561 | BM14: 12350.35393 | BN14: 223257.9149 | BO14: 5024927 | BP14: 71.45358358 | BQ14: 33.58056295 | BR14: 43.20344385 | BU14: 4 | BV14: 1.495435805e-05 | BW14: No | BX14: No | BY14: 12 | BZ14: 12 | CA14: No | CB14: 2 | CC14: 2 | CD14: 2 Lane Undivided | CE14: 4A - 4 Lane Divided (46' Depressed Median) with Paved Shoulders | CF14: None | CG14: Partial | CH14: 1 | CI14: Yes | CJ14: 19 | CK14: 29000000 | CL14: 14700000 | CM14: 0 | CN14: 43700000 | CP14: 43700000 | CQ14: 43700000
A15: H090005-D | B15: Statewide Mobility | C15: A-0011D | D15: US-64 | E15: East of the Hiwassee River | F15: East of NC 175 | G15: Widen to Multi-Lanes. | H15: 1 - Widen Existing Roadway | I15: 29500000 | J15: 12.90141575 | K15: 13.46450669 | L15: 10.00911214 | M15: 25.24787765 | N15: 0.07628420339 | O15: 49.44279769 | P15: 1.582046228 | Q15: 0.4347818266 | R15: 21.89186458 | S15: N/A | T15: N/A | V15: Southwestern RPO | W15: 100 | AB15: 14 | AC15: 100 | AH15: Clay | AI15: 100 | AP15: 14 | AQ15: G | AR15: 14, , | AS15: Southwestern RPO, , | AT15: Clay, , , | AU15: 3.94409424 | AV15: 3.94409424 | AW15: Two Lane Highway | AX15: Multi-Lane Highway | AY15: 1 | AZ15: 2 | BA15: Undivided | BB15: Divided | BC15: 55 | BD15: 55 | BE15: 5.305359499 | BF15: 94.6946405 | BG15: 5963.95486 | BH15: 15651.853 | BI15: 0.3810382617 | BJ15: 5647.545614 | BK15: 316.4092457 | BL15: 94767.66905 | BM15: 5309.450995 | BN15: 100077.12 | BO15: 2250384 | BP15: 47.21328403 | BQ15: 65.73974238 | BR15: 35.39020099 | BU15: 2 | BV15: 6.695636533e-06 | BW15: No | BX15: No | BY15: 10 | BZ15: 12 | CA15: No | CB15: 1 | CC15: 2 | CD15: 2 Lane Undivided | CE15: 4A - 4 Lane Divided (46' Depressed Median) with Paved Shoulders | CF15: None | CG15: Partial | CH15: 1 | CI15: Yes | CJ15: 22 | CK15: 14700000 | CL15: 14800000 | CM15: 0 | CN15: 29500000 | CP15: 29500000 | CQ15: 29500000
A16: H090006-A | B16: Statewide Mobility | C16: I-0305A | D16: I-85 | E16: SR 1006 Near Hillsborough | F16: East of SR 1709 | G16: Add Additional Lanes. | H16: 1 - Widen Existing Roadway | I16: 99684000 | J16: 25.06512015 | K16: 20.26804301 | L16: 16.13987753 | M16: 48.25169604 | N16: 0.1318864211 | O16: 64.63161041 | P16: 19.93008981 | Q16: 1.008664099 | R16: 17.08986359 | S16: N/A | T16: N/A | V16: Durham Chapel Hill Carrboro MPO | W16: 100 | AB16: 07 | AC16: 100 | AH16: Orange | AI16: 100 | AP16: 7 | AQ16: D | AR16: 07, , | AS16: Durham Chapel Hill Carrboro MPO, , | AT16: Orange, , , | AU16: 4.05553005 | AV16: 4.05553005 | AW16: Freeway | AX16: Freeway | AY16: 2 | AZ16: 3 | BA16: Divided | BB16: Divided | BC16: 65 | BD16: 65 | BE16: 10.15039343 | BF16: 89.84960657 | BG16: 39269.59076 | BH16: 72400.00003 | BI16: 0.5423976622 | BJ16: 35283.5728 | BK16: 3986.017962 | BL16: 515136.9231 | BM16: 58195.49625 | BN16: 573332.4194 | BO16: 13146966 | BP16: 69.59732348 | BQ16: 49.04385931 | BR16: 75.27303986 | BU16: 9 | BV16: 1.117328199e-05 | BW16: No | BX16: No | BY16: 12 | BZ16: 12 | CA16: No | CB16: 10 | CC16: 10 | CD16: 4 Lane with Median - Full Control | CE16: 6B - 6 Lane Divided (27' Median with Jersey Barrier with Paved Shoulders | CF16: Full | CG16: Full | CH16: 3 | CI16: No | CJ16: 22 | CK16: 79000000 | CL16: 20266000 | CM16: 418000 | CN16: 99684000 | CP16: 99684000 | CQ16: 99684000
A17: H090006-B | B17: Statewide Mobility | C17: I-0305B | D17: I-85 | E17: East of SR 1709 | F17: Durham County Line | G17: Add Additional Lanes. | H17: 1 - Widen Existing Roadway | I17: 99260000 | J17: 27.9253892 | K17: 23.00879985 | L17: 18.14633525 | M17: 52.54190664 | N17: 0.1999361072 | O17: 75.97966696 | P17: 21.75267468 | Q17: 1.543347408 | R17: 22.25372467 | S17: N/A | T17: N/A | V17: Durham Chapel Hill Carrboro MPO | W17: 100 | AB17: 07 | AC17: 100 | AH17: Orange | AI17: 100 | AP17: 7 | AQ17: D | AR17: 07, , | AS17: Durham Chapel Hill Carrboro MPO, , | AT17: Orange, , , | AU17: 3.3729084 | AV17: 3.3729084 | AW17: Freeway | AX17: Freeway | AY17: 2 | AZ17: 3 | BA17: Divided | BB17: Divided | BC17: 65 | BD17: 65 | BE17: 10.17403061 | BF17: 89.82596939 | BG17: 42761.17402 | BH17: 72400 | BI17: 0.5906239506 | BJ17: 38410.63908 | BK17: 4350.534935 | BL17: 777333.4033 | BM17: 88043.73497 | BN17: 865377.1383 | BO17: 19845658 | BP17: 77.13075181 | BQ17: 70.7032933 | BR17: 80.12775196 | BU17: 14 | BV17: 1.686694816e-05 | BW17: No | BX17: No | BY17: 12 | BZ17: 12 | CA17: No | CB17: 10 | CC17: 10 | CD17: 4 Lane with Median - Full Control | CE17: 6B - 6 Lane Divided (27' Median with Jersey Barrier with Paved Shoulders | CF17: Full | CG17: Full | CH17: 3 | CI17: No | CJ17: 24 | CK17: 79000000 | CL17: 19700000 | CM17: 560000 | CN17: 99260000 | CP17: 99260000 | CQ17: 99260000
A18: H090008-A | B18: Statewide Mobility | C18: I-0911A | D18: I-40 | E18: West of NC 801 in Davie County | F18: SR 1101 (Harper Road) in Forsyth County | G18: Add Additional Lanes. | H18: 1 - Widen Existing Roadway | I18: 48850000 | J18: 27.49533741 | K18: 24.20213227 | L18: 17.83688386 | M18: 56.98753533 | N18: 0.4799345752 | O18: 63.43389874 | P18: 18.47316455 | Q18: 2.170736571 | R18: 34.91874915 | S18: N/A | T18: N/A | V18: Winston Salem Urban Area MPO | W18: 100 | AB18: 09 | AC18: 100 | AH18: Davie | AI18: 67.14 | AJ18: Forsyth | AK18: 32.86 | AP18: 9 | AQ18: D | AR18: 09, , | AS18: Winston Salem Urban Area MPO, , | AT18: Davie, Forsyth, , | AU18: 2.64755455 | AV18: 2.64755455 | AW18: Freeway | AX18: Freeway | AY18: 2 | AZ18: 3 | BA18: Divided | BB18: Divided | BC18: 65 | BD18: 65 | BE18: 7.966326822 | BF18: 92.03367318 | BG18: 46378.12372 | BH18: 72397.40683 | BI18: 0.640604764 | BJ18: 42683.49081 | BK18: 3694.63291 | BL18: 949257.7106 | BM18: 82166.63423 | BN18: 1031424.345 | BO18: 23444804 | BP18: 61.88968952 | BQ18: 55.58132568 | BR18: 72.84971309 | BU18: 17 | BV18: 2.641473143e-05 | BW18: No | BX18: No | BY18: 12 | BZ18: 12 | CA18: No | CB18: 10 | CC18: 10 | CD18: 4 Lane with Median - Full Control | CE18: 6B - 6 Lane Divided (27' Median with Jersey Barrier with Paved Shoulders | CF18: Full | CG18: Full | CH18: 2 | CI18: No | CJ18: 22 | CK18: 48200000 | CL18: 650000 | CM18: 0 | CN18: 48850000 | CP18: 48850000 | CQ18: 48850000
A19: H090009 | B19: Division Needs | C19: I-2514 | D19: I-77 | E19: SR 2171 (Jane Sowers Road) | G19: Convert Grade Separation to An interchange. | H19: 9 - Convert Grade Separation to Interchange | I19: 15294000 | J19: N/A | K19: N/A | L19: 12.33214418 | M19: 18.04908141 | N19: 0 | O19: 87.22327902 | P19: 0 | Q19: N/A | R19: N/A | S19: N/A | T19: N/A | V19: Charlotte Regional Transportation Planning Organization | W19: 100 | AB19: 12 | AC19: 100 | AH19: Iredell | AI19: 100 | AP19: 12 | AQ19: F | AR19: 12, , | AS19: Charlotte Regional Transportation Planning Organization, , | AT19: Iredell, , , | AU19: 1 | AV19: 1 | AW19: Arterial | AX19: Arterial | AY19: 1 | AZ19: 1 | BA19: Undivided | BB19: Undivided | BC19: 44 | BD19: 44 | BE19: 0 | BF19: 100 | BG19: 4299.918724 | BH19: 15799.70136 | BI19: 0.2721518987 | BJ19: 4299.918724 | BK19: 0 | BL19: 0 | BM19: 0 | BN19: 0 | BO19: 0 | BP19: 98.12373703 | BQ19: 98.12373703 | BR19: 65.4485326 | BW19: No | BX19: No | BY19: 11 | BZ19: 12 | CA19: No | CB19: 0 | CC19: 2 | CD19: 2 Lane Undivided | CF19: None | CG19: None | CH19: 3 | CI19: No | CJ19: 20 | CK19: 14364000 | CL19: 930000 | CM19: 0 | CN19: 15294000 | CP19: 15294000 | CQ19: 15294000
A20: H090010-A | B20: Statewide Mobility | C20: I-3306A | D20: I-40 | E20: I-85 | F20: US 15/501 | G20: Add Additional Lanes. | H20: 1 - Widen Existing Roadway | I20: 76700000 | J20: 41.88896535 | K20: 30.18062394 | L20: 23.5862606 | M20: 77.96098627 | N20: 7.447586884 | O20: 65.04545968 | P20: 26.53811941 | Q20: 44.54223556 | R20: 23.23934688 | S20: N/A | T20: N/A | V20: Durham Chapel Hill Carrboro MPO | W20: 100 | AB20: 07 | AC20: 100 | AH20: Orange | AI20: 100 | AP20: 7 | AQ20: D | AR20: 07, , | AS20: Durham Chapel Hill Carrboro MPO, , | AT20: Orange, , , | AU20: 11.72097046 | AV20: 11.72097046 | AW20: Freeway | AX20: Freeway | AY20: 2 | AZ20: 3 | BA20: Divided | BB20: Divided | BC20: 65 | BD20: 65 | BE20: 8.329860474 | BF20: 91.67013953 | BG20: 63718.04064 | BH20: 72857.01861 | BI20: 0.8745628336 | BJ20: 58410.41676 | BK20: 5307.623882 | BL20: 23003459.45 | BM20: 2090272.892 | BN20: 25093732.34 | BO20: 571229914 | BP20: 82.77268091 | BQ20: 45.41685679 | BR20: 66.96635694 | BU20: 408 | BV20: 0.0004828447113 | BW20: No | BX20: No | BY20: 12 | BZ20: 12 | CA20: No | CB20: 10 | CC20: 10 | CD20: 4 Lane with Median - Full Control | CE20: 6B - 6 Lane Divided (27' Median with Jersey Barrier with Paved Shoulders | CF20: Full | CG20: Full | CH20: 3 | CI20: No | CJ20: 21 | CK20: 76600000 | CL20: 100000 | CM20: 0 | CN20: 76700000 | CP20: 76700000 | CQ20: 76700000
A21: H090013 | B21: Statewide Mobility | C21: I-3801 | D21: I-74 | E21: Rockingham-Hamlet Bypass | F21: Laurinburg Bypass | G21: Rockingham-Hamlet Bypass to Laurinburg Bypass. Upgrade to interstate Standards.. | H21: 2 - Upgrade Arterial to Freeway/Expressway | I21: 75924000 | J21: 17.86419743 | K21: 16.31350558 | L21: 9.5505271 | M21: 22.94184141 | N21: 1.672928165 | O21: 46.27573186 | P21: 20.59789522 | Q21: 17.32614331 | R21: 55.32240005 | S21: N/A | T21: N/A | V21: Lumber River RPO | W21: 100 | AB21: 08 | AC21: 100 | AH21: Scotland | AI21: 86.32 | AJ21: Richmond | AK21: 13.68 | AP21: 8 | AQ21: E | AR21: 08, , | AS21: Lumber River RPO, , | AT21: Scotland, Richmond, , | AU21: 9.5827448 | AV21: 9.5827448 | AW21: Multi-Lane Highway | AX21: Freeway | AY21: 2 | AZ21: 2 | BA21: Divided | BB21: Divided | BC21: 55 | BD21: 70 | BE21: 15.75452363 | BF21: 84.24547637 | BG21: 17774.13335 | BH21: 67359.48287 | BI21: 0.2638698011 | BJ21: 14973.90331 | BK21: 2800.230038 | BL21: 4564134.905 | BM21: 853526.7921 | BN21: 5417661.697 | BO21: 127015398 | BP21: 41.6527193 | BQ21: 57.27980527 | BR21: 39.90855511 | BU21: 96 | BV21: 0.0002505228662 | BW21: Yes | BX21: No | BY21: 12 | BZ21: 12 | CA21: No | CB21: 1 | CC21: 4 | CD21: 4 Lane with Median - Limited Control | CE21: 4A - 4 Lane Divided (46' Depressed Median) with Paved Shoulders | CF21: Limited | CG21: Full | CH21: 1 | CI21: Yes | CJ21: 21 | CK21: 75924000 | CL21: 0 | CM21: 0 | CN21: 75924000 | CP21: 75924000 | CQ21: 75924000
A22: H090014-B | B22: Statewide Mobility | C22: I-3802B | D22: I-85 | E22: Lane Street in Cabarrus County | F22: US 29/NC 152 Connector in Rowan County | G22: Add Additional Lanes. | H22: 1 - Widen Existing Roadway | I22: 140353000 | J22: 51.10485067 | K22: 36.06150391 | L22: 26.23781237 | M22: 88.43411749 | N22: 5.372790642 | O22: 74.7643074 | P22: 42.25023666 | Q22: 70.3630016 | R22: 51.33346137 | S22: N/A | T22: N/A | V22: Cabarrus Rowan MPO | W22: 100 | AB22: 09 | AC22: 93.03 | AD22: 10 | AE22: 6.97 | AH22: Rowan | AI22: 93.03 | AJ22: Cabarrus | AK22: 6.97 | AP22: 9 | AQ22: D | AR22: 09, 10, | AS22: Cabarrus Rowan MPO, , | AT22: Rowan, Cabarrus, , | AU22: 5.47082981 | AV22: 5.47082981 | AW22: Freeway | AX22: Freeway | AY22: 2 | AZ22: 4 | BA22: Divided | BB22: Divided | BC22: 65 | BD22: 65 | BE22: 12.4265051 | BF22: 87.5734949 | BG22: 68000.19206 | BH22: 66629.79413 | BI22: 1.020567345 | BJ22: 59550.14473 | BK22: 8450.047332 | BL22: 28539090.73 | BM22: 4049640.326 | BN22: 32588731.06 | BO22: 754087285 | BP22: 90.691587 | BQ22: 55.08136002 | BR22: 78.54240673 | BU22: 552 | BV22: 0.0008552600319 | BW22: No | BX22: No | BY22: 12 | BZ22: 12 | CA22: No | CB22: 10 | CC22: 10 | CD22: 4 Lane with Median - Full Control | CE22: 8B - 8 Lane Divided (27' Median with Jersey Barrier with Paved Shoulders | CF22: Full | CG22: Full | CH22: 2 | CI22: No | CJ22: 23 | CK22: 124000000 | CL22: 13600000 | CM22: 2753000 | CN22: 140353000 | CP22: 140353000 | CQ22: 140353000
A23: H090015 | B23: Division Needs | C23: I-3804 | D23: I-85 | E23: SR 1221 (Old Beatty Ford Road) | G23: Construct An interchange. | H23: 9 - Convert Grade Separation to Interchange | I23: 14490000 | J23: N/A | K23: N/A | L23: 8.106668659 | M23: 6.406451613 | N23: 0 | O23: 68.25378337 | P23: 0 | Q23: N/A | R23: N/A | S23: N/A | T23: N/A | V23: Cabarrus Rowan MPO | W23: 100 | AB23: 09 | AC23: 100 | AH23: Rowan | AI23: 100 | AP23: 9 | AQ23: D | AR23: 09, , | AS23: Cabarrus Rowan MPO, , | AT23: Rowan, , , | AU23: 1 | AV23: 1 | AW23: Two Lane Highway | AX23: Two Lane Highway | AY23: 1 | AZ23: 1 | BA23: Undivided | BB23: Undivided | BC23: 55 | BD23: 55 | BE23: 0 | BF23: 100 | BG23: 1500 | BH23: 15500 | BI23: 0.09677419355 | BJ23: 1500 | BK23: 0 | BL23: 0 | BM23: 0 | BN23: 0 | BO23: 0 | BP23: 99.80424001 | BQ23: 66.56942809 | BR23: 38.40816018 | BW23: No | BX23: No | BY23: 11 | BZ23: 12 | CA23: No | CB23: 0 | CC23: 0 | CD23: 2 Lane Undivided | CF23: None | CG23: None | CH23: 2 | CI23: No | CJ23: 23 | CK23: 12540000 | CL23: 1950000 | CM23: 0 | CN23: 14490000 | CP23: 14490000 | CQ23: 14490000
A24: H090017 | B24: Statewide Mobility | C24: I-3812 | D24: I-85 | E24: US 1 | G24: Provide Additional Traffic Movements | H24: 8 - Improve Interchange | I24: 24442000 | J24: 13.15379772 | K24: 12.66128684 | L24: 6.724135904 | M24: 24.94671049 | N24: 0.3489690287 | O24: 16.65 | P24: 19.23794459 | Q24: 0.5250494214 | R24: 46.72366961 | S24: N/A | T24: N/A | V24: Kerr-Tar RPO | W24: 100 | AB24: 05 | AC24: 100 | AH24: Vance | AI24: 100 | AP24: 5 | AQ24: C | AR24: 05, , | AS24: Kerr-Tar RPO, , | AT24: Vance, , , | AU24: 2 | AV24: 2 | AW24: Freeway | AX24: Freeway | AY24: 2 | AZ24: 2 | BA24: Divided | BB24: Divided | BC24: 65 | BD24: 65 | BE24: 12.846153 | BF24: 87.153847 | BG24: 29951.29295 | BH24: 138597.1606 | BI24: 0.2161032219 | BJ24: 26103.70403 | BK24: 3847.588918 | BL24: 320726.157 | BM24: 47273.84304 | BN24: 368000 | BO24: 8529501 | BS24: 33.3 | BT24: 0 | BU24: 6.093775941 | BV24: 4.407212488e-06 | BW24: No | BX24: No | BY24: 12 | BZ24: 12 | CA24: No | CB24: 10 | CC24: 10 | CD24: 4 Lane with Median - Full Control | CF24: Full | CG24: Full | CH24: 1 | CI24: No | CJ24: 28.38618833 | CK24: 23712000 | CL24: 730000 | CM24: 0 | CN24: 24442000 | CP24: 24442000 | CQ24: 24442000
A25: H090018-B | B25: Statewide Mobility | C25: I-3819B | D25: I-40 | E25: I-77 | G25: Reconstruct interchange (Final Improvements). | H25: 8 - Improve Interchange | I25: 168200000 | J25: 47.70498491 | K25: 32.33597041 | L25: 24.93573912 | M25: 82.57007872 | N25: 0.4336169025 | O25: 83.35 | P25: 68.4122621 | Q25: 7.86423803 | R25: 32.50046504 | S25: N/A | T25: N/A | V25: Charlotte Regional Transportation Planning Organization | W25: 100 | AB25: 12 | AC25: 100 | AH25: Iredell | AI25: 100 | AP25: 12 | AQ25: F | AR25: 12, , | AS25: Charlotte Regional Transportation Planning Organization, , | AT25: Iredell, , , | AU25: 2 | AV25: 2 | AW25: Freeway | AX25: Freeway | AY25: 2 | AZ25: 2 | BA25: Divided | BB25: Divided | BC25: 61.85167029 | BD25: 61.85167029 | BE25: 14.03308374 | BF25: 85.96691626 | BG25: 97501.39511 | BH25: 134270.0956 | BI25: 0.726158678 | BJ25: 83818.94269 | BK25: 13682.45242 | BL25: 2692483.817 | BM25: 439516.1826 | BN25: 3132000 | BO25: 72934363 | BS25: 100 | BT25: 66.7 | BU25: 55 | BV25: 0.0001022847606 | BW25: No | BX25: No | BY25: 12 | BZ25: 12 | CA25: No | CB25: 10 | CC25: 10 | CD25: 4 Lane with Median - Full Control | CF25: Full | CG25: Full | CH25: 3 | CI25: No | CJ25: 18.86143175 | CK25: 168100000 | CL25: 100000 | CM25: 0 | CN25: 168200000 | CP25: 168200000 | CQ25: 168200000
A26: H090019-A | B26: Statewide Mobility | C26: I-4400A | D26: I-26 | E26: US 25 | F26: US 64 | G26: Add Additional Lanes. | H26: 1 - Widen Existing Roadway | I26: 39768000 | J26: 32.88908033 | K26: 23.37771237 | L26: 18.43979956 | M26: 62.74381233 | N26: 1.971768709 | O26: 54.96683352 | P26: 32.54142349 | Q26: 14.69437964 | R26: 17.02133756 | S26: N/A | T26: N/A | V26: French Broad River MPO | W26: 100 | AB26: 14 | AC26: 100 | AH26: Henderson | AI26: 100 | AP26: 14 | AQ26: G | AR26: 14, , | AS26: French Broad River MPO, , | AT26: Henderson, , , | AU26: 4.63485524 | AV26: 4.63485524 | AW26: Freeway | AX26: Freeway | AY26: 2 | AZ26: 3 | BA26: Divided | BB26: Divided | BC26: 60 | BD26: 60 | BE26: 12.74534522 | BF26: 87.25465478 | BG26: 51064.01267 | BH26: 72400.06036 | BI26: 0.7053034544 | BJ26: 44555.72797 | BK26: 6508.284697 | BL26: 2953083.695 | BM26: 431358.8913 | BN26: 3384442.586 | BO26: 78413298 | BP26: 58.2506723 | BQ26: 53.11721971 | BR26: 53.54910025 | BU26: 59 | BV26: 0.0002348875928 | BW26: No | BX26: No | BY26: 12 | BZ26: 12 | CA26: No | CB26: 10 | CC26: 10 | CD26: 4 Lane with Median - Full Control | CE26: 6B - 6 Lane Divided (27' Median with Jersey Barrier with Paved Shoulders | CF26: Full | CG26: Full | CH26: 3 | CI26: No | CJ26: 20 | CK26: 38768000 | CL26: 1000000 | CM26: 0 | CN26: 39768000 | CP26: 39768000 | CQ26: 39768000
A27: H090019-B | B27: Statewide Mobility | C27: I-4400B | D27: I-26 | E27: US 64 | F27: US 25 Business | G27: Add Additional Lanes. | H27: 1 - Widen Existing Roadway | I27: 39768000 | J27: 36.04609676 | K27: 25.64164568 | L27: 20.05146078 | M27: 67.58011016 | N27: 3.556921671 | O27: 58.24054418 | P27: 31.14999707 | Q27: 26.50933375 | R27: 20.33333306 | S27: N/A | T27: N/A | V27: French Broad River MPO | W27: 100 | AB27: 14 | AC27: 100 | AH27: Henderson | AI27: 100 | AP27: 14 | AQ27: G | AR27: 14, , | AS27: French Broad River MPO, , | AT27: Henderson, , , | AU27: 5.72469805 | AV27: 5.72469805 | AW27: Freeway | AX27: Freeway | AY27: 2 | AZ27: 3 | BA27: Divided | BB27: Divided | BC27: 60 | BD27: 60 | BE27: 11.32727183 | BF27: 88.67272817 | BG27: 54999.99918 | BH27: 72399.99893 | BI27: 0.7596685082 | BJ27: 48769.99977 | BK27: 6229.999415 | BL27: 5444273.69 | BM27: 695464.8773 | BN27: 6139738.567 | BO27: 141451661 | BP27: 61.92446148 | BQ27: 56.703247 | BR27: 56.11139796 | BU27: 107 | BV27: 0.000423186675 | BW27: No | BX27: No | BY27: 12 | BZ27: 12 | CA27: No | CB27: 10 | CC27: 10 | CD27: 4 Lane with Median - Full Control | CE27: 6B - 6 Lane Divided (27' Median with Jersey Barrier with Paved Shoulders | CF27: Full | CG27: Full | CH27: 3 | CI27: No | CJ27: 21 | CK27: 38768000 | CL27: 1000000 | CM27: 0 | CN27: 39768000 | CP27: 39768000 | CQ27: 39768000
A28: H090019-C | B28: Statewide Mobility | C28: I-4400C | D28: I-26 | E28: US 25 Business | F28: NC 280 | G28: Add Additional Lanes. | H28: 1 - Widen Existing Roadway | I28: 32060000 | J28: 40.33573143 | K28: 25.85625809 | L28: 20.17683286 | M28: 71.32425181 | N28: 3.566135901 | O28: 51.98755321 | P28: 52.6238882 | Q28: 21.45082159 | R28: 19.34905843 | S28: N/A | T28: N/A | V28: French Broad River MPO | W28: 100 | AB28: 14 | AC28: 99.21 | AD28: 13 | AE28: 0.79 | AH28: Henderson | AI28: 99.21 | AJ28: Buncombe | AK28: 0.79 | AP28: 14 | AQ28: G | AR28: 14, 13, | AS28: French Broad River MPO, , | AT28: Henderson, Buncombe, , | AU28: 3.28946311 | AV28: 3.28946311 | AW28: Freeway | AX28: Freeway | AY28: 2 | AZ28: 3 | BA28: Divided | BB28: Divided | BC28: 60 | BD28: 60 | BE28: 11.22534525 | BF28: 88.77465475 | BG28: 58047.17528 | BH28: 72400.01833 | BI28: 0.8017563617 | BJ28: 51531.17945 | BK28: 6515.995832 | BL28: 4407257.759 | BM28: 557287.3257 | BN28: 4964545.085 | BO28: 114330317 | BP28: 56.17501906 | BQ28: 58.89214592 | BR28: 40.91109248 | BU28: 87 | BV28: 0.0003420164318 | BW28: No | BX28: Yes | BY28: 12 | BZ28: 12 | CA28: No | CB28: 10 | CC28: 10 | CD28: 4 Lane with Median - Full Control | CE28: 6B - 6 Lane Divided (27' Median with Jersey Barrier with Paved Shoulders | CF28: Full | CG28: Full | CH28: 3 | CI28: No | CJ28: 20 | CK28: 31060000 | CL28: 1000000 | CM28: 0 | CN28: 32060000 | CP28: 32060000 | CQ28: 32060000
A29: H090022 | B29: Statewide Mobility | D29: I-74 , US-52 | E29: NC 65 in Winston-Salem | F29: I-74 in Surry County | G29: NC 65 in Winston-Salem to I-74 in Surry County. Upgrade to interstate Standards | H29: 17 - Upgrade Freeway to Interstate Standards | I29: 27474000 | J29: 21.55945513 | K29: 18.97166152 | L29: 14.01204597 | M29: 38.84380939 | N29: 0 | O29: 62.4328409 | P29: 18.31514112 | Q29: 0 | R29: 30.17425083 | S29: N/A | T29: N/A | V29: Winston Salem Urban Area MPO | W29: 53.56 | X29: Northwest Piedmont RPO | Y29: 46.44 | AB29: 09 | AC29: 53.5 | AD29: 11 | AE29: 46.5 | AH29: Surry | AI29: 46.5 | AJ29: Stokes | AK29: 30.53 | AL29: Forsyth | AM29: 22.96 | AP29: 9 | AQ29: D | AR29: 09, 11, | AS29: Winston Salem Urban Area MPO, Northwest Piedmont RPO, | AT29: Surry, Stokes, Forsyth, | AU29: 21.5456129 | AV29: 21.5456129 | AW29: Freeway | AX29: Freeway | AY29: 2 | AZ29: 2 | BA29: Divided | BB29: Divided | BC29: 65 | BD29: 65 | BE29: 12.10463197 | BF29: 87.89536803 | BG29: 30261.37624 | BH29: 67903.24974 | BI29: 0.4456543149 | BJ29: 26598.34802 | BK29: 3663.028224 | BL29: 0 | BM29: 0 | BN29: 0 | BO29: 0 | BP29: 72.63182373 | BQ29: 55.9734037 | BR29: 58.71202699 | BU29: 0 | BV29: 0 | BW29: No | BX29: No | BY29: 12 | BZ29: 12 | CA29: No | CB29: 8 | CC29: 10 | CD29: 4 Lane with Median - Full Control | CF29: Full | CG29: Full | CH29: 2 | CI29: No | CJ29: 25 | CK29: 27474000 | CL29: 0 | CM29: 0 | CN29: 27474000 | CP29: 27474000 | CQ29: 27474000
A30: H090023-A | B30: Statewide Mobility | C30: I-4406A | D30: I-73 , US-220 , I-74 | E30: North of US 220 Alternate | F30: South of NC 211 | G30: South of Steeds to North of Emery. Upgrade to interstate Standards. Section A: North of US 220 Alternate to South of NC 211. | H30: 17 - Upgrade Freeway to Interstate Standards | I30: 9220000 | J30: 8.132000491 | K30: 5.907407966 | L30: 3.882819294 | M30: 14.49174817 | N30: 0 | O30: 9.844696595 | P30: 14.00003189 | Q30: 0 | R30: 13.00001263 | S30: N/A | T30: N/A | V30: Piedmont Triad RPO | W30: 100 | AB30: 08 | AC30: 100 | AH30: Montgomery | AI30: 100 | AP30: 8 | AQ30: E | AR30: 08, , | AS30: Piedmont Triad RPO, , | AT30: Montgomery, , , | AU30: 2.70312671 | AV30: 2.70312671 | AW30: Freeway | AX30: Freeway | AY30: 2 | AZ30: 2 | BA30: Divided | BB30: Divided | BC30: 59 | BD30: 59 | BE30: 25.45457422 | BF30: 74.54542578 | BG30: 11000.01263 | BH30: 65400.07507 | BI30: 0.1681957187 | BJ30: 8200.006251 | BK30: 2800.006379 | BL30: 0 | BM30: 0 | BN30: 0 | BO30: 0 | BP30: 4.67629146 | BQ30: 9.36662584 | BR30: 15.49412619 | BU30: 0 | BV30: 0 | BW30: No | BX30: No | BY30: 12 | BZ30: 12 | CA30: No | CB30: 4 | CC30: 10 | CD30: 4 Lane with Median - Full Control | CF30: Full | CG30: Full | CH30: 1 | CI30: No | CJ30: 21 | CK30: 9200000 | CL30: 20000 | CM30: 0 | CN30: 9220000 | CP30: 9220000 | CQ30: 9220000
A31: H090023-B | B31: Statewide Mobility | C31: I-4406B | D31: I-73 , US-220 , I-74 | E31: South of NC 211 | F31: North of SR 1500 (Post office Road) | G31: South of Steeds to North of Emery. Upgrade to interstate Standards. Section B: South of NC 211 to North of SR 1500 (Post office Road).. | H31: 17 - Upgrade Freeway to Interstate Standards | I31: 10820000 | J31: 13.08505786 | K31: 11.31151099 | L31: 8.235456321 | M31: 19.66600951 | N31: 0 | O31: 43.02254418 | P31: 14.41500296 | Q31: 0 | R31: 20.92754192 | S31: N/A | T31: N/A | V31: Piedmont Triad RPO | W31: 100 | AB31: 08 | AC31: 100 | AH31: Montgomery | AI31: 100 | AP31: 8 | AQ31: E | AR31: 08, , | AS31: Piedmont Triad RPO, , | AT31: Montgomery, , , | AU31: 3.11288316 | AV31: 3.11288316 | AW31: Freeway | AX31: Freeway | AY31: 2 | AZ31: 2 | BA31: Divided | BB31: Divided | BC31: 65 | BD31: 65 | BE31: 19.31329758 | BF31: 80.68670242 | BG31: 14927.54192 | BH31: 65399.99924 | BI31: 0.2282498791 | BJ31: 12044.54133 | BK31: 2883.000593 | BL31: 0 | BM31: 0 | BN31: 0 | BO31: 0 | BP31: 17.25492077 | BQ31: 71.84640637 | BR31: 39.97921345 | BU31: 0 | BV31: 0 | BW31: No | BX31: No | BY31: 12 | BZ31: 12 | CA31: No | CB31: 4 | CC31: 10 | CD31: 4 Lane with Median - Full Control | CF31: Full | CG31: Full | CH31: 1 | CI31: No | CJ31: 23 | CK31: 10800000 | CL31: 20000 | CM31: 0 | CN31: 10820000 | CP31: 10820000 | CQ31: 10820000
A32: H090023-C | B32: Statewide Mobility | C32: I-4406C | D32: I-73 , US-220 , I-74 | E32: North of SR 1500 (Post office Road) | F32: North of NC 24/27 | G32: South of Steeds to North of Emery. Upgrade to interstate Standards. Section C: North of SR 1500 (Post office Road) to North of NC 24-27.. | H32: 17 - Upgrade Freeway to Interstate Standards | I32: 8270000 | J32: 10.42684664 | K32: 9.032750087 | L32: 5.581498391 | M32: 19.46901225 | N32: 0 | O32: 16.87695941 | P32: 14.4922351 | Q32: 0 | R32: 24.77801084 | S32: N/A | T32: N/A | V32: Piedmont Triad RPO | W32: 100 | AB32: 08 | AC32: 100 | AH32: Montgomery | AI32: 100 | AP32: 8 | AQ32: E | AR32: 08, , | AS32: Piedmont Triad RPO, , | AT32: Montgomery, , , | AU32: 2.2321726 | AV32: 2.2321726 | AW32: Freeway | AX32: Freeway | AY32: 2 | AZ32: 2 | BA32: Divided | BB32: Divided | BC32: 65 | BD32: 65 | BE32: 19.61324194 | BF32: 80.38675806 | BG32: 14778.01084 | BH32: 65400.00095 | BI32: 0.2259634652 | BJ32: 11879.56382 | BK32: 2898.44702 | BL32: 0 | BM32: 0 | BN32: 0 | BO32: 0 | BP32: 14.83941864 | BQ32: 10.15097253 | BR32: 25.64555066 | BU32: 0 | BV32: 0 | BW32: No | BX32: No | BY32: 12 | BZ32: 12 | CA32: No | CB32: 4 | CC32: 10 | CD32: 4 Lane with Median - Full Control | CF32: Full | CG32: Full | CH32: 1 | CI32: No | CJ32: 25 | CK32: 8250000 | CL32: 20000 | CM32: 0 | CN32: 8270000 | CP32: 8270000 | CQ32: 8270000
A33: H090023-D | B33: Statewide Mobility | C33: I-4406D | D33: I-73 , US-220 , I-74 | E33: North of NC 24/27 | F33: North of SR 1002 (Spies Road) | G33: South of Steeds to North of Emery. Upgrade to interstate Standards. Section D: North of NC 24/27 to North of SR 1002 (Spies Road).. | H33: 17 - Upgrade Freeway to Interstate Standards | I33: 10970000 | J33: 11.44305904 | K33: 9.917933487 | L33: 6.761603215 | M33: 17.12660549 | N33: 0 | O33: 33.36282116 | P33: 14.84397639 | Q33: 0 | R33: 22.99999997 | S33: N/A | T33: N/A | V33: Piedmont Triad RPO | W33: 100 | AB33: 08 | AC33: 100 | AH33: Montgomery | AI33: 100 | AP33: 8 | AQ33: E | AR33: 08, , | AS33: Piedmont Triad RPO, , | AT33: Montgomery, , , | AU33: 3.27138169 | AV33: 3.27138169 | AW33: Freeway | AX33: Freeway | AY33: 2 | AZ33: 2 | BA33: Divided | BB33: Divided | BC33: 65 | BD33: 65 | BE33: 22.83688681 | BF33: 77.16311319 | BG33: 12999.99997 | BH33: 65399.99984 | BI33: 0.1987767584 | BJ33: 10031.20469 | BK33: 2968.795278 | BL33: 0 | BM33: 0 | BN33: 0 | BO33: 0 | BP33: 15.24344468 | BQ33: 50.93205916 | BR33: 33.9229695 | BU33: 0 | BV33: 0 | BW33: No | BX33: No | BY33: 12 | BZ33: 12 | CA33: No | CB33: 4 | CC33: 10 | CD33: 4 Lane with Median - Full Control | CF33: Full | CG33: Full | CH33: 1 | CI33: No | CJ33: 25 | CK33: 10950000 | CL33: 20000 | CM33: 0 | CN33: 10970000 | CP33: 10970000 | CQ33: 10970000
A34: H090023-E | B34: Statewide Mobility | C34: I-4406E | D34: I-73 , US-220 , I-74 | E34: North of SR 1002 (Spies Road) | F34: North of US 220 Alternate | G34: South of Steeds to North of Emery. Upgrade to interstate Standards. Section E: North of SR 1002 (Spies Road) to North of US 220 Alternate.. | H34: 17 - Upgrade Freeway to Interstate Standards | I34: 10820000 | J34: 8.499293212 | K34: 7.117884052 | L34: 3.961553777 | M34: 17.1266055 | N34: 0 | O34: 5.36232676 | P34: 14.01059719 | Q34: 0.2295944783 | R34: 23 | S34: N/A | T34: N/A | V34: Piedmont Triad RPO | W34: 100 | AB34: 08 | AC34: 100 | AH34: Montgomery | AI34: 100 | AP34: 8 | AQ34: E | AR34: 08, , | AS34: Piedmont Triad RPO, , | AT34: Montgomery, , , | AU34: 3.08770904 | AV34: 3.08770904 | AW34: Freeway | AX34: Freeway | AY34: 2 | AZ34: 2 | BA34: Divided | BB34: Divided | BC34: 64 | BD34: 64 | BE34: 21.5547649 | BF34: 78.4452351 | BG34: 13000 | BH34: 65400 | BI34: 0.1987767584 | BJ34: 10197.88056 | BK34: 2802.119437 | BL34: 0 | BM34: 0 | BN34: 0 | BO34: 0 | BP34: 0 | BQ34: 0 | BR34: 16.08858914 | BU34: 1 | BV34: 3.591889566e-06 | BW34: No | BX34: No | BY34: 12 | BZ34: 12 | CA34: No | CB34: 0 | CC34: 10 | CD34: 4 Lane with Median - Full Control | CF34: Full | CG34: Full | CH34: 1 | CI34: No | CJ34: 25 | CK34: 10800000 | CL34: 20000 | CM34: 0 | CN34: 10820000 | CP34: 10820000 | CQ34: 10820000
A35: H090028-A | B35: Statewide Mobility | C35: I-4700A | D35: I-26 | E35: NC 280 | F35: NC 146 (Long Shoals Road) | G35: Add Additional Lanes. | H35: 1 - Widen Existing Roadway | I35: 53630000 | J35: 49.31504026 | K35: 31.89129773 | L35: 24.74731292 | M35: 88.46851547 | N35: 6.411168805 | O35: 57.71376065 | P35: 66.61189847 | Q35: 17.57379217 | R35: 24.00000598 | S35: N/A | T35: N/A | V35: French Broad River MPO | W35: 100 | AB35: 13 | AC35: 100 | AH35: Buncombe | AI35: 100 | AP35: 13 | AQ35: G | AR35: 13, , | AS35: French Broad River MPO, , | AT35: Buncombe, , , | AU35: 3.12301673 | AV35: 3.12301673 | AW35: Freeway | AX35: Freeway | AY35: 2 | AZ35: 3 | BA35: Divided | BB35: Divided | BC35: 60 | BD35: 60 | BE35: 11.59722489 | BF35: 88.40277511 | BG35: 72000.01795 | BH35: 72400.01805 | BI35: 0.9944751381 | BJ35: 63650.01395 | BK35: 8350.004003 | BL35: 13179117.87 | BM35: 1728918.506 | BN35: 14908036.38 | BO35: 343830983 | BP35: 71.93472754 | BQ35: 45.26212072 | BR35: 55.96174956 | BU35: 283 | BV35: 6.847584335e-05 | BW35: No | BX35: Yes | BY35: 12 | BZ35: 12 | CA35: No | CB35: 10 | CC35: 10 | CD35: 4 Lane with Median - Full Control | CE35: 6B - 6 Lane Divided (27' Median with Jersey Barrier with Paved Shoulders | CF35: Full | CG35: Full | CH35: 3 | CI35: No | CJ35: 19 | CK35: 52630000 | CL35: 1000000 | CM35: 0 | CN35: 53630000 | CP35: 53630000 | CQ35: 53630000
A36: H090028-B | B36: Statewide Mobility | C36: I-4700B | D36: I-26 | E36: NC 146 (Long Shoals Road) | F36: I-40 | G36: Add Additional Lanes. | H36: 1 - Widen Existing Roadway | I36: 98768000 | J36: 55.0041642 | K36: 37.08461994 | L36: 29.19837441 | M36: 94.30675238 | N36: 12.25044352 | O36: 78.86935228 | P36: 44.82588076 | Q36: 61.84894045 | R36: 25.58385733 | S36: N/A | T36: N/A | V36: French Broad River MPO | W36: 100 | AB36: 13 | AC36: 100 | AH36: Buncombe | AI36: 100 | AP36: 13 | AQ36: G | AR36: 13, , | AS36: French Broad River MPO, , | AT36: Buncombe, , , | AU36: 6.18371847 | AV36: 6.18371847 | AW36: Freeway | AX36: Freeway | AY36: 2 | AZ36: 4 | BA36: Divided | BB36: Divided | BC36: 60 | BD36: 60 | BE36: 11.68077203 | BF36: 88.31922797 | BG36: 76751.57199 | BH36: 72400.1725 | BI36: 1.06010206 | BJ36: 67786.39584 | BK36: 8965.176152 | BL36: 46318504.67 | BM36: 6125912.852 | BN36: 52444417.52 | BO36: 1209951806 | BP36: 83.34530034 | BQ36: 67.24538076 | BR36: 86.04103891 | BU36: 996 | BV36: 0.0002409788089 | BW36: No | BX36: No | BY36: 12 | BZ36: 12 | CA36: No | CB36: 10 | CC36: 10 | CD36: 4 Lane with Median - Full Control | CE36: 8B - 8 Lane Divided (27' Median with Jersey Barrier with Paved Shoulders | CF36: Full | CG36: Full | CH36: 3 | CI36: No | CJ36: 18 | CK36: 97768000 | CL36: 1000000 | CM36: 0 | CN36: 98768000 | CP36: 98768000 | CQ36: 98768000
A37: H090030 | B37: Statewide Mobility | C37: I-4729 | D37: I-26 | E37: US 74, NC 108 | G37: I-26, US 74, NC 108 interchange (Exit 36) Revisions and Improvements to NC 108. | H37: 8 - Improve Interchange | I37: 19035000 | J37: 28.54162121 | K37: 19.8805266 | L37: 14.7137201 | M37: 36.01008949 | N37: 4.233511006 | O37: 66.65 | P37: 41.46607306 | Q37: 15.10326453 | R37: 31.54626476 | S37: N/A | T37: N/A | V37: Isothermal RPO | W37: 100 | AB37: 14 | AC37: 100 | AH37: Polk | AI37: 100 | AP37: 14 | AQ37: G | AR37: 14, , | AS37: Isothermal RPO, , | AT37: Polk, , , | AU37: 2 | AV37: 2 | AW37: Freeway | AX37: Freeway | AY37: 2 | AZ37: 2 | BA37: Divided | BB37: Divided | BC37: 65 | BD37: 65 | BE37: 19.77643719 | BF37: 80.22356281 | BG37: 41934.82644 | BH37: 130800 | BI37: 0.3206026486 | BJ37: 33641.61183 | BK37: 8293.214612 | BL37: 2714765.365 | BM37: 669234.6345 | BN37: 3384000 | BO37: 80584882 | BS37: 33.3 | BT37: 100 | BU37: 60 | BV37: 0.0002420652907 | BW37: No | BX37: No | BY37: 11 | BZ37: 12 | CA37: No | CB37: 6 | CC37: 10 | CD37: 4 Lane with Median - Full Control | CF37: Full | CG37: Full | CH37: 2 | CI37: No | CJ37: 21.7948569 | CK37: 17625000 | CL37: 1410000 | CM37: 0 | CN37: 19035000 | CP37: 19035000 | CQ37: 19035000
A38: H090031 | B38: Statewide Mobility | C38: I-4739 | D38: I-40 | E38: NC 42 | G38: Access Improvements in the Vicinity of Existing I-40/NC 42 interchange. | H38: 8 - Improve Interchange | I38: 6670000 | J38: 56.70259381 | K38: 31.74966376 | L38: 19.45857802 | M38: 76.69984554 | N38: 51.23593463 | O38: 66.65 | P38: 40.42584095 | Q38: 35.71691569 | R38: 41.80152519 | S38: 0 | T38: 0 | V38: Capital Area MPO | W38: 100 | AB38: 04 | AC38: 100 | AH38: Johnston | AI38: 100 | AP38: 4 | AQ38: A | AR38: 04, , | AS38: Capital Area MPO, , | AT38: Johnston, , , | AU38: 2 | AV38: 2 | AW38: Freeway | AX38: Freeway | AY38: 2 | AZ38: 2 | BA38: Divided | BB38: Divided | BC38: 70 | BD38: 70 | BE38: 10.77725414 | BF38: 89.22274586 | BG38: 75020.6693 | BH38: 96403.68496 | BI38: 0.7781929636 | BJ38: 66935.50111 | BK38: 8085.168189 | BL38: 13263853.4 | BM38: 1602146.601 | BN38: 14866000 | BO38: 341743684 | BS38: 100 | BT38: 33.3 | BU38: 246 | BV38: 0.0004683383138 | BW38: No | BX38: No | BY38: 12 | BZ38: 12 | CA38: No | CB38: 10 | CC38: 10 | CD38: 4 Lane with Median - Full Control | CF38: Full | CG38: Full | CH38: 3 | CI38: No | CJ38: 28.39731771 | CK38: 5750000 | CL38: 920000 | CM38: 0 | CN38: 6670000 | CP38: 6670000 | CQ38: 6670000
A39: H090036-AB | B39: Statewide Mobility | C39: I-4750AB | D39: I-77 | E39: SR 5544 (West Catawba Avenue) | F39: NC 150 | G39: Add General Purpose Lanes. | H39: 1 - Widen Existing Roadway | I39: 166000000 | J39: 39.09006208 | K39: 29.41665038 | L39: 22.02102498 | M39: 72.42059921 | N39: 0.7871206687 | O39: 73.79481003 | P39: 41.58206937 | Q39: 14.3185124 | R39: 37.35239411 | S39: N/A | T39: N/A | V39: Charlotte Regional Transportation Planning Organization | W39: 100 | AB39: 12 | AC39: 73.69 | AD39: 10 | AE39: 26.31 | AH39: Iredell | AI39: 73.69 | AJ39: Mecklenburg | AK39: 26.31 | AP39: 12 | AQ39: F | AR39: 12, 10, | AS39: Charlotte Regional Transportation Planning Organization, , | AT39: Iredell, Mecklenburg, , | AU39: 7.77963781 | AV39: 7.77963781 | AW39: Freeway | AX39: Freeway | AY39: 3 | AZ39: 4 | BA39: Divided | BB39: Divided | BC39: 65 | BD39: 65 | BE39: 10.93442278 | BF39: 89.06557722 | BG39: 76057.18233 | BH39: 108659 | BI39: 0.6999621047 | BJ39: 67740.76846 | BK39: 8316.413874 | BL39: 5059186.978 | BM39: 621107.4031 | BN39: 5680294.381 | BO39: 130662031 | BP39: 80.56548331 | BQ39: 64.5503012 | BR39: 76.29078625 | BU39: 101.1722343 | BV39: 0.0001851980138 | BW39: No | BX39: No | BY39: 12 | BZ39: 12 | CA39: No | CB39: 10 | CC39: 10 | CD39: 4 Lane with Median - Full Control | CE39: 8B - 8 Lane Divided (27' Median with Jersey Barrier with Paved Shoulders | CF39: Full | CG39: Full | CH39: 3 | CI39: No | CJ39: 26 | CK39: 141000000 | CL39: 25000000 | CM39: 0 | CN39: 166000000 | CP39: 166000000 | CQ39: 166000000
A40: H090036-B | B40: Statewide Mobility | C40: I-4750B | D40: I-77 | E40: NC 150 | F40: NC 115/US 21 | G40: Add General Purpose Lanes. | H40: 1 - Widen Existing Roadway | I40: 116900000 | J40: 35.7195177 | K40: 25.40080645 | L40: 19.55993282 | M40: 67.97151432 | N40: 1.512474979 | O40: 56.63134959 | P40: 36.50295538 | Q40: 19.1059487 | R40: 23.66674161 | S40: N/A | T40: N/A | V40: Charlotte Regional Transportation Planning Organization | W40: 100 | AB40: 12 | AC40: 100 | AH40: Iredell | AI40: 100 | AP40: 12 | AQ40: F | AR40: 12, , | AS40: Charlotte Regional Transportation Planning Organization, , | AT40: Iredell, , , | AU40: 5.69057593 | AV40: 5.69057593 | AW40: Freeway | AX40: Freeway | AY40: 2 | AZ40: 4 | BA40: Divided | BB40: Divided | BC40: 65 | BD40: 65 | BE40: 13.77464171 | BF40: 86.22535829 | BG40: 53000.22483 | BH40: 67990.52052 | BI40: 0.7795237398 | BJ40: 45699.63375 | BK40: 7300.591076 | BL40: 6553442.343 | BM40: 1046923.11 | BN40: 7600365.453 | BO40: 176808325 | BP40: 51.00378484 | BQ40: 70.38552339 | BR40: 48.52173164 | BU40: 134 | BV40: 0.000248118974 | BW40: No | BX40: No | BY40: 12 | BZ40: 12 | CA40: No | CB40: 10 | CC40: 10 | CD40: 4 Lane with Median - Full Control | CE40: 8B - 8 Lane Divided (27' Median with Jersey Barrier with Paved Shoulders | CF40: Full | CG40: Full | CH40: 3 | CI40: No | CJ40: 23 | CK40: 105200000 | CL40: 11700000 | CM40: 0 | CN40: 116900000 | CP40: 116900000 | CQ40: 116900000
A41: H090036-C | B41: Statewide Mobility | C41: I-4750C | D41: I-77 | E41: NC 115/US 21 | F41: I-40 | G41: Add General Purpose Lanes. | H41: 1 - Widen Existing Roadway | I41: 237500000 | J41: 41.78908313 | K41: 26.62006165 | L41: 20.87588442 | M41: 71.49187112 | N41: 2.085229895 | O41: 61.60464213 | P41: 41.07280267 | Q41: 53.40928081 | R41: 20.65322182 | S41: N/A | T41: N/A | V41: Charlotte Regional Transportation Planning Organization | W41: 100 | AB41: 12 | AC41: 100 | AH41: Iredell | AI41: 100 | AP41: 12 | AQ41: F | AR41: 12, , | AS41: Charlotte Regional Transportation Planning Organization, , | AT41: Iredell, , , | AU41: 9.50299467 | AV41: 9.50299467 | AW41: Freeway | AX41: Freeway | AY41: 2 | AZ41: 4 | BA41: Divided | BB41: Divided | BC41: 62 | BD41: 65 | BE41: 14.6794311 | BF41: 85.3205689 | BG41: 55959.66547 | BH41: 68371.33646 | BI41: 0.8184667489 | BJ41: 47745.10494 | BK41: 8214.560535 | BL41: 18099096.11 | BM41: 3113955.259 | BN41: 21213051.37 | BO41: 495242100 | BP41: 69.77464536 | BQ41: 52.78860893 | BR41: 62.26915535 | BU41: 373 | BV41: 0.0006951856161 | BW41: No | BX41: No | BY41: 12 | BZ41: 12 | CA41: No | CB41: 10 | CC41: 10 | CD41: 4 Lane with Median - Full Control | CE41: 8B - 8 Lane Divided (27' Median with Jersey Barrier with Paved Shoulders | CF41: Full | CG41: Full | CH41: 3 | CI41: No | CJ41: 21 | CK41: 220000000 | CL41: 17500000 | CM41: 0 | CN41: 237500000 | CP41: 237500000 | CQ41: 237500000
A42: H090038 | B42: Statewide Mobility | C42: I-4921 | D42: I-73 , US-220 | E42: SR 1462 (West Presnell Street) | F42: I-85 | G42: SR 1462 (West Presnell Street Extension) in Asheboro to I-85 in Greensboro. Upgrade to interstate Standards.. | H42: 17 - Upgrade Freeway to Interstate Standards | I42: 107160000 | J42: 17.02930194 | K42: 14.48624798 | L42: 10.32595515 | M42: 31.64987688 | N42: 0 | O42: 39.95979772 | P42: 17.69179553 | Q42: 0 | R42: 25.77798992 | S42: N/A | T42: N/A | V42: Piedmont Triad RPO | W42: 64.54 | X42: Greensboro Urban Area MPO | Y42: 32.36 | Z42: High Point Urban Area MPO | AA42: 3.1 | AB42: 08 | AC42: 67.66 | AD42: 07 | AE42: 32.34 | AH42: Randolph | AI42: 67.66 | AJ42: Guilford | AK42: 32.34 | AP42: 8 | AQ42: E | AR42: 08, 07, | AS42: Piedmont Triad RPO, Greensboro Urban Area MPO, High Point Urban Area MPO | AT42: Randolph, Guilford, , | AU42: 19.89840036 | AV42: 19.89840036 | AW42: Freeway | AX42: Freeway | AY42: 2 | AZ42: 2 | BA42: Divided | BB42: Divided | BC42: 62 | BD42: 62 | BE42: 11.92692523 | BF42: 88.07307477 | BG42: 29666.98488 | BH42: 89976.83015 | BI42: 0.3297180489 | BJ42: 26128.62577 | BK42: 3538.359105 | BL42: 0 | BM42: 0 | BN42: 0 | BO42: 0 | BP42: 37.99524023 | BQ42: 35.54804752 | BR42: 46.34809454 | BU42: 0 | BV42: 0 | BW42: No | BX42: No | BY42: 12 | BZ42: 12 | CA42: No | CB42: 10 | CC42: 10 | CD42: 4 Lane with Median - Full Control | CF42: Full | CG42: Full | CH42: 2 | CI42: No | CJ42: 23 | CK42: 107160000 | CL42: 0 | CM42: 0 | CN42: 107160000 | CP42: 107160000 | CQ42: 107160000
A43: H090039 | B43: Statewide Mobility | C43: I-4923 | D43: I-73 | E43: Future I-74/US 74 | F43: South Carolina State Line | G43: Future I-74/US 74 to South Carolina State Line. Freeway on New Location.. | H43: 5 - Construct Roadway on New Location | I43: 176158000 | J43: 11.66129336 | K43: 11.4135609 | L43: 9.362523503 | M43: 11.98694924 | N43: 0.1941268577 | O43: 69.26308283 | P43: 1.694158143 | Q43: 7.418306193 | R43: 14.41983595 | S43: N/A | T43: N/A | V43: Lumber River RPO | W43: 100 | AB43: 08 | AC43: 100 | AH43: Richmond | AI43: 68.08 | AJ43: Scotland | AK43: 31.92 | AP43: 8 | AQ43: E | AR43: 08, , | AS43: Lumber River RPO, , | AT43: Richmond, Scotland, , | AU43: 7.4 | AV43: 4.68596785 | AW43: Two Lane Highway | AX43: Freeway | AY43: 1 | AZ43: 2 | BA43: Undivided | BB43: Divided | BC43: 55 | BD43: 70 | BE43: 12.07262104 | BF43: 87.92737896 | BG43: 2806.611983 | BH43: 15500 | BI43: 0.1810717408 | BJ43: 2467.780354 | BK43: 338.8316287 | BL43: 1301270.062 | BM43: 178667.2196 | BN43: 1479937.282 | BO43: 34196999 | BP43: 66.57860735 | BQ43: 84.45837001 | BR43: 56.77305212 | BU43: 45 | BV43: 0.0001033661239 | BW43: No | BX43: No | BY43: 11 | BZ43: 12 | CA43: No | CB43: 0 | CC43: 0 | CD43: New Roadway | CE43: 4A - 4 Lane Divided (46' Depressed Median) with Paved Shoulders | CF43: None | CG43: Full | CH43: 1 | CI43: Yes | CJ43: 23 | CK43: 173850000 | CL43: 2061000 | CM43: 247000 | CN43: 176158000 | CP43: 176158000 | CQ43: 176158000
A44: H090040-A | B44: Regional Impact | D44: - New Route - Airport Connector | E44: I-74 (Winston-Salem Beltway) North of Kernersville | F44: NC 150 | G44: Construct 4 Lane Freeway on New Location. | H44: 5 - Construct Roadway on New Location | I44: 229559000 | J44: N/A | K44: 26.62496395 | L44: 13.68641231 | M44: 58.68088211 | N44: 0.09015072378 | O44: 19.3220574 | P44: 15.57448745 | Q44: N/A | R44: 100 | S44: N/A | T44: N/A | V44: Winston Salem Urban Area MPO | W44: 100 | AB44: 09 | AC44: 100 | AH44: Forsyth | AI44: 100 | AP44: 9 | AQ44: D | AR44: 09, , | AS44: Winston Salem Urban Area MPO, , | AT44: Forsyth, , , | AU44: 4.87493286 | AV44: 5.70230983 | AW44: Freeway | AX44: Freeway | AY44: 2 | AZ44: 2 | BA44: Divided | BB44: Divided | BC44: 60 | BD44: 65 | BE44: 6.522314886 | BF44: 93.47768511 | BG44: 47757.54534 | BH44: 72400.38832 | BI44: 0.6596310662 | BJ44: 44642.64785 | BK44: 3114.897489 | BL44: 856050.9911 | BM44: 59730.12827 | BN44: 915781.1193 | BO44: 20694910 | BP44: 17.04515835 | BQ44: 30.70410077 | BR44: 10.22271027 | BW44: No | BX44: No | BY44: 12 | BZ44: 12 | CA44: No | CB44: 10 | CC44: 10 | CD44: New Roadway | CE44: 4A - 4 Lane Divided (46' Depressed Median) with Paved Shoulders | CF44: Full | CG44: Full | CH44: 3 | CI44: Yes | CJ44: 23 | CK44: 155914000 | CL44: 65754000 | CM44: 7891000 | CN44: 229559000 | CP44: 229559000 | CQ44: 229559000
A45: H090040-B | B45: Regional Impact | D45: - New Route - Airport Connector | E45: NC 150 | F45: I-73 | G45: Construct 6 Lane Superstreet on New Location | H45: 5 - Construct Roadway on New Location | I45: 102789000 | J45: N/A | K45: 31.89444521 | L45: 18.30320784 | M45: 71.82474739 | N45: 0 | O45: 39.3825836 | P45: 34.78005258 | Q45: N/A | R45: 100 | S45: N/A | T45: N/A | V45: Greensboro Urban Area MPO | W45: 93.16 | X45: Winston Salem Urban Area MPO | Y45: 6.84 | AB45: 07 | AC45: 92.78 | AD45: 09 | AE45: 7.22 | AH45: Guilford | AI45: 92.78 | AJ45: Forsyth | AK45: 7.22 | AP45: 7 | AQ45: D | AR45: 07, 09, | AS45: Greensboro Urban Area MPO, Winston Salem Urban Area MPO, | AT45: Guilford, Forsyth, , | AU45: 5.18901429 | AV45: 5.43436699 | AW45: Freeway | AX45: Superstreet | AY45: 4 | AZ45: 3 | BA45: Divided | BB45: Divided | BC45: 63 | BD45: 55 | BE45: 8.765915287 | BF45: 91.23408471 | BG45: 79352.92879 | BH45: 118781.2121 | BI45: 0.6680595979 | BJ45: 72396.91827 | BK45: 6956.010515 | BL45: 0 | BM45: 0 | BN45: 0 | BO45: 0 | BP45: 27.06690296 | BQ45: 66.33897473 | BR45: 24.75368908 | BW45: No | BX45: No | BY45: 12 | BZ45: 12 | CA45: No | CB45: 11 | CC45: 10 | CD45: New Roadway | CE45: 6A - 6 Lane Divided (46' Depressed Median) with Paved Shoulders | CF45: Full | CG45: Limited | CH45: 2 | CI45: Yes | CJ45: 19 | CK45: 82644000 | CL45: 17987000 | CM45: 2158000 | CN45: 102789000 | CP45: 102789000 | CQ45: 102789000
A46: H090041 | B46: Statewide Mobility | C46: I-5008 | D46: I-40 | E46: SR 1734 (Carolina Street Se)/SR 1826 | G46: SR 1734/SR 1826 (Exit 111). Revise interchange to Diamond Configuration. | H46: 8 - Improve Interchange | I46: 3335000 | J46: 29.06166487 | K46: 25.13779891 | L46: 16.19402654 | M46: 63.81866134 | N46: 0.4764713643 | O46: 33.35 | P46: 32.15752899 | Q46: 0.06619256338 | R46: 57.29015737 | S46: N/A | T46: N/A | V46: Greater Hickory MPO | W46: 100 | AB46: 13 | AC46: 100 | AH46: Burke | AI46: 100 | AP46: 13 | AQ46: G | AR46: 13, , | AS46: Greater Hickory MPO, , | AT46: Burke, , , | AU46: 2 | AV46: 2 | AW46: Freeway | AX46: Freeway | AY46: 2 | AZ46: 2 | BA46: Divided | BB46: Divided | BC46: 65 | BD46: 65 | BE46: 11.22619677 | BF46: 88.77380323 | BG46: 57290.15737 | BH46: 84038.90162 | BI46: 0.6817099732 | BJ46: 50858.65157 | BK46: 6431.505798 | BL46: 61253.92423 | BM46: 7746.075773 | BN46: 69000 | BO46: 1589032 | BS46: 0 | BT46: 66.7 | BU46: 1 | BV46: 3.238512677e-07 | BW46: No | BX46: No | BY46: 12 | BZ46: 12 | CA46: No | CB46: 10 | CC46: 10 | CD46: 2 Lane Undivided | CF46: Full | CG46: Full | CH46: 1 | CI46: No | CJ46: 19.3 | CK46: 2875000 | CL46: 460000 | CM46: 0 | CN46: 3335000 | CP46: 3335000 | CQ46: 3335000
A47: H090042 | B47: Statewide Mobility | C47: I-5009 | D47: I-40 | E47: US 64 (Burkemont Road) | G47: interchange Improvements. | H47: 8 - Improve Interchange | I47: 1160000 | J47: 38.61035029 | K47: 32.1129386 | L47: 21.28499313 | M47: 63.13321739 | N47: 18.29174828 | O47: 50 | P47: 45.38524729 | Q47: 1.058111323 | R47: 67.56697179 | S47: N/A | T47: N/A | V47: Greater Hickory MPO | W47: 100 | AB47: 13 | AC47: 100 | AH47: Burke | AI47: 100 | AP47: 13 | AQ47: G | AR47: 13, , | AS47: Greater Hickory MPO, , | AT47: Burke, , , | AU47: 2 | AV47: 2 | AW47: Freeway | AX47: Freeway | AY47: 2 | AZ47: 2 | BA47: Divided | BB47: Divided | BC47: 65 | BD47: 65 | BE47: 14.08242594 | BF47: 85.91757406 | BG47: 64456.57514 | BH47: 103543.0708 | BI47: 0.6225097888 | BJ47: 55379.52568 | BK47: 9077.049459 | BL47: 782709.0997 | BM47: 128290.9003 | BN47: 911000 | BO47: 21218428 | BS47: 66.7 | BT47: 33.3 | BU47: 17 | BV47: 4.162226453e-06 | BW47: No | BX47: No | BY47: 12 | BZ47: 12 | CA47: No | CB47: 10 | CC47: 10 | CD47: 4 Lane with TWLTL (Five Lane) | CF47: Full | CG47: Full | CH47: 1 | CI47: No | CJ47: 21.55519833 | CK47: 1000000 | CL47: 160000 | CM47: 0 | CN47: 1160000 | CP47: 1160000 | CQ47: 1160000
A48: H090043 | B48: Statewide Mobility | C48: I-5105 | D48: I-73 , US-220 , I-74 | E48: South of US 220 Business | F48: North of SR 2269 (Vision Drive) | G48: South of US 220 Business/ SR 1138 (Dawson-Miller Road) to North of SR 2269 (Vision Drive). Geometric, Operational, and Safety Improvements.. | H48: 1 - Widen Existing Roadway | I48: 243823000 | J48: 19.05143748 | K48: 14.68200547 | L48: 11.11509003 | M48: 34.64208121 | N48: 0.3773208762 | O48: 41.11209613 | P48: 15.90819557 | Q48: 12.52768129 | R48: 18.15945334 | S48: N/A | T48: N/A | V48: Piedmont Triad RPO | W48: 100 | AB48: 08 | AC48: 100 | AH48: Randolph | AI48: 100 | AP48: 8 | AQ48: E | AR48: 08, , | AS48: Piedmont Triad RPO, , | AT48: Randolph, , , | AU48: 8.03897824 | AV48: 8.03897824 | AW48: Freeway | AX48: Freeway | AY48: 2 | AZ48: 4 | BA48: Divided | BB48: Divided | BC48: 57 | BD48: 65 | BE48: 11.68037772 | BF48: 88.31962228 | BG48: 27239.18001 | BH48: 68825.17631 | BI48: 0.3957734868 | BJ48: 24057.5409 | BK48: 3181.639113 | BL48: 3521880.238 | BM48: 465772.9552 | BN48: 3987653.194 | BO48: 91999508 | BP48: 30.75000978 | BQ48: 37.46004379 | BR48: 55.13856968 | BU48: 70 | BV48: 0.0001805536258 | BW48: No | BX48: No | BY48: 12 | BZ48: 12 | CA48: No | CB48: 5 | CC48: 10 | CD48: 4 Lane with Median - Full Control | CE48: 8B - 8 Lane Divided (27' Median with Jersey Barrier with Paved Shoulders | CF48: Full | CG48: Full | CH48: 2 | CI48: No | CJ48: 19 | CK48: 237120000 | CL48: 5985000 | CM48: 718000 | CN48: 243823000 | CP48: 243823000 | CQ48: 243823000
A49: H090044-A | B49: Statewide Mobility | C49: I-5111A | D49: I-40 | E49: I-440/US 64 | F49: US 70 Business | G49: Add Additional Lanes. | H49: 1 - Widen Existing Roadway | I49: 58000000 | J49: 45.91245633 | K49: 37.13341145 | L49: 27.80810986 | M49: 95.51109132 | N49: 7.874802983 | O49: 71.30930994 | P49: 26.26502338 | Q49: 25.12752364 | R49: 41.56006877 | S49: N/A | T49: N/A | V49: Capital Area MPO | W49: 100 | AB49: 05 | AC49: 100 | AH49: Wake | AI49: 100 | AP49: 5 | AQ49: C | AR49: 05, , | AS49: Capital Area MPO, , | AT49: Wake, , , | AU49: 4.08064002 | AV49: 4.08064002 | AW49: Freeway | AX49: Freeway | AY49: 3 | AZ49: 4 | BA49: Divided | BB49: Divided | BC49: 65 | BD49: 70 | BE49: 5.217514812 | BF49: 94.78248519 | BG49: 100680.2063 | BH49: 109357.7258 | BI49: 0.9206501467 | BJ49: 95427.20162 | BK49: 5253.004676 | BL49: 19258812.12 | BM49: 1060144.575 | BN49: 20318956.7 | BO49: 456738573 | BP49: 90.34297306 | BQ49: 49.99061676 | BR49: 73.61573494 | BU49: 293 | BV49: 0.0002095504727 | BW49: No | BX49: No | BY49: 12 | BZ49: 12 | CA49: No | CB49: 10 | CC49: 10 | CD49: 6 Lane with Median - Full Control | CE49: 8B - 8 Lane Divided (27' Median with Jersey Barrier with Paved Shoulders | CF49: Full | CG49: Full | CH49: 3 | CI49: No | CJ49: 24 | CK49: 53000000 | CL49: 5000000 | CM49: 0 | CN49: 58000000 | CP49: 58000000 | CQ49: 58000000
A50: H090044-BA | B50: Statewide Mobility | C50: I-5111BA | D50: I-40 | E50: US 70 Business | F50: US 70 Bypass | G50: Add Additional Lanes. | H50: 1 - Widen Existing Roadway | I50: 58000000 | J50: 47.19860517 | K50: 36.56431946 | L50: 27.75522856 | M50: 90.84615257 | N50: 12.04563491 | O50: 71.76871067 | P50: 24.13213556 | Q50: 43.2777075 | R50: 36.64501526 | S50: N/A | T50: N/A | V50: Capital Area MPO | W50: 100 | AB50: 05 | AC50: 100 | AH50: Wake | AI50: 100 | AP50: 5 | AQ50: C | AR50: 05, , | AS50: Capital Area MPO, , | AT50: Wake, , , | AU50: 5.14050958 | AV50: 5.14050958 | AW50: Freeway | AX50: Freeway | AY50: 3 | AZ50: 4 | BA50: Divided | BB50: Divided | BC50: 70 | BD50: 70 | BE50: 6.527928752 | BF50: 93.47207125 | BG50: 73935.04578 | BH50: 72400.0037 | BI50: 1.021202238 | BJ50: 69108.61867 | BK50: 4826.427111 | BL50: 28897336.03 | BM50: 2018140.266 | BN50: 30915476.29 | BO50: 698646825 | BP50: 77.53764787 | BQ50: 76.43017801 | BR50: 61.3598389 | BU50: 504.5285738 | BV50: 0.0003610255761 | BW50: No | BX50: No | BY50: 12 | BZ50: 12 | CA50: No | CB50: 10 | CC50: 10 | CD50: 6 Lane with Median - Full Control | CE50: 8B - 8 Lane Divided (27' Median with Jersey Barrier with Paved Shoulders | CF50: Full | CG50: Full | CH50: 3 | CI50: No | CJ50: 26 | CK50: 43000000 | CL50: 15000000 | CM50: 0 | CN50: 58000000 | CP50: 58000000 | CQ50: 58000000
A51: H090044-BB | B51: Statewide Mobility | C51: I-5111BB | D51: I-40 | E51: US 70 Bypass | F51: NC 42 | G51: Add Additional Lanes. | H51: 1 - Widen Existing Roadway | I51: 36200000 | J51: 36.06330379 | K51: 23.29995551 | L51: 15.49021944 | M51: 68.80884092 | N51: 1.292526961 | O51: 84.8008265 | P51: 30.30000109 | Q51: 4.928105542 | R51: 34.66666762 | S51: 0 | T51: 0 | V51: Capital Area MPO | W51: 100 | AB51: 04 | AC51: 99.72 | AH51: Johnston | AI51: 99.72 | AP51: 4 | AQ51: A | AR51: 04, , | AS51: Capital Area MPO, , | AT51: Johnston, , , | AU51: 1.552964 | AV51: 1.552964 | AW51: Freeway | AX51: Freeway | AY51: 2 | AZ51: 4 | BA51: Divided | BB51: Divided | BC51: 70 | BD51: 70 | BE51: 10.82142841 | BF51: 89.17857159 | BG51: 56000.00286 | BH51: 72400.0037 | BI51: 0.773480663 | BJ51: 49940.00264 | BK51: 6060.000218 | BL51: 1814787.615 | BM51: 220216.515 | BN51: 2035004.13 | BO51: 46789476 | BP51: 99.80590153 | BQ51: 54.81611923 | BR51: 99.80590153 | BU51: 34 | BV51: 6.456211083e-05 | BW51: No | BX51: No | BY51: 12 | BZ51: 12 | CA51: No | CB51: 10 | CC51: 10 | CD51: 4 Lane with Median - Full Control | CE51: 8B - 8 Lane Divided (27' Median with Jersey Barrier with Paved Shoulders | CF51: Full | CG51: Full | CH51: 3 | CI51: No | CJ51: 28 | CK51: 21200000 | CL51: 15000000 | CM51: 0 | CN51: 36200000 | CP51: 36200000 | CQ51: 36200000
A52: H090045 | B52: Statewide Mobility | D52: I-40 | E52: I-440/US 1/64 | F52: Lake Wheeler Road | G52: Widen 6-Lane Freeway to 8 Lanes | H52: 1 - Widen Existing Roadway | I52: 13100000 | J52: 64.79834738 | K52: 50.48365719 | L52: 38.44900145 | M52: 100 | N52: 58.33597069 | O52: 67.81807316 | P52: 31.55478348 | Q52: 42.04792159 | R52: 41.17857207 | S52: N/A | T52: N/A | V52: Capital Area MPO | W52: 100 | AB52: 05 | AC52: 100 | AH52: Wake | AI52: 100 | AP52: 5 | AQ52: C | AR52: 05, , | AS52: Capital Area MPO, , | AT52: Wake, , , | AU52: 4.44827115 | AV52: 4.44827115 | AW52: Freeway | AX52: Freeway | AY52: 3 | AZ52: 4 | BA52: Divided | BB52: Divided | BC52: 65 | BD52: 65 | BE52: 5.658238375 | BF52: 94.34176162 | BG52: 111535.7162 | BH52: 108700.8809 | BI52: 1.02607923 | BJ52: 105224.7595 | BK52: 6310.956696 | BL52: 32015869.12 | BM52: 1920182.707 | BN52: 33936051.83 | BO52: 764201216 | BP52: 73.62001364 | BQ52: 59.98265895 | BR52: 69.87189434 | BU52: 490 | BV52: 0.0003509584319 | BW52: No | BX52: No | BY52: 12 | BZ52: 12 | CA52: No | CB52: 10 | CC52: 10 | CD52: 6 Lane with Median - Full Control | CE52: 8B - 8 Lane Divided (27' Median with Jersey Barrier with Paved Shoulders | CF52: Full | CG52: Full | CH52: 3 | CI52: No | CJ52: 22 | CK52: 13100000 | CL52: 0 | CM52: 0 | CN52: 13100000 | CP52: 13100000 | CQ52: 13100000
A53: H090046-BE | B53: Division Needs | C53: R-0085BE | D53: US-321 | E53: SR 1143 (Sandy Ford Road) | G53: Convert Grade Separation to interchange | H53: 9 - Convert Grade Separation to Interchange | I53: 2600000 | J53: N/A | K53: N/A | L53: 10.54621811 | M53: 13.85164557 | N53: 0 | O53: 77.75889 | P53: 0 | Q53: N/A | R53: N/A | S53: N/A | T53: N/A | V53: Greater Hickory MPO | W53: 100 | AB53: 12 | AC53: 100 | AH53: Catawba | AI53: 100 | AP53: 12 | AQ53: F | AR53: 12, , | AS53: Greater Hickory MPO, , | AT53: Catawba, , , | AU53: 1 | AV53: 1 | AW53: Arterial | AX53: Arterial | AY53: 1 | AZ53: 1 | BA53: Undivided | BB53: Undivided | BC53: 45 | BD53: 45 | BE53: 0 | BF53: 100 | BG53: 3300 | BH53: 15800 | BI53: 0.2088607595 | BJ53: 3300 | BK53: 0 | BL53: 0 | BM53: 0 | BN53: 0 | BO53: 0 | BP53: 100 | BQ53: 100 | BR53: 33.3 | BW53: No | BX53: No | BY53: 11 | BZ53: 12 | CA53: No | CB53: 0 | CC53: 0 | CD53: 2 Lane Undivided | CF53: None | CG53: None | CH53: 2 | CI53: No | CJ53: 18 | CK53: 2600000 | CL53: 0 | CM53: 0 | CN53: 2600000 | CP53: 2600000 | CQ53: 2600000
A54: H090047-D | B54: Statewide Mobility | C54: R-0204D | D54: US-221 | E54: NC 226 intersection South of Marion | F54: I-40 | G54: Widen to Multi-Lanes. | H54: 1 - Widen Existing Roadway | I54: 42180000 | J54: 13.82619137 | K54: 13.93541719 | L54: 10.49464302 | M54: 28.61548384 | N54: 0 | O54: 47.71546252 | P54: 2.349999831 | Q54: 0 | R54: 20.09999981 | S54: N/A | T54: N/A | V54: Isothermal RPO | W54: 100 | AB54: 13 | AC54: 100 | AH54: Mcdowell | AI54: 100 | AP54: 13 | AQ54: G | AR54: 13, , | AS54: Isothermal RPO, , | AT54: Mcdowell, , , | AU54: 1.72638447 | AV54: 1.72638447 | AW54: Two Lane Highway | AX54: Multi-Lane Highway | AY54: 1 | AZ54: 2 | BA54: Undivided | BB54: Divided | BC54: 55 | BD54: 45 | BE54: 7.014924934 | BF54: 92.98507507 | BG54: 6699.999937 | BH54: 15499.99986 | BI54: 0.4322580644 | BJ54: 6229.999971 | BK54: 469.9999662 | BL54: 0 | BM54: 0 | BN54: 0 | BO54: 0 | BP54: 65.33949269 | BQ54: 45.76947141 | BR54: 32.05173952 | BU54: 0 | BV54: 0 | BW54: No | BX54: No | BY54: 12 | BZ54: 12 | CA54: No | CB54: 0 | CC54: 2 | CD54: 2 Lane Undivided | CE54: 4D - 4 Lane Divided (23' Raised Median) with Curb & Gutter, Wide Outside Lanes, Bike Lanes, and Sidewalks | CF54: None | CG54: Partial | CH54: 1 | CI54: Yes | CJ54: 17 | CK54: 30200000 | CL54: 11700000 | CM54: 280000 | CN54: 42180000 | CP54: 42180000 | CQ54: 42180000
A55: H090047-E | B55: Statewide Mobility | C55: R-0204E | D55: US-221 | E55: I-40 | F55: SR 1153 | G55: Widen to Multi-Lanes. | H55: 1 - Widen Existing Roadway | I55: 46760000 | J55: 14.66840922 | K55: 13.87209244 | L55: 11.1032259 | M55: 26.81871698 | N55: 0 | O55: 57.39482506 | P55: 4.416558113 | Q55: 0 | R55: 14.27930685 | S55: N/A | T55: N/A | V55: Isothermal RPO | W55: 100 | AB55: 13 | AC55: 100 | AH55: Mcdowell | AI55: 100 | AP55: 13 | AQ55: G | AR55: 13, , | AS55: Isothermal RPO, , | AT55: Mcdowell, , , | AU55: 1.99202314 | AV55: 1.99202314 | AW55: Two Lane Highway | AX55: Arterial | AY55: 1 | AZ55: 2 | BA55: Undivided | BB55: Divided | BC55: 55 | BD55: 55 | BE55: 14.06702434 | BF55: 85.93297566 | BG55: 6279.306845 | BH55: 15500 | BI55: 0.4051165706 | BJ55: 5395.995222 | BK55: 883.3116226 | BL55: 0 | BM55: 0 | BN55: 0 | BO55: 0 | BP55: 66.44188313 | BQ55: 48.69874801 | BR55: 57.06106422 | BU55: 0 | BV55: 0 | BW55: No | BX55: No | BY55: 12 | BZ55: 12 | CA55: No | CB55: 0 | CC55: 2 | CD55: 2 Lane Undivided | CE55: 4A - 4 Lane Divided (46' Depressed Median) with Paved Shoulders | CF55: None | CG55: Partial | CH55: 1 | CI55: No | CJ55: 24 | CK55: 33000000 | CL55: 13400000 | CM55: 360000 | CN55: 46760000 | CP55: 46760000 | CQ55: 46760000
A56: H090048 | B56: Regional Impact | C56: R-0616 | D56: - New Route - Wilkesboro-North Wilkesboro Bypass | E56: NC 18 | F56: US 421 | G56: NC 18 to US 421. Multi-Lanes, Part on New Location. | H56: 5 - Construct Roadway on New Location | I56: 78789000 | J56: N/A | K56: 29.48066425 | L56: 19.63278891 | M56: 63.20799531 | N56: 13.95889919 | O56: 41.99410015 | P56: 4.20197234 | Q56: N/A | R56: 59.89530609 | S56: N/A | T56: N/A | V56: High Country RPO | W56: 100 | AB56: 11 | AC56: 100 | AH56: Wilkes | AI56: 100 | AP56: 11 | AQ56: F | AR56: 11, , | AS56: High Country RPO, , | AT56: Wilkes, , , | AU56: 5.92 | AV56: 4.15853779 | AW56: Arterial | AX56: Multi-Lane Highway | AY56: 1 | AZ56: 2 | BA56: Undivided | BB56: Divided | BC56: 35 | BD56: 55 | BE56: 4.209317171 | BF56: 95.79068283 | BG56: 19965.10203 | BH56: 21692.57015 | BI56: 0.9203659083 | BJ56: 19124.70756 | BK56: 840.3944679 | BL56: 47061269.43 | BM56: 2068007.072 | BN56: 49129276.5 | BO56: 1099807708 | BP56: 38.75382363 | BQ56: 44.78894738 | BR56: 42.45212892 | BW56: No | BX56: No | BY56: 12 | BZ56: 12 | CA56: No | CB56: 1 | CC56: 4 | CD56: New Roadway | CE56: 4A - 4 Lane Divided (46' Depressed Median) with Paved Shoulders | CF56: None | CG56: Partial | CH56: 1 | CI56: Yes | CJ56: 19 | CK56: 56886000 | CL56: 19556000 | CM56: 2347000 | CN56: 78789000 | CP56: 78789000 | CQ56: 78789000
A57: H090049-BB | B57: Regional Impact | C57: R-0617BB | D57: NC-150 | E57: West of indian Creek | F57: US 321 at Lincolnton | G57: NC 279 at Cherryville to Relocated US 321. Widen to Multi-Lanes, Part on New Location. Section Bb: West of indian Creek to US 321 at Lincolnton. | H57: 1 - Widen Existing Roadway | I57: 41655000 | J57: N/A | K57: 19.28398119 | L57: 13.66261989 | M57: 39.22367804 | N57: 0.2233256272 | O57: 57.73219161 | P57: 2.494421661 | Q57: N/A | R57: 36.49011114 | S57: N/A | T57: N/A | V57: Gaston-Cleveland-Lincoln MPO | W57: 100 | AB57: 12 | AC57: 100 | AH57: Lincoln | AI57: 100 | AP57: 12 | AQ57: F | AR57: 12, , | AS57: Gaston-Cleveland-Lincoln MPO, , | AT57: Lincoln, , , | AU57: 3.17471849 | AV57: 3.17471849 | AW57: Two Lane Highway | AX57: Multi-Lane Highway | AY57: 1 | AZ57: 2 | BA57: Undivided | BB57: Divided | BC57: 55 | BD57: 55 | BE57: 5.432226142 | BF57: 94.56777386 | BG57: 9183.791676 | BH57: 15499.99998 | BI57: 0.5925026895 | BJ57: 8684.907344 | BK57: 498.8843323 | BL57: 391023.0186 | BM57: 22461.40918 | BN57: 413484.4278 | BO57: 9302629 | BP57: 72.94967033 | BQ57: 64.77275397 | BR57: 35.49147192 | BW57: No | BX57: No | BY57: 12 | BZ57: 12 | CA57: No | CB57: 0 | CC57: 4 | CD57: 2 Lane Undivided | CE57: 4A - 4 Lane Divided (46' Depressed Median) with Paved Shoulders | CF57: None | CG57: Limited | CH57: 2 | CI57: Yes | CJ57: 26 | CK57: 32832000 | CL57: 7878000 | CM57: 945000 | CN57: 41655000 | CP57: 41655000 | CQ57: 41655000
A58: H090049-C | B58: Regional Impact | C58: R-0617C | D58: NC-150 | E58: US 321 at Lincolnton | F58: US 321 Bypass | G58: NC 279 at Cherryville to Relocated US 321. Widen to Multi-Lanes, Part on New Location. Section C: US 321 at Lincolnton to US 321 Bypass. | H58: 5 - Construct Roadway on New Location | I58: 59878000 | J58: N/A | K58: 20.04479534 | L58: 13.28329134 | M58: 41.63877524 | N58: 4.884427018 | O58: 39.78650891 | P58: 2.559935533 | Q58: N/A | R58: 44.35343887 | S58: N/A | T58: N/A | V58: Gaston-Cleveland-Lincoln MPO | W58: 100 | AB58: 12 | AC58: 100 | AH58: Lincoln | AI58: 100 | AP58: 12 | AQ58: F | AR58: 12, , | AS58: Gaston-Cleveland-Lincoln MPO, , | AT58: Lincoln, , , | AU58: 4.7 | AV58: 2.03695421 | AW58: Arterial | AX58: Freeway | AY58: 1 | AZ58: 2 | BA58: Undivided | BB58: Divided | BC58: 43 | BD58: 55 | BE58: 5.180724071 | BF58: 94.81927593 | BG58: 9882.539577 | BH58: 15734.12302 | BI58: 0.6280959901 | BJ58: 9370.55247 | BK58: 511.9871067 | BL58: 12338900.05 | BM58: 674171.3208 | BN58: 13013071.37 | BO58: 292469721 | BP58: 42.33474263 | BQ58: 46.69075178 | BR58: 30.34596947 | BW58: No | BX58: No | BY58: 12 | BZ58: 12 | CA58: No | CB58: 0 | CC58: 4 | CD58: New Roadway | CE58: 4A - 4 Lane Divided (46' Depressed Median) with Paved Shoulders | CF58: None | CG58: Full | CH58: 2 | CI58: Yes | CJ58: 29 | CK58: 47994000 | CL58: 10611000 | CM58: 1273000 | CN58: 59878000 | CP58: 59878000 | CQ58: 59878000
A59: H090051-B | B59: Statewide Mobility | D59: US-421 | E59: SR 2662 (Linville Road) in Forsyth County | F59: West of SR 1850 (Sandy Ridge Road) in Guilford County | G59: West of US 158 in Forsyth County to West of SR 1850 in Guilford County. Pavement and Bridge Rehabilitation. Section B: SR 2662 (Linville Road) in Forsyth County to West of SR 1850 (Sandy Ridge Road) in Guilford County.. | H59: 16 - Modernize Roadway | I59: 47538000 | J59: 23.45965347 | K59: 19.09488734 | L59: 14.33602455 | M59: 58.06418475 | N59: 0 | O59: 27.23187596 | P59: 16.58605227 | Q59: 0 | R59: 18.55653556 | S59: N/A | T59: N/A | V59: Winston Salem Urban Area MPO | W59: 75.71 | X59: Greensboro Urban Area MPO | Y59: 22.04 | Z59: High Point Urban Area MPO | AA59: 2.25 | AB59: 09 | AC59: 75.75 | AD59: 07 | AE59: 24.25 | AH59: Forsyth | AI59: 75.75 | AJ59: Guilford | AK59: 24.25 | AP59: 9 | AQ59: D | AR59: 09, 07, | AS59: Winston Salem Urban Area MPO, Greensboro Urban Area MPO, High Point Urban Area MPO | AT59: Forsyth, Guilford, , | AU59: 9.53771873 | AV59: 9.53771873 | AW59: Freeway | AX59: Freeway | AY59: 2 | AZ59: 2 | BA59: Divided | BB59: Divided | BC59: 60 | BD59: 60 | BE59: 6.678551888 | BF59: 93.32144811 | BG59: 49669.60667 | BH59: 78022.56022 | BI59: 0.6366057014 | BJ59: 46352.39622 | BK59: 3317.210454 | BL59: 0 | BM59: 0 | BN59: 0 | BO59: 0 | BP59: 26.48240097 | BQ59: 38.76924313 | BR59: 16.45215416 | BU59: 0 | BV59: 0 | BW59: No | BX59: No | BY59: 12 | BZ59: 12 | CA59: No | CB59: 10 | CC59: 10 | CD59: 4 Lane with Median - Full Control | CF59: Full | CG59: Full | CH59: 3 | CI59: No | CJ59: 21 | CK59: 47538000 | CL59: 0 | CM59: 0 | CN59: 47538000 | CP59: 47538000 | CQ59: 47538000
A60: H090052-C | B60: Regional Impact | C60: R-0977C | D60: US-64 | E60: US 19/74/129 in Murphy | F60: East of NC 141 | G60: US 19/74/129 in Murphy to East of NC 141. Two Lanes on Four Lane Right of Way South of Hiwassee River on New Location, Ultimate Four Lane Facility. Section C: Construct Two Additional Lanes. | H60: 1 - Widen Existing Roadway | I60: 134677000 | J60: N/A | K60: 6.480955487 | L60: 4.053264189 | M60: 20.18230851 | N60: 0.009707463041 | O60: 0.1486099375 | P60: 0.7240360346 | Q60: N/A | R60: 14.180905 | S60: N/A | T60: N/A | V60: Southwestern RPO | W60: 100 | AB60: 14 | AC60: 100 | AH60: Cherokee | AI60: 100 | AP60: 14 | AQ60: G | AR60: 14, , | AS60: Southwestern RPO, , | AT60: Cherokee, , , | AU60: 4.37644608 | AV60: 4.37644608 | AW60: Two Lane Highway | AX60: Multi-Lane Highway | AY60: 1 | AZ60: 2 | BA60: Undivided | BB60: Divided | BC60: 55 | BD60: 55 | BE60: 3.063426634 | BF60: 96.93657337 | BG60: 4726.968334 | BH60: 15505.44087 | BI60: 0.3048586863 | BJ60: 4582.161127 | BK60: 144.8072069 | BL60: 56879.24822 | BM60: 1797.519737 | BN60: 58676.76796 | BO60: 1307372 | BP60: 0.2229372 | BQ60: 0 | BR60: 0.2229372 | BW60: No | BX60: No | BY60: 11 | BZ60: 12 | CA60: No | CB60: 0 | CC60: 2 | CD60: 2 Lane Undivided | CE60: 4A - 4 Lane Divided (46' Depressed Median) with Paved Shoulders | CF60: None | CG60: Limited | CH60: 1 | CI60: Yes | CJ60: 19 | CK60: 41382000 | CL60: 83299000 | CM60: 9996000 | CN60: 134677000 | CP60: 134677000 | CQ60: 134677000
A61: H090359 | B61: Division Needs | C61: U-2723 | D61: SR-1501 Old Bath Highway | E61: SR 1306 (12th Street) | F61: SR 1507 (Slatestone Road) | G61: SR 1306 (12Th Street) to SR 1507 (Slatestone Road). Widen to Multi-Lanes. | H61: 1 - Widen Existing Roadway | I61: 16985000 | J61: N/A | K61: N/A | L61: 17.953968 | M61: 23.258843 | N61: 0.08 | O61: 66.51099699 | P61: 0 | Q61: N/A | R61: N/A | S61: N/A | T61: N/A | V61: Mid-East RPO | W61: 100 | AB61: 02 | AC61: 100 | AH61: Beaufort | AI61: 100 | AP61: 2 | AQ61: B | AR61: 02, , | AS61: Mid-East RPO, , | AT61: Beaufort, , , | AU61: 1.38478873 | AV61: 1.38478873 | AW61: Arterial | AX61: Arterial | AY61: 1 | AZ61: 2 | BA61: Undivided | BB61: Divided | BC61: 37 | BD61: 37 | BE61: 0 | BF61: 100 | BG61: 6347.133181 | BH61: 18379.7384 | BI61: 0.3453331621 | BJ61: 6347.133181 | BK61: 0 | BL61: 61763.62187 | BM61: 0 | BN61: 61763.62187 | BO61: 1358800 | BP61: 99.78445761 | BQ61: 23.89437902 | BR61: 75.87410964 | BW61: No | BX61: No | BY61: 11 | BZ61: 12 | CA61: No | CB61: 0 | CC61: 2 | CD61: 2 Lane Undivided | CE61: 4B - 4 Lane Divided (23' Raised Median) with Paved Shoulders and Sidewalks | CF61: None | CG61: Partial | CH61: 2 | CI61: No | CJ61: 22 | CK61: 10032000 | CL61: 6208000 | CM61: 745000 | CN61: 16985000 | CP61: 16985000 | CQ61: 16985000
A62: H090369 | B62: Division Needs | C62: U-2817 | D62: SR-1700 Evans Street/Old Tar Road | E62: SR 1711 (Worthington Road) in Winterville | F62: US 264A (Greenville Boulevard) | G62: Widen to Multi-Lanes | H62: 1 - Widen Existing Roadway | I62: 33140000 | J62: N/A | K62: N/A | L62: 25.81236157 | M62: 66.6632996 | N62: 5.153134098 | O62: 62.39850822 | P62: 0 | Q62: N/A | R62: N/A | S62: N/A | T62: N/A | V62: Greenville Urban Area MPO | W62: 100 | AB62: 02 | AC62: 100 | AH62: Pitt | AI62: 100 | AP62: 2 | AQ62: B | AR62: 02, , | AS62: Greenville Urban Area MPO, , | AT62: Pitt, , , | AU62: 3.67801268 | AV62: 3.67801268 | AW62: Arterial | AX62: Arterial | AY62: 1 | AZ62: 2 | BA62: Undivided | BB62: Divided | BC62: 45 | BD62: 45 | BE62: 0 | BF62: 100 | BG62: 15881.7873 | BH62: 15800 | BI62: 1.005176411 | BJ62: 15881.7873 | BK62: 0 | BL62: 7762493.825 | BM62: 0 | BN62: 7762493.825 | BO62: 170774864 | BP62: 86.25956259 | BQ62: 49.62132995 | BR62: 51.33335355 | BW62: No | BX62: No | BY62: 11 | BZ62: 12 | CA62: No | CB62: 0 | CC62: 4 | CD62: 2 Lane Undivided | CE62: 4C - 4 Lane Divided (23' Raised Median) with Curb & Gutter, Wide Outside Lanes, and Sidewalks | CF62: None | CG62: Partial | CH62: 2 | CI62: No | CJ62: 17 | CK62: 18800000 | CL62: 12840000 | CM62: 1500000 | CN62: 33140000 | CP62: 33140000 | CQ62: 33140000
A63: H090055 | B63: Statewide Mobility | C63: R-2205 | D63: US-13 | E63: NC 42 at Powellsville. in Bertie County | F63: US 13 Bypass North of Ahoskie in Hertford County | G63: Construct Multi-Lanes with Bypass of Ahoskie on New Location. | H63: 1 - Widen Existing Roadway | I63: 49575000 | J63: 16.45159597 | K63: 17.65898999 | L63: 13.4383301 | M63: 27.53327811 | N63: 0.02989666162 | O63: 56.82012627 | P63: 12.36075507 | Q63: 0.2847990317 | R63: 27.33984036 | S63: 25 | T63: 25 | V63: Peanut Belt RPO | W63: 100 | AB63: 01 | AC63: 100 | AH63: Bertie | AI63: 51.94 | AJ63: Hertford | AK63: 48.06 | AP63: 1 | AQ63: A | AR63: 01, , | AS63: Peanut Belt RPO, , | AT63: Bertie, Hertford, , | AU63: 1.63327689 | AV63: 1.63327689 | AW63: Two Lane Highway | AX63: Multi-Lane Highway | AY63: 1 | AZ63: 2 | BA63: Undivided | BB63: Divided | BC63: 50 | BD63: 50 | BE63: 6.089992656 | BF63: 93.91000734 | BG63: 6446.613454 | BH63: 15500 | BI63: 0.4159105454 | BJ63: 6054.015168 | BK63: 392.5982859 | BL63: 61700.39033 | BM63: 4001.223454 | BN63: 65701.61378 | BO63: 1482127 | BP63: 71.63213918 | BQ63: 31.62865496 | BR63: 67.21663242 | BU63: 1 | BV63: 4.695980633e-06 | BW63: Yes | BX63: No | BY63: 11 | BZ63: 12 | CA63: No | CB63: 3 | CC63: 2 | CD63: 2 Lane Undivided | CE63: 4A - 4 Lane Divided (46' Depressed Median) with Paved Shoulders | CF63: None | CG63: Limited | CH63: 1 | CI63: Yes | CJ63: 24 | CK63: 46000000 | CL63: 3575000 | CM63: 0 | CN63: 49575000 | CP63: 49575000 | CQ63: 49575000
A64: H090059-B | B64: Regional Impact | C64: R-2207B | D64: NC-16 | E64: US 421 | F64: Ashe County Line | G64: US 421 to Ashe County Line. Upgrade Two Lanes and Add Climbing Lanes. Section B: US 421 to SR 1617 (indian Hill Road) and North of SR 1431 (Camden Drive) to Ashe County Line. | H64: 16 - Modernize Roadway | I64: 31350000 | J64: N/A | K64: 14.05696573 | L64: 10.79986796 | M64: 25.27004051 | N64: 0 | O64: 57.4585986 | P64: 2.768598069 | Q64: N/A | R64: 19.93595739 | S64: N/A | T64: N/A | V64: High Country RPO | W64: 100 | AB64: 11 | AC64: 100 | AH64: Wilkes | AI64: 100 | AP64: 11 | AQ64: F | AR64: 11, , | AS64: High Country RPO, , | AT64: Wilkes, , , | AU64: 15.88942924 | AV64: 15.88942924 | AW64: Two Lane Highway | AX64: Two Lane Highway | AY64: 1 | AZ64: 1 | BA64: Undivided | BB64: Undivided | BC64: 53 | BD64: 53 | BE64: 9.328227568 | BF64: 90.67177243 | BG64: 5935.957392 | BH64: 15555.67656 | BI64: 0.3815942925 | BJ64: 5382.237778 | BK64: 553.7196139 | BL64: 0 | BM64: 0 | BN64: 0 | BO64: 0 | BP64: 66.83936517 | BQ64: 51.2231086 | BR64: 54.33056132 | BW64: No | BX64: No | BY64: 10 | BZ64: 12 | CA64: No | CB64: 1 | CC64: 2 | CD64: 2 Lane Undivided | CF64: None | CG64: None | CH64: 1 | CI64: No | CJ64: 27 | CK64: 31350000 | CL64: 0 | CM64: 0 | CN64: 31350000 | CP64: 31350000 | CQ64: 31350000
A65: H090060 | B65: Statewide Mobility | C65: R-2212 | D65: NC-24 New Route - Carthage Bypass, NC-27 | E65: SR 1640 | F65: SR 1653 | G65: Construct Multi-Lanes on New Location. | H65: 5 - Construct Roadway on New Location | I65: 40785000 | J65: 21.88697826 | K65: 19.12432304 | L65: 13.0081302 | M65: 42.13554151 | N65: 5.599201888 | O65: 34.61181523 | P65: 4.063613837 | Q65: 32.92650945 | R65: 37.29455669 | S65: N/A | T65: N/A | V65: Triangle Area RPO | W65: 100 | AB65: 08 | AC65: 100 | AH65: Moore | AI65: 100 | AP65: 8 | AQ65: E | AR65: 08, , | AS65: Triangle Area RPO, , | AT65: Moore, , , | AU65: 4.5 | AV65: 3.97615794 | AW65: Arterial | AX65: Multi-Lane Highway | AY65: 1 | AZ65: 2 | BA65: Undivided | BB65: Divided | BC65: 41 | BD65: 55 | BE65: 8.140756439 | BF65: 91.85924356 | BG65: 9983.381439 | BH65: 15704.47064 | BI65: 0.635703149 | BJ65: 9170.658672 | BK65: 812.7227674 | BL65: 9222204.243 | BM65: 817290.8426 | BN65: 10039495.09 | BO65: 228363449 | BP65: 43.63359162 | BQ65: 35.00921304 | BR65: 25.20302562 | BU65: 190 | BV65: 0.000468530189 | BW65: No | BX65: No | BY65: 12 | BZ65: 12 | CA65: No | CB65: 1 | CC65: 4 | CD65: New Roadway | CE65: 4A - 4 Lane Divided (46' Depressed Median) with Paved Shoulders | CF65: None | CG65: Limited | CH65: 3 | CI65: Yes | CJ65: 27 | CK65: 33200000 | CL65: 7000000 | CM65: 585000 | CN65: 40785000 | CP65: 40785000 | CQ65: 40785000
A66: H090061-B | B66: Statewide Mobility | C66: R-2220B | D66: US-64 | E66: East of I-85 Business in Lexington | F66: NC 109 | G66: Widen to Multi-Lanes. | H66: 1 - Widen Existing Roadway | I66: 68500000 | J66: 19.4068893 | K66: 18.88342683 | L66: 13.49825235 | M66: 42.41357911 | N66: 0.3275179416 | O66: 49.50032942 | P66: 7.135251779 | Q66: 2.074768883 | R66: 32.48119627 | S66: N/A | T66: N/A | V66: High Point Urban Area MPO | W66: 100 | AB66: 09 | AC66: 100 | AH66: Davidson | AI66: 100 | AP66: 9 | AQ66: D | AR66: 09, , | AS66: High Point Urban Area MPO, , | AT66: Davidson, , , | AU66: 5.25526362 | AV66: 5.25526362 | AW66: Two Lane Highway | AX66: Multi-Lane Highway | AY66: 1 | AZ66: 2 | BA66: Undivided | BB66: Divided | BC66: 55 | BD66: 55 | BE66: 14.37045206 | BF66: 85.62954794 | BG66: 9930.448601 | BH66: 15499.61555 | BI66: 0.6406899945 | BJ66: 8503.398245 | BK66: 1427.050356 | BL66: 823876.8334 | BM66: 138263.9851 | BN66: 962140.8185 | BO66: 22434979 | BP66: 62.31955584 | BQ66: 49.6574758 | BR66: 36.53880821 | BU66: 16 | BV66: 2.549537766e-05 | BW66: No | BX66: No | BY66: 12 | BZ66: 12 | CA66: No | CB66: 2 | CC66: 4 | CD66: 2 Lane Undivided | CE66: 4A - 4 Lane Divided (46' Depressed Median) with Paved Shoulders | CF66: None | CG66: Partial | CH66: 2 | CI66: Yes | CJ66: 23 | CK66: 36000000 | CL66: 27500000 | CM66: 5000000 | CN66: 68500000 | CP66: 68500000 | CQ66: 68500000
A67: H090061-CA | B67: Statewide Mobility | C67: R-2220CA | D67: US-64 | E67: NC 109 | F67: Randolph County Line | G67: Widen to Multi-Lanes. | H67: 1 - Widen Existing Roadway | I67: 36500000 | J67: 15.73489305 | K67: 15.87938438 | L67: 11.97845047 | M67: 29.32786419 | N67: 0.06715479452 | O67: 60.99446667 | P67: 3.965269937 | Q67: 0.2388670084 | R67: 24.31182961 | S67: N/A | T67: N/A | V67: High Point Urban Area MPO | W67: 100 | AB67: 09 | AC67: 100 | AD67: 08 | AH67: Davidson | AI67: 100 | AJ67: Randolph | AP67: 9 | AQ67: D | AR67: 09, 08, | AS67: High Point Urban Area MPO, , | AT67: Davidson, Randolph, , | AU67: 2.72881359 | AV67: 2.72881359 | AW67: Two Lane Highway | AX67: Multi-Lane Highway | AY67: 1 | AZ67: 2 | BA67: Undivided | BB67: Divided | BC67: 55 | BD67: 55 | BE67: 11.54887676 | BF67: 88.45112324 | BG67: 6866.936102 | BH67: 15500.34893 | BI67: 0.4430181626 | BJ67: 6073.882115 | BK67: 793.0539874 | BL67: 94022.57313 | BM67: 12276.32923 | BN67: 106298.9024 | BO67: 2451150 | BP67: 61.0005667 | BQ67: 73.19056526 | BR67: 48.81056823 | BU67: 2 | BV67: 2.777340169e-06 | BW67: No | BX67: No | BY67: 12 | BZ67: 12 | CA67: No | CB67: 2 | CC67: 2 | CD67: 2 Lane Undivided | CE67: 4A - 4 Lane Divided (46' Depressed Median) with Paved Shoulders | CF67: None | CG67: Full | CH67: 2 | CI67: Yes | CJ67: 23 | CK67: 19000000 | CL67: 14500000 | CM67: 3000000 | CN67: 36500000 | CP67: 36500000 | CQ67: 36500000
A68: H090061-CB | B68: Statewide Mobility | C68: R-2220CB | D68: US-64 | E68: Davidson County Line | F68: SR 1409 (Lake Park Road) | G68: Widen to Multi-Lanes. | H68: 1 - Widen Existing Roadway | I68: 37100000 | J68: 14.7756201 | K68: 15.05279513 | L68: 10.86026004 | M68: 30.10654124 | N68: 0.1488825337 | O68: 48.09175287 | P68: 4.07811321 | Q68: 0.7419504205 | R68: 26.79763904 | S68: N/A | T68: N/A | V68: Piedmont Triad RPO | W68: 99.5 | X68: High Point Urban Area MPO | Y68: 0.5 | AB68: 08 | AC68: 100 | AH68: Randolph | AI68: 100 | AP68: 8 | AQ68: E | AR68: 08, , | AS68: Piedmont Triad RPO, High Point Urban Area MPO, | AT68: Randolph, , , | AU68: 4.79184374 | AV68: 4.79184374 | AW68: Two Lane Highway | AX68: Multi-Lane Highway | AY68: 1 | AZ68: 2 | BA68: Undivided | BB68: Divided | BC68: 55 | BD68: 55 | BE68: 11.57056856 | BF68: 88.42943144 | BG68: 7049.11464 | BH68: 15500 | BI68: 0.4547815897 | BJ68: 6233.491998 | BK68: 815.622642 | BL68: 211804.8845 | BM68: 27713.65706 | BN68: 239518.5416 | BO68: 5523542 | BP68: 57.5536903 | BQ68: 52.05192592 | BR68: 34.68407136 | BU68: 4 | BV68: 1.083900841e-05 | BW68: No | BX68: No | BY68: 12 | BZ68: 12 | CA68: No | CB68: 4 | CC68: 2 | CD68: 2 Lane Undivided | CE68: 4A - 4 Lane Divided (46' Depressed Median) with Paved Shoulders | CF68: None | CG68: Partial | CH68: 2 | CI68: Yes | CJ68: 24 | CK68: 27200000 | CL68: 8000000 | CM68: 1900000 | CN68: 37100000 | CP68: 37100000 | CQ68: 37100000
A69: H090061-DA | B69: Statewide Mobility | C69: R-2220DA | D69: US-64 | E69: SR 1409 (Lake Park Road) | F69: Proposed Asheboro Bypass | G69: Widen to Multi-Lanes. | H69: 1 - Widen Existing Roadway | I69: 51300000 | J69: 20.6734518 | K69: 19.91154075 | L69: 14.40247264 | M69: 45.1254254 | N69: 0.7059594152 | O69: 52.3619568 | P69: 5.963496941 | Q69: 4.951412844 | R69: 32.17498867 | S69: N/A | T69: N/A | V69: Piedmont Triad RPO | W69: 100 | AB69: 08 | AC69: 100 | AH69: Randolph | AI69: 100 | AP69: 8 | AQ69: E | AR69: 08, , | AS69: Piedmont Triad RPO, , | AT69: Randolph, , , | AU69: 6.55781339 | AV69: 6.55781339 | AW69: Two Lane Highway | AX69: Multi-Lane Highway | AY69: 1 | AZ69: 2 | BA69: Undivided | BB69: Divided | BC69: 55 | BD69: 55 | BE69: 11.28849328 | BF69: 88.71150672 | BG69: 10565.62075 | BH69: 15500 | BI69: 0.6816529516 | BJ69: 9372.921362 | BK69: 1192.699388 | BL69: 1394716.45 | BM69: 177476.9459 | BN69: 1572193.396 | BO69: 36215718 | BP69: 65.50126281 | BQ69: 49.250917 | BR69: 42.34940074 | BU69: 28 | BV69: 7.102825688e-05 | BW69: No | BX69: No | BY69: 12 | BZ69: 12 | CA69: No | CB69: 4 | CC69: 4 | CD69: 2 Lane Undivided | CE69: 4A - 4 Lane Divided (46' Depressed Median) with Paved Shoulders | CF69: None | CG69: Partial | CH69: 2 | CI69: Yes | CJ69: 22 | CK69: 38300000 | CL69: 10500000 | CM69: 2500000 | CN69: 51300000 | CP69: 51300000 | CQ69: 51300000
A70: H090061-DB | B70: Statewide Mobility | C70: R-2220DB | D70: US-64 | E70: Proposed Asheboro Bypass | F70: NC 49 | G70: Widen to Multi-Lanes. | H70: 1 - Widen Existing Roadway | I70: 21900000 | J70: 22.62319295 | K70: 21.59458384 | L70: 15.78661477 | M70: 51.2516129 | N70: 0.9077685845 | O70: 53.54738472 | P70: 6.753337088 | Q70: 2.699726177 | R70: 32 | S70: N/A | T70: N/A | V70: Piedmont Triad RPO | W70: 100 | AB70: 08 | AC70: 100 | AH70: Randolph | AI70: 100 | AP70: 8 | AQ70: E | AR70: 08, , | AS70: Piedmont Triad RPO, , | AT70: Randolph, , , | AU70: 2.20518009 | AV70: 2.20518009 | AW70: Two Lane Highway | AX70: Multi-Lane Highway | AY70: 1 | AZ70: 2 | BA70: Undivided | BB70: Divided | BC70: 55 | BD70: 55 | BE70: 11.25556181 | BF70: 88.74443819 | BG70: 12000 | BH70: 15500 | BI70: 0.7741935484 | BJ70: 10649.33258 | BK70: 1350.667418 | BL70: 765995.4719 | BM70: 97152.10956 | BN70: 863147.5814 | BO70: 19880132 | BP70: 67.46435458 | BQ70: 58.07898235 | BR70: 35.11488304 | BU70: 15 | BV70: 3.899452354e-05 | BW70: No | BX70: No | BY70: 12 | BZ70: 12 | CA70: No | CB70: 4 | CC70: 4 | CD70: 2 Lane Undivided | CE70: 4A - 4 Lane Divided (46' Depressed Median) with Paved Shoulders | CF70: None | CG70: Partial | CH70: 2 | CI70: Yes | CJ70: 18 | CK70: 14500000 | CL70: 6300000 | CM70: 1100000 | CN70: 21900000 | CP70: 21900000 | CQ70: 21900000
A71: H090061-E | B71: Statewide Mobility | C71: R-2220E | D71: US-64 | E71: NC 49 | G71: Reconstruct interchange. | H71: 1 - Widen Existing Roadway | I71: 7400000 | J71: 36.27381021 | K71: 34.90737823 | L71: 25.21441371 | M71: 84.50023911 | N71: 2.692384459 | O71: 77.75889 | P71: 10.35 | Q71: 2.701341346 | R71: 53.33333333 | S71: N/A | T71: N/A | V71: Piedmont Triad RPO | W71: 100 | AB71: 08 | AC71: 100 | AH71: Randolph | AI71: 100 | AP71: 8 | AQ71: E | AR71: 08, , | AS71: Piedmont Triad RPO, , | AT71: Randolph, , , | AU71: 0.11610235 | AV71: 0.11610235 | AW71: Arterial | AX71: Multi-Lane Highway | AY71: 1 | AZ71: 2 | BA71: Divided | BB71: Divided | BC71: 50 | BD71: 50 | BE71: 10.35 | BF71: 89.65 | BG71: 20000 | BH71: 15686.22548 | BI71: 1.275003985 | BJ71: 17930 | BK71: 2070 | BL71: 778311.6549 | BM71: 89855.2775 | BN71: 868166.9324 | BO71: 19923645 | BP71: 100 | BQ71: 33.3 | BR71: 100 | BU71: 15 | BV71: 3.902682692e-05 | BW71: No | BX71: No | BY71: 12 | BZ71: 12 | CA71: Yes | CB71: 1 | CC71: 4 | CD71: 2 Lane with TWLTL (Three Lane) | CE71: 4A - 4 Lane Divided (46' Depressed Median) with Paved Shoulders | CF71: None | CG71: Partial | CH71: 2 | CI71: Yes | CJ71: 19 | CK71: 7400000 | CL71: 0 | CM71: 0 | CN71: 7400000 | CP71: 7400000 | CQ71: 7400000
A72: H090068-BA | B72: Statewide Mobility | C72: R-2233BA | D72: US-221 | E72: North of US 74 Bypass | F72: North of US 74 Business | G72: Widen to Multi-Lane | H72: 6 - Widen Existing Roadway and Construct Part on New Location | I72: 119200000 | J72: 18.4072635 | K72: 17.52174142 | L72: 13.54954664 | M72: 32.50531009 | N72: 0.9534865268 | O72: 68.57787312 | P72: 3.165775706 | Q72: 8.786820569 | R72: 22.99254955 | S72: N/A | T72: N/A | V72: Isothermal RPO | W72: 100 | AB72: 13 | AC72: 100 | AH72: Rutherford | AI72: 100 | AP72: 13 | AQ72: G | AR72: 13, , | AS72: Isothermal RPO, , | AT72: Rutherford, , , | AU72: 8 | AV72: 5.54432163 | AW72: Two Lane Highway | AX72: Multi-Lane Highway | AY72: 1 | AZ72: 2 | BA72: Undivided | BB72: Divided | BC72: 46 | BD72: 55 | BE72: 8.261221399 | BF72: 91.7387786 | BG72: 7664.183184 | BH72: 15620.13125 | BI72: 0.4906606136 | BJ72: 7031.028043 | BK72: 633.1551413 | BL72: 4581610.737 | BM72: 412581.2578 | BN72: 4994191.995 | BO72: 113655594 | BP72: 77.76057409 | BQ72: 68.29556329 | BR72: 59.6980574 | BU72: 144 | BV72: 3.173641138e-05 | BW72: No | BX72: No | BY72: 11 | BZ72: 12 | CA72: No | CB72: 0 | CC72: 2 | CD72: New Roadway | CE72: 4A - 4 Lane Divided (46' Depressed Median) with Paved Shoulders | CF72: None | CG72: Partial | CH72: 1 | CI72: Yes | CJ72: 20 | CK72: 93000000 | CL72: 24500000 | CM72: 1700000 | CN72: 119200000 | CP72: 119200000 | CQ72: 119200000
A73: H090068-BB | B73: Statewide Mobility | C73: R-2233BB | D73: US-221 New Route - Rutherfordton Bypass | E73: North of US 74 Business | F73: North of SR 1366 (Roper Loop Road) | G73: Construct Multi-Lanes on New Location. | H73: 5 - Construct Roadway on New Location | I73: 76200000 | J73: 21.65018708 | K73: 18.6716893 | L73: 14.32444649 | M73: 32.50531009 | N73: 4.454447034 | O73: 69.32495065 | P73: 3.165775706 | Q73: 29.96609738 | R73: 24.99254955 | S73: N/A | T73: N/A | V73: Isothermal RPO | W73: 100 | AB73: 13 | AC73: 100 | AH73: Rutherford | AI73: 100 | AP73: 13 | AQ73: G | AR73: 13, , | AS73: Isothermal RPO, , | AT73: Rutherford, , , | AU73: 12.3 | AV73: 1.86666077 | AW73: Two Lane Highway | AX73: Multi-Lane Highway | AY73: 1 | AZ73: 2 | BA73: Undivided | BB73: Divided | BC73: 46 | BD73: 55 | BE73: 8.261221399 | BF73: 91.7387786 | BG73: 7664.183184 | BH73: 15620.13125 | BI73: 0.4906606136 | BJ73: 7031.028043 | BK73: 633.1551413 | BL73: 13682836.66 | BM73: 1232160.976 | BN73: 14914997.64 | BO73: 339428864 | BP73: 78.77372591 | BQ73: 69.85380525 | BR73: 59.36812036 | BU73: 493 | BV73: 0.0001063219476 | BW73: No | BX73: No | BY73: 11 | BZ73: 12 | CA73: No | CB73: 0 | CC73: 2 | CD73: New Roadway | CE73: 4A - 4 Lane Divided (46' Depressed Median) with Paved Shoulders | CF73: None | CG73: Limited | CH73: 1 | CI73: Yes | CJ73: 21 | CK73: 53300000 | CL73: 19900000 | CM73: 3000000 | CN73: 76200000 | CP73: 76200000 | CQ73: 76200000
A74: H090391 | B74: Division Needs | C74: U-3341 | D74: - Global Transpark Spine Road | E74: Global Transpark | G74: Global Transpark Spine Road Facility. Multi-Lanes on New Location. | H74: 5 - Construct Roadway on New Location | I74: 32939000 | J74: N/A | K74: N/A | L74: 8.178164583 | M74: 5.111646542 | N74: 0.5911657913 | O74: 34.52766927 | P74: 2.503014209 | Q74: N/A | R74: N/A | S74: N/A | T74: N/A | V74: East Carolina RPO | W74: 100 | AB74: 02 | AC74: 100 | AH74: Lenoir | AI74: 100 | AP74: 2 | AQ74: B | AR74: 02, , | AS74: East Carolina RPO, , | AT74: Lenoir, , , | AU74: 5.4 | AV74: 3.61508983 | AW74: Multi-Lane Highway | AX74: Multi-Lane Highway | AY74: 2 | AZ74: 2 | BA74: Divided | BB74: Divided | BC74: 55 | BD74: 55 | BE74: 5.516825493 | BF74: 94.48317451 | BG74: 3418.024486 | BH74: 54769.64441 | BI74: 0.06240727912 | BJ74: 3229.45804 | BK74: 188.5664462 | BL74: 817481.4817 | BM74: 47732.33648 | BN74: 865213.8181 | BO74: 19472410 | BP74: 31.05109038 | BQ74: 25.33087841 | BR74: 47.21139835 | BW74: No | BX74: Yes | BY74: 12 | BZ74: 12 | CA74: No | CB74: 3 | CC74: 4 | CD74: New Roadway | CE74: 4A - 4 Lane Divided (46' Depressed Median) with Paved Shoulders | CF74: None | CG74: Partial | CH74: 1 | CI74: Yes | CJ74: 21 | CK74: 26790000 | CL74: 5490000 | CM74: 659000 | CN74: 32939000 | CP74: 32939000 | CQ74: 32939000
A75: H090405 | B75: Division Needs | C75: U-3431 | D75: SR-1763 Miller Boulevard | E75: SR 1756 (Lake Road) | F75: Outer Banks Drive | G75: SR 1756 (Lake Road) to Outer Banks Drive. Widen to Multi-Lanes. | H75: 1 - Widen Existing Roadway | I75: 13013000 | J75: N/A | K75: N/A | L75: 20.43500458 | M75: 31.83883558 | N75: 0.6658071928 | O75: 64.3352005 | P75: 12.0019736 | Q75: N/A | R75: N/A | S75: N/A | T75: N/A | V75: Down East RPO | W75: 100 | AB75: 02 | AC75: 100 | AH75: Craven | AI75: 100 | AP75: 2 | AQ75: B | AR75: 02, , | AS75: Down East RPO, , | AT75: Craven, , , | AU75: 0.793102 | AV75: 0.793102 | AW75: Arterial | AX75: Arterial | AY75: 1 | AZ75: 2 | BA75: Undivided | BB75: Divided | BC75: 35 | BD75: 40 | BE75: 0 | BF75: 100 | BG75: 7585.247318 | BH75: 15800 | BI75: 0.4800789442 | BJ75: 7585.247318 | BK75: 0 | BL75: 393824.9479 | BM75: 0 | BN75: 393824.9479 | BO75: 8664149 | BP75: 86.49493323 | BQ75: 20.03503753 | BR75: 86.49493323 | BW75: No | BX75: Yes | BY75: 12 | BZ75: 12 | CA75: No | CB75: 0 | CC75: 2 | CD75: 2 Lane Undivided | CE75: 4B - 4 Lane Divided (23' Raised Median) with Paved Shoulders and Sidewalks | CF75: None | CG75: Partial | CH75: 2 | CI75: No | CJ75: 20 | CK75: 9120000 | CL75: 3476000 | CM75: 417000 | CN75: 13013000 | CP75: 13013000 | CQ75: 13013000
A76: H090073-B | B76: Regional Impact | C76: R-2241B | D76: US-501 | E76: SR 1521 (Halifax Road) | F76: SR 1329 (Old NC 501) | G76: Widen to Multi-Lanes, Part on New Location | H76: 6 - Widen Existing Roadway and Construct Part on New Location | I76: 25120000 | J76: N/A | K76: 13.18075436 | L76: 8.906626609 | M76: 18.44576194 | N76: 0.002799960191 | O76: 52.16914229 | P76: 2.798963091 | Q76: N/A | R76: 33.51699654 | S76: N/A | T76: N/A | V76: Kerr-Tar RPO | W76: 100 | AB76: 05 | AC76: 100 | AH76: Person | AI76: 100 | AP76: 5 | AQ76: C | AR76: 05, , | AS76: Kerr-Tar RPO, , | AT76: Person, , , | AU76: 3.39115511 | AV76: 3.42011452 | AW76: Two Lane Highway | AX76: Multi-Lane Highway | AY76: 1 | AZ76: 2 | BA76: Undivided | BB76: Divided | BC76: 55 | BD76: 55 | BE76: 12.96154175 | BF76: 87.03845825 | BG76: 4318.873703 | BH76: 15500.00772 | BI76: 0.2786368743 | BJ76: 3759.081085 | BK76: 559.7926183 | BL76: 2640.016355 | BM76: 393.1443973 | BN76: 3033.160752 | BO76: 70335 | BP76: 61.63283838 | BQ76: 37.10764058 | BR76: 57.78260022 | BW76: No | BX76: No | BY76: 12 | BZ76: 12 | CA76: No | CB76: 0 | CC76: 2 | CD76: New Roadway | CE76: 4A - 4 Lane Divided (46' Depressed Median) with Paved Shoulders | CF76: None | CG76: Partial | CH76: 2 | CI76: Yes | CJ76: 31 | CK76: 19300000 | CL76: 5820000 | CM76: 0 | CN76: 25120000 | CP76: 25120000 | CQ76: 25120000
A77: H090073-C | B77: Regional Impact | C77: R-2241C | D77: US-501 | E77: SR 1329 (Old NC 501) | F77: North of Virginia State Line | G77: Widen to Multi-Lanes | H77: 1 - Widen Existing Roadway | I77: 25000000 | J77: N/A | K77: 11.07130825 | L77: 7.48946745 | M77: 15.8407564 | N77: 0.01505432 | O77: 43.18305306 | P77: 2.420181134 | Q77: N/A | R77: 27.89050266 | S77: N/A | T77: N/A | V77: Kerr-Tar RPO | W77: 100 | AB77: 05 | AC77: 100 | AH77: Person | AI77: 100 | AP77: 5 | AQ77: C | AR77: 05, , | AS77: Kerr-Tar RPO, , | AT77: Person, , , | AU77: 3.08455999 | AV77: 3.08455999 | AW77: Two Lane Highway | AX77: Multi-Lane Highway | AY77: 1 | AZ77: 2 | BA77: Undivided | BB77: Divided | BC77: 55 | BD77: 55 | BE77: 13.05053258 | BF77: 86.94946742 | BG77: 3708.938497 | BH77: 15500.0003 | BI77: 0.23928635 | BJ77: 3224.90227 | BK77: 484.0362269 | BL77: 14107.22822 | BM77: 2117.40045 | BN77: 16224.62867 | BO77: 376358 | BP77: 55.77224656 | BQ77: 30.66568078 | BR77: 43.12418804 | BW77: No | BX77: No | BY77: 12 | BZ77: 12 | CA77: No | CB77: 0 | CC77: 0 | CD77: 2 Lane Undivided | CE77: 4A - 4 Lane Divided (46' Depressed Median) with Paved Shoulders | CF77: None | CG77: Partial | CH77: 2 | CI77: Yes | CJ77: 29 | CK77: 21600000 | CL77: 3400000 | CM77: 0 | CN77: 25000000 | CP77: 25000000 | CQ77: 25000000
A78: H090075-A | B78: Division Needs | C78: R-2246A | D78: - New Route - George Liles Parkway | E78: NC 49 | F78: SR 1304 (Roberta Road) | G78: Widen to Multi-Lanes, Part on New Location | H78: 1 - Widen Existing Roadway | I78: 17000000 | J78: N/A | K78: N/A | L78: 7.68439444 | M78: 15.95037975 | N78: 0.2856445882 | O78: 44.37189573 | P78: 0 | Q78: N/A | R78: N/A | S78: N/A | T78: N/A | V78: Cabarrus Rowan MPO | W78: 100 | AB78: 10 | AC78: 100 | AH78: Cabarrus | AI78: 100 | AP78: 10 | AQ78: E | AR78: 10, , | AS78: Cabarrus Rowan MPO, , | AT78: Cabarrus, , , | AU78: 1.82786907 | AV78: 1.82786907 | AW78: Arterial | AX78: Arterial | AY78: 1 | AZ78: 2 | BA78: Undivided | BB78: Divided | BC78: 45 | BD78: 50 | BE78: 0 | BF78: 100 | BG78: 3800 | BH78: 15800 | BI78: 0.2405063291 | BJ78: 3800 | BK78: 0 | BL78: 220725.345 | BM78: 0 | BN78: 220725.345 | BO78: 4855958 | BP78: 72.54662042 | BQ78: 39.03392726 | BR78: 21.5484524 | BW78: No | BX78: No | BY78: 9 | BZ78: 12 | CA78: No | CB78: 0 | CC78: 0 | CD78: 2 Lane Undivided | CE78: 4A - 4 Lane Divided (46' Depressed Median) with Paved Shoulders | CF78: None | CG78: Partial | CH78: 3 | CI78: No | CJ78: 28 | CK78: 12600000 | CL78: 4400000 | CM78: 0 | CN78: 17000000 | CP78: 17000000 | CQ78: 17000000
A79: H090076-A | B79: Regional Impact | C79: R-2247A | D79: - New Route - Winston-Salem Northern Beltway Western Section | E79: US 158 | F79: South of I-40 | G79: Construct Freeway on New Location (Not Eligible For Urban Loop Funding) | H79: 5 - Construct Roadway on New Location | I79: 29301000 | J79: N/A | K79: 32.66061144 | L79: 21.55227267 | M79: 45.06503167 | N79: 31.4024821 | O79: 62.5876992 | P79: 6.496651156 | Q79: N/A | R79: 72.84963081 | S79: N/A | T79: N/A | V79: Winston Salem Urban Area MPO | W79: 100 | AB79: 09 | AC79: 100 | AH79: Forsyth | AI79: 100 | AP79: 9 | AQ79: D | AR79: 09, , | AS79: Winston Salem Urban Area MPO, , | AT79: Forsyth, , , | AU79: 5.7 | AV79: 2.0607362 | AW79: Arterial | AX79: Freeway | AY79: 2 | AZ79: 2 | BA79: TWLTL | BB79: Divided | BC79: 50 | BD79: 65 | BE79: 4.279162085 | BF79: 95.72083791 | BG79: 30364.12749 | BH79: 55342.70731 | BI79: 0.5486563445 | BJ79: 29064.79726 | BK79: 1299.330231 | BL79: 39332566.32 | BM79: 1758346.774 | BN79: 41090913.09 | BO79: 920124128 | BP79: 60.90628711 | BQ79: 65.8879773 | BR79: 60.98761139 | BW79: No | BX79: No | BY79: 12 | BZ79: 12 | CA79: Yes | CB79: 3 | CC79: 4 | CD79: New Roadway | CE79: 4A - 4 Lane Divided (46' Depressed Median) with Paved Shoulders | CF79: None | CG79: Full | CH79: 3 | CI79: Yes | CJ79: 21 | CK79: 16872000 | CL79: 11097000 | CM79: 1332000 | CN79: 29301000 | CP79: 29301000 | CQ79: 29301000
A80: H090076-B | B80: Statewide Mobility | C80: R-2247B | D80: - New Route - Winston-Salem Northern Beltway Western Section | E80: South of I-40 | F80: South of US 421 | G80: Construct Freeway on New Location. | H80: 5 - Construct Roadway on New Location | I80: 67824000 | J80: 43.51944767 | K80: 35.94533106 | L80: 22.03517185 | M80: 68.55103884 | N80: 9.652145394 | O80: 63.94535 | P80: 18.31978699 | Q80: 100 | R80: 100 | S80: N/A | T80: N/A | V80: Winston Salem Urban Area MPO | W80: 100 | AB80: 09 | AC80: 100 | AH80: Forsyth | AI80: 100 | AP80: 9 | AQ80: D | AR80: 09, , | AS80: Winston Salem Urban Area MPO, , | AT80: Forsyth, , , | AU80: 12.6 | AV80: 14.8 | AW80: Arterial | AX80: Freeway | AY80: 2 | AZ80: 2 | BA80: Divided | BB80: Divided | BC80: 53 | BD80: 65 | BE80: 7.978139752 | BF80: 92.02186025 | BG80: 45924.95884 | BH80: 54911.11164 | BI80: 0.8363509218 | BJ80: 42261.00144 | BK80: 3663.957397 | BL80: 96599654.88 | BM80: 8375026.809 | BN80: 104974681.7 | BO80: 2386241993 | BP80: 66.01765011 | BQ80: 65.61916411 | BR80: 60.2184213 | BU80: 1763 | BV80: 0.002783382665 | BW80: No | BX80: No | BY80: 12.00016265 | BZ80: 12 | CA80: No | CB80: 4.019234866 | CC80: 10 | CD80: New Roadway | CE80: 4A - 4 Lane Divided (46' Depressed Median) with Paved Shoulders | CF80: Limited | CG80: Full | CH80: 3 | CI80: Yes | CJ80: 18 | CK80: 51200000 | CL80: 16624000 | CM80: 0 | CN80: 67824000 | CP80: 67824000 | CQ80: 247224000
A81: H090076-CA | B81: Statewide Mobility | C81: R-2247CA | D81: - New Route - Winston-Salem Northern Beltway Western Section | E81: South of US 421 | F81: North of US 421 | G81: Construct Freeway on New Location. | H81: 5 - Construct Roadway on New Location | I81: 45450000 | J81: 43.51944767 | K81: 35.94533106 | L81: 22.03517185 | M81: 68.55103884 | N81: 9.652145394 | O81: 63.94535 | P81: 18.31978699 | Q81: 100 | R81: 100 | S81: N/A | T81: N/A | V81: Winston Salem Urban Area MPO | W81: 100 | AB81: 09 | AC81: 100 | AH81: Forsyth | AI81: 100 | AP81: 9 | AQ81: D | AR81: 09, , | AS81: Winston Salem Urban Area MPO, , | AT81: Forsyth, , , | AU81: 12.6 | AV81: 14.8 | AW81: Arterial | AX81: Freeway | AY81: 2 | AZ81: 2 | BA81: Divided | BB81: Divided | BC81: 53 | BD81: 65 | BE81: 7.978139752 | BF81: 92.02186025 | BG81: 45924.95884 | BH81: 54911.11164 | BI81: 0.8363509218 | BJ81: 42261.00144 | BK81: 3663.957397 | BL81: 96599654.88 | BM81: 8375026.809 | BN81: 104974681.7 | BO81: 2386241993 | BP81: 66.01765011 | BQ81: 65.61916411 | BR81: 60.2184213 | BU81: 1763 | BV81: 0.002783382665 | BW81: No | BX81: No | BY81: 12.00016265 | BZ81: 12 | CA81: No | CB81: 4.019234866 | CC81: 10 | CD81: New Roadway | CE81: 4A - 4 Lane Divided (46' Depressed Median) with Paved Shoulders | CF81: Limited | CG81: Full | CH81: 3 | CI81: Yes | CJ81: 20 | CK81: 44800000 | CL81: 650000 | CM81: 0 | CN81: 45450000 | CP81: 45450000 | CQ81: 247224000
A82: H090076-CB | B82: Statewide Mobility | C82: R-2247CB | D82: - New Route - Winston-Salem Northern Beltway Western Section | E82: North of US 421 | F82: North of SR 1348 (Robinhood Road) | G82: Construct Freeway on New Location. | H82: 5 - Construct Roadway on New Location | I82: 46450000 | J82: 43.51944767 | K82: 35.94533106 | L82: 22.03517185 | M82: 68.55103884 | N82: 9.652145394 | O82: 63.94535 | P82: 18.31978699 | Q82: 100 | R82: 100 | S82: N/A | T82: N/A | V82: Winston Salem Urban Area MPO | W82: 100 | AB82: 09 | AC82: 100 | AH82: Forsyth | AI82: 100 | AP82: 9 | AQ82: D | AR82: 09, , | AS82: Winston Salem Urban Area MPO, , | AT82: Forsyth, , , | AU82: 12.6 | AV82: 14.8 | AW82: Arterial | AX82: Freeway | AY82: 2 | AZ82: 2 | BA82: Divided | BB82: Divided | BC82: 53 | BD82: 65 | BE82: 7.978139752 | BF82: 92.02186025 | BG82: 45924.95884 | BH82: 54911.11164 | BI82: 0.8363509218 | BJ82: 42261.00144 | BK82: 3663.957397 | BL82: 96599654.88 | BM82: 8375026.809 | BN82: 104974681.7 | BO82: 2386241993 | BP82: 66.01765011 | BQ82: 65.61916411 | BR82: 60.2184213 | BU82: 1763 | BV82: 0.002783382665 | BW82: No | BX82: No | BY82: 12.00016265 | BZ82: 12 | CA82: No | CB82: 4.019234866 | CC82: 10 | CD82: New Roadway | CE82: 4A - 4 Lane Divided (46' Depressed Median) with Paved Shoulders | CF82: Limited | CG82: Full | CH82: 3 | CI82: Yes | CJ82: 20 | CK82: 38700000 | CL82: 7750000 | CM82: 0 | CN82: 46450000 | CP82: 46450000 | CQ82: 247224000
A83: H090076-D | B83: Statewide Mobility | C83: R-2247D | D83: - New Route - Winston-Salem Northern Beltway Western Section | E83: North of SR 1348 (Robinhood Road) | F83: NC 67 | G83: Construct Freeway on New Location. | H83: 5 - Construct Roadway on New Location | I83: 48700000 | J83: 43.51944767 | K83: 35.94533106 | L83: 22.03517185 | M83: 68.55103884 | N83: 9.652145394 | O83: 63.94535 | P83: 18.31978699 | Q83: 100 | R83: 100 | S83: N/A | T83: N/A | V83: Winston Salem Urban Area MPO | W83: 100 | AB83: 09 | AC83: 100 | AH83: Forsyth | AI83: 100 | AP83: 9 | AQ83: D | AR83: 09, , | AS83: Winston Salem Urban Area MPO, , | AT83: Forsyth, , , | AU83: 12.6 | AV83: 14.8 | AW83: Arterial | AX83: Freeway | AY83: 2 | AZ83: 2 | BA83: Divided | BB83: Divided | BC83: 53 | BD83: 65 | BE83: 7.978139752 | BF83: 92.02186025 | BG83: 45924.95884 | BH83: 54911.11164 | BI83: 0.8363509218 | BJ83: 42261.00144 | BK83: 3663.957397 | BL83: 96599654.88 | BM83: 8375026.809 | BN83: 104974681.7 | BO83: 2386241993 | BP83: 66.01765011 | BQ83: 65.61916411 | BR83: 60.2184213 | BU83: 1763 | BV83: 0.002783382665 | BW83: No | BX83: No | BY83: 12.00016265 | BZ83: 12 | CA83: No | CB83: 4.019234866 | CC83: 10 | CD83: New Roadway | CE83: 4A - 4 Lane Divided (46' Depressed Median) with Paved Shoulders | CF83: Limited | CG83: Full | CH83: 3 | CI83: Yes | CJ83: 22 | CK83: 37700000 | CL83: 11000000 | CM83: 0 | CN83: 48700000 | CP83: 48700000 | CQ83: 247224000
A84: H090076-EA | B84: Statewide Mobility | C84: R-2247EA | D84: - New Route - Winston-Salem Northern Beltway Western Section | E84: NC 67 | F84: South of US 52 | G84: Construct Freeway on New Location. | H84: 5 - Construct Roadway on New Location | I84: 38800000 | J84: 43.51944767 | K84: 35.94533106 | L84: 22.03517185 | M84: 68.55103884 | N84: 9.652145394 | O84: 63.94535 | P84: 18.31978699 | Q84: 100 | R84: 100 | S84: N/A | T84: N/A | V84: Winston Salem Urban Area MPO | W84: 100 | AB84: 09 | AC84: 100 | AH84: Forsyth | AI84: 100 | AP84: 9 | AQ84: D | AR84: 09, , | AS84: Winston Salem Urban Area MPO, , | AT84: Forsyth, , , | AU84: 12.6 | AV84: 14.8 | AW84: Arterial | AX84: Freeway | AY84: 2 | AZ84: 2 | BA84: Divided | BB84: Divided | BC84: 53 | BD84: 65 | BE84: 7.978139752 | BF84: 92.02186025 | BG84: 45924.95884 | BH84: 54911.11164 | BI84: 0.8363509218 | BJ84: 42261.00144 | BK84: 3663.957397 | BL84: 96599654.88 | BM84: 8375026.809 | BN84: 104974681.7 | BO84: 2386241993 | BP84: 66.01765011 | BQ84: 65.61916411 | BR84: 60.2184213 | BU84: 1763 | BV84: 0.002783382665 | BW84: No | BX84: No | BY84: 12.00016265 | BZ84: 12 | CA84: No | CB84: 4.019234866 | CC84: 10 | CD84: New Roadway | CE84: 4A - 4 Lane Divided (46' Depressed Median) with Paved Shoulders | CF84: Limited | CG84: Full | CH84: 3 | CI84: Yes | CJ84: 23 | CK84: 32600000 | CL84: 6200000 | CM84: 0 | CN84: 38800000 | CP84: 38800000 | CQ84: 247224000
A85: H090076-EB | B85: Statewide Mobility | C85: R-2247EB | D85: - New Route - Winston-Salem Northern Beltway Western Section | E85: South of US 52 | F85: East of US 52 | G85: Construct Freeway on New Location (interchange at US 52). | H85: 5 - Construct Roadway on New Location | I85: 142800000 | J85: 43.53822968 | K85: 35.23254576 | L85: 21.54676063 | M85: 72.38332653 | N85: 1.332375915 | O85: 68.03620146 | P85: 26.85155103 | Q85: 92.49588596 | R85: 100 | S85: N/A | T85: N/A | V85: Winston Salem Urban Area MPO | W85: 100 | AB85: 09 | AC85: 100 | AH85: Forsyth | AI85: 100 | AP85: 9 | AQ85: D | AR85: 09, , | AS85: Winston Salem Urban Area MPO, , | AT85: Forsyth, , , | AU85: 16.7 | AV85: 16.8 | AW85: Freeway | AX85: Freeway | AY85: 2 | AZ85: 3 | BA85: Divided | BB85: Divided | BC85: 59 | BD85: 65 | BE85: 8.660482016 | BF85: 91.33951798 | BG85: 62009.36849 | BH85: 78196.61664 | BI85: 0.7929929856 | BJ85: 56639.05828 | BK85: 5370.310206 | BL85: 39732740.98 | BM85: 3767314.48 | BN85: 43500055.46 | BO85: 991547494 | BP85: 69.92309425 | BQ85: 69.19713319 | BR85: 65.00878983 | BU85: 713 | BV85: 0.001136917719 | BW85: No | BX85: No | BY85: 12 | BZ85: 12 | CA85: No | CB85: 7 | CC85: 10 | CD85: New Roadway | CE85: 6A - 6 Lane Divided (46' Depressed Median) with Paved Shoulders | CF85: Full | CG85: Full | CH85: 3 | CI85: Yes | CJ85: 23 | CK85: 116800000 | CL85: 26000000 | CM85: 0 | CN85: 142800000 | CP85: 142800000 | CQ85: 744195000
A86: H090077 | B86: Statewide Mobility | C86: R-2257 | D86: US-158 Oxford Outer Loop | E86: US 158 Business West of Oxford | F86: US 158 Business East of Oxford | G86: Widen to Multi-Lanes. | H86: 1 - Widen Existing Roadway | I86: 22080000 | J86: 13.09629142 | K86: 13.51842292 | L86: 9.516871975 | M86: 30.14792455 | N86: 0.2359803442 | O86: 34.40090995 | P86: 2.570106082 | Q86: 0.2700774352 | R86: 24.82355702 | S86: N/A | T86: N/A | V86: Kerr-Tar RPO | W86: 100 | AB86: 05 | AC86: 100 | AH86: Granville | AI86: 100 | AP86: 5 | AQ86: C | AR86: 05, , | AS86: Kerr-Tar RPO, , | AT86: Granville, , , | AU86: 4.59231288 | AV86: 4.59231288 | AW86: Two Lane Highway | AX86: Multi-Lane Highway | AY86: 1 | AZ86: 2 | BA86: Undivided | BB86: Divided | BC86: 55 | BD86: 55 | BE86: 7.281956549 | BF86: 92.71804345 | BG86: 7058.833884 | BH86: 15500.07219 | BI86: 0.4554065167 | BJ86: 6544.812668 | BK86: 514.0212163 | BL86: 213123.1405 | BM86: 16738.41888 | BN86: 229861.5594 | BO86: 5210446 | BP86: 52.71976259 | BQ86: 26.71908414 | BR86: 23.77420443 | BU86: 3 | BV86: 2.401548704e-06 | BW86: No | BX86: No | BY86: 12 | BZ86: 12 | CA86: No | CB86: 2 | CC86: 2 | CD86: 2 Lane Undivided | CE86: 4A - 4 Lane Divided (46' Depressed Median) with Paved Shoulders | CF86: None | CG86: Limited | CH86: 2 | CI86: Yes | CJ86: 23 | CK86: 22000000 | CL86: 80000 | CM86: 0 | CN86: 22080000 | CP86: 22080000 | CQ86: 22080000
A87: H090078-AA | B87: Regional Impact | C87: R-2300AA | D87: NC-8 | E87: NC 49 | F87: SR 2504 (Hunt Road) | G87: Widen to Multi-Lanes, Part on New Location | H87: 1 - Widen Existing Roadway | I87: 7950000 | J87: N/A | K87: 7.535768041 | L87: 4.868998139 | M87: 4.151360029 | N87: 0 | O87: 40.38726133 | P87: 0.3693763556 | Q87: N/A | R87: 24.59201901 | S87: N/A | T87: N/A | V87: High Point Urban Area MPO | W87: 100 | AB87: 09 | AC87: 100 | AH87: Davidson | AI87: 100 | AP87: 9 | AQ87: D | AR87: 09, , | AS87: High Point Urban Area MPO, , | AT87: Davidson, , , | AU87: 6.29443375 | AV87: 6.29443375 | AW87: Two Lane Highway | AX87: Multi-Lane Highway | AY87: 1 | AZ87: 2 | BA87: Undivided | BB87: Divided | BC87: 55 | BD87: 55 | BE87: 7.600280805 | BF87: 92.3997192 | BG87: 972.0071274 | BH87: 15500.21033 | BI87: 0.06270928631 | BJ87: 898.1318563 | BK87: 73.87527112 | BL87: 0 | BM87: 0 | BN87: 0 | BO87: 0 | BP87: 38.23613567 | BQ87: 34.09487658 | BR87: 48.84288913 | BW87: No | BX87: No | BY87: 10 | BZ87: 12 | CA87: No | CB87: 0 | CC87: 0 | CD87: 2 Lane Undivided | CE87: 4A - 4 Lane Divided (46' Depressed Median) with Paved Shoulders | CF87: None | CG87: Partial | CH87: 2 | CI87: Yes | CJ87: 31 | CK87: 7400000 | CL87: 550000 | CM87: 0 | CN87: 7950000 | CP87: 7950000 | CQ87: 7950000
A88: H090078-AB | B88: Regional Impact | C88: R-2300AB | D88: NC-8 | E88: SR 2504 (Hunt Road) | F88: SR 2412 (Rothrock Road) | G88: Widen to Multi-Lanes, Part on New Location | H88: 1 - Widen Existing Roadway | I88: 11100000 | J88: N/A | K88: 9.798480679 | L88: 6.38736073 | M88: 7.213942359 | N88: 0 | O88: 49.44572258 | P88: 0.6221384034 | Q88: N/A | R88: 30.50422832 | S88: N/A | T88: N/A | V88: High Point Urban Area MPO | W88: 100 | AB88: 09 | AC88: 100 | AH88: Davidson | AI88: 100 | AP88: 9 | AQ88: D | AR88: 09, , | AS88: High Point Urban Area MPO, , | AT88: Davidson, , , | AU88: 8.47181101 | AV88: 8.47181101 | AW88: Two Lane Highway | AX88: Multi-Lane Highway | AY88: 1 | AZ88: 2 | BA88: Undivided | BB88: Divided | BC88: 55 | BD88: 55 | BE88: 7.366570367 | BF88: 92.63342963 | BG88: 1689.085619 | BH88: 15500.20822 | BI88: 0.1089718019 | BJ88: 1564.657938 | BK88: 124.4276807 | BL88: 0 | BM88: 0 | BN88: 0 | BO88: 0 | BP88: 57.70537824 | BQ88: 19.80913155 | BR88: 70.83749314 | BW88: No | BX88: No | BY88: 10 | BZ88: 12 | CA88: No | CB88: 0 | CC88: 0 | CD88: 2 Lane Undivided | CE88: 4A - 4 Lane Divided (46' Depressed Median) with Paved Shoulders | CF88: None | CG88: Partial | CH88: 2 | CI88: Yes | CJ88: 33 | CK88: 10000000 | CL88: 1100000 | CM88: 0 | CN88: 11100000 | CP88: 11100000 | CQ88: 11100000
A89: H090078-BA | B89: Regional Impact | C89: R-2300BA | D89: NC-8 Cotton Grove Road | E89: SR 2412 (Rothrock Road) | F89: SR 1115 (Wrenn Road) | G89: Widen to Multi-Lanes, Part on New Location | H89: 1 - Widen Existing Roadway | I89: 9900000 | J89: N/A | K89: 14.16422889 | L89: 10.02186231 | M89: 22.50814885 | N89: 0.2321470707 | O89: 54.73803124 | P89: 1.940389185 | Q89: N/A | R89: 30.05351788 | S89: N/A | T89: N/A | V89: High Point Urban Area MPO | W89: 100 | AB89: 09 | AC89: 100 | AH89: Davidson | AI89: 100 | AP89: 9 | AQ89: D | AR89: 09, , | AS89: High Point Urban Area MPO, , | AT89: Davidson, , , | AU89: 4.52039653 | AV89: 4.52039653 | AW89: Two Lane Highway | AX89: Multi-Lane Highway | AY89: 1 | AZ89: 2 | BA89: Undivided | BB89: Divided | BC89: 55 | BD89: 55 | BE89: 7.363809125 | BF89: 92.63619087 | BG89: 5270.069206 | BH89: 15500.11148 | BI89: 0.3400020195 | BJ89: 4881.991369 | BK89: 388.0778371 | BL89: 93891.59312 | BM89: 7463.603195 | BN89: 101355.1963 | BO89: 2298256 | BP89: 54.73778019 | BQ89: 69.46816046 | BR89: 40.02457613 | BW89: No | BX89: No | BY89: 12 | BZ89: 12 | CA89: No | CB89: 0 | CC89: 2 | CD89: 2 Lane Undivided | CE89: 4A - 4 Lane Divided (46' Depressed Median) with Paved Shoulders | CF89: None | CG89: Partial | CH89: 2 | CI89: Yes | CJ89: 28 | CK89: 9900000 | CL89: 0 | CM89: 0 | CN89: 9900000 | CP89: 9900000 | CQ89: 9900000
A90: H090412 | B90: Division Needs | C90: U-3448 | D90: SR-1278 Trent Road | E90: US 17 (Martin Luther King, Jr. Boulevard) | F90: SR 1215 (Simmons Street) | G90: US 17 (Martin Luther King, Jr. Boulevard) to SR 1215 (Simmons Street). Widen to Multi-Lanes. | H90: 1 - Widen Existing Roadway | I90: 13172000 | J90: N/A | K90: N/A | L90: 21.11242307 | M90: 37.62162399 | N90: 0.9799935469 | O90: 67.94049137 | P90: 0 | Q90: N/A | R90: N/A | S90: N/A | T90: N/A | V90: New Bern MPO | W90: 100 | AB90: 02 | AC90: 100 | AH90: Craven | AI90: 100 | AP90: 2 | AQ90: B | AR90: 02, , | AS90: New Bern MPO, , | AT90: Craven, , , | AU90: 2.20311329 | AV90: 2.20311329 | AW90: Arterial | AX90: Arterial | AY90: 1 | AZ90: 2 | BA90: Undivided | BB90: Divided | BC90: 35 | BD90: 35 | BE90: 0 | BF90: 100 | BG90: 8962.932815 | BH90: 15800.00133 | BI90: 0.567274181 | BJ90: 8962.932815 | BK90: 0 | BL90: 586748.8759 | BM90: 0 | BN90: 586748.8759 | BO90: 12908475 | BP90: 92.52932402 | BQ90: 44.32724525 | BR90: 66.98528902 | BW90: No | BX90: No | BY90: 11 | BZ90: 12 | CA90: No | CB90: 0 | CC90: 4 | CD90: 2 Lane Undivided | CE90: 4C - 4 Lane Divided (23' Raised Median) with Curb & Gutter, Wide Outside Lanes, and Sidewalks | CF90: None | CG90: Partial | CH90: 2 | CI90: No | CJ90: 15 | CK90: 9804000 | CL90: 3007000 | CM90: 361000 | CN90: 13172000 | CP90: 13172000 | CQ90: 13172000
A91: H090433 | B91: Division Needs | C91: U-3618 | D91: - New Route - Carey Road Extension | E91: SR 1572 (Rouse Road) | F91: US 258 | G91: Construct Multi-Lanes on New Location | H91: 5 - Construct Roadway on New Location | I91: 12910000 | J91: N/A | K91: N/A | L91: 20.11668895 | M91: 40.30351946 | N91: 55.45686646 | O91: 58.63702225 | P91: 3.285806132 | Q91: N/A | R91: N/A | S91: N/A | T91: N/A | V91: East Carolina RPO | W91: 100 | AB91: 02 | AC91: 100 | AH91: Lenoir | AI91: 100 | AP91: 2 | AQ91: B | AR91: 02, , | AS91: East Carolina RPO, , | AT91: Lenoir, , , | AU91: 7.2 | AV91: 1.80963224 | AW91: Arterial | AX91: Arterial | AY91: 2 | AZ91: 2 | BA91: Undivided | BB91: Divided | BC91: 43 | BD91: 45 | BE91: 3.738390238 | BF91: 96.26160976 | BG91: 17578.72198 | BH91: 31699.9984 | BI91: 0.5545338444 | BJ91: 16921.56075 | BK91: 657.1612264 | BL91: 30845860.4 | BM91: 1197921.619 | BN91: 32043782.02 | BO91: 715948146 | BP91: 51.38119349 | BQ91: 78.78594488 | BR91: 45.76152124 | BW91: No | BX91: No | BY91: 12 | BZ91: 12 | CA91: Yes | CB91: 0 | CC91: 4 | CD91: New Roadway | CE91: 4B - 4 Lane Divided (23' Raised Median) with Paved Shoulders and Sidewalks | CF91: None | CG91: Partial | CH91: 1 | CI91: No | CJ91: 19 | CK91: 10700000 | CL91: 2140000 | CM91: 70000 | CN91: 12910000 | CP91: 12910000 | CQ91: 12910000
A92: H090454 | B92: Division Needs | C92: U-4018 | D92: - New Route - Plaza Boulevard Extension | E92: NC 58 (North Queen Street) | F92: NC 11 North (Greenville Highway) | G92: NC 58 (North Queen Street) to NC 11 North (Greenville Highway). Multi-Lanes on New Location. | H92: 5 - Construct Roadway on New Location | I92: 17591000 | J92: N/A | K92: N/A | L92: 18.99287223 | M92: 28.03975286 | N92: 2.429940424 | O92: 66.92460826 | P92: 0 | Q92: N/A | R92: N/A | S92: N/A | T92: N/A | V92: East Carolina RPO | W92: 100 | AB92: 02 | AC92: 100 | AH92: Lenoir | AI92: 100 | AP92: 2 | AQ92: B | AR92: 02, , | AS92: East Carolina RPO, , | AT92: Lenoir, , , | AU92: 2.1 | AV92: 1.34506112 | AW92: Arterial | AX92: Arterial | AY92: 1 | AZ92: 2 | BA92: Undivided | BB92: Divided | BC92: 39 | BD92: 40 | BE92: 0 | BF92: 100 | BG92: 6680.157957 | BH92: 15799.99923 | BI92: 0.422794828 | BJ92: 6680.157957 | BK92: 0 | BL92: 1942958.251 | BM92: 0 | BN92: 1942958.251 | BO92: 42745082 | BP92: 83.42216557 | BQ92: 66.90003043 | BR92: 50.47170818 | BW92: No | BX92: No | BY92: 11 | BZ92: 12 | CA92: Yes | CB92: 0 | CC92: 2 | CD92: New Roadway | CE92: 4B - 4 Lane Divided (23' Raised Median) with Paved Shoulders and Sidewalks | CF92: None | CG92: Partial | CH92: 1 | CI92: No | CJ92: 16 | CK92: 15504000 | CL92: 1863000 | CM92: 224000 | CN92: 17591000 | CP92: 17591000 | CQ92: 17591000
A93: H090084-A | B93: Regional Impact | C93: R-2307A | D93: NC-150 | E93: Relocated NC 16 | F93: SR 1902 (Harvel Road) | G93: Widen to Multi-Lanes | H93: 1 - Widen Existing Roadway | I93: 106156000 | J93: N/A | K93: 24.20645116 | L93: 17.00012421 | M93: 47.61712784 | N93: 0.5600414767 | O93: 73.64690343 | P93: 3.252884343 | Q93: N/A | R93: 47.97468485 | S93: N/A | T93: N/A | V93: Greater Hickory MPO | W93: 100 | AB93: 12 | AC93: 100 | AH93: Catawba | AI93: 100 | AP93: 12 | AQ93: F | AR93: 12, , | AS93: Greater Hickory MPO, , | AT93: Catawba, , , | AU93: 7.92 | AV93: 7.92 | AW93: Two Lane Highway | AX93: Multi-Lane Highway | AY93: 1 | AZ93: 2 | BA93: Undivided | BB93: Divided | BC93: 50 | BD93: 50 | BE93: 5.787789457 | BF93: 94.21221054 | BG93: 11240.50682 | BH93: 15640.44388 | BI93: 0.7186820851 | BJ93: 10589.92995 | BK93: 650.5768687 | BL93: 2485973.348 | BM93: 152722.1392 | BN93: 2638695.487 | BO93: 59451763 | BP93: 87.60394877 | BQ93: 70.70489623 | BR93: 62.65396156 | BW93: No | BX93: No | BY93: 11.99998525 | BZ93: 12 | CA93: No | CB93: 0 | CC93: 4 | CD93: 2 Lane Undivided | CF93: None | CG93: Partial | CH93: 2 | CI93: Yes | CJ93: 29 | CK93: 66788000 | CL93: 39368000 | CN93: 106156000 | CP93: 106156000 | CQ93: 106156000
A94: H090084-B | B94: Regional Impact | C94: R-2307B | D94: NC-150 | E94: SR 1902 (Harvel Road) in Catawba County | F94: Perth Road in Iredell County | G94: Widen to Multi-Lanes | H94: 1 - Widen Existing Roadway | I94: 33647000 | J94: N/A | K94: 31.09047347 | L94: 21.91947523 | M94: 68.26267251 | N94: 3.07731881 | O94: 76.51476962 | P94: 4.520739134 | Q94: N/A | R94: 56.03998683 | S94: N/A | T94: N/A | V94: Charlotte Regional Transportation Planning Organization | W94: 79.4 | X94: Greater Hickory MPO | Y94: 20.6 | AB94: 12 | AC94: 100 | AH94: Iredell | AI94: 81.06 | AJ94: Catawba | AK94: 18.94 | AP94: 12 | AQ94: F | AR94: 12, , | AS94: Charlotte Regional Transportation Planning Organization, Greater Hickory MPO, | AT94: Iredell, Catawba, , | AU94: 3.41656197 | AV94: 3.41656197 | AW94: Two Lane Highway | AX94: Multi-Lane Highway | AY94: 1 | AZ94: 2 | BA94: Undivided | BB94: Divided | BC94: 51 | BD94: 51 | BE94: 5.545948982 | BF94: 94.45405102 | BG94: 16302.8515 | BH94: 15843 | BI94: 1.029025532 | BJ94: 15398.70367 | BK94: 904.1478268 | BL94: 4345018.706 | BM94: 255121.4248 | BN94: 4600140.131 | BO94: 103542546 | BP94: 99.82454955 | BQ94: 69.96899962 | BR94: 59.77371643 | BW94: No | BX94: No | BY94: 12 | BZ94: 12 | CA94: No | CB94: 0 | CC94: 4 | CD94: 2 Lane Undivided | CE94: 4A - 4 Lane Divided (46' Depressed Median) with Paved Shoulders | CF94: None | CG94: Partial | CH94: 3 | CI94: Yes | CJ94: 29 | CK94: 24798000 | CL94: 5450000 | CM94: 3399000 | CN94: 33647000 | CP94: 33647000 | CQ94: 33647000
A95: H090084-C | B95: Regional Impact | C95: R-2307C | D95: NC-150 | E95: Perth Road in Iredell County | F95: I-77 | G95: Widen to Multi-Lanes | H95: 1 - Widen Existing Roadway | I95: 24512000 | J95: N/A | K95: 34.53604043 | L95: 27.82292896 | M95: 85.58055551 | N95: 9.169669264 | O95: 88.7288401 | P95: 8.127529309 | Q95: N/A | R95: 19.75600226 | S95: N/A | T95: N/A | V95: Charlotte Regional Transportation Planning Organization | W95: 100 | AB95: 12 | AC95: 100 | AH95: Iredell | AI95: 100 | AP95: 12 | AQ95: F | AR95: 12, , | AS95: Charlotte Regional Transportation Planning Organization, , | AT95: Iredell, , , | AU95: 2.18702067 | AV95: 2.18702067 | AW95: Arterial | AX95: Arterial | AY95: 2 | AZ95: 2 | BA95: Undivided | BB95: Divided | BC95: 45 | BD95: 45 | BE95: 5.553865948 | BF95: 94.44613405 | BG95: 29268.00677 | BH95: 23771.5 | BI95: 1.231222547 | BJ95: 27642.50091 | BK95: 1625.505862 | BL95: 9430936.454 | BM95: 554582.3273 | BN95: 9985518.781 | BO95: 224766933 | BP95: 99.81745092 | BQ95: 66.57823976 | BR95: 99.81745092 | BW95: No | BX95: No | BY95: 12 | BZ95: 12 | CA95: No | CB95: 2 | CC95: 4 | CD95: 4 Lane Undivided | CE95: 4B - 4 Lane Divided (23' Raised Median) with Paved Shoulders and Sidewalks | CF95: None | CG95: Partial | CH95: 3 | CI95: No | CJ95: 25 | CK95: 19767000 | CL95: 2512000 | CM95: 2233000 | CN95: 24512000 | CP95: 24512000 | CQ95: 24512000
A96: H090087 | B96: Regional Impact | C96: R-2310 | D96: US-221 | E96: NC 16 | F96: Alleghany County Line | G96: NC 16 to the Alleghany County Line. Upgrade Existing Facility. | H96: 16 - Modernize Roadway | I96: 70452000 | J96: N/A | K96: 5.63165238 | L96: 4.531873645 | M96: 4.569110496 | N96: 0 | O96: 36.18051545 | P96: 0.5435909465 | Q96: N/A | R96: 8.713232109 | S96: N/A | T96: N/A | V96: High Country RPO | W96: 100 | AB96: 11 | AC96: 100 | AH96: Ashe | AI96: 100 | AP96: 11 | AQ96: F | AR96: 11, , | AS96: High Country RPO, , | AT96: Ashe, , , | AU96: 9.72442412 | AV96: 9.72442412 | AW96: Two Lane Highway | AX96: Two Lane Highway | AY96: 1 | AZ96: 1 | BA96: Undivided | BB96: Undivided | BC96: 45 | BD96: 45 | BE96: 10.16202047 | BF96: 89.83797953 | BG96: 1069.848163 | BH96: 15500.66061 | BI96: 0.06901952052 | BJ96: 961.1299737 | BK96: 108.7181893 | BL96: 0 | BM96: 0 | BN96: 0 | BO96: 0 | BP96: 32.25393196 | BQ96: 33.57089067 | BR96: 42.72757897 | BW96: No | BX96: No | BY96: 9 | BZ96: 11 | CA96: No | CB96: 0 | CC96: 0 | CD96: 2 Lane Undivided | CF96: None | CG96: None | CH96: 2 | CI96: No | CJ96: 24 | CK96: 70452000 | CL96: 0 | CM96: 0 | CN96: 70452000 | CP96: 70452000 | CQ96: 70452000
A97: H090088 | B97: Division Needs | C97: R-2314 | D97: SR-1005 Pekin Road | E97: NC 24/27 in Albemarle | F97: US 74 at Rockingham | G97: NC 24/27 in Troy to US 74 at Rockingham. Upgrade Roadway (Two Lanes only) with Minor Relocations. | H97: 16 - Modernize Roadway | I97: 41040000 | J97: N/A | K97: N/A | L97: 3.147262552 | M97: 2.632483124 | N97: 0 | O97: 26.20765928 | P97: 0 | Q97: N/A | R97: N/A | S97: N/A | T97: N/A | V97: Lumber River RPO | W97: 54.19 | X97: Piedmont Triad RPO | Y97: 45.81 | AB97: 08 | AC97: 100 | AH97: Richmond | AI97: 54.19 | AJ97: Montgomery | AK97: 45.81 | AP97: 8 | AQ97: E | AR97: 08, , | AS97: Lumber River RPO, Piedmont Triad RPO, | AT97: Richmond, Montgomery, , | AU97: 32.28666811 | AV97: 32.28666811 | AW97: Two Lane Highway | AX97: Two Lane Highway | AY97: 1 | AZ97: 1 | BA97: Undivided | BB97: Undivided | BC97: 54 | BD97: 54 | BE97: 0 | BF97: 100 | BG97: 616.9215664 | BH97: 15515.39131 | BI97: 0.03976190829 | BJ97: 616.9215664 | BK97: 0 | BL97: 0 | BM97: 0 | BN97: 0 | BO97: 0 | BP97: 41.09411239 | BQ97: 14.36638359 | BR97: 23.17034493 | BW97: No | BX97: No | BY97: 10 | BZ97: 12 | CA97: No | CB97: 0 | CC97: 0 | CD97: 2 Lane Undivided | CF97: None | CG97: None | CH97: 1 | CI97: No | CJ97: 21 | CK97: 41040000 | CL97: 0 | CM97: 0 | CN97: 41040000 | CP97: 41040000 | CQ97: 41040000
A98: H090089-A | B98: Statewide Mobility | C98: R-2320 | D98: US-52 | E98: US 74 in Wadesboro | F98: SR 1634 (Grassy Island Road) | G98: Widen to Multi-Lanes. | H98: 1 - Widen Existing Roadway | I98: 73396000 | J98: 9.426916953 | K98: 10.26221465 | L98: 7.187160034 | M98: 15.42486483 | N98: 0.2194228977 | O98: 40.58302489 | P98: 2.91832862 | Q98: 0.916624229 | R98: 22.92840231 | S98: N/A | T98: N/A | V98: Rocky River RPO | W98: 100 | AB98: 10 | AC98: 100 | AH98: Anson | AI98: 100 | AP98: 10 | AQ98: E | AR98: 10, , | AS98: Rocky River RPO, , | AT98: Anson, , , | AU98: 8.44465535 | AV98: 8.44465535 | AW98: Two Lane Highway | AX98: Multi-Lane Highway | AY98: 1 | AZ98: 2 | BA98: Undivided | BB98: Divided | BC98: 48 | BD98: 55 | BE98: 16.02244429 | BF98: 83.97755571 | BG98: 3642.80077 | BH98: 15648.05584 | BI98: 0.232795742 | BJ98: 3059.135046 | BK98: 583.665724 | BL98: 576259.6437 | BM98: 109947.0919 | BN98: 686206.7356 | BO98: 16104763 | BP98: 47.06320494 | BQ98: 44.87572898 | BR98: 29.82231687 | BU98: 11 | BV98: 7.332484579e-06 | BW98: No | BX98: No | BY98: 12 | BZ98: 12 | CA98: No | CB98: 0 | CC98: 0 | CD98: 2 Lane Undivided | CE98: 4A - 4 Lane Divided (46' Depressed Median) with Paved Shoulders | CF98: None | CG98: Partial | CH98: 1 | CI98: Yes | CJ98: 26 | CK98: 53990000 | CL98: 17327000 | CM98: 2079000 | CN98: 73396000 | CP98: 73396000 | CQ98: 73396000
A99: H090089-B | B99: Statewide Mobility | C99: R-2320 | D99: US-52 | E99: SR 1634 (Grassy Island Road) | F99: NC 731 | G99: Widen to Multi-Lanes. | H99: 1 - Widen Existing Roadway | I99: 66270000 | J99: 7.025802557 | K99: 8.293183974 | L99: 4.840410977 | M99: 15.31877429 | N99: 0.1465337558 | O99: 17.47349367 | P99: 2.908777551 | Q99: 0.5710526553 | R99: 26.79507595 | S99: N/A | T99: N/A | V99: Rocky River RPO | W99: 100 | AB99: 10 | AC99: 100 | AH99: Anson | AI99: 93.52 | AJ99: Stanly | AK99: 6.48 | AP99: 10 | AQ99: E | AR99: 10, , | AS99: Rocky River RPO, , | AT99: Anson, Stanly, , | AU99: 7.30046111 | AV99: 7.30046111 | AW99: Two Lane Highway | AX99: Multi-Lane Highway | AY99: 1 | AZ99: 2 | BA99: Undivided | BB99: Divided | BC99: 50 | BD99: 55 | BE99: 16.16724642 | BF99: 83.83275358 | BG99: 3598.358651 | BH99: 15555.50236 | BI99: 0.2313238472 | BJ99: 3016.603141 | BK99: 581.7555101 | BL99: 346675.6693 | BM99: 66856.8159 | BN99: 413532.4852 | BO99: 9710792 | BP99: 26.52539161 | BQ99: 6.19388723 | BR99: 19.70644474 | BU99: 7 | BV99: 4.421053105e-06 | BW99: No | BX99: No | BY99: 12 | BZ99: 12 | CA99: No | CB99: 0 | CC99: 0 | CD99: 2 Lane Undivided | CE99: 4A - 4 Lane Divided (46' Depressed Median) with Paved Shoulders | CF99: None | CG99: Partial | CH99: 1 | CI99: Yes | CJ99: 28 | CK99: 53627000 | CL99: 11288000 | CM99: 1355000 | CN99: 66270000 | CP99: 66270000 | CQ99: 66270000
A100: H090089-C | B100: Statewide Mobility | C100: R-2320 | D100: US-52 | E100: NC 731 | F100: South of Crump Road | G100: Construct Multi-Lanes on New Location. | H100: 5 - Construct Roadway on New Location | I100: 43544000 | J100: 13.3381182 | K100: 13.966416 | L100: 9.923118911 | M100: 26.67849802 | N100: 0.606999311 | O100: 44.66019446 | P100: 2.598764617 | Q100: 1.666966348 | R100: 26.79022219 | S100: N/A | T100: N/A | V100: Rocky River RPO | W100: 100 | AB100: 10 | AC100: 100 | AH100: Stanly | AI100: 100 | AP100: 10 | AQ100: E | AR100: 10, , | AS100: Rocky River RPO, , | AT100: Stanly, , , | AU100: 3.6 | AV100: 3.44207477 | AW100: Two Lane Highway | AX100: Multi-Lane Highway | AY100: 1 | AZ100: 2 | BA100: Undivided | BB100: Divided | BC100: 43 | BD100: 55 | BE100: 8.25485083 | BF100: 91.74514917 | BG100: 6296.333322 | BH100: 15636.61223 | BI100: 0.4026660781 | BJ100: 5776.580399 | BK100: 519.7529235 | BL100: 1065577.873 | BM100: 95876.31031 | BN100: 1161454.184 | BO100: 26431178 | BP100: 53.55021693 | BQ100: 25.82723747 | BR100: 54.61652837 | BU100: 20 | BV100: 1.333932696e-05 | BW100: No | BX100: No | BY100: 12 | BZ100: 12 | CA100: No | CB100: 0 | CC100: 2 | CD100: New Roadway | CE100: 4A - 4 Lane Divided (46' Depressed Median) with Paved Shoulders | CF100: None | CG100: Partial | CH100: 2 | CI100: Yes | CJ100: 25 | CK100: 36601000 | CL100: 6199000 | CM100: 744000 | CN100: 43544000 | CP100: 43544000 | CQ100: 43544000
A101: H090089-D | B101: Statewide Mobility | C101: R-2320 | D101: US-52 | E101: South of Crump Road | F101: NC 24/27 in Albemarle | G101: Widen to Multi-Lanes. | H101: 1 - Widen Existing Roadway | I101: 75356000 | J101: 16.12239552 | K101: 16.39246023 | L101: 12.15668485 | M101: 30.29714318 | N101: 0.5558228542 | O101: 59.86091643 | P101: 3.221004945 | Q101: 2.362130772 | R101: 26.93127077 | S101: N/A | T101: N/A | V101: Rocky River RPO | W101: 100 | AB101: 10 | AC101: 100 | AH101: Stanly | AI101: 100 | AP101: 10 | AQ101: E | AR101: 10, , | AS101: Rocky River RPO, , | AT101: Stanly, , , | AU101: 8.14143686 | AV101: 8.14143686 | AW101: Two Lane Highway | AX101: Multi-Lane Highway | AY101: 1 | AZ101: 2 | BA101: Undivided | BB101: Divided | BC101: 48 | BD101: 55 | BE101: 8.207190682 | BF101: 91.79280932 | BG101: 7849.226537 | BH101: 17341.59679 | BI101: 0.4526242094 | BJ101: 7205.025548 | BK101: 644.2009889 | BL101: 1689786.654 | BM101: 151083.7438 | BN101: 1840870.398 | BO101: 41884587 | BP101: 69.71918719 | BQ101: 59.4864391 | BR101: 50.39508306 | BU101: 28 | BV101: 1.924261544e-05 | BW101: No | BX101: No | BY101: 11 | BZ101: 12 | CA101: No | CB101: 0 | CC101: 2 | CD101: 2 Lane Undivided | CE101: 4A - 4 Lane Divided (46' Depressed Median) with Paved Shoulders | CF101: None | CG101: Partial | CH101: 2 | CI101: Yes | CJ101: 23 | CK101: 51904000 | CL101: 20939000 | CM101: 2513000 | CN101: 75356000 | CP101: 75356000 | CQ101: 75356000
A102: H090090 | B102: Regional Impact | C102: R-2403 | D102: NC-16 | E102: Catawba River | F102: Wilkes County Line | G102: Catawba River to Wilkes County Line. Upgrade Two Lane Roadway. | H102: 16 - Modernize Roadway | I102: 49362000 | J102: N/A | K102: 15.29109474 | L102: 12.44356423 | M102: 34.2356819 | N102: 0 | O102: 55.9642785 | P102: 3.344141152 | Q102: N/A | R102: 11.35746414 | S102: N/A | T102: N/A | V102: Unifour RPO | W102: 87.66 | X102: Greater Hickory MPO | Y102: 12.34 | Z102: High Country RPO | AB102: 12 | AC102: 100 | AD102: 11 | AH102: Alexander | AI102: 100 | AJ102: Catawba | AL102: Wilkes | AP102: 12 | AQ102: F | AR102: 12, 11, | AS102: Unifour RPO, Greater Hickory MPO, High Country RPO | AT102: Alexander, Catawba, Wilkes, | AU102: 16.68275972 | AV102: 16.68275972 | AW102: Two Lane Highway | AX102: Two Lane Highway | AY102: 1 | AZ102: 1 | BA102: Undivided | BB102: Undivided | BC102: 51 | BD102: 51 | BE102: 8.322696628 | BF102: 91.67730337 | BG102: 8036.196203 | BH102: 15543.29681 | BI102: 0.517020057 | BJ102: 7367.367973 | BK102: 668.8282304 | BL102: 0 | BM102: 0 | BN102: 0 | BO102: 0 | BP102: 62.56404418 | BQ102: 63.71569679 | BR102: 41.62988548 | BW102: No | BX102: No | BY102: 12 | BZ102: 12 | CA102: No | CB102: 1 | CC102: 4 | CD102: 2 Lane Undivided | CF102: None | CG102: None | CH102: 2 | CI102: No | CJ102: 23 | CK102: 49362000 | CL102: 0 | CM102: 0 | CN102: 49362000 | CP102: 49362000 | CQ102: 49362000
A103: H090091-A | B103: Regional Impact | C103: R-2410 | D103: NC-73 | E103: West of SR 2408 in Concord | F103: Millingport Road | G103: Upgrade Two Lane Roadway. | H103: 16 - Modernize Roadway | I103: 13695000 | J103: N/A | K103: 17.00452546 | L103: 14.06778324 | M103: 30.04473769 | N103: 0 | O103: 80.58835699 | P103: 1.649743463 | Q103: N/A | R103: 14.3450534 | S103: N/A | T103: N/A | V103: Cabarrus Rowan MPO | W103: 73.16 | X103: Rocky River RPO | Y103: 26.84 | AB103: 10 | AC103: 100 | AH103: Cabarrus | AI103: 73.16 | AJ103: Stanly | AK103: 26.84 | AP103: 10 | AQ103: E | AR103: 10, , | AS103: Cabarrus Rowan MPO, Rocky River RPO, | AT103: Cabarrus, Stanly, , | AU103: 14.95938238 | AV103: 14.95938238 | AW103: Two Lane Highway | AX103: Two Lane Highway | AY103: 1 | AZ103: 1 | BA103: Undivided | BB103: Undivided | BC103: 55 | BD103: 55 | BE103: 4.689995439 | BF103: 95.31000456 | BG103: 7035.160203 | BH103: 15501.25488 | BI103: 0.4538445602 | BJ103: 6705.21151 | BK103: 329.9486926 | BL103: 0 | BM103: 0 | BN103: 0 | BO103: 0 | BP103: 94.24539714 | BQ103: 69.83650268 | BR103: 77.70735007 | BW103: No | BX103: No | BY103: 12 | BZ103: 12 | CA103: No | CB103: 0 | CC103: 2 | CD103: 2 Lane Undivided | CF103: None | CG103: None | CH103: 3 | CI103: No | CJ103: 26 | CK103: 13695000 | CL103: 0 | CM103: 0 | CN103: 13695000 | CP103: 13695000 | CQ103: 13695000
A104: H090091-B | B104: Regional Impact | C104: R-2410 | D104: NC-73 | E104: Millingport Road | F104: Albemarle | G104: Upgrade Two Lane Roadway. | H104: 16 - Modernize Roadway | I104: 3464000 | J104: N/A | K104: 17.11055584 | L104: 13.56195946 | M104: 29.70001841 | N104: 0 | O104: 76.21955782 | P104: 1.853926885 | Q104: N/A | R104: 20.63595454 | S104: N/A | T104: N/A | V104: Rocky River RPO | W104: 100 | AB104: 10 | AC104: 100 | AH104: Stanly | AI104: 100 | AP104: 10 | AQ104: E | AR104: 10, , | AS104: Rocky River RPO, , | AT104: Stanly, , , | AU104: 4.07010366 | AV104: 4.07010366 | AW104: Two Lane Highway | AX104: Two Lane Highway | AY104: 1 | AZ104: 1 | BA104: Undivided | BB104: Undivided | BC104: 55 | BD104: 55 | BE104: 5.332024923 | BF104: 94.66797508 | BG104: 6953.931804 | BH104: 15500 | BI104: 0.4486407615 | BJ104: 6583.146427 | BK104: 370.7853769 | BL104: 0 | BM104: 0 | BN104: 0 | BO104: 0 | BP104: 83.4675376 | BQ104: 70.61773313 | BR104: 74.59627088 | BW104: No | BX104: No | BY104: 12 | BZ104: 12 | CA104: No | CB104: 0 | CC104: 2 | CD104: 2 Lane Undivided | CF104: None | CG104: None | CH104: 2 | CI104: No | CJ104: 28 | CK104: 3464000 | CL104: 0 | CM104: 0 | CN104: 3464000 | CP104: 3464000 | CQ104: 3464000
A105: H090092 | B105: Regional Impact | C105: R-2426 | D105: NC-208 | E105: US 25/70 | F105: Tennessee State Line | G105: US 25/70 to Tennessee State Line. Upgrade Two Lane Roadway. | H105: 16 - Modernize Roadway | I105: 41496000 | J105: N/A | K105: 9.7824902 | L105: 4.290545201 | M105: 4.449752638 | N105: 0 | O105: 34.00594673 | P105: 0.5912368328 | Q105: N/A | R105: 52.69457367 | S105: N/A | T105: N/A | V105: Land-of-Sky RPO | W105: 100 | AB105: 13 | AC105: 100 | AH105: Madison | AI105: 100 | AP105: 13 | AQ105: G | AR105: 13, , | AS105: Land-of-Sky RPO, , | AT105: Madison, , , | AU105: 9.08882024 | AV105: 9.08882024 | AW105: Two Lane Highway | AX105: Two Lane Highway | AY105: 1 | AZ105: 1 | BA105: Undivided | BB105: Undivided | BC105: 55 | BD105: 55 | BE105: 11.34963512 | BF105: 88.65036488 | BG105: 1041.860512 | BH105: 15500 | BI105: 0.06721680723 | BJ105: 923.6131454 | BK105: 118.2473666 | BL105: 0 | BM105: 0 | BN105: 0 | BO105: 0 | BP105: 33.6504883 | BQ105: 14.63417725 | BR105: 53.74337744 | BW105: No | BX105: No | BY105: 10 | BZ105: 12 | CA105: No | CB105: 0 | CC105: 0 | CD105: 2 Lane Undivided | CF105: None | CG105: None | CH105: 2 | CI105: No | CJ105: 46 | CK105: 41496000 | CL105: 0 | CM105: 0 | CN105: 41496000 | CP105: 41496000 | CQ105: 41496000
A106: H090093-A | B106: Statewide Mobility | C106: R-2501A | D106: US-1 | E106: South Carolina State Line | F106: SR 1104 (Osborne Road) | G106: Widen to Multi-Lanes. | H106: 1 - Widen Existing Roadway | I106: 30200000 | J106: 7.844456324 | K106: 7.462347424 | L106: 6.04269236 | M106: 11.80667905 | N106: 0 | O106: 36.81356549 | P106: 3.105480291 | Q106: 0 | R106: 8.293211118 | S106: N/A | T106: N/A | V106: Lumber River RPO | W106: 100 | AB106: 08 | AC106: 100 | AH106: Richmond | AI106: 100 | AP106: 8 | AQ106: E | AR106: 08, , | AS106: Lumber River RPO, , | AT106: Richmond, , , | AU106: 5.28167025 | AV106: 5.28167025 | AW106: Two Lane Highway | AX106: Multi-Lane Highway | AY106: 1 | AZ106: 2 | BA106: Undivided | BB106: Divided | BC106: 55 | BD106: 55 | BE106: 22.46763224 | BF106: 77.53236776 | BG106: 2764.403706 | BH106: 15500 | BI106: 0.1783486262 | BJ106: 2143.307648 | BK106: 621.0960582 | BL106: 0 | BM106: 0 | BN106: 0 | BO106: 0 | BP106: 36.80932146 | BQ106: 39.97522473 | BR106: 33.66719546 | BU106: 0 | BV106: 0 | BW106: No | BX106: No | BY106: 12 | BZ106: 12 | CA106: No | CB106: 0 | CC106: 0 | CD106: 2 Lane Undivided | CE106: 4A - 4 Lane Divided (46' Depressed Median) with Paved Shoulders | CF106: None | CG106: Partial | CH106: 1 | CI106: Yes | CJ106: 16 | CK106: 25700000 | CL106: 4500000 | CM106: 0 | CN106: 30200000 | CP106: 30200000 | CQ106: 30200000
A107: H090093-BA | B107: Statewide Mobility | C107: R-2501BA | D107: US-1 | E107: SR 1104 (Osborne Road) | F107: US 74 Bypass | G107: Construct Multi-Lanes on New Location. | H107: 5 - Construct Roadway on New Location | I107: 46927000 | J107: 19.44396656 | K107: 13.81035426 | L107: 11.75296407 | M107: 15.32789775 | N107: 4.225305368 | O107: 78.42323448 | P107: 4.084945695 | Q107: 49.18693035 | R107: 10.79730028 | S107: N/A | T107: N/A | V107: Lumber River RPO | W107: 100 | AB107: 08 | AC107: 100 | AH107: Richmond | AI107: 100 | AP107: 8 | AQ107: E | AR107: 08, , | AS107: Lumber River RPO, , | AT107: Richmond, , , | AU107: 19.7 | AV107: 4.79266984 | AW107: Two Lane Highway | AX107: Freeway | AY107: 1 | AZ107: 2 | BA107: Undivided | BB107: Divided | BC107: 55 | BD107: 70 | BE107: 22.69981711 | BF107: 77.30018289 | BG107: 3599.100094 | BH107: 15548.81902 | BI107: 0.2314709618 | BJ107: 2782.110955 | BK107: 816.989139 | BL107: 6364679.773 | BM107: 1869039.133 | BN107: 8233718.907 | BO107: 198280905 | BP107: 74.11615488 | BQ107: 88.80712531 | BR107: 72.36995257 | BU107: 284 | BV107: 0.000699738607 | BW107: No | BX107: No | BY107: 12 | BZ107: 12 | CA107: No | CB107: 0 | CC107: 0 | CD107: New Roadway | CE107: 4A - 4 Lane Divided (46' Depressed Median) with Paved Shoulders | CF107: None | CG107: Full | CH107: 1 | CI107: Yes | CJ107: 16 | CK107: 40500000 | CL107: 5519000 | CM107: 908000 | CN107: 46927000 | CP107: 46927000 | CQ107: 46927000
A108: H090093-BB | B108: Statewide Mobility | C108: R-2501BB | D108: US-1 | E108: US 74 Bypass | F108: US 74 Business | G108: Construct Multi-Lanes on New Location. | H108: 5 - Construct Roadway on New Location | I108: 83523000 | J108: 24.25887408 | K108: 14.31447566 | L108: 10.67594876 | M108: 25.46001543 | N108: 3.457278382 | O108: 48.92490001 | P108: 3.615589804 | Q108: 99.68077976 | R108: 21.92662207 | S108: N/A | T108: N/A | V108: Lumber River RPO | W108: 100 | AB108: 08 | AC108: 100 | AH108: Richmond | AI108: 100 | AP108: 8 | AQ108: E | AR108: 08, , | AS108: Lumber River RPO, , | AT108: Richmond, , , | AU108: 19.7 | AV108: 15.01 | AW108: Arterial | AX108: Freeway | AY108: 1 | AZ108: 2 | BA108: Undivided | BB108: Divided | BC108: 48 | BD108: 70 | BE108: 9.893698518 | BF108: 90.10630148 | BG108: 7308.874022 | BH108: 19458.7938 | BI108: 0.3756077636 | BJ108: 6585.756061 | BK108: 723.1179608 | BL108: 25176925.97 | BM108: 2764433.908 | BN108: 27941359.88 | BO108: 640059776 | BP108: 47.20417286 | BQ108: 53.98898848 | BR108: 45.59621762 | BU108: 577 | BV108: 0.001416615595 | BW108: No | BX108: No | BY108: 12 | BZ108: 12 | CA108: No | CB108: 0 | CC108: 2 | CD108: New Roadway | CE108: 4A - 4 Lane Divided (46' Depressed Median) with Paved Shoulders | CF108: None | CG108: Full | CH108: 1 | CI108: Yes | CJ108: 20 | CK108: 67700000 | CL108: 13300000 | CM108: 2523000 | CN108: 83523000 | CP108: 83523000 | CQ108: 185134000
A109: H090093-BC | B109: Statewide Mobility | C109: R-2501BC | D109: US-1 | E109: US 74 Business | F109: North of SR 1606 (Fox Road) | G109: Construct Multi-Lanes on New Location. | H109: 6 - Widen Existing Roadway and Construct Part on New Location | I109: 101611000 | J109: 24.25887408 | K109: 14.31447566 | L109: 10.67594876 | M109: 25.46001543 | N109: 3.457278382 | O109: 48.92490001 | P109: 3.615589804 | Q109: 99.68077976 | R109: 21.92662207 | S109: N/A | T109: N/A | V109: Lumber River RPO | W109: 100 | AB109: 08 | AC109: 100 | AH109: Richmond | AI109: 100 | AP109: 8 | AQ109: E | AR109: 08, , | AS109: Lumber River RPO, , | AT109: Richmond, , , | AU109: 19.7 | AV109: 15.01 | AW109: Arterial | AX109: Freeway | AY109: 1 | AZ109: 2 | BA109: Undivided | BB109: Divided | BC109: 48 | BD109: 70 | BE109: 9.893698518 | BF109: 90.10630148 | BG109: 7308.874022 | BH109: 19458.7938 | BI109: 0.3756077636 | BJ109: 6585.756061 | BK109: 723.1179608 | BL109: 25176925.97 | BM109: 2764433.908 | BN109: 27941359.88 | BO109: 640059776 | BP109: 47.20417286 | BQ109: 53.98898848 | BR109: 45.59621762 | BU109: 577 | BV109: 0.001416615595 | BW109: No | BX109: No | BY109: 12 | BZ109: 12 | CA109: No | CB109: 0 | CC109: 2 | CD109: New Roadway | CE109: 4A - 4 Lane Divided (46' Depressed Median) with Paved Shoulders | CF109: None | CG109: Full | CH109: 1 | CI109: Yes | CJ109: 18 | CK109: 83600000 | CL109: 14280000 | CM109: 3731000 | CN109: 101611000 | CP109: 101611000 | CQ109: 185134000
A110: H090097 | B110: Regional Impact | C110: R-2503 | D110: US-1-BUS- | E110: SR 1548 (Peter Gill Road) | F110: SR 1267 (Dabney Drive) | G110: SR 1548 (Peter Gill Road) to SR 1267 (Dabney Drive). Widen to Multi- Lanes with Curb and Gutter. | H110: 1 - Widen Existing Roadway | I110: 25013000 | J110: N/A | K110: 17.92809387 | L110: 14.45789302 | M110: 35.82961634 | N110: 0.5387103906 | O110: 71.84227672 | P110: 1.979409201 | Q110: N/A | R110: 16.51784513 | S110: N/A | T110: N/A | V110: Kerr-Tar RPO | W110: 100 | AB110: 05 | AC110: 100 | AH110: Vance | AI110: 100 | AP110: 5 | AQ110: C | AR110: 05, , | AS110: Kerr-Tar RPO, , | AT110: Vance, , , | AU110: 3.48824511 | AV110: 3.48824511 | AW110: Arterial | AX110: Arterial | AY110: 1 | AZ110: 2 | BA110: Undivided | BB110: Divided | BC110: 45 | BD110: 45 | BE110: 4.647675959 | BF110: 95.35232404 | BG110: 8517.845126 | BH110: 15762.85141 | BI110: 0.5403746381 | BJ110: 8121.963286 | BK110: 395.8818401 | BL110: 572923.8407 | BM110: 27925.53184 | BN110: 600849.3725 | BO110: 13474763 | BP110: 90.82966893 | BQ110: 43.4953159 | BR110: 81.22340016 | BW110: No | BX110: No | BY110: 11 | BZ110: 12 | CA110: No | CB110: 2 | CC110: 4 | CD110: 2 Lane Undivided | CE110: 4C - 4 Lane Divided (23' Raised Median) with Curb & Gutter, Wide Outside Lanes, and Sidewalks | CF110: None | CG110: Partial | CH110: 1 | CI110: No | CJ110: 24 | CK110: 22230000 | CL110: 2485000 | CM110: 298000 | CN110: 25013000 | CP110: 25013000 | CQ110: 25013000
A111: H090098 | B111: Statewide Mobility | C111: R-2506 | D111: US-13 | E111: US 13 Business North of Windsor | F111: NC 42 | G111: Widen to Multi-Lanes. | H111: 1 - Widen Existing Roadway | I111: 99400000 | J111: 11.13652388 | K111: 14.89857117 | L111: 11.59699123 | M111: 14.9140476 | N111: 0.06168653924 | O111: 50.99417814 | P111: 7.173042436 | Q111: 1.097773326 | R111: 20.49987162 | S111: 25 | T111: 25 | V111: Peanut Belt RPO | W111: 100 | AB111: 01 | AC111: 100 | AH111: Bertie | AI111: 100 | AP111: 1 | AQ111: A | AR111: 01, , | AS111: Peanut Belt RPO, , | AT111: Bertie, , , | AU111: 16.0844024 | AV111: 16.0844024 | AW111: Two Lane Highway | AX111: Multi-Lane Highway | AY111: 1 | AZ111: 2 | BA111: Undivided | BB111: Divided | BC111: 49 | BD111: 50 | BE111: 8.812577103 | BF111: 91.1874229 | BG111: 3499.957207 | BH111: 15539.17617 | BI111: 0.225234412 | BJ111: 3191.52078 | BK111: 308.4364274 | BL111: 245144.6296 | BM111: 23691.38069 | BN111: 268836.0103 | BO111: 6131642 | BP111: 54.538307 | BQ111: 43.54445253 | BR111: 54.91507468 | BU111: 4 | BV111: 1.795546652e-05 | BW111: Yes | BX111: No | BY111: 11 | BZ111: 12 | CA111: No | CB111: 0 | CC111: 0 | CD111: 2 Lane Undivided | CE111: 4A - 4 Lane Divided (46' Depressed Median) with Paved Shoulders | CF111: None | CG111: Partial | CH111: 1 | CI111: Yes | CJ111: 25 | CK111: 61000000 | CL111: 35800000 | CM111: 2600000 | CN111: 99400000 | CP111: 99400000 | CQ111: 99400000
A112: H090099-B | B112: Statewide Mobility | C112: R-2507B | D112: US-13 | E112: US 158 Bypass in Tarheel | F112: SR 1202 (Eure Road/Gates School Road) | G112: Widen to Multi-Lanes. | H112: 1 - Widen Existing Roadway | I112: 26200000 | J112: 11.66271653 | K112: 14.98935305 | L112: 11.65891314 | M112: 15.80258065 | N112: 0.01966675573 | O112: 50.766884 | P112: 9.16774188 | Q112: 0.05805529549 | R112: 45.1 | S112: 25 | T112: 25 | V112: Albemarle RPO | W112: 100 | AB112: 01 | AC112: 100 | AH112: Gates | AI112: 100 | AP112: 1 | AQ112: A | AR112: 01, , | AS112: Albemarle RPO, , | AT112: Gates, , , | AU112: 4.16335131 | AV112: 4.16335131 | AW112: Two Lane Highway | AX112: Multi-Lane Highway | AY112: 1 | AZ112: 2 | BA112: Undivided | BB112: Divided | BC112: 55 | BD112: 55 | BE112: 17.297297 | BF112: 82.702703 | BG112: 3700 | BH112: 15500 | BI112: 0.2387096774 | BJ112: 3060.000011 | BK112: 639.999989 | BL112: 18067.4308 | BM112: 3778.808979 | BN112: 21846.23978 | BO112: 515269 | BP112: 59.82194323 | BQ112: 36.67115474 | BR112: 55.82278562 | BU112: 0 | BV112: 1.16110591e-06 | BW112: Yes | BX112: No | BY112: 11 | BZ112: 12 | CA112: No | CB112: 2 | CC112: 0 | CD112: 2 Lane Undivided | CE112: 4A - 4 Lane Divided (46' Depressed Median) with Paved Shoulders | CF112: None | CG112: Partial | CH112: 1 | CI112: Yes | CJ112: 37 | CK112: 23200000 | CL112: 1800000 | CM112: 1200000 | CN112: 26200000 | CP112: 26200000 | CQ112: 26200000
A113: H090099-C | B113: Statewide Mobility | C113: R-2507C | D113: US-13 | E113: SR 1202 (Eure Road/Gates School Road) | F113: Virginia State Line | G113: Widen to Multi-Lanes. | H113: 1 - Widen Existing Roadway | I113: 31000000 | J113: 12.46752281 | K113: 10.9777764 | L113: 7.317870804 | M113: 16.32787773 | N113: 0.01940380645 | O113: 56.8314265 | P113: 9.366327976 | Q113: 0.06930105611 | R113: 45.46897756 | S113: 0 | T113: 0 | V113: Albemarle RPO | W113: 100 | AB113: 01 | AC113: 100 | AH113: Gates | AI113: 100 | AP113: 1 | AQ113: A | AR113: 01, , | AS113: Albemarle RPO, , | AT113: Gates, , , | AU113: 4.71405809 | AV113: 4.71405809 | AW113: Two Lane Highway | AX113: Multi-Lane Highway | AY113: 1 | AZ113: 2 | BA113: Undivided | BB113: Divided | BC113: 55 | BD113: 55 | BE113: 16.74191615 | BF113: 83.25808385 | BG113: 3822.992519 | BH113: 15500 | BI113: 0.2466446786 | BJ113: 3182.950317 | BK113: 640.042202 | BL113: 21279.26891 | BM113: 4278.932679 | BN113: 25558.20159 | BO113: 601518 | BP113: 71.45279455 | BQ113: 31.79863036 | BR113: 67.25990573 | BU113: 0 | BV113: 1.386021122e-06 | BW113: Yes | BX113: No | BY113: 12 | BZ113: 12 | CA113: No | CB113: 0 | CC113: 0 | CD113: 2 Lane Undivided | CE113: 4A - 4 Lane Divided (46' Depressed Median) with Paved Shoulders | CF113: None | CG113: Partial | CH113: 1 | CI113: Yes | CJ113: 37 | CK113: 23800000 | CL113: 6000000 | CM113: 1200000 | CN113: 31000000 | CP113: 31000000 | CQ113: 31000000
A114: H090101 | B114: Regional Impact | C114: R-2508 | D114: US-15 , US-401 | E114: South Carolina State Line | F114: South of SR 1105 (Turnpike Road) | G114: South Carolina State Line to South of SR 1105 (Turnpike Road). Widen to Multi- Lanes. | H114: 1 - Widen Existing Roadway | I114: 32354000 | J114: N/A | K114: 15.42029075 | L114: 11.22649369 | M114: 24.36158897 | N114: 0.1383474377 | O114: 63.26506406 | P114: 3.349478777 | Q114: N/A | R114: 29.68800237 | S114: N/A | T114: N/A | V114: Lumber River RPO | W114: 100 | AB114: 08 | AC114: 100 | AH114: Scotland | AI114: 100 | AP114: 8 | AQ114: E | AR114: 08, , | AS114: Lumber River RPO, , | AT114: Scotland, , , | AU114: 3.87975475 | AV114: 3.87975475 | AW114: Two Lane Highway | AX114: Multi-Lane Highway | AY114: 1 | AZ114: 2 | BA114: Undivided | BB114: Divided | BC114: 54 | BD114: 55 | BE114: 7.258332469 | BF114: 92.74166753 | BG114: 9229.334124 | BH114: 26790.70747 | BI114: 0.3444975887 | BJ114: 8559.438369 | BK114: 669.8957554 | BL114: 183150.0286 | BM114: 14334.05108 | BN114: 197484.0797 | BO114: 4476093 | BP114: 64.26341842 | BQ114: 82.72587081 | BR114: 42.82488438 | BW114: No | BX114: No | BY114: 12 | BZ114: 12 | CA114: No | CB114: 0 | CC114: 4 | CD114: 2 Lane Undivided | CE114: 4A - 4 Lane Divided (46' Depressed Median) with Paved Shoulders | CF114: None | CG114: Partial | CH114: 1 | CI114: Yes | CJ114: 21 | CK114: 23028000 | CL114: 8327000 | CM114: 999000 | CN114: 32354000 | CP114: 32354000 | CQ114: 32354000
A115: H090510 | B115: Division Needs | C115: U-5006 | D115: SR-1708 New Route - Firetower Road Extension | E115: SR 1127 (Frog Level Road) | F115: NC 11/903 | G115: Construct Multi-Lanes, Part on New Location | H115: 6 - Widen Existing Roadway and Construct Part on New Location | I115: 29400000 | J115: N/A | K115: N/A | L115: 20.4165816 | M115: 21.86324889 | N115: 0.1729998639 | O115: 80.21965911 | P115: 0 | Q115: N/A | R115: N/A | S115: N/A | T115: N/A | V115: Greenville Urban Area MPO | W115: 100 | AB115: 02 | AC115: 100 | AH115: Pitt | AI115: 100 | AP115: 2 | AQ115: B | AR115: 02, , | AS115: Greenville Urban Area MPO, , | AT115: Pitt, , , | AU115: 3 | AV115: 2.54690529 | AW115: Arterial | AX115: Arterial | AY115: 1 | AZ115: 2 | BA115: Undivided | BB115: Divided | BC115: 51 | BD115: 45 | BE115: 0 | BF115: 100 | BG115: 5193.349512 | BH115: 15748.63047 | BI115: 0.3297651514 | BJ115: 5193.349512 | BK115: 0 | BL115: 231190.7464 | BM115: 0 | BN115: 231190.7464 | BO115: 5086196 | BP115: 99.76467265 | BQ115: 73.94186334 | BR115: 66.97650963 | BW115: No | BX115: No | BY115: 11 | BZ115: 12 | CA115: No | CB115: 0 | CC115: 2 | CD115: New Roadway | CE115: 4C - 4 Lane Divided (23' Raised Median) with Curb & Gutter, Wide Outside Lanes, and Sidewalks | CF115: None | CG115: Partial | CH115: 2 | CI115: No | CJ115: 18 | CK115: 18800000 | CL115: 10135000 | CM115: 465000 | CN115: 29400000 | CP115: 29400000 | CQ115: 29400000
A116: H090591 | B116: Division Needs | D116: SR-1127 Frog Level Road | E116: US 13 (Dickinson Avenue) | F116: NC 903 | G116: Widen to tolerable Lane Width and Add Continuous 2 Way Left Turn Lane | H116: 1 - Widen Existing Roadway | I116: 22240000 | J116: N/A | K116: N/A | L116: 13.8308625 | M116: 23.81821177 | N116: 0 | O116: 45.33610074 | P116: 0 | Q116: N/A | R116: N/A | S116: N/A | T116: N/A | V116: Greenville Urban Area MPO | W116: 100 | AB116: 02 | AC116: 100 | AH116: Pitt | AI116: 100 | AP116: 2 | AQ116: B | AR116: 02, , | AS116: Greenville Urban Area MPO, , | AT116: Pitt, , , | AU116: 3.70473527 | AV116: 3.70473527 | AW116: Arterial | AX116: Arterial | AY116: 1 | AZ116: 1 | BA116: Undivided | BB116: TWLTL | BC116: 45 | BD116: 45 | BE116: 0 | BF116: 100 | BG116: 5674.438366 | BH116: 15800.04671 | BI116: 0.359140607 | BJ116: 5674.438366 | BK116: 0 | BL116: 0 | BM116: 0 | BN116: 0 | BO116: 0 | BP116: 81.92364652 | BQ116: 21.63069587 | BR116: 32.46756201 | BW116: No | BX116: No | BY116: 11 | BZ116: 12 | CA116: No | CB116: 0 | CC116: 2 | CD116: 2 Lane Undivided | CE116: 3A - 2 Lane with Two Way Left Turn Lane, and Paved Shoulders | CF116: None | CG116: None | CH116: 2 | CI116: No | CJ116: 19 | CK116: 18924000 | CL116: 2961000 | CM116: 355000 | CN116: 22240000 | CP116: 22240000 | CQ116: 22240000
A117: H090625 | B117: Division Needs | D117: SR-1708 Firetower Road | E117: NC 43 (Charles Boulevard) | F117: SR 1704 (Fourteenth Street) | G117: Widen Existing 2-Lane Roadway to a Multi-Lane Urban Section Facility | H117: 1 - Widen Existing Roadway | I117: 6233000 | J117: N/A | K117: N/A | L117: 35.41633275 | M117: 90.01910665 | N117: 11.97450971 | O117: 87.06255711 | P117: 0 | Q117: N/A | R117: N/A | S117: N/A | T117: N/A | V117: Greenville Urban Area MPO | W117: 100 | AB117: 02 | AC117: 100 | AH117: Pitt | AI117: 100 | AP117: 2 | AQ117: B | AR117: 02, , | AS117: Greenville Urban Area MPO, , | AT117: Pitt, , , | AU117: 0.60115396 | AV117: 0.60115396 | AW117: Arterial | AX117: Arterial | AY117: 1 | AZ117: 2 | BA117: Undivided | BB117: Divided | BC117: 49 | BD117: 45 | BE117: 0 | BF117: 100 | BG117: 21999.99748 | BH117: 16252.33134 | BI117: 1.353651794 | BJ117: 21999.99748 | BK117: 0 | BL117: 3392596.308 | BM117: 0 | BN117: 3392596.308 | BO117: 74637119 | BP117: 99.66635376 | BQ117: 66.47745795 | BR117: 95.06998099 | BW117: No | BX117: No | BY117: 10 | BZ117: 12 | CA117: No | CB117: 0 | CC117: 4 | CD117: 2 Lane Undivided | CE117: 4D - 4 Lane Divided (23' Raised Median) with Curb & Gutter, Wide Outside Lanes, Bike Lanes, and Sidewalks | CF117: None | CG117: Partial | CH117: 2 | CI117: No | CJ117: 18 | CK117: 4560000 | CL117: 1494000 | CM117: 179000 | CN117: 6233000 | CP117: 6233000 | CQ117: 6233000
A118: H090626 | B118: Division Needs | D118: SR-1704 Fourteenth Street | E118: Red Banks Road | F118: SR 1708 (Firetower Road) | G118: Widen Existing 2-Lane Roadway to a Multi-Lane Urban Section Facility with intersection Improvements from Red Banks Road to Firetower Road (SR 1708) | H118: 1 - Widen Existing Roadway | I118: 12035000 | J118: N/A | K118: N/A | L118: 22.70145759 | M118: 45.84592757 | N118: 1.25569946 | O118: 67.66136037 | P118: 0 | Q118: N/A | R118: N/A | S118: N/A | T118: N/A | V118: Greenville Urban Area MPO | W118: 100 | AB118: 02 | AC118: 100 | AH118: Pitt | AI118: 100 | AP118: 2 | AQ118: B | AR118: 02, , | AS118: Greenville Urban Area MPO, , | AT118: Pitt, , , | AU118: 1.11206223 | AV118: 1.11206223 | AW118: Arterial | AX118: Arterial | AY118: 1 | AZ118: 2 | BA118: Undivided | BB118: Divided | BC118: 35 | BD118: 35 | BE118: 0 | BF118: 100 | BG118: 12792.67495 | BH118: 18845.61813 | BI118: 0.6788142932 | BJ118: 12792.67495 | BK118: 0 | BL118: 686924.6734 | BM118: 0 | BN118: 686924.6734 | BO118: 15112343 | BP118: 96.46613557 | BQ118: 36.60419428 | BR118: 69.93405171 | BW118: No | BX118: No | BY118: 11 | BZ118: 12 | CA118: No | CB118: 0 | CC118: 4 | CD118: 2 Lane Undivided | CE118: 4D - 4 Lane Divided (23' Raised Median) with Curb & Gutter, Wide Outside Lanes, Bike Lanes, and Sidewalks | CF118: None | CG118: Partial | CH118: 2 | CI118: No | CJ118: 18 | CK118: 8322000 | CL118: 3315000 | CM118: 398000 | CN118: 12035000 | CP118: 12035000 | CQ118: 12035000
A119: H090628 | B119: Division Needs | D119: SR-1708 Firetower Road, Portertown Road, SR-1726 | E119: SR 1704 (Fourteenth Street) | F119: NC 33 | G119: Widen Existing 2-Lane Roadways to Multi-Lane Urban Section Facilities . includes intersection Improvements at Firetower Road and Portertown Road Change the Primary Movement to East Firetower Road and the Northern Leg of Portertown Road | H119: 1 - Widen Existing Roadway | I119: 23755000 | J119: N/A | K119: N/A | L119: 25.75185675 | M119: 50.84456081 | N119: 1.357308356 | O119: 77.91472293 | P119: 0 | Q119: N/A | R119: N/A | S119: N/A | T119: N/A | V119: Greenville Urban Area MPO | W119: 100 | AB119: 02 | AC119: 100 | AH119: Pitt | AI119: 100 | AP119: 2 | AQ119: B | AR119: 02, , | AS119: Greenville Urban Area MPO, , | AT119: Pitt, , , | AU119: 2.17970133 | AV119: 2.17970133 | AW119: Arterial | AX119: Arterial | AY119: 1 | AZ119: 2 | BA119: Undivided | BB119: Divided | BC119: 42 | BD119: 45 | BE119: 0 | BF119: 100 | BG119: 12113.19777 | BH119: 15800.0699 | BI119: 0.766654695 | BJ119: 12113.19777 | BK119: 0 | BL119: 1465584.556 | BM119: 0 | BN119: 1465584.556 | BO119: 32242860 | BP119: 99.86335568 | BQ119: 68.78839123 | BR119: 65.11579863 | BW119: No | BX119: No | BY119: 11 | BZ119: 12 | CA119: No | CB119: 0 | CC119: 4 | CD119: 2 Lane Undivided | CE119: 4D - 4 Lane Divided (23' Raised Median) with Curb & Gutter, Wide Outside Lanes, Bike Lanes, and Sidewalks | CF119: None | CG119: Partial | CH119: 2 | CI119: No | CJ119: 19 | CK119: 17556000 | CL119: 5535000 | CM119: 664000 | CN119: 23755000 | CP119: 23755000 | CQ119: 23755000
A120: H090638 | B120: Division Needs | D120: SR-1203 Allen Road | E120: SR 1467 (Stantonsburg Road) | F120: US 13 (Dickinson Avenue) | G120: Widen Existing 2 and 3 Lane Roadway to Multi-Lane Urban Section Facility with Sidewalk, Bicycle, and Landscaping Improvements | H120: 1 - Widen Existing Roadway | I120: 19432000 | J120: N/A | K120: N/A | L120: 24.42192145 | M120: 65.51535887 | N120: 3.295469998 | O120: 56.59424835 | P120: 0 | Q120: N/A | R120: N/A | S120: N/A | T120: N/A | V120: Greenville Urban Area MPO | W120: 100 | AB120: 02 | AC120: 100 | AH120: Pitt | AI120: 100 | AP120: 2 | AQ120: B | AR120: 02, , | AS120: Greenville Urban Area MPO, , | AT120: Pitt, , , | AU120: 2.29730856 | AV120: 2.29730856 | AW120: Arterial | AX120: Arterial | AY120: 1 | AZ120: 2 | BA120: Undivided | BB120: Divided | BC120: 50 | BD120: 45 | BE120: 0 | BF120: 100 | BG120: 15608.30323 | BH120: 15800 | BI120: 0.987867293 | BJ120: 15608.30323 | BK120: 0 | BL120: 2910798.772 | BM120: 0 | BN120: 2910798.772 | BO120: 64037573 | BP120: 63.5464362 | BQ120: 93.50020396 | BR120: 12.75308487 | BW120: No | BX120: No | BY120: 12 | BZ120: 12 | CA120: No | CB120: 0 | CC120: 4 | CD120: 2 Lane Undivided | CE120: 4D - 4 Lane Divided (23' Raised Median) with Curb & Gutter, Wide Outside Lanes, Bike Lanes, and Sidewalks | CF120: None | CG120: Partial | CH120: 2 | CI120: No | CJ120: 20 | CK120: 17442000 | CL120: 1777000 | CM120: 213000 | CN120: 19432000 | CP120: 19432000 | CQ120: 19432000
A121: H090109 | B121: Regional Impact | C121: R-2516 | D121: NC-18 | E121: South of Citron | F121: Sparta | G121: Blue Ridge Parkway South of Citron to Sparta. Upgrade Existing Facility. | H121: 16 - Modernize Roadway | I121: 23484000 | J121: N/A | K121: 7.838080349 | L121: 5.910328324 | M121: 7.188695598 | N121: 0 | O121: 44.72589204 | P121: 0.5542375603 | Q121: N/A | R121: 15.68317245 | S121: N/A | T121: N/A | V121: High Country RPO | W121: 100 | AB121: 11 | AC121: 100 | AH121: Alleghany | AI121: 100 | AP121: 11 | AQ121: F | AR121: 11, , | AS121: High Country RPO, , | AT121: Alleghany, , , | AU121: 8.49333405 | AV121: 8.49333405 | AW121: Two Lane Highway | AX121: Two Lane Highway | AY121: 1 | AZ121: 1 | BA121: Undivided | BB121: Undivided | BC121: 55 | BD121: 55 | BE121: 6.585630148 | BF121: 93.41436985 | BG121: 1683.172446 | BH121: 15500.18942 | BI121: 0.1085904437 | BJ121: 1572.324934 | BK121: 110.8475121 | BL121: 0 | BM121: 0 | BN121: 0 | BO121: 0 | BP121: 40.30641556 | BQ121: 37.58379336 | BR121: 56.30088632 | BW121: No | BX121: No | BY121: 10 | BZ121: 12 | CA121: No | CB121: 0 | CC121: 0 | CD121: 2 Lane Undivided | CF121: None | CG121: None | CH121: 1 | CI121: No | CJ121: 27 | CK121: 23484000 | CL121: 0 | CM121: 0 | CN121: 23484000 | CP121: 23484000 | CQ121: 23484000
A122: H090110-A | B122: Statewide Mobility | C122: R-2520A | D122: US-19 US 19E | E122: East of Spruce Pine in Mitchel County | F122: SR 1106 (Mullin Hill Road) in Avery County | G122: Widen to Multi-Lanes. | H122: 1 - Widen Existing Roadway | I122: 23000000 | J122: 12.17538317 | K122: 12.36368355 | L122: 8.865622962 | M122: 29.02079794 | N122: 0.1601236522 | O122: 30.29438643 | P122: 1.865063188 | Q122: 0.1865540891 | R122: 20.39014506 | S122: N/A | T122: N/A | V122: High Country RPO | W122: 100 | AB122: 13 | AC122: 51.27 | AD122: 11 | AE122: 48.73 | AH122: Mitchell | AI122: 51.27 | AJ122: Avery | AK122: 48.73 | AP122: 13 | AQ122: G | AR122: 13, 11, | AS122: High Country RPO, , | AT122: Mitchell, Avery, , | AU122: 4.24469889 | AV122: 4.24469889 | AW122: Two Lane Highway | AX122: Multi-Lane Highway | AY122: 1 | AZ122: 2 | BA122: Undivided | BB122: Divided | BC122: 55 | BD122: 55 | BE122: 5.488131201 | BF122: 94.5118688 | BG122: 6796.71502 | BH122: 15504.56869 | BI122: 0.4383685323 | BJ122: 6423.702382 | BK122: 373.0126376 | BL122: 154676.4527 | BM122: 8981.778448 | BN122: 163658.2312 | BO122: 3682844 | BP122: 22.49471008 | BQ122: 57.53469126 | BR122: 10.86284717 | BU122: 3 | BV122: 7.310817814e-07 | BW122: No | BX122: No | BY122: 12 | BZ122: 12 | CA122: No | CB122: 3 | CC122: 2 | CD122: 2 Lane Undivided | CE122: 4B - 4 Lane Divided (23' Raised Median) with Paved Shoulders and Sidewalks | CF122: None | CG122: Partial | CH122: 1 | CI122: Yes | CJ122: 19 | CK122: 19500000 | CL122: 3500000 | CM122: 0 | CN122: 23000000 | CP122: 23000000 | CQ122: 23000000
A123: H090110-B | B123: Statewide Mobility | C123: R-2520B | D123: US-19 US 19E, NC-194 | E123: SR 1106 (Mullin Hill Road) in Avery County | F123: US 221 | G123: Widen to Multi-Lanes. | H123: 1 - Widen Existing Roadway | I123: 29900000 | J123: 4.145174271 | K123: 3.889260643 | L123: 2.549076077 | M123: 11.79682158 | N123: 0.2756925418 | O123: 1.345732513 | P123: 1.212559787 | Q123: 1.463348246 | R123: 7.365588605 | S123: N/A | T123: N/A | V123: High Country RPO | W123: 100 | AB123: 11 | AC123: 100 | AH123: Avery | AI123: 100 | AP123: 11 | AQ123: F | AR123: 11, , | AS123: High Country RPO, , | AT123: Avery, , , | AU123: 5.42126922 | AV123: 5.42126922 | AW123: Two Lane Highway | AX123: Multi-Lane Highway | AY123: 1 | AZ123: 2 | BA123: Undivided | BB123: Divided | BC123: 47 | BD123: 55 | BE123: 8.779998282 | BF123: 91.22000172 | BG123: 2762.095727 | BH123: 15500.00024 | BI123: 0.1781997216 | BJ123: 2519.58377 | BK123: 242.5119574 | BL123: 329726.4746 | BM123: 31736.43747 | BN123: 361462.9121 | BO123: 8243207 | BP123: 2.01880065 | BQ123: 0 | BR123: 2.01880065 | BU123: 6 | BV123: 2.326696492e-05 | BW123: No | BX123: No | BY123: 10 | BZ123: 12 | CA123: No | CB123: 0 | CC123: 0 | CD123: 2 Lane Undivided | CE123: 4A - 4 Lane Divided (46' Depressed Median) with Paved Shoulders | CF123: None | CG123: Partial | CH123: 2 | CI123: Yes | CJ123: 20 | CK123: 25600000 | CL123: 4300000 | CM123: 0 | CN123: 29900000 | CP123: 29900000 | CQ123: 29900000
A124: H090112 | B124: Regional Impact | C124: R-2522 | D124: US-21 , NC-115 | E124: Cedar Avenue in Troutman | F124: SR 1336 in Barium Springs | G124: Cedar Lane Avenue to SR 1336 in Barium Springs. Widen to a Multi-Lane Urban Facility. | H124: 1 - Widen Existing Roadway | I124: 15599000 | J124: N/A | K124: 25.64333611 | L124: 21.54316537 | M124: 57.38685193 | N124: 3.501943522 | O124: 93.65406278 | P124: 3.497375089 | Q124: N/A | R124: 10.55730965 | S124: N/A | T124: N/A | V124: Charlotte Regional Transportation Planning Organization | W124: 100 | AB124: 12 | AC124: 100 | AH124: Iredell | AI124: 100 | AP124: 12 | AQ124: F | AR124: 12, , | AS124: Charlotte Regional Transportation Planning Organization, , | AT124: Iredell, , , | AU124: 1.65088245 | AV124: 1.65088245 | AW124: Arterial | AX124: Arterial | AY124: 1 | AZ124: 2 | BA124: Undivided | BB124: Divided | BC124: 35 | BD124: 35 | BE124: 5.116139941 | BF124: 94.88386006 | BG124: 13671.92895 | BH124: 15800.19391 | BI124: 0.8653013392 | BJ124: 12972.45393 | BK124: 699.4750177 | BL124: 2306808.769 | BM124: 124383.1825 | BN124: 2431191.952 | BO124: 54626817 | BP124: 99.04665119 | BQ124: 85.95861664 | BR124: 95.98501953 | BW124: No | BX124: No | BY124: 11 | BZ124: 12 | CA124: No | CB124: 0 | CC124: 4 | CD124: 2 Lane Undivided | CE124: 4C - 4 Lane Divided (23' Raised Median) with Curb & Gutter, Wide Outside Lanes, and Sidewalks | CF124: None | CG124: Partial | CH124: 3 | CI124: No | CJ124: 23 | CK124: 7638000 | CL124: 7108000 | CM124: 853000 | CN124: 15599000 | CP124: 15599000 | CQ124: 15599000
A125: H090113 | B125: Statewide Mobility | C125: R-2527 | D125: NC-24 , NC-27 | E125: NC 73 | F125: Troy Bypass | G125: Widen to Multi-Lanes. | H125: 1 - Widen Existing Roadway | I125: 44650000 | J125: 14.25286776 | K125: 15.77268109 | L125: 10.94892124 | M125: 26.75915096 | N125: 0.1238825532 | O125: 55.7231454 | P125: 2.707516581 | Q125: 0.7413985192 | R125: 34.79608171 | S125: N/A | T125: N/A | V125: Piedmont Triad RPO | W125: 100 | AB125: 08 | AC125: 100 | AH125: Montgomery | AI125: 100 | AP125: 8 | AQ125: E | AR125: 08, , | AS125: Piedmont Triad RPO, , | AT125: Montgomery, , , | AU125: 9.10415339 | AV125: 9.10415339 | AW125: Two Lane Highway | AX125: Multi-Lane Highway | AY125: 1 | AZ125: 2 | BA125: Undivided | BB125: Divided | BC125: 55 | BD125: 55 | BE125: 8.642811697 | BF125: 91.3571883 | BG125: 6265.360569 | BH125: 15500.00123 | BI125: 0.4042167788 | BJ125: 5723.857253 | BK125: 541.5033161 | BL125: 221708.0839 | BM125: 20974.60809 | BN125: 242682.692 | BO125: 5531356 | BP125: 66.00629337 | BQ125: 54.72263177 | BR125: 46.45722969 | BU125: 4 | BV125: 1.082797038e-05 | BW125: No | BX125: No | BY125: 12 | BZ125: 12 | CA125: No | CB125: 0 | CC125: 2 | CD125: 2 Lane Undivided | CE125: 4A - 4 Lane Divided (46' Depressed Median) with Paved Shoulders | CF125: None | CG125: Partial | CH125: 1 | CI125: Yes | CJ125: 28 | CK125: 39400000 | CL125: 4100000 | CM125: 1150000 | CN125: 44650000 | CP125: 44650000 | CQ125: 44650000
A126: H090114 | B126: Statewide Mobility | C126: R-2528 | D126: NC-24 , NC-27 | E126: I-73/74/US 220 | F126: Carthage Bypass | G126: Widen to Multi-Lanes. | H126: 1 - Widen Existing Roadway | I126: 100800000 | J126: 11.91253768 | K126: 12.82330094 | L126: 9.25386068 | M126: 20.71936418 | N126: 0.03045798611 | O126: 51.03896247 | P126: 2.718112111 | Q126: 0.4007236213 | R126: 25.31949151 | S126: N/A | T126: N/A | V126: Triangle Area RPO | W126: 88.49 | X126: Piedmont Triad RPO | Y126: 11.51 | AB126: 08 | AC126: 100 | AH126: Moore | AI126: 88.49 | AJ126: Montgomery | AK126: 11.51 | AP126: 8 | AQ126: E | AR126: 08, , | AS126: Triangle Area RPO, Piedmont Triad RPO, | AT126: Moore, Montgomery, , | AU126: 19.37899984 | AV126: 19.37899984 | AW126: Two Lane Highway | AX126: Multi-Lane Highway | AY126: 1 | AZ126: 2 | BA126: Undivided | BB126: Divided | BC126: 55 | BD126: 55 | BE126: 11.20591254 | BF126: 88.79408746 | BG126: 4851.210646 | BH126: 15500 | BI126: 0.312981332 | BJ126: 4307.588224 | BK126: 543.6224222 | BL126: 118385.2112 | BM126: 14940.34525 | BN126: 133325.5565 | BO126: 3070165 | BP126: 60.01909956 | BQ126: 49.54112227 | BR126: 43.57197881 | BU126: 2 | BV126: 6.014472426e-06 | BW126: No | BX126: No | BY126: 12 | BZ126: 12 | CA126: No | CB126: 1 | CC126: 2 | CD126: 2 Lane Undivided | CE126: 4A - 4 Lane Divided (46' Depressed Median) with Paved Shoulders | CF126: None | CG126: Partial | CH126: 3 | CI126: Yes | CJ126: 27 | CK126: 72000000 | CL126: 24900000 | CM126: 3900000 | CN126: 100800000 | CP126: 100800000 | CQ126: 100800000
A127: H090115 | B127: Statewide Mobility | C127: R-2529 | D127: NC-24 , NC-27 | E127: Carthage Bypass | F127: NC 87 | G127: Widen to Multi-Lanes | H127: 1 - Widen Existing Roadway | I127: 162547000 | J127: 13.55072808 | K127: 13.17444226 | L127: 9.194448732 | M127: 20.77291373 | N127: 0.09720757073 | O127: 50.20424472 | P127: 10.27502275 | Q127: 2.142626666 | R127: 29.36487466 | S127: N/A | T127: N/A | V127: Triangle Area RPO | W127: 58.54 | X127: Mid-Carolina RPO | Y127: 25.33 | Z127: Fayetteville Area MPO | AA127: 16.13 | AB127: 08 | AC127: 58.54 | AD127: 06 | AE127: 41.46 | AH127: Moore | AI127: 58.54 | AJ127: Harnett | AK127: 41.46 | AP127: 8 | AQ127: E | AR127: 08, 06, | AS127: Triangle Area RPO, Mid-Carolina RPO, Fayetteville Area MPO | AT127: Moore, Harnett, , | AU127: 20.74746876 | AV127: 20.74746876 | AW127: Two Lane Highway | AX127: Multi-Lane Highway | AY127: 1 | AZ127: 2 | BA127: Undivided | BB127: Divided | BC127: 53 | BD127: 55 | BE127: 9.983938551 | BF127: 90.01606145 | BG127: 4870.660568 | BH127: 15524.30679 | BI127: 0.3137441584 | BJ127: 4384.37681 | BK127: 486.2837581 | BL127: 620682.0921 | BM127: 68841.62413 | BN127: 689523.7163 | BO127: 15800799 | BP127: 58.2165099 | BQ127: 47.92257672 | BR127: 44.48871032 | BU127: 12 | BV127: 3.085253332e-05 | BW127: No | BX127: Yes | BY127: 11 | BZ127: 12 | CA127: No | CB127: 0 | CC127: 2 | CD127: 2 Lane Undivided | CE127: 4A - 4 Lane Divided (46' Depressed Median) with Paved Shoulders | CF127: None | CG127: Partial | CH127: 3 | CI127: Yes | CJ127: 29 | CK127: 117420000 | CL127: 40292000 | CM127: 4835000 | CN127: 162547000 | CP127: 162547000 | CQ127: 162547000
A128: H090639 | B128: Division Needs | D128: SR-1723 Ayden Golf Club Road, Tucker Road, Ivy Road, SR-2241 , SR-1759 | E128: NC 102 | F128: NC 33 | G128: Widen to Meet tolerable Lane Width Requirements, including Straightening and Realigning intersections, to Serve As a Connector Between NC-102, NC-43 South, and NC-33 East. | H128: 1 - Widen Existing Roadway | I128: 44388000 | J128: N/A | K128: N/A | L128: 11.50162541 | M128: 10.94069122 | N128: 0 | O128: 46.56743583 | P128: 0 | Q128: N/A | R128: N/A | S128: N/A | T128: N/A | V128: Greenville Urban Area MPO | W128: 100 | AB128: 02 | AC128: 100 | AH128: Pitt | AI128: 100 | AP128: 2 | AQ128: B | AR128: 02, , | AS128: Greenville Urban Area MPO, , | AT128: Pitt, , , | AU128: 11.42006254 | AV128: 11.42006254 | AW128: Two Lane Highway | AX128: Arterial | AY128: 1 | AZ128: 1 | BA128: Undivided | BB128: TWLTL | BC128: 51 | BD128: 51 | BE128: 0 | BF128: 100 | BG128: 2576.902609 | BH128: 15601.94207 | BI128: 0.165165503 | BJ128: 2576.902609 | BK128: 0 | BL128: 0 | BM128: 0 | BN128: 0 | BO128: 0 | BP128: 69.38389321 | BQ128: 31.01040159 | BR128: 39.32198432 | BW128: No | BX128: No | BY128: 10 | BZ128: 12 | CA128: No | CB128: 0 | CC128: 0 | CD128: 2 Lane Undivided | CE128: 3A - 2 Lane with Two Way Left Turn Lane, and Paved Shoulders | CF128: None | CG128: None | CH128: 2 | CI128: No | CJ128: 23 | CK128: 36480000 | CL128: 7061000 | CM128: 847000 | CN128: 44388000 | CP128: 44388000 | CQ128: 44388000
A129: H090117-CB | B129: Statewide Mobility | C129: R-2533CB | D129: NC-49 | E129: East of SR 2444 (Flowe Road) | F129: US 52 | G129: Widen to Multi-Lanes. | H129: 1 - Widen Existing Roadway | I129: 40300000 | J129: 13.54735706 | K129: 13.67190457 | L129: 10.77255258 | M129: 21.93674065 | N129: 0.065438933 | O129: 63.72116664 | P129: 2.792737038 | Q129: 0.1603911402 | R129: 17.99243013 | S129: N/A | T129: N/A | V129: Cabarrus Rowan MPO | W129: 57.17 | X129: Rocky River RPO | Y129: 42.83 | AB129: 10 | AC129: 100 | AH129: Cabarrus | AI129: 57.17 | AJ129: Stanly | AK129: 42.83 | AP129: 10 | AQ129: E | AR129: 10, , | AS129: Cabarrus Rowan MPO, Rocky River RPO, | AT129: Cabarrus, Stanly, , | AU129: 7.86658613 | AV129: 7.86658613 | AW129: Two Lane Highway | AX129: Multi-Lane Highway | AY129: 1 | AZ129: 2 | BA129: Undivided | BB129: Divided | BC129: 55 | BD129: 55 | BE129: 10.86749949 | BF129: 89.13250051 | BG129: 5139.612915 | BH129: 15511.21151 | BI129: 0.3313482581 | BJ129: 4581.065507 | BK129: 558.5474076 | BL129: 102215.0188 | BM129: 12462.58838 | BN129: 114677.6072 | BO129: 2637189 | BP129: 77.12868395 | BQ129: 51.72806973 | BR129: 62.32586451 | BU129: 2 | BV129: 1.207822804e-06 | BW129: No | BX129: No | BY129: 12 | BZ129: 12 | CA129: No | CB129: 0 | CC129: 2 | CD129: 2 Lane Undivided | CE129: 4A - 4 Lane Divided (46' Depressed Median) with Paved Shoulders | CF129: None | CG129: Partial | CH129: 3 | CI129: Yes | CJ129: 23 | CK129: 34800000 | CL129: 5500000 | CM129: 0 | CN129: 40300000 | CP129: 40300000 | CQ129: 40300000
A130: H090117-CD | B130: Statewide Mobility | C130: R-2533CD | D130: NC-49 | E130: East of NC 73 | F130: East of SR 2444 (Flowe Road) | G130: Widen to Multi-Lanes. | H130: 1 - Widen Existing Roadway | I130: 23200000 | J130: 16.53020787 | K130: 16.90468727 | L130: 12.92720155 | M130: 28.32675805 | N130: 0.2077237069 | O130: 72.20305196 | P130: 3.617613091 | Q130: 0.2603553083 | R130: 25.50761634 | S130: N/A | T130: N/A | V130: Cabarrus Rowan MPO | W130: 100 | AB130: 10 | AC130: 100 | AH130: Cabarrus | AI130: 100 | AP130: 10 | AQ130: E | AR130: 10, , | AS130: Cabarrus Rowan MPO, , | AT130: Cabarrus, , , | AU130: 3.75164974 | AV130: 3.75164974 | AW130: Two Lane Highway | AX130: Multi-Lane Highway | AY130: 1 | AZ130: 2 | BA130: Undivided | BB130: Divided | BC130: 54 | BD130: 55 | BE130: 10.88638902 | BF130: 89.11361098 | BG130: 6646.121289 | BH130: 15535.39304 | BI130: 0.427805159 | BJ130: 5922.598671 | BK130: 723.5226182 | BL130: 186733.7082 | BM130: 22811.9562 | BN130: 209545.6644 | BO130: 4819190 | BP130: 86.51772522 | BQ130: 68.97089881 | BR130: 61.14219493 | BU130: 3 | BV130: 2.207106167e-06 | BW130: No | BX130: No | BY130: 12 | BZ130: 12 | CA130: No | CB130: 0 | CC130: 2 | CD130: 2 Lane Undivided | CE130: 4A - 4 Lane Divided (46' Depressed Median) with Paved Shoulders | CF130: None | CG130: Partial | CH130: 3 | CI130: Yes | CJ130: 25 | CK130: 23200000 | CL130: 0 | CM130: 0 | CN130: 23200000 | CP130: 23200000 | CQ130: 23200000
A131: H090117-D | B131: Statewide Mobility | C131: R-2533D | D131: NC-49 | E131: US 52 | F131: Yadkin River | G131: Widen to Multi-Lanes. | H131: 1 - Widen Existing Roadway | I131: 30200000 | J131: 9.820094767 | K131: 9.861748153 | L131: 7.434979985 | M131: 17.99608468 | N131: 0.1326118212 | O131: 38.09240685 | P131: 2.740371729 | Q131: 0.2417078611 | R131: 15.20333343 | S131: N/A | T131: N/A | V131: Rocky River RPO | W131: 100 | AB131: 10 | AC131: 100 | AH131: Stanly | AI131: 100 | AP131: 10 | AQ131: E | AR131: 10, , | AS131: Rocky River RPO, , | AT131: Stanly, , , | AU131: 5.15069574 | AV131: 5.15069574 | AW131: Two Lane Highway | AX131: Multi-Lane Highway | AY131: 1 | AZ131: 2 | BA131: Undivided | BB131: Divided | BC131: 53 | BD131: 55 | BE131: 11.06941362 | BF131: 88.93058638 | BG131: 4951.250036 | BH131: 18549.12002 | BI131: 0.2669264111 | BJ131: 4403.17569 | BK131: 548.0743458 | BL131: 154749.101 | BM131: 19262.00957 | BN131: 174011.1106 | BO131: 4004877 | BP131: 48.18587641 | BQ131: 35.97615256 | BR131: 30.12662044 | BU131: 3 | BV131: 1.834157222e-06 | BW131: No | BX131: No | BY131: 11 | BZ131: 12 | CA131: No | CB131: 0 | CC131: 2 | CD131: 2 Lane Undivided | CE131: 4A - 4 Lane Divided (46' Depressed Median) with Paved Shoulders | CF131: None | CG131: Partial | CH131: 2 | CI131: Yes | CJ131: 21 | CK131: 24700000 | CL131: 5500000 | CM131: 0 | CN131: 30200000 | CP131: 30200000 | CQ131: 30200000
A132: H090120-A | B132: Statewide Mobility | C132: R-2535A | D132: NC-49 | E132: Existing Four Lanes West of Farmer at SR 1174 (Waynick Meadow Road) | F132: East of SR 1163 (tot Hill Farm Road) | G132: SR 1174 West of Farmer to Proposed Asheboro Southern Bypass (R-2536) West of SR 1193. Widen to a Four Lane Divided Facility. Section A: Existing Four Lanes West of Farmer at SR 1174 (Waynick Meadow Road) to East of SR 1163 (tot Hill Farm Road).. | H132: 1 - Widen Existing Roadway | I132: 29419000 | J132: 8.535498468 | K132: 8.9336516 | L132: 6.131334543 | M132: 17.84446525 | N132: 0.02286682076 | O132: 25.5786813 | P132: 3.029111964 | Q132: 0.116083253 | R132: 19.08950453 | S132: N/A | T132: N/A | V132: Piedmont Triad RPO | W132: 100 | AB132: 08 | AC132: 100 | AH132: Randolph | AI132: 100 | AP132: 8 | AQ132: E | AR132: 08, , | AS132: Piedmont Triad RPO, , | AT132: Randolph, , , | AU132: 4.1777127 | AV132: 4.1777127 | AW132: Two Lane Highway | AX132: Multi-Lane Highway | AY132: 1 | AZ132: 2 | BA132: Undivided | BB132: Divided | BC132: 55 | BD132: 55 | BE132: 12.34215074 | BF132: 87.65784926 | BG132: 4908.564199 | BH132: 18544.99831 | BI132: 0.2646839928 | BJ132: 4302.741806 | BK132: 605.8223928 | BL132: 25492.69616 | BM132: 3589.349973 | BN132: 29082.04614 | BO132: 672719 | BP132: 31.54739881 | BQ132: 25.86488496 | BR132: 19.33143449 | BU132: 1 | BV132: 1.32166506e-06 | BW132: No | BX132: No | BY132: 12 | BZ132: 12 | CA132: No | CB132: 0 | CC132: 2 | CD132: 2 Lane Undivided | CE132: 4A - 4 Lane Divided (46' Depressed Median) with Paved Shoulders | CF132: None | CG132: Partial | CH132: 2 | CI132: Yes | CJ132: 23 | CK132: 26448000 | CL132: 2653000 | CM132: 318000 | CN132: 29419000 | CP132: 29419000 | CQ132: 29419000
A133: H090120-B | B133: Statewide Mobility | C133: R-2535B | D133: NC-49 | E133: East of SR 1163 (Tot Hill Farm Road) | F133: Proposed Asheboro Bypass West of SR 1193 (Old NC 49) | G133: SR 1174 West of Farmer to Proposed Asheboro Southern Bypass (R-2536) West of SR 1193. Widen to a Four Lane Divided Facility. Section B: East of SR 1163 (tot Hill Farm Road) to the Proposed Asheboro Bypass West of SR 1193 (Old NC 49).. | H133: 1 - Widen Existing Roadway | I133: 28123000 | J133: 15.29850548 | K133: 14.7065282 | L133: 11.23943007 | M133: 30.74331954 | N133: 0.1986448459 | O133: 50.51037189 | P133: 4.449999557 | Q133: 0.7487906555 | R133: 19.19999913 | S133: N/A | T133: N/A | V133: Piedmont Triad RPO | W133: 100 | AB133: 08 | AC133: 100 | AH133: Randolph | AI133: 100 | AP133: 8 | AQ133: E | AR133: 08, , | AS133: Piedmont Triad RPO, , | AT133: Randolph, , , | AU133: 4.73001971 | AV133: 4.73001971 | AW133: Two Lane Highway | AX133: Multi-Lane Highway | AY133: 1 | AZ133: 2 | BA133: Undivided | BB133: Divided | BC133: 55 | BD133: 55 | BE133: 12.36111044 | BF133: 87.63888956 | BG133: 7199.999674 | BH133: 15504.25382 | BI133: 0.4643886612 | BJ133: 6309.999763 | BK133: 889.9999114 | BL133: 211638.2739 | BM133: 29850.72142 | BN133: 241488.9954 | BO133: 5586489 | BP133: 70.44932105 | BQ133: 41.54312582 | BR133: 39.55382344 | BU133: 4 | BV133: 1.097581311e-05 | BW133: No | BX133: No | BY133: 12 | BZ133: 12 | CA133: No | CB133: 0 | CC133: 2 | CD133: 2 Lane Undivided | CE133: 4A - 4 Lane Divided (46' Depressed Median) with Paved Shoulders | CF133: None | CG133: Partial | CH133: 2 | CI133: Yes | CJ133: 19 | CK133: 23028000 | CL133: 4549000 | CM133: 546000 | CN133: 28123000 | CP133: 28123000 | CQ133: 28123000
A134: H090123-A | B134: Regional Impact | C134: R-2540 | D134: NC-55 | E134: US 421 | F134: Old Stage Road | G134: Widen to Multi-Lanes | H134: 1 - Widen Existing Roadway | I134: 104294000 | J134: N/A | K134: 14.4513673 | L134: 10.78583447 | M134: 27.17015458 | N134: 0.07300446814 | O134: 53.3720266 | P134: 1.358119492 | Q134: N/A | R134: 23.03374877 | S134: N/A | T134: N/A | V134: Mid-Carolina RPO | W134: 100 | AB134: 06 | AC134: 100 | AH134: Harnett | AI134: 100 | AP134: 6 | AQ134: C | AR134: 06, , | AS134: Mid-Carolina RPO, , | AT134: Harnett, , , | AU134: 8.87284958 | AV134: 8.87284958 | AW134: Two Lane Highway | AX134: Multi-Lane Highway | AY134: 1 | AZ134: 2 | BA134: Undivided | BB134: Divided | BC134: 52 | BD134: 52 | BE134: 4.252325226 | BF134: 95.74767477 | BG134: 6387.655787 | BH134: 15570.0959 | BI134: 0.4102515378 | BJ134: 6116.031889 | BK134: 271.6238984 | BL134: 325599.7858 | BM134: 14460.46795 | BN134: 340060.2538 | BO134: 7613928 | BP134: 56.63196775 | BQ134: 58.12062785 | BR134: 45.37949741 | BW134: No | BX134: No | BY134: 12 | BZ134: 12 | CA134: No | CB134: 0 | CC134: 2 | CD134: 2 Lane Undivided | CE134: 4A - 4 Lane Divided (46' Depressed Median) with Paved Shoulders | CF134: None | CG134: Partial | CH134: 2 | CI134: Yes | CJ134: 23 | CK134: 56442000 | CL134: 42725000 | CM134: 5127000 | CN134: 104294000 | CP134: 104294000 | CQ134: 104294000
A135: H090123-B | B135: Regional Impact | C135: R-2540 | D135: NC-55 | E135: Church Street | F135: Old Stage Road | G135: Widen to Multi-Lanes | H135: 1 - Widen Existing Roadway | I135: 38202000 | J135: N/A | K135: 17.1943984 | L135: 11.40627513 | M135: 28.22393931 | N135: 0.1298525208 | O135: 57.35516767 | P135: 1.55836386 | Q135: N/A | R135: 43.70433674 | S135: N/A | T135: N/A | V135: Capital Area MPO | W135: 69.77 | X135: Mid-Carolina RPO | Y135: 30.23 | AB135: 06 | AC135: 100 | AH135: Harnett | AI135: 100 | AP135: 6 | AQ135: C | AR135: 06, , | AS135: Capital Area MPO, Mid-Carolina RPO, | AT135: Harnett, , , | AU135: 4.44145861 | AV135: 4.44145861 | AW135: Two Lane Highway | AX135: Multi-Lane Highway | AY135: 1 | AZ135: 2 | BA135: Undivided | BB135: Divided | BC135: 52 | BD135: 52 | BE135: 4.694484771 | BF135: 95.30551523 | BG135: 6639.126279 | BH135: 15579.75115 | BI135: 0.4261381466 | BJ135: 6327.453507 | BK135: 311.6727721 | BL135: 210773.4214 | BM135: 10382.11288 | BN135: 221155.5343 | BO135: 4960626 | BP135: 70.69092629 | BQ135: 49.7621963 | BR135: 51.62958868 | BW135: No | BX135: No | BY135: 12 | BZ135: 12 | CA135: No | CB135: 0 | CC135: 2 | CD135: 2 Lane Undivided | CE135: 4B - 4 Lane Divided (23' Raised Median) with Paved Shoulders and Sidewalks | CF135: None | CG135: Partial | CH135: 2 | CI135: Yes | CJ135: 33 | CK135: 32071000 | CL135: 5474000 | CM135: 657000 | CN135: 38202000 | CP135: 38202000 | CQ135: 38202000
A136: H090123-C | B136: Regional Impact | C136: R-2540 | D136: NC-55 | E136: Angier Town Limit | F136: Church Street | G136: Install median with turn lanes, curb & gutter, and sidewalks | H136: 1 - Widen Existing Roadway | I136: 12399000 | J136: N/A | K136: 29.0041013 | L136: 22.18496896 | M136: 68.80599357 | N136: 5.720273409 | O136: 72.79715567 | P136: 3.753166459 | Q136: N/A | R136: 30.92818988 | S136: N/A | T136: N/A | V136: Capital Area MPO | W136: 100 | AB136: 06 | AC136: 100 | AH136: Harnett | AI136: 100 | AP136: 6 | AQ136: C | AR136: 06, , | AS136: Capital Area MPO, , | AT136: Harnett, , , | AU136: 1.54331521 | AV136: 1.54331521 | AW136: Arterial | AX136: Two Lane Highway | AY136: 1 | AZ136: 1 | BA136: Undivided | BB136: Divided | BC136: 35 | BD136: 45 | BE136: 4.57918649 | BF136: 95.42081351 | BG136: 16392.28482 | BH136: 15800.0262 | BI136: 1.037484661 | BJ136: 15641.65153 | BK136: 750.6332919 | BL136: 3018649.363 | BM136: 144863.137 | BN136: 3163512.5 | BO136: 70925670 | BP136: 80.32107193 | BQ136: 78.25708095 | BR136: 59.83515546 | BW136: No | BX136: No | BY136: 12 | BZ136: 12 | CA136: No | CB136: 1 | CC136: 4 | CD136: 2 Lane Undivided | CE136: 2J - 2 Lane Divided (23' Raised Median) with Curb & Gutter, Bike Lanes, and Sidewalks | CF136: None | CG136: Partial | CH136: 2 | CI136: No | CJ136: 30 | CK136: 8756000 | CL136: 3253000 | CM136: 390000 | CN136: 12399000 | CP136: 12399000 | CQ136: 12399000
A137: H090123-D | B137: Regional Impact | C137: R-2540 | D137: NC-55 | E137: Rawls Church Road | F137: Angier Town Limit | G137: Widen to Multi-Lanes | H137: 1 - Widen Existing Roadway | I137: 9706000 | J137: N/A | K137: 34.64668804 | L137: 24.2310401 | M137: 69.39539743 | N137: 10.74305471 | O137: 82.03349674 | P137: 3.781111303 | Q137: N/A | R137: 64.08725333 | S137: N/A | T137: N/A | V137: Capital Area MPO | W137: 100 | AB137: 06 | AC137: 100 | AH137: Harnett | AI137: 100 | AP137: 6 | AQ137: C | AR137: 06, , | AS137: Capital Area MPO, , | AT137: Harnett, , , | AU137: 0.93659981 | AV137: 0.93659981 | AW137: Arterial | AX137: Multi-Lane Highway | AY137: 1 | AZ137: 2 | BA137: Undivided | BB137: Divided | BC137: 35 | BD137: 45 | BE137: 4.574094647 | BF137: 95.42590535 | BG137: 16532.72 | BH137: 15800.04318 | BI137: 1.046371824 | BJ137: 15776.49774 | BK137: 756.2222605 | BL137: 4438227.036 | BM137: 212739.6167 | BN137: 4650966.653 | BO137: 104272089 | BP137: 99.78659927 | BQ137: 64.27905765 | BR137: 82.05944581 | BW137: No | BX137: No | BY137: 12 | BZ137: 12 | CA137: No | CB137: 2 | CC137: 4 | CD137: 2 Lane Undivided | CE137: 4C - 4 Lane Divided (23' Raised Median) with Curb & Gutter, Wide Outside Lanes, and Sidewalks | CF137: None | CG137: Partial | CH137: 2 | CI137: Yes | CJ137: 30 | CK137: 6699000 | CL137: 2685000 | CM137: 322000 | CN137: 9706000 | CP137: 9706000 | CQ137: 9706000
A138: H090123-E | B138: Regional Impact | C138: R-2540 | D138: NC-55 | E138: Jicarilla Road | F138: Rawls Church Road | G138: Widen to Multi-Lanes | H138: 1 - Widen Existing Roadway | I138: 27513000 | J138: N/A | K138: 31.20815092 | L138: 21.74322492 | M138: 62.27040164 | N138: 5.796481627 | O138: 81.29848263 | P138: 3.358577113 | Q138: N/A | R138: 60.61581839 | S138: N/A | T138: N/A | V138: Capital Area MPO | W138: 100 | AB138: 05 | AC138: 65.97 | AD138: 06 | AE138: 34.03 | AH138: Wake | AI138: 65.97 | AJ138: Harnett | AK138: 34.03 | AP138: 5 | AQ138: C | AR138: 05, 06, | AS138: Capital Area MPO, , | AT138: Wake, Harnett, , | AU138: 3.22718077 | AV138: 3.22718077 | AW138: Arterial | AX138: Multi-Lane Highway | AY138: 1 | AZ138: 2 | BA138: Undivided | BB138: Divided | BC138: 49 | BD138: 45 | BE138: 4.527802775 | BF138: 95.47219722 | BG138: 14835.35074 | BH138: 15800.14405 | BI138: 0.938937689 | BJ138: 14163.63532 | BK138: 671.7154225 | BL138: 6792610.616 | BM138: 322141.9648 | BN138: 7114752.581 | BO138: 159478599 | BP138: 99.81431634 | BQ138: 71.37318884 | BR138: 72.73233469 | BW138: No | BX138: No | BY138: 12 | BZ138: 12 | CA138: No | CB138: 2 | CC138: 4 | CD138: 2 Lane Undivided | CE138: 4C - 4 Lane Divided (23' Raised Median) with Curb & Gutter, Wide Outside Lanes, and Sidewalks | CF138: None | CG138: Partial | CH138: 3 | CI138: Yes | CJ138: 33 | CK138: 23081000 | CL138: 3957000 | CM138: 475000 | CN138: 27513000 | CP138: 27513000 | CQ138: 27513000
A139: H090123-F | B139: Regional Impact | C139: R-2540 | D139: NC-55 | E139: NC 42 | F139: Jicarilla Road | G139: Widen to Multi-Lanes | H139: 1 - Widen Existing Roadway | I139: 20541000 | J139: N/A | K139: 25.6345548 | L139: 17.08273836 | M139: 52.21350458 | N139: 4.772710579 | O139: 56.8549533 | P139: 2.834494123 | Q139: N/A | R139: 57.02505685 | S139: N/A | T139: N/A | V139: Capital Area MPO | W139: 100 | AB139: 05 | AC139: 100 | AH139: Wake | AI139: 100 | AP139: 5 | AQ139: C | AR139: 05, , | AS139: Capital Area MPO, , | AT139: Wake, , , | AU139: 2.63791935 | AV139: 2.63791935 | AW139: Arterial | AX139: Multi-Lane Highway | AY139: 1 | AZ139: 2 | BA139: Undivided | BB139: Divided | BC139: 53 | BD139: 45 | BE139: 4.557317255 | BF139: 95.44268275 | BG139: 12439.31008 | BH139: 15800.0354 | BI139: 0.7872963424 | BJ139: 11872.41126 | BK139: 566.8988247 | BL139: 4173825.403 | BM139: 199297.0648 | BN139: 4373122.468 | BO139: 98036248 | BP139: 83.36139374 | BQ139: 33.73379444 | BR139: 53.4867299 | BW139: No | BX139: No | BY139: 12 | BZ139: 12 | CA139: No | CB139: 2 | CC139: 4 | CD139: 2 Lane Undivided | CE139: 4C - 4 Lane Divided (23' Raised Median) with Curb & Gutter, Wide Outside Lanes, and Sidewalks | CF139: None | CG139: Partial | CH139: 3 | CI139: Yes | CJ139: 34 | CK139: 18867000 | CL139: 1495000 | CM139: 179000 | CN139: 20541000 | CP139: 20541000 | CQ139: 20541000
A140: H090124-A | B140: Statewide Mobility | C140: R-2544A | D140: US-64 | E140: East of SR 1153 (Old Ferry Landing Road) | F140: West of SR 1102 (East Lake Road) | G140: Widen to Multi-Lanes. | H140: 1 - Widen Existing Roadway | I140: 15800000 | J140: 6.906776828 | K140: 6.20942343 | L140: 4.13961562 | M140: 12.38580633 | N140: 0 | O140: 29.01034987 | P140: 1.449999706 | Q140: 0 | R140: 15.73333255 | S140: 0 | T140: 0 | V140: Albemarle RPO | W140: 100 | AB140: 01 | AC140: 100 | AH140: Dare | AI140: 100 | AP140: 1 | AQ140: A | AR140: 01, , | AS140: Albemarle RPO, , | AT140: Dare, , , | AU140: 2.20298314 | AV140: 2.20298314 | AW140: Two Lane Highway | AX140: Multi-Lane Highway | AY140: 1 | AZ140: 2 | BA140: Undivided | BB140: Divided | BC140: 55 | BD140: 55 | BE140: 9.999998985 | BF140: 90.00000102 | BG140: 2899.999706 | BH140: 15499.99843 | BI140: 0.1870967742 | BJ140: 2609.999765 | BK140: 289.9999412 | BL140: 0 | BM140: 0 | BN140: 0 | BO140: 0 | BP140: 46.14889249 | BQ140: 0 | BR140: 40.89086109 | BU140: 0 | BV140: 0 | BW140: No | BX140: No | BY140: 12 | BZ140: 12 | CA140: No | CB140: 0 | CC140: 0 | CD140: 2 Lane Undivided | CE140: 4A - 4 Lane Divided (46' Depressed Median) with Paved Shoulders | CF140: None | CG140: Partial | CH140: 2 | CI140: Yes | CJ140: 24 | CK140: 14700000 | CL140: 1030000 | CM140: 70000 | CN140: 15800000 | CP140: 15800000 | CQ140: 15800000
A141: H090124-B | B141: Statewide Mobility | C141: R-2544B | D141: US-64 | E141: West of SR 1102 (East Lake Road) | F141: East of Dare County Landfill | G141: Widen to Multi-Lanes. | H141: 1 - Widen Existing Roadway | I141: 26450000 | J141: 7.776296453 | K141: 7.435427953 | L141: 4.956951969 | M141: 12.64632607 | N141: 0 | O141: 36.92319362 | P141: 1.450396356 | Q141: 0 | R141: 15.89599389 | S141: 0 | T141: 0 | V141: Albemarle RPO | W141: 100 | AB141: 01 | AC141: 100 | AH141: Dare | AI141: 100 | AP141: 1 | AQ141: A | AR141: 01, , | AS141: Albemarle RPO, , | AT141: Dare, , , | AU141: 8.7466968 | AV141: 8.7466968 | AW141: Two Lane Highway | AX141: Multi-Lane Highway | AY141: 1 | AZ141: 2 | BA141: Undivided | BB141: Divided | BC141: 55 | BD141: 55 | BE141: 9.79667327 | BF141: 90.20332673 | BG141: 2960.99771 | BH141: 15499.99951 | BI141: 0.1910321164 | BJ141: 2670.918439 | BK141: 290.0792712 | BL141: 0 | BM141: 0 | BN141: 0 | BO141: 0 | BP141: 44.27067174 | BQ141: 26.61731527 | BR141: 39.89267192 | BU141: 0 | BV141: 0 | BW141: No | BX141: No | BY141: 12 | BZ141: 12 | CA141: No | CB141: 0 | CC141: 0 | CD141: 2 Lane Undivided | CE141: 4A - 4 Lane Divided (46' Depressed Median) with Paved Shoulders | CF141: None | CG141: Partial | CH141: 2 | CI141: Yes | CJ141: 24 | CK141: 23300000 | CL141: 2100000 | CM141: 1050000 | CN141: 26450000 | CP141: 26450000 | CQ141: 26450000
A142: H090126 | B142: Regional Impact | C142: R-2549 | D142: US-64 , NC-18 | E142: Multi-Lanes North of Morganton | F142: Multi-Lanes in Gamewell | G142: Multi-Lanes North of Morganton to Existing Multi-Lanes in Gamewell. Widen to Multi-Lanes. | H142: 1 - Widen Existing Roadway | I142: 108614000 | J142: N/A | K142: 18.84004274 | L142: 13.84754933 | M142: 34.75690884 | N142: 0.1405353546 | O142: 68.68060496 | P142: 3.027298158 | Q142: N/A | R142: 32.47621196 | S142: N/A | T142: N/A | V142: Greater Hickory MPO | W142: 86.79 | X142: Unifour RPO | Y142: 13.21 | AB142: 13 | AC142: 65.22 | AD142: 11 | AE142: 34.78 | AH142: Burke | AI142: 65.22 | AJ142: Caldwell | AK142: 34.78 | AP142: 13 | AQ142: G | AR142: 13, 11, | AS142: Greater Hickory MPO, Unifour RPO, | AT142: Burke, Caldwell, , | AU142: 8.00716816 | AV142: 8.00716816 | AW142: Two Lane Highway | AX142: Multi-Lane Highway | AY142: 1 | AZ142: 2 | BA142: Undivided | BB142: Divided | BC142: 53 | BD142: 53 | BE142: 7.420996752 | BF142: 92.57900325 | BG142: 8158.73732 | BH142: 15543.70195 | BI142: 0.5248902318 | BJ142: 7553.277688 | BK142: 605.4596315 | BL142: 623061.8694 | BM142: 49943.72316 | BN142: 673005.5926 | BO142: 15264107 | BP142: 86.11718552 | BQ142: 53.7685641 | BR142: 66.17667151 | BW142: No | BX142: No | BY142: 12 | BZ142: 12 | CA142: No | CB142: 4 | CC142: 4 | CD142: 2 Lane Undivided | CE142: 4A - 4 Lane Divided (46' Depressed Median) with Paved Shoulders | CF142: None | CG142: Partial | CH142: 1 | CI142: Yes | CJ142: 24 | CK142: 81624000 | CL142: 24098000 | CM142: 2892000 | CN142: 108614000 | CP142: 108614000 | CQ142: 108614000
A143: H090127 | B143: Regional Impact | C143: R-2550 | D143: US-64 , NC-90 | E143: NC 18 in Caldwell County | F143: SR 1313 (Three Forks Church Road) | G143: NC 18 in Caldwell County to West of SR 1313 (Three Forks Church Road) in Alexander County. Upgrade 2 Lane Roadway. | H143: 16 - Modernize Roadway | I143: 25422000 | J143: N/A | K143: 11.21964305 | L143: 8.807756701 | M143: 19.22978019 | N143: 0 | O143: 49.61800663 | P143: 2.287818444 | Q143: N/A | R143: 14.50397343 | S143: N/A | T143: N/A | V143: Unifour RPO | W143: 66.62 | X143: Greater Hickory MPO | Y143: 33.38 | AB143: 11 | AC143: 53.95 | AD143: 12 | AE143: 46.05 | AH143: Caldwell | AI143: 53.95 | AJ143: Alexander | AK143: 46.05 | AP143: 11 | AQ143: F | AR143: 11, 12, | AS143: Unifour RPO, Greater Hickory MPO, | AT143: Caldwell, Alexander, , | AU143: 18.20372054 | AV143: 18.20372054 | AW143: Two Lane Highway | AX143: Two Lane Highway | AY143: 1 | AZ143: 1 | BA143: Undivided | BB143: Undivided | BC143: 54 | BD143: 54 | BE143: 10.15911163 | BF143: 89.84088837 | BG143: 4503.973432 | BH143: 15505.82093 | BI143: 0.2904698469 | BJ143: 4046.409743 | BK143: 457.5636889 | BL143: 0 | BM143: 0 | BN143: 0 | BO143: 0 | BP143: 57.28399893 | BQ143: 44.8747934 | BR143: 46.71011446 | BW143: No | BX143: No | BY143: 12 | BZ143: 12 | CA143: No | CB143: 1 | CC143: 2 | CD143: 2 Lane Undivided | CF143: None | CG143: None | CH143: 1 | CI143: No | CJ143: 25 | CK143: 25422000 | CL143: 0 | CM143: 0 | CN143: 25422000 | CP143: 25422000 | CQ143: 25422000
A144: H090642 | B144: Division Needs | D144: SR-1126 Forlines Road | E144: Greenville Southwest Bypass (R-2250) | F144: NC 11 | G144: Widen Existing 2-Lane Roadway to Multi-Lane Urban Section Facility including Bicycle and Pedestrian Facilities | H144: 1 - Widen Existing Roadway | I144: 30294000 | J144: N/A | K144: N/A | L144: 17.76704822 | M144: 21.94690139 | N144: 0 | O144: 66.88833972 | P144: 0 | Q144: N/A | R144: N/A | S144: N/A | T144: N/A | V144: Greenville Urban Area MPO | W144: 100 | AB144: 02 | AC144: 100 | AH144: Pitt | AI144: 100 | AP144: 2 | AQ144: B | AR144: 02, , | AS144: Greenville Urban Area MPO, , | AT144: Pitt, , , | AU144: 3.12544666 | AV144: 3.12544666 | AW144: Arterial | AX144: Arterial | AY144: 1 | AZ144: 2 | BA144: Undivided | BB144: Divided | BC144: 52 | BD144: 45 | BE144: 0 | BF144: 100 | BG144: 5193.350338 | BH144: 15682.33019 | BI144: 0.3311593542 | BJ144: 5193.350338 | BK144: 0 | BL144: 0 | BM144: 0 | BN144: 0 | BO144: 0 | BP144: 94.45267179 | BQ144: 50.38332057 | BR144: 55.84909531 | BW144: No | BX144: No | BY144: 11 | BZ144: 12 | CA144: No | CB144: 0 | CC144: 2 | CD144: 2 Lane Undivided | CE144: 4D - 4 Lane Divided (23' Raised Median) with Curb & Gutter, Wide Outside Lanes, Bike Lanes, and Sidewalks | CF144: None | CG144: Partial | CH144: 2 | CI144: No | CJ144: 18 | CK144: 24738000 | CL144: 4961000 | CM144: 595000 | CN144: 30294000 | CP144: 30294000 | CQ144: 30294000
A145: H090707 | B145: Division Needs | D145: - New Route - Smithfield Way Extension | E145: End of Current Smithfield Way | F145: US 258 | G145: Extend Roadway For Additional Access to industrial Park. | H145: 5 - Construct Roadway on New Location | I145: 1584000 | J145: N/A | K145: N/A | L145: 19.89307929 | M145: 36.5218183 | N145: 41.16080745 | O145: 62.94357816 | P145: 0 | Q145: N/A | R145: N/A | S145: N/A | T145: N/A | V145: East Carolina RPO | W145: 100 | AB145: 02 | AC145: 100 | AH145: Lenoir | AI145: 100 | AP145: 2 | AQ145: B | AR145: 02, , | AS145: East Carolina RPO, , | AT145: Lenoir, , , | AU145: 1.4 | AV145: 0.28001612 | AW145: Arterial | AX145: Arterial | AY145: 1 | AZ145: 1 | BA145: Undivided | BB145: Undivided | BC145: 44 | BD145: 35 | BE145: 0 | BF145: 100 | BG145: 8700 | BH145: 15798.16205 | BI145: 0.5506969717 | BJ145: 8700 | BK145: 0 | BL145: 2963578.14 | BM145: 0 | BN145: 2963578.14 | BO145: 65198719 | BP145: 96.57633512 | BQ145: 47.23900266 | BR145: 45.03428165 | BW145: No | BX145: No | BY145: 11 | BZ145: 12 | CA145: No | CB145: 0 | CC145: 4 | CD145: New Roadway | CE145: 2C - 2 Lane Undivided with Paved Shoulders, 25-35 mph | CF145: None | CG145: None | CH145: 1 | CI145: No | CJ145: 23 | CK145: 1368000 | CL145: 193000 | CM145: 23000 | CN145: 1584000 | CP145: 1584000 | CQ145: 1584000
A146: H090776 | B146: Division Needs | D146: SR-1005 | E146: NC 306 | F146: NC 55 | G146: Widen, Resurface, and Straighten Alignment at Strategic Locations. | H146: 16 - Modernize Roadway | I146: 19722000 | J146: N/A | K146: N/A | L146: 7.708817109 | M146: 5.24615055 | N146: 0 | O146: 33.29793499 | P146: 0 | Q146: N/A | R146: N/A | S146: N/A | T146: N/A | V146: Down East RPO | W146: 100 | AB146: 02 | AC146: 100 | AH146: Pamlico | AI146: 100 | AP146: 2 | AQ146: B | AR146: 02, , | AS146: Down East RPO, , | AT146: Pamlico, , , | AU146: 7.65612358 | AV146: 7.65612358 | AW146: Two Lane Highway | AX146: Two Lane Highway | AY146: 1 | AZ146: 1 | BA146: Undivided | BB146: Undivided | BC146: 54 | BD146: 54 | BE146: 0 | BF146: 100 | BG146: 1229.048015 | BH146: 15510.02098 | BI146: 0.07924218907 | BJ146: 1229.048015 | BK146: 0 | BL146: 0 | BM146: 0 | BN146: 0 | BO146: 0 | BP146: 59.69715496 | BQ146: 17.8041418 | BR146: 22.4024986 | BW146: No | BX146: No | BY146: 11 | BZ146: 12 | CA146: No | CB146: 0 | CC146: 0 | CD146: 2 Lane Undivided | CF146: None | CG146: None | CH146: 2 | CI146: No | CJ146: 26 | CK146: 19722000 | CL146: 0 | CM146: 0 | CN146: 19722000 | CP146: 19722000 | CQ146: 19722000
A147: H090129-B | B147: Division Needs | C147: R-2555B | D147: SR-5544 West Catawba Avenue | E147: NC 73 (Sam Furr Road) | F147: SR 2151 (Jetton Road) | G147: Widen to Multi-Lanes | H147: 1 - Widen Existing Roadway | I147: 24800000 | J147: N/A | K147: N/A | L147: 24.93744955 | M147: 80.6918207 | N147: 9.854450766 | O147: 68.28195259 | P147: 0 | Q147: N/A | R147: N/A | S147: N/A | T147: N/A | V147: Charlotte Regional Transportation Planning Organization | W147: 100 | AB147: 10 | AC147: 100 | AH147: Mecklenburg | AI147: 100 | AP147: 10 | AQ147: E | AR147: 10, , | AS147: Charlotte Regional Transportation Planning Organization, , | AT147: Mecklenburg, , , | AU147: 2.36901383 | AV147: 2.36901383 | AW147: Arterial | AX147: Arterial | AY147: 1 | AZ147: 2 | BA147: Undivided | BB147: Divided | BC147: 42 | BD147: 42 | BE147: 0 | BF147: 100 | BG147: 19933.61998 | BH147: 16447.24922 | BI147: 1.211972878 | BJ147: 19933.61998 | BK147: 0 | BL147: 11108653.61 | BM147: 0 | BN147: 11108653.61 | BO147: 244390379 | BP147: 92.81559095 | BQ147: 68.48092211 | BR147: 43.56983134 | BW147: No | BX147: No | BY147: 12 | BZ147: 12 | CA147: No | CB147: 0 | CC147: 4 | CD147: 2 Lane Undivided | CE147: 4C - 4 Lane Divided (23' Raised Median) with Curb & Gutter, Wide Outside Lanes, and Sidewalks | CF147: None | CG147: Partial | CH147: 3 | CI147: No | CJ147: 41 | CK147: 7500000 | CL147: 15000000 | CM147: 3500000 | CN147: 26000000 | CO147: 1200000 | CP147: 24800000 | CQ147: 24800000 | CR147: Town of Cornelius
A148: H090130 | B148: Statewide Mobility | C148: R-2556 | D148: US-74 | E148: East of SR 1259 | F148: North Rutherford Street | G148: East of SR 1259 to North Rutherford Street. Relocate Roadway | H148: 1 - Widen Existing Roadway | I148: 19683000 | J148: 28.97269623 | K148: 22.35524156 | L148: 16.16395047 | M148: 55.45312118 | N148: 0 | O148: 50.7332623 | P148: 36.31716821 | Q148: 0 | R148: 34.18635031 | S148: N/A | T148: N/A | V148: Rocky River RPO | W148: 100 | AB148: 10 | AC148: 100 | AH148: Anson | AI148: 100 | AP148: 10 | AQ148: E | AR148: 10, , | AS148: Rocky River RPO, , | AT148: Anson, , , | AU148: 1.60863941 | AV148: 1.60863941 | AW148: Arterial | AX148: Arterial | AY148: 2 | AZ148: 2 | BA148: TWLTL | BB148: Divided | BC148: 35 | BD148: 35 | BE148: 14.25825659 | BF148: 85.74174341 | BG148: 24186.35031 | BH148: 31699.99998 | BI148: 0.762976351 | BJ148: 20737.79842 | BK148: 3448.551887 | BL148: 0 | BM148: 0 | BN148: 0 | BO148: 0 | BP148: 56.62918268 | BQ148: 59.22037752 | BR148: 36.3654482 | BU148: 0 | BV148: 0 | BW148: Yes | BX148: No | BY148: 12 | BZ148: 12 | CA148: Yes | CB148: 0 | CC148: 4 | CD148: 4 Lane with TWLTL (Five Lane) | CE148: 4C - 4 Lane Divided (23' Raised Median) with Curb & Gutter, Wide Outside Lanes, and Sidewalks | CF148: None | CG148: Partial | CH148: 1 | CI148: No | CJ148: 25 | CK148: 18012000 | CL148: 1492000 | CM148: 179000 | CN148: 19683000 | CP148: 19683000 | CQ148: 19683000
A149: H090131-C | B149: Statewide Mobility | C149: R-2560C | D149: NC-87 | E149: SR 1159 (Parkdale Road) in Caswell County | F149: NC 150 East of Williamsburg in Rockingham County | G149: SR 1547 in Alamance County to US 29 in Reidsville. Widen to Multi-Lanes. Section C: SR 1159 (Parkdale Road) in Caswell County to NC 150 East of Williamsburg in Rockingham County.. | H149: 1 - Widen Existing Roadway | I149: 40844000 | J149: 10.42505069 | K149: 11.75291612 | L149: 8.440629091 | M149: 15.80425042 | N149: 0.2391443786 | O149: 52.3195013 | P149: 1.519124668 | Q149: 0.7625718287 | R149: 25.10117288 | S149: N/A | T149: N/A | V149: Piedmont Triad RPO | W149: 100 | AB149: 07 | AC149: 100 | AH149: Rockingham | AI149: 78.03 | AJ149: Caswell | AK149: 21.97 | AP149: 7 | AQ149: D | AR149: 07, , | AS149: Piedmont Triad RPO, , | AT149: Rockingham, Caswell, , | AU149: 3.94027345 | AV149: 3.94027345 | AW149: Two Lane Highway | AX149: Multi-Lane Highway | AY149: 1 | AZ149: 2 | BA149: Undivided | BB149: Divided | BC149: 46 | BD149: 55 | BE149: 8.210617117 | BF149: 91.78938288 | BG149: 3700.39096 | BH149: 15500 | BI149: 0.2387349006 | BJ149: 3396.566026 | BK149: 303.8249336 | BL149: 394043.2358 | BM149: 35247.41136 | BN149: 429290.6472 | BO149: 9767613 | BP149: 65.78570962 | BQ149: 38.66568138 | BR149: 52.52281033 | BU149: 7 | BV149: 8.251436573e-06 | BW149: No | BX149: No | BY149: 11 | BZ149: 12 | CA149: No | CB149: 0 | CC149: 0 | CD149: 2 Lane Undivided | CE149: 4A - 4 Lane Divided (46' Depressed Median) with Paved Shoulders | CF149: None | CG149: Partial | CH149: 1 | CI149: Yes | CJ149: 27 | CK149: 27816000 | CL149: 11632000 | CM149: 1396000 | CN149: 40844000 | CP149: 40844000 | CQ149: 40844000
A150: H090131-DA | B150: Statewide Mobility | C150: R-2560DA | D150: NC-87 | E150: NC 150 East of Williamsburg | F150: SR 2594 (Holliday Loop Road) | G150: SR 1547 in Alamance County to US 29 in Reidsville. Widen to Multi-Lanes. Section Da: NC 150 East of Williamsburg to SR 2594 (Holliday Loop Road). | H150: 1 - Widen Existing Roadway | I150: 33306000 | J150: 15.28034192 | K150: 16.79674364 | L150: 12.36702943 | M150: 25.16902078 | N150: 0.06697135651 | O150: 73.19830999 | P150: 1.851725461 | Q150: 0.1936818647 | R150: 31.67914602 | S150: N/A | T150: N/A | V150: Piedmont Triad RPO | W150: 100 | AB150: 07 | AC150: 100 | AH150: Rockingham | AI150: 100 | AP150: 7 | AQ150: D | AR150: 07, , | AS150: Piedmont Triad RPO, , | AT150: Rockingham, , , | AU150: 3.94063297 | AV150: 3.94063297 | AW150: Two Lane Highway | AX150: Multi-Lane Highway | AY150: 1 | AZ150: 2 | BA150: Undivided | BB150: Divided | BC150: 55 | BD150: 55 | BE150: 6.284439731 | BF150: 93.71556027 | BG150: 5893.048673 | BH150: 15500 | BI150: 0.3801966886 | BJ150: 5522.703581 | BK150: 370.3450922 | BL150: 92591.4507 | BM150: 6209.058452 | BN150: 98800.50915 | BO150: 2230548 | BP150: 87.1290038 | BQ150: 70.18006244 | BR150: 62.30782541 | BU150: 2 | BV150: 1.873637295e-06 | BW150: No | BX150: No | BY150: 12 | BZ150: 12 | CA150: No | CB150: 1 | CC150: 2 | CD150: 2 Lane Undivided | CE150: 4A - 4 Lane Divided (46' Depressed Median) with Paved Shoulders | CF150: None | CG150: Partial | CH150: 1 | CI150: Yes | CJ150: 27 | CK150: 25878000 | CL150: 6632000 | CM150: 796000 | CN150: 33306000 | CP150: 33306000 | CQ150: 33306000
A151: H090133-A | B151: Statewide Mobility | C151: R-2561A | D151: NC-87 | E151: Elizabethtown Bypass | F151: SR 1730 (Elwell Ferry Road) | G151: Widen to Multi-Lanes. | H151: 1 - Widen Existing Roadway | I151: 77600000 | J151: 11.21124419 | K151: 10.8815372 | L151: 7.977220909 | M151: 15.51508229 | N151: 0.02302689433 | O151: 48.69599073 | P151: 8.334604114 | Q151: 0.1329153944 | R151: 21.27410835 | S151: N/A | T151: N/A | V151: Mid-Carolina RPO | W151: 100 | AB151: 06 | AC151: 100 | AH151: Bladen | AI151: 100 | AP151: 6 | AQ151: C | AR151: 06, , | AS151: Mid-Carolina RPO, , | AT151: Bladen, , , | AU151: 14.44024653 | AV151: 14.44024653 | AW151: Two Lane Highway | AX151: Multi-Lane Highway | AY151: 1 | AZ151: 2 | BA151: Undivided | BB151: Divided | BC151: 55 | BD151: 55 | BE151: 13.28526799 | BF151: 86.71473201 | BG151: 3758.036118 | BH151: 16092.22765 | BI151: 0.2335311307 | BJ151: 3258.770948 | BK151: 499.2651695 | BL151: 66736.02834 | BM151: 10224.39902 | BN151: 76960.42736 | BO151: 1786887 | BP151: 54.52567745 | BQ151: 49.70647735 | BR151: 41.87042764 | BU151: 1 | BV151: 1.658307889e-06 | BW151: Yes | BX151: No | BY151: 12 | BZ151: 12 | CA151: No | CB151: 4 | CC151: 0 | CD151: 2 Lane Undivided | CE151: 4A - 4 Lane Divided (46' Depressed Median) with Paved Shoulders | CF151: None | CG151: Partial | CH151: 1 | CI151: Yes | CJ151: 25 | CK151: 63600000 | CL151: 12000000 | CM151: 2000000 | CN151: 77600000 | CP151: 77600000 | CQ151: 77600000
A152: H090133-B | B152: Statewide Mobility | C152: R-2561B | D152: NC-87 | E152: SR 1730 (Elwell Ferry Road) in Bladen County | F152: NC 11 in Columbus County | G152: Widen to Multi-Lanes. | H152: 1 - Widen Existing Roadway | I152: 49800000 | J152: 12.70264748 | K152: 12.65483968 | L152: 9.2608864 | M152: 16.57241265 | N152: 0.02516682731 | O152: 59.41370505 | P152: 8.855938851 | Q152: 0.1081536496 | R152: 25.64074303 | S152: N/A | T152: N/A | V152: Mid-Carolina RPO | W152: 89.51 | X152: Cape Fear RPO | Y152: 10.49 | AB152: 06 | AC152: 100 | AH152: Bladen | AI152: 89.51 | AJ152: Columbus | AK152: 10.49 | AP152: 6 | AQ152: C | AR152: 06, , | AS152: Mid-Carolina RPO, Cape Fear RPO, | AT152: Bladen, Columbus, , | AU152: 9.80528459 | AV152: 9.80528459 | AW152: Two Lane Highway | AX152: Multi-Lane Highway | AY152: 1 | AZ152: 2 | BA152: Undivided | BB152: Divided | BC152: 55 | BD152: 55 | BE152: 13.38819105 | BF152: 86.61180895 | BG152: 3880.247675 | BH152: 15500 | BI152: 0.2503385597 | BJ152: 3360.752703 | BK152: 519.4949718 | BL152: 46733.53931 | BM152: 7223.928932 | BN152: 53957.46824 | BO152: 1253308 | BP152: 61.63688405 | BQ152: 61.77924439 | BR152: 54.84281259 | BU152: 1 | BV152: 1.163072992e-06 | BW152: Yes | BX152: No | BY152: 12 | BZ152: 12 | CA152: No | CB152: 4 | CC152: 0 | CD152: 2 Lane Undivided | CE152: 4A - 4 Lane Divided (46' Depressed Median) with Paved Shoulders | CF152: None | CG152: Partial | CH152: 1 | CI152: Yes | CJ152: 27 | CK152: 36800000 | CL152: 12000000 | CM152: 1000000 | CN152: 49800000 | CP152: 49800000 | CQ152: 49800000
A153: H090133-C | B153: Statewide Mobility | C153: R-2561C | D153: NC-87 | E153: NC 11 | F153: US 74/76 | G153: Widen to Multi-Lanes. | H153: 1 - Widen Existing Roadway | I153: 98000000 | J153: 19.23503278 | K153: 16.97704053 | L153: 12.56330507 | M153: 31.67990934 | N153: 0.08979332653 | O153: 62.09364537 | P153: 17.11965413 | Q153: 0.7082661314 | R153: 28.25250325 | S153: N/A | T153: N/A | V153: Cape Fear RPO | W153: 100 | AB153: 06 | AC153: 100 | AH153: Columbus | AI153: 100 | AP153: 6 | AQ153: C | AR153: 06, , | AS153: Cape Fear RPO, , | AT153: Columbus, , , | AU153: 5.99022281 | AV153: 5.99022281 | AW153: Two Lane Highway | AX153: Multi-Lane Highway | AY153: 1 | AZ153: 2 | BA153: Undivided | BB153: Divided | BC153: 55 | BD153: 55 | BE153: 13.90209999 | BF153: 86.09790001 | BG153: 7417.501084 | BH153: 15499.9992 | BI153: 0.4785484817 | BJ153: 6386.312666 | BK153: 1031.188418 | BL153: 325518.981 | BM153: 52561.06623 | BN153: 378080.0473 | BO153: 8799746 | BP153: 76.86598795 | BQ153: 57.50170805 | BR153: 51.93187006 | BU153: 6 | BV153: 8.165322628e-06 | BW153: Yes | BX153: No | BY153: 12 | BZ153: 12 | CA153: No | CB153: 4 | CC153: 2 | CD153: 2 Lane Undivided | CE153: 4A - 4 Lane Divided (46' Depressed Median) with Paved Shoulders | CF153: None | CG153: Partial | CH153: 1 | CI153: Yes | CJ153: 23 | CK153: 76000000 | CL153: 21000000 | CM153: 1000000 | CN153: 98000000 | CP153: 98000000 | CQ153: 98000000
A154: H090135 | B154: Regional Impact | C154: R-2563 | D154: NC-88 | E154: Watauga County Line | F154: NC 194 in Warrensville | G154: Watauga County Line to NC 194 in Warrensville. Upgrade Two Lanes. | H154: 16 - Modernize Roadway | I154: 33288000 | J154: N/A | K154: 7.729863935 | L154: 4.55688975 | M154: 5.684772054 | N154: 0 | O154: 34.1993534 | P154: 0.4760021314 | Q154: N/A | R154: 28.88735582 | S154: N/A | T154: N/A | V154: High Country RPO | W154: 100 | AB154: 11 | AC154: 100 | AH154: Ashe | AI154: 100 | AP154: 11 | AQ154: F | AR154: 11, , | AS154: High Country RPO, , | AT154: Ashe, , , | AU154: 18.87831233 | AV154: 18.87831233 | AW154: Two Lane Highway | AX154: Two Lane Highway | AY154: 1 | AZ154: 1 | BA154: Undivided | BB154: Undivided | BC154: 55 | BD154: 55 | BE154: 7.152367677 | BF154: 92.84763232 | BG154: 1331.03373 | BH154: 15500.09046 | BI154: 0.08587264271 | BJ154: 1235.833304 | BK154: 95.20042627 | BL154: 0 | BM154: 0 | BN154: 0 | BO154: 0 | BP154: 28.56327597 | BQ154: 37.56353149 | BR154: 36.48151356 | BW154: No | BX154: No | BY154: 9 | BZ154: 12 | CA154: No | CB154: 0 | CC154: 0 | CD154: 2 Lane Undivided | CF154: None | CG154: None | CH154: 2 | CI154: No | CJ154: 34 | CK154: 33288000 | CL154: 0 | CM154: 0 | CN154: 33288000 | CP154: 33288000 | CQ154: 33288000
A155: H090136 | B155: Statewide Mobility | C155: R-2595 | D155: US-221 | E155: NC 194 | F155: NC 181 in Linville | G155: Widen to Multi-Lanes. | H155: 1 - Widen Existing Roadway | I155: 95900000 | J155: 7.312259531 | K155: 7.126482549 | L155: 4.55507644 | M155: 22.74991969 | N155: 0.02546251303 | O155: 0 | P155: 2.176081104 | Q155: 0.444286503 | R155: 14.32637 | S155: N/A | T155: N/A | V155: High Country RPO | W155: 100 | AB155: 11 | AC155: 100 | AH155: Avery | AI155: 100 | AP155: 11 | AQ155: F | AR155: 11, , | AS155: High Country RPO, , | AT155: Avery, , , | AU155: 6.40549526 | AV155: 6.40549526 | AW155: Two Lane Highway | AX155: Multi-Lane Highway | AY155: 1 | AZ155: 2 | BA155: Undivided | BB155: Divided | BC155: 50 | BD155: 50 | BE155: 8.100981538 | BF155: 91.89901846 | BG155: 5372.388749 | BH155: 15647.00186 | BI155: 0.3433494031 | BJ155: 4937.172528 | BK155: 435.2162207 | BL155: 98670.10991 | BM155: 8697.859369 | BN155: 107367.9693 | BO155: 2441855 | BP155: 0 | BQ155: 0 | BR155: 0 | BU155: 2 | BV155: 6.885730059e-06 | BW155: No | BX155: No | BY155: 10 | BZ155: 12 | CA155: No | CB155: 0 | CC155: 2 | CD155: 2 Lane Undivided | CE155: 4A - 4 Lane Divided (46' Depressed Median) with Paved Shoulders | CF155: None | CG155: Partial | CH155: 2 | CI155: Yes | CJ155: 20 | CK155: 57400000 | CL155: 37200000 | CM155: 1300000 | CN155: 95900000 | CP155: 95900000 | CQ155: 95900000
A156: H090137 | B156: Regional Impact | C156: R-2599 | D156: NC-226 | E156: NC 197 | F156: NC 261 | G156: NC 197 to NC 261. Upgrade Two Lanes. | H156: 16 - Modernize Roadway | I156: 27360000 | J156: N/A | K156: 9.126105234 | L156: 5.93756509 | M156: 8.012042891 | N156: 0 | O156: 43.35156512 | P156: 0.4324849275 | Q156: N/A | R156: 27.87937999 | S156: N/A | T156: N/A | V156: High Country RPO | W156: 100 | AB156: 13 | AC156: 100 | AH156: Mitchell | AI156: 100 | AP156: 13 | AQ156: G | AR156: 13, , | AS156: High Country RPO, , | AT156: Mitchell, , , | AU156: 5.49234434 | AV156: 5.49234434 | AW156: Two Lane Highway | AX156: Two Lane Highway | AY156: 1 | AZ156: 1 | BA156: Undivided | BB156: Undivided | BC156: 52 | BD156: 52 | BE156: 4.602421335 | BF156: 95.39757866 | BG156: 1879.379987 | BH156: 15531.44369 | BI156: 0.1210048483 | BJ156: 1792.883002 | BK156: 86.4969855 | BL156: 0 | BM156: 0 | BN156: 0 | BO156: 0 | BP156: 41.71962451 | BQ156: 37.5930935 | BR156: 50.75498413 | BW156: No | BX156: No | BY156: 10 | BZ156: 11 | CA156: No | CB156: 0 | CC156: 0 | CD156: 2 Lane Undivided | CF156: None | CG156: None | CH156: 1 | CI156: No | CJ156: 33 | CK156: 27360000 | CL156: 0 | CM156: 0 | CN156: 27360000 | CP156: 27360000 | CQ156: 27360000
A157: H090138-C | B157: Regional Impact | C157: R-2568C | D157: NC-109 | E157: North of SR 1756 (Old Greensboro Road) | F157: I-40/US 311 | G157: Widen to Multi-Lanes with Bypass of Wallburg, Part on New Location | H157: 6 - Widen Existing Roadway and Construct Part on New Location | I157: 141463000 | J157: N/A | K157: 19.00408303 | L157: 14.38546745 | M157: 34.98963426 | N157: 0.5378027258 | O157: 72.79980051 | P157: 1.720834408 | Q157: N/A | R157: 28.42243737 | S157: N/A | T157: N/A | V157: Winston Salem Urban Area MPO | W157: 50.33 | X157: High Point Urban Area MPO | Y157: 49.67 | AB157: 09 | AC157: 100 | AH157: Davidson | AI157: 61.25 | AJ157: Forsyth | AK157: 38.75 | AP157: 9 | AQ157: D | AR157: 09, , | AS157: Winston Salem Urban Area MPO, High Point Urban Area MPO, | AT157: Davidson, Forsyth, , | AU157: 6.5 | AV157: 9.44509783 | AW157: Arterial | AX157: Multi-Lane Highway | AY157: 1 | AZ157: 2 | BA157: Undivided | BB157: Divided | BC157: 49 | BD157: 50 | BE157: 3.757931024 | BF157: 96.24206898 | BG157: 9158.414014 | BH157: 17541.34356 | BI157: 0.5221044775 | BJ157: 8814.247132 | BK157: 344.1668815 | BL157: 3276862.257 | BM157: 127950.5155 | BN157: 3404812.772 | BO157: 76079187 | BP157: 84.22643103 | BQ157: 68.51291304 | BR157: 65.68189958 | BW157: No | BX157: No | BY157: 11 | BZ157: 12 | CA157: No | CB157: 0 | CC157: 4 | CD157: New Roadway | CE157: 4A - 4 Lane Divided (46' Depressed Median) with Paved Shoulders | CF157: None | CG157: Partial | CH157: 2 | CI157: Yes | CJ157: 22 | CK157: 83000000 | CL157: 49010000 | CM157: 9453000 | CN157: 141463000 | CP157: 141463000 | CQ157: 141463000
A158: H090139 | B158: Statewide Mobility | C158: R-2574 | D158: US-158 | E158: East of NC 34 at Belcross in Camden County | F158: NC 168 in Currituck County | G158: Widen to Multi-Lanes. | H158: 1 - Widen Existing Roadway | I158: 124500000 | J158: 12.91780651 | K158: 10.31740258 | L158: 6.876624666 | M158: 25.89919279 | N158: 0.04931162249 | O158: 42.81774225 | P158: 3.751324639 | Q158: 1.012160306 | R158: 40.17555194 | S158: 0 | T158: 0 | V158: Albemarle RPO | W158: 100 | AB158: 01 | AC158: 100 | AH158: Currituck | AI158: 81.82 | AJ158: Camden | AK158: 18.18 | AP158: 1 | AQ158: A | AR158: 01, , | AS158: Albemarle RPO, , | AT158: Currituck, Camden, , | AU158: 10.2830142 | AV158: 10.2830142 | AW158: Two Lane Highway | AX158: Multi-Lane Highway | AY158: 1 | AZ158: 2 | BA158: Undivided | BB158: Divided | BC158: 55 | BD158: 55 | BE158: 12.36870607 | BF158: 87.63129393 | BG158: 6065.831976 | BH158: 15505.13736 | BI158: 0.3912143334 | BJ158: 5315.567048 | BK158: 750.2649278 | BL158: 232553.6734 | BM158: 32823.75396 | BN158: 265377.4274 | BO158: 6139297 | BP158: 47.38744748 | BQ158: 46.64002148 | BR158: 34.43860439 | BU158: 4 | BV158: 1.624320611e-05 | BW158: No | BX158: No | BY158: 12 | BZ158: 12 | CA158: No | CB158: 0 | CC158: 2 | CD158: 2 Lane Undivided | CE158: 4A - 4 Lane Divided (46' Depressed Median) with Paved Shoulders | CF158: None | CG158: Partial | CH158: 2 | CI158: Yes | CJ158: 32 | CK158: 82500000 | CL158: 40600000 | CM158: 1400000 | CN158: 124500000 | CP158: 124500000 | CQ158: 124500000
A159: H090140-A | B159: Statewide Mobility | C159: R-2575A | D159: US-158 | E159: NC 86 West of Yanceyville | F159: NC 86 Near Pleasant Grove | G159: Widen to Multi-Lanes. | H159: 1 - Widen Existing Roadway | I159: 21000000 | J159: 16.31039658 | K159: 17.63622311 | L159: 12.09174969 | M159: 34.11812629 | N159: 0.452352 | O159: 51.77654037 | P159: 3.432270267 | Q159: 0.7514499863 | R159: 38.15949505 | S159: N/A | T159: N/A | V159: Piedmont Triad RPO | W159: 100 | AB159: 07 | AC159: 100 | AH159: Caswell | AI159: 100 | AP159: 7 | AQ159: D | AR159: 07, , | AS159: Piedmont Triad RPO, , | AT159: Caswell, , , | AU159: 5.21571672 | AV159: 5.21571672 | AW159: Two Lane Highway | AX159: Multi-Lane Highway | AY159: 1 | AZ159: 2 | BA159: Undivided | BB159: Divided | BC159: 55 | BD159: 55 | BE159: 8.524028154 | BF159: 91.47597185 | BG159: 8053.165018 | BH159: 15638.80267 | BI159: 0.5149476714 | BJ159: 7366.710965 | BK159: 686.4540534 | BL159: 381432.3989 | BM159: 35543.10976 | BN159: 416975.5087 | BO159: 9499392 | BP159: 63.63542851 | BQ159: 38.7594627 | BR159: 52.95026441 | BU159: 7 | BV159: 8.028999726e-06 | BW159: No | BX159: No | BY159: 12 | BZ159: 12 | CA159: No | CB159: 3 | CC159: 4 | CD159: 2 Lane Undivided | CE159: 4A - 4 Lane Divided (46' Depressed Median) with Paved Shoulders | CF159: None | CG159: Partial | CH159: 1 | CI159: Yes | CJ159: 27 | CK159: 18000000 | CL159: 3000000 | CM159: 0 | CN159: 21000000 | CP159: 21000000 | CQ159: 21000000
A160: H090140-B | B160: Statewide Mobility | C160: R-2575B | D160: US-158 | E160: NC 86 Near Pleasant Grove | F160: SR 1159 (Thee Hester Road) in Person County | G160: Widen to Multi-Lanes. | H160: 1 - Widen Existing Roadway | I160: 49000000 | J160: 7.000782562 | K160: 8.993247939 | L160: 6.072808471 | M160: 7.654891403 | N160: 0 | O160: 45.4183019 | P160: 0.8124247548 | Q160: 0 | R160: 25.37694898 | S160: N/A | T160: N/A | V160: Piedmont Triad RPO | W160: 63.78 | X160: Kerr-Tar RPO | Y160: 36.22 | AB160: 07 | AC160: 63.78 | AD160: 05 | AE160: 36.22 | AH160: Caswell | AI160: 63.78 | AJ160: Person | AK160: 36.22 | AP160: 7 | AQ160: D | AR160: 07, 05, | AS160: Piedmont Triad RPO, Kerr-Tar RPO, | AT160: Caswell, Person, , | AU160: 11.8618336 | AV160: 11.8618336 | AW160: Two Lane Highway | AX160: Multi-Lane Highway | AY160: 1 | AZ160: 2 | BA160: Undivided | BB160: Divided | BC160: 55 | BD160: 55 | BE160: 9.065640279 | BF160: 90.93435972 | BG160: 1792.316328 | BH160: 15500.07555 | BI160: 0.1156327479 | BJ160: 1629.831377 | BK160: 162.484951 | BL160: 0 | BM160: 0 | BN160: 0 | BO160: 0 | BP160: 41.25278336 | BQ160: 40.27727268 | BR160: 54.73847651 | BU160: 0 | BV160: 0 | BW160: No | BX160: No | BY160: 10 | BZ160: 12 | CA160: No | CB160: 1 | CC160: 0 | CD160: 2 Lane Undivided | CE160: 4A - 4 Lane Divided (46' Depressed Median) with Paved Shoulders | CF160: None | CG160: Partial | CH160: 1 | CI160: Yes | CJ160: 30 | CK160: 40600000 | CL160: 8400000 | CM160: 0 | CN160: 49000000 | CP160: 49000000 | CQ160: 49000000
A161: H090142-A | B161: Statewide Mobility | C161: R-2577A | D161: US-158 | E161: Multi-Lanes North of US 421/I-40 Business | F161: SR 1965 (Belews Creek Road) | G161: Widen to Multi-Lanes. | H161: 1 - Widen Existing Roadway | I161: 35208000 | J161: 36.98320342 | K161: 31.54267231 | L161: 23.12075518 | M161: 67.29978533 | N161: 12.33175213 | O161: 71.94447685 | P161: 9.257982742 | Q161: 40.47697947 | R161: 44.40340261 | S161: N/A | T161: N/A | V161: Winston Salem Urban Area MPO | W161: 100 | AB161: 09 | AC161: 100 | AH161: Forsyth | AI161: 100 | AP161: 9 | AQ161: D | AR161: 09, , | AS161: Winston Salem Urban Area MPO, , | AT161: Forsyth, , , | AU161: 5.2031074 | AV161: 5.2031074 | AW161: Arterial | AX161: Multi-Lane Highway | AY161: 1 | AZ161: 2 | BA161: Undivided | BB161: Divided | BC161: 50 | BD161: 45 | BE161: 11.25002383 | BF161: 88.74997617 | BG161: 16458.60112 | BH161: 16264.4189 | BI161: 1.011939081 | BJ161: 14607.00457 | BK161: 1851.596548 | BL161: 16730532.56 | BM161: 2120776.795 | BN161: 18851309.36 | BO161: 434176329 | BP161: 76.53785626 | BQ161: 80.84564511 | BR161: 58.47151467 | BU161: 318 | BV161: 0.0004915395895 | BW161: No | BX161: No | BY161: 12 | BZ161: 12 | CA161: No | CB161: 2 | CC161: 4 | CD161: 2 Lane Undivided | CE161: 4C - 4 Lane Divided (23' Raised Median) with Curb & Gutter, Wide Outside Lanes, and Sidewalks | CF161: None | CG161: Partial | CH161: 3 | CI161: Yes | CJ161: 23 | CK161: 24100000 | CL161: 7800000 | CM161: 3308000 | CN161: 35208000 | CP161: 35208000 | CQ161: 35208000
A162: H090142-B | B162: Statewide Mobility | C162: R-2577B | D162: US-158 | E162: SR 1965 (Belews Creek Road) in Forsyth County | F162: SR 2034 (Anthony Road) in Guilford County | G162: Widen to Multi-Lanes. | H162: 1 - Widen Existing Roadway | I162: 42900000 | J162: 18.76185383 | K162: 18.05354706 | L162: 13.11435532 | M162: 35.4691005 | N162: 0.4226784848 | O162: 59.35999524 | P162: 9.435304255 | Q162: 1.712597583 | R162: 31.44602788 | S162: N/A | T162: N/A | V162: Winston Salem Urban Area MPO | W162: 86.23 | X162: Greensboro Urban Area MPO | Y162: 13.77 | AB162: 09 | AC162: 86.34 | AD162: 07 | AE162: 13.66 | AH162: Forsyth | AI162: 86.34 | AJ162: Guilford | AK162: 13.66 | AP162: 9 | AQ162: D | AR162: 09, 07, | AS162: Winston Salem Urban Area MPO, Greensboro Urban Area MPO, | AT162: Forsyth, Guilford, , | AU162: 7.53080434 | AV162: 7.53080434 | AW162: Two Lane Highway | AX162: Multi-Lane Highway | AY162: 1 | AZ162: 2 | BA162: Undivided | BB162: Divided | BC162: 52 | BD162: 52 | BE162: 22.64288632 | BF162: 77.35711368 | BG162: 8334.011947 | BH162: 15560.38597 | BI162: 0.5355915954 | BJ162: 6446.951096 | BK162: 1887.060851 | BL162: 582608.7275 | BM162: 170533.0326 | BN162: 753141.7601 | BO162: 18132907 | BP162: 73.7383652 | BQ162: 57.10760769 | BR162: 47.2518226 | BU162: 13.26183965 | BV162: 2.099011202e-05 | BW162: No | BX162: No | BY162: 12 | BZ162: 12 | CA162: No | CB162: 2 | CC162: 4 | CD162: 2 Lane Undivided | CE162: 4C - 4 Lane Divided (23' Raised Median) with Curb & Gutter, Wide Outside Lanes, and Sidewalks | CF162: None | CG162: Partial | CH162: 3 | CI162: Yes | CJ162: 26 | CK162: 36100000 | CL162: 6800000 | CM162: 0 | CN162: 42900000 | CP162: 42900000 | CQ162: 42900000
A163: H090142-C | B163: Statewide Mobility | C163: R-2577C | D163: US-158 | E163: SR 2034 (Anthony Road) | F163: US 220 | G163: Widen to Multi-Lanes. | H163: 1 - Widen Existing Roadway | I163: 30200000 | J163: 19.38986299 | K163: 18.03577996 | L163: 12.60322405 | M163: 32.02060018 | N163: 7.944701291 | O163: 46.10163754 | P163: 4.538245428 | Q163: 18.82459712 | R163: 34.34290841 | S163: N/A | T163: N/A | V163: Greensboro Urban Area MPO | W163: 100 | AB163: 07 | AC163: 100 | AH163: Guilford | AI163: 100 | AP163: 7 | AQ163: D | AR163: 07, , | AS163: Greensboro Urban Area MPO, , | AT163: Guilford, , , | AU163: 6.18048484 | AV163: 6.18048484 | AW163: Arterial | AX163: Multi-Lane Highway | AY163: 1 | AZ163: 2 | BA163: Undivided | BB163: Divided | BC163: 35 | BD163: 45 | BE163: 11.89799174 | BF163: 88.10200826 | BG163: 7628.590652 | BH163: 15800.09145 | BI163: 0.4828193986 | BJ163: 6720.941566 | BK163: 907.6490857 | BL163: 9154333.3 | BM163: 1236273.544 | BN163: 10390606.84 | BO163: 239929979 | BP163: 47.86523143 | BQ163: 50.65765544 | BR163: 39.79585762 | BU163: 171 | BV163: 0.0002054919425 | BW163: No | BX163: No | BY163: 12 | BZ163: 12 | CA163: No | CB163: 0 | CC163: 2 | CD163: 2 Lane Undivided | CE163: 4C - 4 Lane Divided (23' Raised Median) with Curb & Gutter, Wide Outside Lanes, and Sidewalks | CF163: None | CG163: Partial | CH163: 2 | CI163: Yes | CJ163: 27 | CK163: 25400000 | CL163: 4800000 | CM163: 0 | CN163: 30200000 | CP163: 30200000 | CQ163: 30200000
A164: H090145 | B164: Statewide Mobility | C164: R-2578 | D164: US-158 | E164: US 13 | F164: NC 32 in Sunbury | G164: Widen to Multi-Lanes. | H164: 1 - Widen Existing Roadway | I164: 110400000 | J164: 8.215454447 | K164: 8.187322071 | L164: 5.458214714 | M164: 11.95054564 | N164: 0 | O164: 42.6316015 | P164: 1.835653025 | Q164: 0 | R164: 48.39426551 | S164: 0 | T164: 0 | V164: Albemarle RPO | W164: 100 | AB164: 01 | AC164: 100 | AH164: Gates | AI164: 100 | AP164: 1 | AQ164: A | AR164: 01, , | AS164: Albemarle RPO, , | AT164: Gates, , , | AU164: 14.96563003 | AV164: 14.96563003 | AW164: Two Lane Highway | AX164: Multi-Lane Highway | AY164: 1 | AZ164: 2 | BA164: Undivided | BB164: Divided | BC164: 55 | BD164: 55 | BE164: 13.12076458 | BF164: 86.87923542 | BG164: 2798.088502 | BH164: 15500.00013 | BI164: 0.1805218373 | BJ164: 2430.957897 | BK164: 367.130605 | BL164: 0 | BM164: 0 | BN164: 0 | BO164: 0 | BP164: 42.38486731 | BQ164: 36.44974531 | BR164: 49.07298264 | BU164: 0 | BV164: 0 | BW164: No | BX164: No | BY164: 12 | BZ164: 12 | CA164: No | CB164: 0 | CC164: 0 | CD164: 2 Lane Undivided | CE164: 4A - 4 Lane Divided (46' Depressed Median) with Paved Shoulders | CF164: None | CG164: Partial | CH164: 1 | CI164: Yes | CJ164: 40 | CK164: 65000000 | CL164: 35500000 | CM164: 9900000 | CN164: 110400000 | CP164: 110400000 | CQ164: 110400000
A165: H090146 | B165: Statewide Mobility | C165: R-2579 | D165: US-158 | E165: NC 32 in Sunbury in Gates County | F165: US 17 at Morgan's County in Pasquotank County | G165: Widen to Multi-Lanes. | H165: 1 - Widen Existing Roadway | I165: 116900000 | J165: 10.16918507 | K165: 9.845751064 | L165: 6.563292824 | M165: 16.03748703 | N165: 0.01623656116 | O165: 49.57920465 | P165: 1.814722566 | Q165: 0.3220301766 | R165: 44.01887997 | S165: 0 | T165: 0 | V165: Albemarle RPO | W165: 100 | AB165: 01 | AC165: 100 | AH165: Pasquotank | AI165: 50.79 | AJ165: Gates | AK165: 49.21 | AP165: 1 | AQ165: A | AR165: 01, , | AS165: Albemarle RPO, , | AT165: Pasquotank, Gates, , | AU165: 15.56536012 | AV165: 15.56536012 | AW165: Two Lane Highway | AX165: Multi-Lane Highway | AY165: 1 | AZ165: 2 | BA165: Undivided | BB165: Divided | BC165: 55 | BD165: 55 | BE165: 9.660281772 | BF165: 90.33971823 | BG165: 3757.079988 | BH165: 15509.47021 | BI165: 0.2422442506 | BJ165: 3394.135475 | BK165: 362.9445132 | BL165: 74923.87991 | BM165: 8011.822547 | BN165: 82935.70245 | BO165: 1898054 | BP165: 55.62165342 | BQ165: 44.95899577 | BR165: 48.17184001 | BU165: 1 | BV165: 5.440603532e-06 | BW165: No | BX165: No | BY165: 12 | BZ165: 12 | CA165: No | CB165: 1 | CC165: 0 | CD165: 2 Lane Undivided | CE165: 4A - 4 Lane Divided (46' Depressed Median) with Paved Shoulders | CF165: None | CG165: Partial | CH165: 2 | CI165: Yes | CJ165: 37 | CK165: 91500000 | CL165: 20000000 | CM165: 5400000 | CN165: 116900000 | CP165: 116900000 | CQ165: 116900000
A166: H090147-A | B166: Statewide Mobility | C166: R-2580A | D166: US-158 | E166: US 220 | F166: US 29 Business (Freeway Drive) | G166: Widen to Multi-Lanes. | H166: 1 - Widen Existing Roadway | I166: 188600000 | J166: 12.21023029 | K166: 13.77019036 | L166: 9.462451909 | M166: 22.47226684 | N166: 0.02879014846 | O166: 49.62240511 | P166: 2.267328468 | Q166: 0.4420698979 | R166: 31.82685599 | S166: N/A | T166: N/A | V166: Piedmont Triad RPO | W166: 89.94 | X166: Greensboro Urban Area MPO | Y166: 10.06 | AB166: 07 | AC166: 100 | AH166: Rockingham | AI166: 90.52 | AJ166: Guilford | AK166: 9.48 | AP166: 7 | AQ166: D | AR166: 07, , | AS166: Piedmont Triad RPO, Greensboro Urban Area MPO, | AT166: Rockingham, Guilford, , | AU166: 15.34451912 | AV166: 15.34451912 | AW166: Two Lane Highway | AX166: Multi-Lane Highway | AY166: 1 | AZ166: 2 | BA166: Undivided | BB166: Divided | BC166: 53 | BD166: 53 | BE166: 8.595497941 | BF166: 91.40450206 | BG166: 5275.618663 | BH166: 15545.46796 | BI166: 0.3393669896 | BJ166: 4822.152969 | BK166: 453.4656936 | BL166: 217792.5373 | BM166: 20480.7779 | BN166: 238273.3152 | BO166: 5429822 | BP166: 63.44477306 | BQ166: 39.65900707 | BR166: 45.77832342 | BU166: 4.072968387 | BV166: 4.76842957e-06 | BW166: No | BX166: No | BY166: 12 | BZ166: 12 | CA166: No | CB166: 0 | CC166: 2 | CD166: 2 Lane Undivided | CE166: 4C - 4 Lane Divided (23' Raised Median) with Curb & Gutter, Wide Outside Lanes, and Sidewalks | CF166: None | CG166: Partial | CH166: 1 | CI166: Yes | CJ166: 28 | CK166: 101600000 | CL166: 80000000 | CM166: 7000000 | CN166: 188600000 | CP166: 188600000 | CQ166: 188600000
A167: H090148 | B167: Statewide Mobility | C167: R-2581 | D167: US-158 , NC-903 | E167: SR 1405 (Roanoke Chapel Road) East of Littleton | F167: I-95 South of Roanoke Rapids | G167: Widen to Multi-Lanes. | H167: 1 - Widen Existing Roadway | I167: 86400000 | J167: 16.51222999 | K167: 14.26758295 | L167: 9.496655226 | M167: 28.46212722 | N167: 0.4520022222 | O167: 66.05242282 | P167: 4.124432631 | Q167: 4.078623502 | R167: 26.5083791 | S167: 0 | T167: 0 | V167: Peanut Belt RPO | W167: 100 | AB167: 04 | AC167: 100 | AH167: Halifax | AI167: 100 | AP167: 4 | AQ167: A | AR167: 04, , | AS167: Peanut Belt RPO, , | AT167: Halifax, , , | AU167: 15.95207044 | AV167: 15.95207044 | AW167: Two Lane Highway | AX167: Multi-Lane Highway | AY167: 1 | AZ167: 2 | BA167: Undivided | BB167: Divided | BC167: 52 | BD167: 55 | BE167: 10.99439266 | BF167: 89.00560734 | BG167: 7502.793032 | BH167: 17680.66474 | BI167: 0.4243501668 | BJ167: 6677.906506 | BK167: 824.8865262 | BL167: 1510738.532 | BM167: 186613.553 | BN167: 1697352.085 | BO167: 39052992 | BP167: 78.90218864 | BQ167: 58.10972508 | BR167: 61.16517245 | BU167: 28 | BV167: 5.357247003e-05 | BW167: No | BX167: No | BY167: 12 | BZ167: 12 | CA167: No | CB167: 2 | CC167: 2 | CD167: 2 Lane Undivided | CE167: 4A - 4 Lane Divided (46' Depressed Median) with Paved Shoulders | CF167: None | CG167: Partial | CH167: 1 | CI167: Yes | CJ167: 22 | CK167: 58300000 | CL167: 28100000 | CM167: 0 | CN167: 86400000 | CP167: 86400000 | CQ167: 86400000
A168: H090149-A | B168: Statewide Mobility | C168: R-2584A | D168: US-158 | E168: SR 1333 (Mt. Caramel Road-Severn Road) East of Jackson | F168: East of SR 1500 | G168: Widen to Multi-Lanes, Part on New Location. | H168: 1 - Widen Existing Roadway | I168: 35400000 | J168: 6.766591786 | K168: 6.19536665 | L168: 4.130244433 | M168: 11.37550415 | N168: 0 | O168: 29.92694018 | P168: 1.806232616 | Q168: 0 | R168: 19.99034667 | S168: 0 | T168: 0 | V168: Peanut Belt RPO | W168: 100 | AB168: 01 | AC168: 100 | AH168: Northampton | AI168: 100 | AP168: 1 | AQ168: A | AR168: 01, , | AS168: Peanut Belt RPO, , | AT168: Northampton, , , | AU168: 8.89598749 | AV168: 8.89598749 | AW168: Two Lane Highway | AX168: Multi-Lane Highway | AY168: 1 | AZ168: 2 | BA168: Undivided | BB168: Divided | BC168: 55 | BD168: 55 | BE168: 13.56311077 | BF168: 86.43688923 | BG168: 2663.448889 | BH168: 15500.00021 | BI168: 0.1718354099 | BJ168: 2302.202366 | BK168: 361.2465232 | BL168: 0 | BM168: 0 | BN168: 0 | BO168: 0 | BP168: 31.48899704 | BQ168: 30.54223758 | BR168: 27.75856491 | BU168: 0 | BV168: 0 | BW168: No | BX168: No | BY168: 12 | BZ168: 12 | CA168: No | CB168: 2 | CC168: 0 | CD168: 2 Lane Undivided | CE168: 4A - 4 Lane Divided (46' Depressed Median) with Paved Shoulders | CF168: None | CG168: Partial | CH168: 1 | CI168: Yes | CJ168: 26 | CK168: 31300000 | CL168: 4100000 | CM168: 0 | CN168: 35400000 | CP168: 35400000 | CQ168: 35400000
A169: H090149-B | B169: Statewide Mobility | C169: R-2584B | D169: US-158 | E169: East of SR 1500 | F169: East of SR 1365 | G169: Widen to Multi-Lanes, Part on New Location. | H169: 6 - Widen Existing Roadway and Construct Part on New Location | I169: 54800000 | J169: 7.930555896 | K169: 5.724812572 | L169: 3.814608671 | M169: 17.8257983 | N169: 0.05799131387 | O169: 20.2622971 | P169: 2.695946515 | Q169: 0 | R169: 24.61286303 | S169: 0 | T169: 0 | V169: Peanut Belt RPO | W169: 100 | AB169: 01 | AC169: 100 | AH169: Northampton | AI169: 100 | AP169: 1 | AQ169: A | AR169: 01, , | AS169: Peanut Belt RPO, , | AT169: Northampton, , , | AU169: 3.5 | AV169: 3.90672736 | AW169: Two Lane Highway | AX169: Multi-Lane Highway | AY169: 1 | AZ169: 2 | BA169: Undivided | BB169: Divided | BC169: 47 | BD169: 55 | BE169: 12.82474808 | BF169: 87.17525192 | BG169: 4204.287677 | BH169: 15625.36919 | BI169: 0.2690680537 | BJ169: 3665.098374 | BK169: 539.189303 | BL169: 119535.7299 | BM169: 17585.44528 | BN169: 137121.1752 | BO169: 3177924 | BP169: 28.27787548 | BQ169: 8.9871338 | BR169: 23.52796132 | BU169: 0 | BV169: 0 | BW169: No | BX169: No | BY169: 12 | BZ169: 12 | CA169: No | CB169: 1 | CC169: 2 | CD169: New Roadway | CE169: 4A - 4 Lane Divided (46' Depressed Median) with Paved Shoulders | CF169: None | CG169: Partial | CH169: 1 | CI169: Yes | CJ169: 26 | CK169: 47600000 | CL169: 7200000 | CM169: 0 | CN169: 54800000 | CP169: 54800000 | CQ169: 54800000
A170: H090149-C | B170: Statewide Mobility | C170: R-2584C | D170: US-158 | E170: East of SR 1365 | F170: Murfreesboro Bypass | G170: Widen to Multi-Lanes, Part on New Location. | H170: 1 - Widen Existing Roadway | I170: 15500000 | J170: 9.368198144 | K170: 8.442194303 | L170: 5.627067316 | M170: 16.47128263 | N170: 0.03186658065 | O170: 39.76752395 | P170: 2.168715031 | Q170: 0.06757979615 | R170: 23.56970759 | S170: 0 | T170: 0 | V170: Peanut Belt RPO | W170: 100 | AB170: 01 | AC170: 100 | AH170: Northampton | AI170: 100 | AP170: 1 | AQ170: A | AR170: 01, , | AS170: Peanut Belt RPO, , | AT170: Northampton, , , | AU170: 3.92116135 | AV170: 3.92116135 | AW170: Two Lane Highway | AX170: Multi-Lane Highway | AY170: 1 | AZ170: 2 | BA170: Undivided | BB170: Divided | BC170: 55 | BD170: 55 | BE170: 11.24686176 | BF170: 88.75313824 | BG170: 3856.569196 | BH170: 15500 | BI170: 0.2488109159 | BJ170: 3422.82619 | BK170: 433.7430062 | BL170: 19034.0617 | BM170: 2412.010042 | BN170: 21446.07174 | BO170: 493932 | BP170: 45.61882753 | BQ170: 32.73666917 | BR170: 40.9590066 | BU170: 0 | BV170: 1.351595923e-06 | BW170: No | BX170: No | BY170: 12 | BZ170: 12 | CA170: No | CB170: 2 | CC170: 0 | CD170: 2 Lane Undivided | CE170: 4A - 4 Lane Divided (46' Depressed Median) with Paved Shoulders | CF170: None | CG170: Partial | CH170: 1 | CI170: Yes | CJ170: 26 | CK170: 10800000 | CL170: 4700000 | CM170: 0 | CN170: 15500000 | CP170: 15500000 | CQ170: 15500000
A171: H090152 | B171: Statewide Mobility | C171: R-2585 | D171: US-158 | E171: SR 1159 (Thee Hester Road) West of Roxboro | F171: Oxford Outer Loop | G171: Widen to Multi-Lanes with Bypass of Roxboro on New Location, | H171: 6 - Widen Existing Roadway and Construct Part on New Location | I171: 146100000 | J171: 11.18293545 | K171: 12.86354724 | L171: 8.84126537 | M171: 15.88903329 | N171: 0.006222710472 | O171: 56.62214171 | P171: 3.434122183 | Q171: 0.6532004074 | R171: 32.27519065 | S171: N/A | T171: N/A | V171: Kerr-Tar RPO | W171: 100 | AB171: 05 | AC171: 100 | AH171: Person | AI171: 60.29 | AJ171: Granville | AK171: 39.71 | AP171: 5 | AQ171: C | AR171: 05, , | AS171: Kerr-Tar RPO, , | AT171: Person, Granville, , | AU171: 28.8 | AV171: 27.90523707 | AW171: Two Lane Highway | AX171: Multi-Lane Highway | AY171: 1 | AZ171: 2 | BA171: Undivided | BB171: Divided | BC171: 52 | BD171: 50 | BE171: 17.82479657 | BF171: 82.17520343 | BG171: 3853.196494 | BH171: 16113.44734 | BI171: 0.2391292448 | BJ171: 3166.372057 | BK171: 686.8244365 | BL171: 31609.94633 | BM171: 6856.580081 | BN171: 38466.52641 | BO171: 909138 | BP171: 59.02762547 | BQ171: 47.58430651 | BR171: 63.27148148 | BU171: 8 | BV171: 5.064008147e-06 | BW171: No | BX171: No | BY171: 10 | BZ171: 12 | CA171: No | CB171: 2 | CC171: 0 | CD171: New Roadway | CE171: 4A - 4 Lane Divided (46' Depressed Median) with Paved Shoulders | CF171: None | CG171: Partial | CH171: 2 | CI171: Yes | CJ171: 31 | CK171: 122600000 | CL171: 23500000 | CM171: 0 | CN171: 146100000 | CP171: 146100000 | CQ171: 146100000
A172: H090153 | B172: Statewide Mobility | C172: R-2586 | D172: US-158 | E172: US 29 at NC 14 | F172: NC 86 West of Yanceyville | G172: Widen to Multi-Lanes. | H172: 1 - Widen Existing Roadway | I172: 141554000 | J172: 9.65830958 | K172: 11.32877157 | L172: 8.122357125 | M172: 13.26964834 | N172: 0 | O172: 54.68427457 | P172: 1.044938107 | Q172: 0 | R172: 25.42932023 | S172: N/A | T172: N/A | V172: Piedmont Triad RPO | W172: 100 | AB172: 07 | AC172: 100 | AH172: Caswell | AI172: 63.62 | AJ172: Rockingham | AK172: 36.38 | AP172: 7 | AQ172: D | AR172: 07, , | AS172: Piedmont Triad RPO, , | AT172: Caswell, Rockingham, , | AU172: 18.786491 | AV172: 18.786491 | AW172: Two Lane Highway | AX172: Multi-Lane Highway | AY172: 1 | AZ172: 2 | BA172: Undivided | BB172: Divided | BC172: 51 | BD172: 51 | BE172: 6.649078073 | BF172: 93.35092193 | BG172: 3143.106745 | BH172: 15699.30373 | BI172: 0.2002067607 | BJ172: 2934.119124 | BK172: 208.9876214 | BL172: 0 | BM172: 0 | BN172: 0 | BO172: 0 | BP172: 59.0828002 | BQ172: 45.90652213 | BR172: 59.0799083 | BU172: 0 | BV172: 0 | BW172: No | BX172: No | BY172: 12 | BZ172: 12 | CA172: No | CB172: 2 | CC172: 0 | CD172: 2 Lane Undivided | CE172: 4A - 4 Lane Divided (46' Depressed Median) with Paved Shoulders | CF172: None | CG172: Partial | CH172: 1 | CI172: Yes | CJ172: 28 | CK172: 109000000 | CL172: 29066000 | CM172: 3488000 | CN172: 141554000 | CP172: 141554000 | CQ172: 141554000
A173: H090154 | B173: Statewide Mobility | C173: R-2587 | D173: US-158 | E173: I-85 in Warren County | F173: SR 1405 East of Littleton in Halifax County | G173: Widen to Multi-Lanes with Bypasses of Norlina, Macon and Littleton on New Location. | H173: 6 - Widen Existing Roadway and Construct Part on New Location | I173: 130625000 | J173: 8.283665827 | K173: 8.851545832 | L173: 5.992793301 | M173: 15.35404819 | N173: 0.2094352077 | O173: 28.80096621 | P173: 2.691433156 | Q173: 1.962375549 | R173: 20.80578361 | S173: N/A | T173: N/A | V173: Kerr-Tar RPO | W173: 96.12 | X173: Peanut Belt RPO | Y173: 3.88 | AB173: 05 | AC173: 96.12 | AD173: 04 | AE173: 3.88 | AH173: Warren | AI173: 96.12 | AJ173: Halifax | AK173: 3.88 | AP173: 5 | AQ173: C | AR173: 05, 04, | AS173: Kerr-Tar RPO, Peanut Belt RPO, | AT173: Warren, Halifax, , | AU173: 22.9 | AV173: 22.17174384 | AW173: Two Lane Highway | AX173: Multi-Lane Highway | AY173: 1 | AZ173: 2 | BA173: Undivided | BB173: Divided | BC173: 52 | BD173: 55 | BE173: 14.9444034 | BF173: 85.0555966 | BG173: 3601.927871 | BH173: 15533.05318 | BI173: 0.2318879508 | BJ173: 3063.64124 | BK173: 538.2866312 | BL173: 995663.7983 | BM173: 174939.7106 | BN173: 1170603.509 | BO173: 27357474 | BP173: 36.14123072 | BQ173: 23.67928955 | BR173: 26.5910195 | BU173: 23 | BV173: 1.624751099e-05 | BW173: No | BX173: No | BY173: 11 | BZ173: 12 | CA173: No | CB173: 1 | CC173: 0 | CD173: New Roadway | CE173: 4A - 4 Lane Divided (46' Depressed Median) with Paved Shoulders | CF173: None | CG173: Partial | CH173: 1 | CI173: Yes | CJ173: 25 | CK173: 112000000 | CL173: 18625000 | CM173: 0 | CN173: 130625000 | CP173: 130625000 | CQ173: 130625000
A174: H090155-A | B174: Regional Impact | C174: R-2588A | D174: NC-191 | E174: US 25 | F174: SR 1381 (Mountain Road) | G174: US 25 in Hendersonville to NC 280 South of Mills River. Widen to Multi-Lanes. Section A: US 25 to SR 1381 (Mountain Road). | H174: 1 - Widen Existing Roadway | I174: 35777000 | J174: N/A | K174: 21.57489577 | L174: 16.8139772 | M174: 43.55394669 | N174: 3.241736758 | O174: 74.54840506 | P174: 2.448375611 | Q174: N/A | R174: 24.21134406 | S174: N/A | T174: N/A | V174: French Broad River MPO | W174: 100 | AB174: 14 | AC174: 100 | AH174: Henderson | AI174: 100 | AP174: 14 | AQ174: G | AR174: 14, , | AS174: French Broad River MPO, , | AT174: Henderson, , , | AU174: 2.77546027 | AV174: 2.77546027 | AW174: Arterial | AX174: Multi-Lane Highway | AY174: 1 | AZ174: 2 | BA174: Undivided | BB174: Divided | BC174: 42 | BD174: 45 | BE174: 4.719173303 | BF174: 95.2808267 | BG174: 10376.29031 | BH174: 15800.08161 | BI174: 0.6567238427 | BJ174: 9886.615188 | BK174: 489.6751222 | BL174: 4926116.756 | BM174: 243986.1144 | BN174: 5170102.87 | BO174: 115979616 | BP174: 78.56890113 | BQ174: 81.84635458 | BR174: 63.25232624 | BW174: No | BX174: No | BY174: 11 | BZ174: 12 | CA174: No | CB174: 0 | CC174: 4 | CD174: 2 Lane Undivided | CE174: 4B - 4 Lane Divided (23' Raised Median) with Paved Shoulders and Sidewalks | CF174: None | CG174: Partial | CH174: 3 | CI174: Yes | CJ174: 20 | CK174: 18810000 | CL174: 15149000 | CM174: 1818000 | CN174: 35777000 | CP174: 35777000 | CQ174: 35777000
A175: H090155-B | B175: Regional Impact | C175: R-2588B | D175: NC-191 | E175: SR 1381 (Mountain Road) | F175: NC 280 | G175: US 25 in Hendersonville to NC 280 South of Mills River. Widen to Multi-Lanes. Section B: SR 1381 (Mountain Road) to NC 280. | H175: 1 - Widen Existing Roadway | I175: 50202000 | J175: N/A | K175: 21.98438411 | L175: 16.67934622 | M175: 46.39199972 | N175: 4.131000657 | O175: 65.74746146 | P175: 2.492755328 | Q175: N/A | R175: 27.78887873 | S175: N/A | T175: N/A | V175: French Broad River MPO | W175: 100 | AB175: 14 | AC175: 100 | AH175: Henderson | AI175: 100 | AP175: 14 | AQ175: G | AR175: 14, , | AS175: French Broad River MPO, , | AT175: Henderson, , , | AU175: 4.43330925 | AV175: 4.43330925 | AW175: Arterial | AX175: Multi-Lane Highway | AY175: 1 | AZ175: 2 | BA175: Undivided | BB175: Divided | BC175: 46 | BD175: 55 | BE175: 4.51080418 | BF175: 95.48919582 | BG175: 11052.3766 | BH175: 15800.00049 | BI175: 0.6995174846 | BJ175: 10553.82553 | BK175: 498.5510657 | BL175: 8835235.137 | BM175: 417366.7528 | BN175: 9252601.89 | BO175: 207384495 | BP175: 75.5778056 | BQ175: 70.35023894 | BR175: 51.33406605 | BW175: No | BX175: No | BY175: 11 | BZ175: 12 | CA175: No | CB175: 0 | CC175: 4 | CD175: 2 Lane Undivided | CE175: 4B - 4 Lane Divided (23' Raised Median) with Paved Shoulders and Sidewalks | CF175: None | CG175: Partial | CH175: 3 | CI175: Yes | CJ175: 21 | CK175: 45144000 | CL175: 4516000 | CM175: 542000 | CN175: 50202000 | CP175: 50202000 | CQ175: 50202000
A176: H090157 | B176: Regional Impact | C176: R-2589 | D176: NC-209 | E176: NC 63 at Trust | F176: US 25/70 in Hot Springs | G176: NC 63 at Trust to US 25/70 in Hot Springs. Upgrade Two Lane Roadway. | H176: 16 - Modernize Roadway | I176: 18582000 | J176: N/A | K176: 4.345359725 | L176: 2.187839794 | M176: 2.40000264 | N176: 0 | O176: 17.07839266 | P176: 0.3564697029 | Q176: N/A | R176: 20.37519799 | S176: N/A | T176: N/A | V176: Land-of-Sky RPO | W176: 100 | AB176: 13 | AC176: 100 | AH176: Madison | AI176: 100 | AP176: 13 | AQ176: G | AR176: 13, , | AS176: Land-of-Sky RPO, , | AT176: Madison, , , | AU176: 14.60774829 | AV176: 14.60774829 | AW176: Two Lane Highway | AX176: Two Lane Highway | AY176: 1 | AZ176: 1 | BA176: Undivided | BB176: Undivided | BC176: 53 | BD176: 53 | BE176: 12.66778997 | BF176: 87.33221003 | BG176: 562.7969892 | BH176: 15526.26336 | BI176: 0.03624806408 | BJ176: 491.5030486 | BK176: 71.29394057 | BL176: 0 | BM176: 0 | BN176: 0 | BO176: 0 | BP176: 13.27980828 | BQ176: 13.64236419 | BR176: 24.31812954 | BW176: No | BX176: No | BY176: 9 | BZ176: 12 | CA176: No | CB176: 0 | CC176: 0 | CD176: 2 Lane Undivided | CF176: None | CG176: None | CH176: 2 | CI176: No | CJ176: 30 | CK176: 18582000 | CL176: 0 | CM176: 0 | CN176: 18582000 | CP176: 18582000 | CQ176: 18582000
A177: H090158-A | B177: Regional Impact | C177: R-2591 | D177: NC-211 | E177: US 220 East of Candor | F177: SR 1241 near Seven Lakes | G177: Widen to Multi-Lanes | H177: 1 - Widen Existing Roadway | I177: 69515000 | J177: N/A | K177: 11.99947816 | L177: 8.897039771 | M177: 25.71647543 | N177: 0.1845912681 | O177: 37.16826433 | P177: 3.776852938 | Q177: N/A | R177: 18.07385057 | S177: N/A | T177: N/A | V177: Triangle Area RPO | W177: 74.06 | X177: Piedmont Triad RPO | Y177: 25.94 | AB177: 08 | AC177: 100 | AH177: Moore | AI177: 74.06 | AJ177: Montgomery | AK177: 25.94 | AP177: 8 | AQ177: E | AR177: 08, , | AS177: Triangle Area RPO, Piedmont Triad RPO, | AT177: Moore, Montgomery, , | AU177: 8.17762526 | AV177: 8.17762526 | AW177: Two Lane Highway | AX177: Multi-Lane Highway | AY177: 1 | AZ177: 2 | BA177: Undivided | BB177: Divided | BC177: 53 | BD177: 55 | BE177: 12.52344809 | BF177: 87.47655191 | BG177: 6031.650244 | BH177: 15529.60361 | BI177: 0.3883969221 | BJ177: 5276.279656 | BK177: 755.3705876 | BL177: 484909.1123 | BM177: 69421.2788 | BN177: 554330.3911 | BO177: 12831862 | BP177: 55.84903149 | BQ177: 28.49339749 | BR177: 27.17351559 | BW177: No | BX177: No | BY177: 12 | BZ177: 12 | CA177: No | CB177: 0 | CC177: 2 | CD177: 2 Lane Undivided | CE177: 4A - 4 Lane Divided (46' Depressed Median) with Paved Shoulders | CF177: None | CG177: Partial | CH177: 3 | CI177: Yes | CJ177: 22 | CK177: 56384000 | CL177: 11724000 | CM177: 1407000 | CN177: 69515000 | CP177: 69515000 | CQ177: 69515000
A178: H090158-B | B178: Regional Impact | C178: R-2591 | D178: NC-211 | E178: SR 1241 near Seven Lakes | F178: NC 73 in West End | G178: Widen to Multi-Lanes | H178: 2 - Upgrade Arterial to Freeway/Expressway | I178: 40254000 | J178: N/A | K178: 20.38499911 | L178: 14.95453559 | M178: 47.84891958 | N178: 0.4782987032 | O178: 52.89091932 | P178: 4.812904625 | Q178: N/A | R178: 30.14102605 | S178: N/A | T178: N/A | V178: Triangle Area RPO | W178: 100 | AB178: 08 | AC178: 100 | AH178: Moore | AI178: 100 | AP178: 8 | AQ178: E | AR178: 08, , | AS178: Triangle Area RPO, , | AT178: Moore, , , | AU178: 4.09056402 | AV178: 4.09056402 | AW178: Two Lane Highway | AX178: Multi-Lane Highway | AY178: 1 | AZ178: 2 | BA178: Undivided | BB178: Divided | BC178: 55 | BD178: 55 | BE178: 8.591943383 | BF178: 91.40805662 | BG178: 11203.29688 | BH178: 15500 | BI178: 0.7227933471 | BJ178: 10240.71596 | BK178: 962.5809249 | BL178: 772304.8815 | BM178: 72593.1615 | BN178: 844898.043 | BO178: 19253436 | BP178: 72.30817318 | BQ178: 29.63677087 | BR178: 56.74368278 | BW178: No | BX178: No | BY178: 12 | BZ178: 12 | CA178: No | CB178: 0 | CC178: 4 | CD178: 2 Lane Undivided | CE178: 4A - 4 Lane Divided (46' Depressed Median) with Paved Shoulders | CF178: None | CG178: Partial | CH178: 3 | CI178: Yes | CJ178: 22 | CK178: 26021000 | CL178: 12708000 | CM178: 1525000 | CN178: 40254000 | CP178: 40254000 | CQ178: 40254000
A179: H090158-C | B179: Regional Impact | C179: R-2591 | D179: NC-211 New Route - Pinehurst Bypass | E179: NC 73 in West End | F179: US 1 in Aberdeen | G179: Construct Multi-Lanes on New Location | H179: 6 - Widen Existing Roadway and Construct Part on New Location | I179: 131968000 | J179: N/A | K179: 27.51732164 | L179: 19.52298512 | M179: 60.46568512 | N179: 8.419362724 | O179: 57.45975548 | P179: 4.311607854 | Q179: N/A | R179: 45.50084128 | S179: N/A | T179: N/A | V179: Triangle Area RPO | W179: 100 | AB179: 08 | AC179: 100 | AH179: Moore | AI179: 100 | AP179: 8 | AQ179: E | AR179: 08, , | AS179: Triangle Area RPO, , | AT179: Moore, , , | AU179: 11.53983915 | AV179: 12.63274823 | AW179: Arterial | AX179: Multi-Lane Highway | AY179: 1 | AZ179: 2 | BA179: Undivided | BB179: Divided | BC179: 45 | BD179: 55 | BE179: 4.625390237 | BF179: 95.37460976 | BG179: 18643.21769 | BH179: 21102.18574 | BI179: 0.8834733008 | BJ179: 17780.89612 | BK179: 862.3215708 | BL179: 47256839.47 | BM179: 2291818.802 | BN179: 49548658.27 | BO179: 1111086460 | BP179: 69.11602101 | BQ179: 58.1751272 | BR179: 45.10535787 | BW179: No | BX179: No | BY179: 12 | BZ179: 12 | CA179: No | CB179: 0 | CC179: 4 | CD179: New Roadway | CE179: 4A - 4 Lane Divided (46' Depressed Median) with Paved Shoulders | CF179: None | CG179: Partial | CH179: 3 | CI179: Yes | CJ179: 21 | CK179: 114166000 | CL179: 15895000 | CM179: 1907000 | CN179: 131968000 | CP179: 131968000 | CQ179: 131968000
A180: H090159 | B180: Regional Impact | C180: R-2592 | D180: NC-211 | E180: US 15/501 in Aberdeen | F180: SR 1244 in Raeford | G180: US 15/501 in Aberdeen to SR 1244 in Raeford. Widen to Multi-Lanes. | H180: 1 - Widen Existing Roadway | I180: 141716000 | J180: N/A | K180: 20.15241352 | L180: 14.13197943 | M180: 39.84152217 | N180: 0.4274939668 | O180: 60.78176198 | P180: 18.94971607 | Q180: N/A | R180: 40.06983286 | S180: N/A | T180: N/A | V180: Lumber River RPO | W180: 63.05 | X180: Triangle Area RPO | Y180: 18.91 | Z180: Fayetteville Area MPO | AA180: 18.04 | AB180: 08 | AC180: 100 | AH180: Hoke | AI180: 81.09 | AJ180: Moore | AK180: 18.91 | AP180: 8 | AQ180: E | AR180: 08, , | AS180: Lumber River RPO, Triangle Area RPO, Fayetteville Area MPO | AT180: Hoke, Moore, , | AU180: 15.36081103 | AV180: 15.36081103 | AW180: Two Lane Highway | AX180: Multi-Lane Highway | AY180: 1 | AZ180: 2 | BA180: Undivided | BB180: Divided | BC180: 54 | BD180: 55 | BE180: 8.354557024 | BF180: 91.64544298 | BG180: 9356.610953 | BH180: 15551.63738 | BI180: 0.6016479631 | BJ180: 8574.907555 | BK180: 781.7033976 | BL180: 2438770.11 | BM180: 222322.4995 | BN180: 2661092.609 | BO180: 60582735 | BP180: 80.03430821 | BQ180: 53.15569934 | BR180: 49.17351475 | BW180: No | BX180: Yes | BY180: 12 | BZ180: 12 | CA180: No | CB180: 0 | CC180: 4 | CD180: 2 Lane Undivided | CE180: 4A - 4 Lane Divided (46' Depressed Median) with Paved Shoulders | CF180: None | CG180: Partial | CH180: 1 | CI180: Yes | CJ180: 26 | CK180: 94278000 | CL180: 42355000 | CM180: 5083000 | CN180: 141716000 | CP180: 141716000 | CQ180: 141716000
A181: H090160-A | B181: Regional Impact | C181: R-2593A | D181: NC-211 New Route - Red Springs Bypass | E181: NC 71 Southwest of Red Springs | F181: NC 71 Northeast of Red Springs | G181: Construct Two Lanes, Part on New Location, on Multi-Lane Right of Way | H181: 5 - Construct Roadway on New Location | I181: 22515000 | J181: N/A | K181: 11.30889641 | L181: 8.777440034 | M181: 22.94189686 | N181: 0.8439772596 | O181: 40.20265209 | P181: 3.133440632 | Q181: N/A | R181: 13.42162675 | S181: N/A | T181: N/A | V181: Lumber River RPO | W181: 100 | AB181: 06 | AC181: 100 | AH181: Robeson | AI181: 100 | AP181: 6 | AQ181: C | AR181: 06, , | AS181: Lumber River RPO, , | AT181: Robeson, , , | AU181: 3.4 | AV181: 4.0547711 | AW181: Arterial | AX181: Arterial | AY181: 1 | AZ181: 1 | BA181: Undivided | BB181: Undivided | BC181: 41 | BD181: 55 | BE181: 11.55904224 | BF181: 88.44095776 | BG181: 5421.626751 | BH181: 15659.44978 | BI181: 0.3462207694 | BJ181: 4794.938625 | BK181: 626.6881264 | BL181: 728781.7726 | BM181: 95250.2043 | BN181: 824031.9769 | BO181: 19002148 | BP181: 30.43812138 | BQ181: 71.12205318 | BR181: 19.05984371 | BW181: No | BX181: No | BY181: 12 | BZ181: 12 | CA181: No | CB181: 0 | CC181: 2 | CD181: New Roadway | CE181: 2A - 2 Lane Undivided with Paved Shoulders, 55 mph | CF181: None | CG181: None | CH181: 1 | CI181: No | CJ181: 24 | CK181: 18200000 | CL181: 2025000 | CM181: 2290000 | CN181: 22515000 | CP181: 22515000 | CQ181: 22515000
A182: H090160-B | B182: Regional Impact | C182: R-2593B | D182: NC-211 New Route - Red Springs Bypass | E182: NC 71 Northeast of Red Springs | F182: NC 72/710 South of Red Springs | G182: Construct Two Lanes, Part on New Location, on Multi-Lane Right of Way | H182: 5 - Construct Roadway on New Location | I182: 29700000 | J182: N/A | K182: 12.43200538 | L182: 9.820344173 | M182: 24.62679358 | N182: 0 | O182: 48.94985456 | P182: 2.291072114 | Q182: N/A | R182: 13.80321529 | S182: N/A | T182: N/A | V182: Lumber River RPO | W182: 100 | AB182: 06 | AC182: 100 | AH182: Robeson | AI182: 100 | AP182: 6 | AQ182: C | AR182: 06, , | AS182: Lumber River RPO, , | AT182: Robeson, , , | AU182: 3.5 | AV182: 4.03616357 | AW182: Two Lane Highway | AX182: Arterial | AY182: 1 | AZ182: 1 | BA182: Undivided | BB182: Undivided | BC182: 45 | BD182: 55 | BE182: 7.895871515 | BF182: 92.10412848 | BG182: 5803.215287 | BH182: 15610.17689 | BI182: 0.3717584578 | BJ182: 5345.000864 | BK182: 458.2144228 | BL182: 0 | BM182: 0 | BN182: 0 | BO182: 0 | BP182: 52.56846458 | BQ182: 51.41514382 | BR182: 42.88064172 | BW182: No | BX182: No | BY182: 12 | BZ182: 12 | CA182: No | CB182: 1 | CC182: 2 | CD182: New Roadway | CE182: 2A - 2 Lane Undivided with Paved Shoulders, 55 mph | CF182: None | CG182: None | CH182: 1 | CI182: No | CJ182: 24 | CK182: 25500000 | CL182: 2200000 | CM182: 2000000 | CN182: 29700000 | CP182: 29700000 | CQ182: 29700000
A183: H090162 | B183: Division Needs | C183: R-2594 | D183: NC-215 Balsam Grove Sunburst, FH 32 | E183: US 64 at Cherryfield | F183: SR 1326 (Macedonia Church Road) South of Balsam Grove | G183: Construct Two Lanes on New Location | H183: 5 - Construct Roadway on New Location | I183: 86700000 | J183: N/A | K183: N/A | L183: 7.978469737 | M183: 13.54461347 | N183: 0.7664429988 | O183: 51.16258443 | P183: 0.8470546546 | Q183: N/A | R183: N/A | S183: N/A | T183: N/A | V183: Land-of-Sky RPO | W183: 100 | AB183: 14 | AC183: 100 | AH183: Transylvania | AI183: 100 | AP183: 14 | AQ183: G | AR183: 14, , | AS183: Land-of-Sky RPO, , | AT183: Transylvania, , , | AU183: 10.2 | AV183: 3.7329926 | AW183: Two Lane Highway | AX183: Two Lane Highway | AY183: 1 | AZ183: 1 | BA183: Undivided | BB183: Undivided | BC183: 55 | BD183: 55 | BE183: 5.341459738 | BF183: 94.65854026 | BG183: 3171.622351 | BH183: 15501.62031 | BI183: 0.2045994088 | BJ183: 3002.21142 | BK183: 169.4109309 | BL183: 2796874.227 | BM183: 157824.0171 | BN183: 2954698.244 | BO183: 66450608 | BP183: 44.25973267 | BQ183: 55.22120678 | BR183: 54.02216415 | BW183: No | BX183: No | BY183: 9 | BZ183: 12 | CA183: No | CB183: 1 | CC183: 0 | CD183: New Roadway | CE183: 2A - 2 Lane Undivided with Paved Shoulders, 55 mph | CF183: None | CG183: None | CH183: 2 | CI183: No | CJ183: 23 | CK183: 82600000 | CL183: 3500000 | CM183: 600000 | CN183: 86700000 | CP183: 86700000 | CQ183: 86700000
A184: H090163-A | B184: Regional Impact | C184: R-2615A | D184: US-421 | E184: Tennessee Line | F184: US 321-US 421 Junction Near Vilas | G184: Tennessee Line to US 321-US 421 Junction near Vilas. Widen to Multi-Lanes. | H184: 1 - Widen Existing Roadway | I184: 86712000 | J184: N/A | K184: 10.11028329 | L184: 6.379093744 | M184: 31.78357424 | N184: 0.1118944783 | O184: 0 | P184: 2.178033628 | Q184: N/A | R184: 21.36416109 | S184: N/A | T184: N/A | V184: High Country RPO | W184: 100 | AB184: 11 | AC184: 100 | AH184: Watauga | AI184: 100 | AP184: 11 | AQ184: F | AR184: 11, , | AS184: High Country RPO, , | AT184: Watauga, , , | AU184: 6.79885932 | AV184: 6.79885932 | AW184: Two Lane Highway | AX184: Multi-Lane Highway | AY184: 1 | AZ184: 2 | BA184: Undivided | BB184: Divided | BC184: 55 | BD184: 55 | BE184: 5.853526052 | BF184: 94.14647395 | BG184: 7441.783325 | BH184: 15500.02275 | BI184: 0.4801143485 | BJ184: 7006.176599 | BK184: 435.6067257 | BL184: 405322.1135 | BM184: 25200.7691 | BN184: 430522.8826 | BO184: 9702594 | BP184: 0 | BQ184: 0 | BR184: 0 | BW184: No | BX184: No | BY184: 12 | BZ184: 12 | CA184: No | CB184: 0 | CC184: 2 | CD184: 2 Lane Undivided | CE184: 4A - 4 Lane Divided (46' Depressed Median) with Paved Shoulders | CF184: None | CG184: Partial | CH184: 3 | CI184: Yes | CJ184: 22 | CK184: 53808000 | CL184: 29379000 | CM184: 3525000 | CN184: 86712000 | CP184: 86712000 | CQ184: 86712000
A185: H090163-B | B185: Statewide Mobility | C185: R-2615B | D185: US-321 , US-421 | E185: US 321-US 421 Junction Near Vilas | F185: Proposed Boone Bypass (U-2703) | G185: US 321-421 Junction near Vilas to Proposed Boone Bypass (U-2703). Widen to Multi-Lanes | H185: 1 - Widen Existing Roadway | I185: 58383000 | J185: 29.93499812 | K185: 25.17452411 | L185: 18.67887504 | M185: 59.86939728 | N185: 3.966360105 | O185: 59.11723563 | P185: 3.805548707 | Q185: 41.11437599 | R185: 33.03861199 | S185: N/A | T185: N/A | V185: High Country RPO | W185: 100 | AB185: 11 | AC185: 100 | AH185: Watauga | AI185: 100 | AP185: 11 | AQ185: F | AR185: 11, , | AS185: High Country RPO, , | AT185: Watauga, , , | AU185: 3.54995817 | AV185: 3.54995817 | AW185: Arterial | AX185: Multi-Lane Highway | AY185: 1 | AZ185: 2 | BA185: Undivided | BB185: Divided | BC185: 49 | BD185: 50 | BE185: 5.375294611 | BF185: 94.62470539 | BG185: 14159.40514 | BH185: 15672.9887 | BI185: 0.9034272538 | BJ185: 13398.2954 | BK185: 761.1097415 | BL185: 9741758.451 | BM185: 553394.819 | BN185: 10295153.27 | BO185: 231568002 | BP185: 76.39966832 | BQ185: 52.63943068 | BR185: 48.33034484 | BU185: 169 | BV185: 0.0006532875198 | BW185: No | BX185: No | BY185: 12 | BZ185: 12 | CA185: No | CB185: 0 | CC185: 4 | CD185: 2 Lane Undivided | CE185: 4A - 4 Lane Divided (46' Depressed Median) with Paved Shoulders | CF185: None | CG185: Partial | CH185: 3 | CI185: Yes | CJ185: 16 | CK185: 28728000 | CL185: 26478000 | CM185: 3177000 | CN185: 58383000 | CP185: 58383000 | CQ185: 58383000
A186: H090164-B | B186: Statewide Mobility | C186: R-2596B | D186: US-221 | E186: SR 1569 (North Cove School Road) | F186: SR 1571 (English Road) | G186: Widen to Multi-Lanes. | H186: 1 - Widen Existing Roadway | I186: 55800000 | J186: 7.896776793 | K186: 9.514580421 | L186: 6.466284575 | M186: 11.53371277 | N186: 0 | O186: 41.59542022 | P186: 1.385604706 | Q186: 0 | R186: 24.71610208 | S186: N/A | T186: N/A | V186: Isothermal RPO | W186: 100 | AB186: 13 | AC186: 100 | AH186: Mcdowell | AI186: 100 | AP186: 13 | AQ186: G | AR186: 13, , | AS186: Isothermal RPO, , | AT186: Mcdowell, , , | AU186: 5.6904043 | AV186: 5.6904043 | AW186: Two Lane Highway | AX186: Multi-Lane Highway | AY186: 1 | AZ186: 2 | BA186: Undivided | BB186: Divided | BC186: 55 | BD186: 55 | BE186: 9.538241013 | BF186: 90.46175899 | BG186: 2905.367361 | BH186: 16807.68793 | BI186: 0.1728594303 | BJ186: 2628.24642 | BK186: 277.1209412 | BL186: 0 | BM186: 0 | BN186: 0 | BO186: 0 | BP186: 47.77851121 | BQ186: 40.91429832 | BR186: 36.105931 | BU186: 0 | BV186: 0 | BW186: No | BX186: No | BY186: 10 | BZ186: 12 | CA186: No | CB186: 0 | CC186: 0 | CD186: 2 Lane Undivided | CE186: 4A - 4 Lane Divided (46' Depressed Median) with Paved Shoulders | CF186: None | CG186: Partial | CH186: 1 | CI186: Yes | CJ186: 28 | CK186: 42000000 | CL186: 12300000 | CM186: 1500000 | CN186: 55800000 | CP186: 55800000 | CQ186: 55800000
A187: H090164-C | B187: Statewide Mobility | C187: R-2596C | D187: US-221 | E187: SR 1571 (English Road) in Mcdowell County | F187: NC 194 in Avery County | G187: Widen to Multi-Lanes | H187: 1 - Widen Existing Roadway | I187: 46800000 | J187: 6.758430748 | K187: 7.725824377 | L187: 5.444040227 | M187: 10.65895902 | N187: 0 | O187: 33.12248424 | P187: 1.242473093 | Q187: 0 | R187: 17.48836199 | S187: N/A | T187: N/A | V187: Isothermal RPO | W187: 67.96 | X187: High Country RPO | Y187: 29.9 | Z187: Unifour RPO | AA187: 2.14 | AB187: 13 | AC187: 70.1 | AD187: 11 | AE187: 29.9 | AH187: Mcdowell | AI187: 67.96 | AJ187: Avery | AK187: 29.9 | AL187: Burke | AM187: 2.14 | AP187: 13 | AQ187: G | AR187: 13, 11, | AS187: Isothermal RPO, High Country RPO, Unifour RPO | AT187: Mcdowell, Avery, Burke, | AU187: 6.02732885 | AV187: 6.02732885 | AW187: Two Lane Highway | AX187: Multi-Lane Highway | AY187: 1 | AZ187: 2 | BA187: Undivided | BB187: Divided | BC187: 51 | BD187: 51 | BE187: 9.955232627 | BF187: 90.04476737 | BG187: 2496.120662 | BH187: 15503.03535 | BI187: 0.1610085126 | BJ187: 2247.626043 | BK187: 248.4946186 | BL187: 0 | BM187: 0 | BN187: 0 | BO187: 0 | BP187: 39.5549697 | BQ187: 20.42092818 | BR187: 39.40149257 | BU187: 0 | BV187: 0 | BW187: No | BX187: No | BY187: 11 | BZ187: 12 | CA187: No | CB187: 0 | CC187: 0 | CD187: 2 Lane Undivided | CE187: 4A - 4 Lane Divided (46' Depressed Median) with Paved Shoulders | CF187: None | CG187: Partial | CH187: 1 | CI187: Yes | CJ187: 25 | CK187: 34000000 | CL187: 10800000 | CM187: 2000000 | CN187: 46800000 | CP187: 46800000 | CQ187: 46800000
A188: H090166-A | B188: Statewide Mobility | C188: R-2597A | D188: US-221 | E188: North of SR 1366 (Roper Loop Road) | F188: SR 1325 (Nanney town Road) | G188: Widen to Multi-Lanes. | H188: 1 - Widen Existing Roadway | I188: 26625000 | J188: 10.78071682 | K188: 11.69051381 | L188: 7.841489986 | M188: 22.00315532 | N188: 0.066544 | O188: 34.27550122 | P188: 3.627450396 | Q188: 0.06766825887 | R188: 27.45538856 | S188: N/A | T188: N/A | V188: Isothermal RPO | W188: 100 | AB188: 13 | AC188: 100 | AH188: Rutherford | AI188: 100 | AP188: 13 | AQ188: G | AR188: 13, , | AS188: Isothermal RPO, , | AT188: Rutherford, , , | AU188: 5.20575132 | AV188: 5.20575132 | AW188: Two Lane Highway | AX188: Multi-Lane Highway | AY188: 1 | AZ188: 2 | BA188: Undivided | BB188: Divided | BC188: 55 | BD188: 55 | BE188: 14.08227447 | BF188: 85.91772553 | BG188: 5151.796186 | BH188: 15500 | BI188: 0.3323739475 | BJ188: 4426.306107 | BK188: 725.4900793 | BL188: 65356.19676 | BM188: 10712.15393 | BN188: 76068.35069 | BO188: 1771734 | BP188: 31.54760089 | BQ188: 50.73373002 | BR188: 20.55545642 | BU188: 1 | BV188: 3.533651775e-07 | BW188: No | BX188: No | BY188: 12 | BZ188: 12 | CA188: No | CB188: 0 | CC188: 2 | CD188: 2 Lane Undivided | CE188: 4A - 4 Lane Divided (46' Depressed Median) with Paved Shoulders | CF188: None | CG188: Partial | CH188: 1 | CI188: Yes | CJ188: 26 | CK188: 24200000 | CL188: 2000000 | CM188: 425000 | CN188: 26625000 | CP188: 26625000 | CQ188: 26625000
A189: H090166-B | B189: Statewide Mobility | C189: R-2597B | D189: US-221 | E189: SR 1325 (Nanney Town Road) | F189: SR 1781 (Polly Sprout Road) Northern intersection | G189: Widen to Multi-Lanes. | H189: 1 - Widen Existing Roadway | I189: 63800000 | J189: 7.359675608 | K189: 8.386281519 | L189: 5.578182694 | M189: 13.37388748 | N189: 0 | O189: 29.03405198 | P189: 2.220520827 | Q189: 0 | R189: 21.39404451 | S189: N/A | T189: N/A | V189: Isothermal RPO | W189: 100 | AB189: 13 | AC189: 100 | AH189: Rutherford | AI189: 98.07 | AJ189: Mcdowell | AK189: 1.93 | AP189: 13 | AQ189: G | AR189: 13, , | AS189: Isothermal RPO, , | AT189: Rutherford, Mcdowell, , | AU189: 2.79742563 | AV189: 2.79742563 | AW189: Two Lane Highway | AX189: Multi-Lane Highway | AY189: 1 | AZ189: 2 | BA189: Undivided | BB189: Divided | BC189: 55 | BD189: 55 | BE189: 14.18252272 | BF189: 85.81747728 | BG189: 3131.348169 | BH189: 15499.99941 | BI189: 0.2020224702 | BJ189: 2687.244004 | BK189: 444.1041655 | BL189: 0 | BM189: 0 | BN189: 0 | BO189: 0 | BP189: 31.7190742 | BQ189: 29.70507043 | BR189: 25.68672241 | BU189: 0 | BV189: 0 | BW189: No | BX189: No | BY189: 12 | BZ189: 12 | CA189: No | CB189: 0 | CC189: 0 | CD189: 2 Lane Undivided | CE189: 4A - 4 Lane Divided (46' Depressed Median) with Paved Shoulders | CF189: None | CG189: Partial | CH189: 1 | CI189: Yes | CJ189: 26 | CK189: 62000000 | CL189: 1800000 | CM189: 0 | CN189: 63800000 | CP189: 63800000 | CQ189: 63800000
A190: H090166-C | B190: Statewide Mobility | C190: R-2597C | D190: US-221 | E190: SR 1781 (Polly Sprout Road) Northern intersection | F190: SR 1153 (Goose Creek Road) | G190: Widen to Multi-Lanes. | H190: 1 - Widen Existing Roadway | I190: 30500000 | J190: 10.14425476 | K190: 10.44614672 | L190: 7.257510265 | M190: 21.49906759 | N190: 0.07104386885 | O190: 29.43487974 | P190: 3.587864388 | Q190: 0.1216047319 | R190: 21.1013088 | S190: N/A | T190: N/A | V190: Isothermal RPO | W190: 100 | AB190: 13 | AC190: 100 | AH190: Mcdowell | AI190: 100 | AP190: 13 | AQ190: G | AR190: 13, , | AS190: Isothermal RPO, , | AT190: Mcdowell, , , | AU190: 6.51150231 | AV190: 6.51150231 | AW190: Two Lane Highway | AX190: Multi-Lane Highway | AY190: 1 | AZ190: 2 | BA190: Undivided | BB190: Divided | BC190: 55 | BD190: 55 | BE190: 14.25517921 | BF190: 85.74482079 | BG190: 5033.769601 | BH190: 15500 | BI190: 0.3247593291 | BJ190: 4316.196723 | BK190: 717.5728776 | BL190: 79715.78709 | BM190: 13252.84513 | BN190: 92968.63222 | BO190: 2166838 | BP190: 33.41458679 | BQ190: 29.14289616 | BR190: 25.75598761 | BU190: 2 | BV190: 4.320946388e-07 | BW190: No | BX190: No | BY190: 12 | BZ190: 12 | CA190: No | CB190: 0 | CC190: 2 | CD190: 2 Lane Undivided | CE190: 4A - 4 Lane Divided (46' Depressed Median) with Paved Shoulders | CF190: None | CG190: Partial | CH190: 1 | CI190: Yes | CJ190: 23 | CK190: 25000000 | CL190: 5500000 | CM190: 0 | CN190: 30500000 | CP190: 30500000 | CQ190: 30500000
A191: H090169 | B191: Regional Impact | C191: R-2811 | D191: NC-184 | E191: NC 105 | F191: SR 1342 (Hickory Nut Gap Road) | G191: NC 105 to Hickory Nut Gap Rd (SR 1342) in Banner Elk. Widen to Multi-Lanes. | H191: 1 - Widen Existing Roadway | I191: 60377000 | J191: N/A | K191: 14.01136693 | L191: 11.60786335 | M191: 36.60250402 | N191: 0 | O191: 42.87362543 | P191: 1.975104655 | Q191: N/A | R191: 5.733783826 | S191: N/A | T191: N/A | V191: High Country RPO | W191: 100 | AB191: 11 | AC191: 100 | AH191: Avery | AI191: 100 | AP191: 11 | AQ191: F | AR191: 11, , | AS191: High Country RPO, , | AT191: Avery, , , | AU191: 3.7633662 | AV191: 3.7633662 | AW191: Two Lane Highway | AX191: Arterial | AY191: 1 | AZ191: 2 | BA191: Undivided | BB191: Divided | BC191: 51 | BD191: 51 | BE191: 4.592905756 | BF191: 95.40709424 | BG191: 8600.675739 | BH191: 15561.09123 | BI191: 0.5527038954 | BJ191: 8205.654808 | BK191: 395.0209311 | BL191: 0 | BM191: 0 | BN191: 0 | BO191: 0 | BP191: 50.88871634 | BQ191: 60.09418197 | BR191: 17.65084136 | BW191: No | BX191: No | BY191: 11 | BZ191: 12 | CA191: No | CB191: 0 | CC191: 4 | CD191: 2 Lane Undivided | CE191: 4B - 4 Lane Divided (23' Raised Median) with Paved Shoulders and Sidewalks | CF191: None | CG191: Partial | CH191: 2 | CI191: No | CJ191: 19 | CK191: 46398000 | CL191: 12481000 | CM191: 1498000 | CN191: 60377000 | CP191: 60377000 | CQ191: 60377000
A192: H090784 | B192: Division Needs | D192: - New Route - Bridges Street Extension | E192: Existing Bridges Street | F192: SR 1147 (McCabe Rd) | G192: Extension of Bridges Street to the Vicinity of Newport. | H192: 6 - Widen Existing Roadway and Construct Part on New Location | I192: 44220000 | J192: N/A | K192: N/A | L192: 29.50908904 | M192: 68.70880975 | N192: 0 | O192: 74.71201195 | P192: 8.249247046 | Q192: N/A | R192: N/A | S192: N/A | T192: N/A | V192: Down East RPO | W192: 100 | AB192: 02 | AC192: 100 | AH192: Carteret | AI192: 100 | AP192: 2 | AQ192: B | AR192: 02, , | AS192: Down East RPO, , | AT192: Carteret, , , | AU192: 2.6 | AV192: 3.01706897 | AW192: Arterial | AX192: Arterial | AY192: 2 | AZ192: 2 | BA192: Divided | BB192: Divided | BC192: 53 | BD192: 45 | BE192: 5.634823593 | BF192: 94.36517641 | BG192: 29279.52192 | BH192: 30822.17108 | BI192: 0.9499500163 | BJ192: 27629.67251 | BK192: 1649.849409 | BL192: 0 | BM192: 0 | BN192: 0 | BO192: 0 | BP192: 81.51331884 | BQ192: 67.07165432 | BR192: 75.57347853 | BW192: No | BX192: No | BY192: 12 | BZ192: 12 | CA192: No | CB192: 3 | CC192: 4 | CD192: New Roadway | CE192: 4C - 4 Lane Divided (23' Raised Median) with Curb & Gutter, Wide Outside Lanes, and Sidewalks | CF192: None | CG192: None | CH192: 3 | CI192: No | CJ192: 20 | CK192: 31920000 | CL192: 10982000 | CM192: 1318000 | CN192: 44220000 | CP192: 44220000 | CQ192: 44220000
A193: H090172-A | B193: Regional Impact | C193: R-2609 | D193: US-401 Ramsey Street | E193: Multi-Lanes North of Fayetteville in Cumberland County | F193: Lillington Bypass | G193: Widen to Multi-Lanes | H193: 1 - Widen Existing Roadway | I193: 127544000 | J193: N/A | K193: 16.12964534 | L193: 11.30858099 | M193: 26.83603865 | N193: 0.07385191777 | O193: 59.26602877 | P193: 2.113782702 | Q193: N/A | R193: 34.75569824 | S193: N/A | T193: N/A | V193: Mid-Carolina RPO | W193: 94.73 | X193: Fayetteville Area MPO | Y193: 5.27 | AB193: 06 | AC193: 100 | AH193: Harnett | AI193: 54.75 | AJ193: Cumberland | AK193: 45.25 | AP193: 6 | AQ193: C | AR193: 06, , | AS193: Mid-Carolina RPO, Fayetteville Area MPO, | AT193: Harnett, Cumberland, , | AU193: 15.57902865 | AV193: 15.57902865 | AW193: Two Lane Highway | AX193: Multi-Lane Highway | AY193: 1 | AZ193: 2 | BA193: Undivided | BB193: Divided | BC193: 55 | BD193: 55 | BE193: 6.728163509 | BF193: 93.27183649 | BG193: 6283.38684 | BH193: 15500.06618 | BI193: 0.4053780653 | BJ193: 5860.6303 | BK193: 422.7565405 | BL193: 388452.4545 | BM193: 28021.01607 | BN193: 416473.4706 | BO193: 9419369 | BP193: 68.52045444 | BQ193: 62.4645726 | BR193: 46.83084086 | BW193: No | BX193: No | BY193: 12 | BZ193: 12 | CA193: No | CB193: 2 | CC193: 2 | CD193: 2 Lane Undivided | CE193: 4A - 4 Lane Divided (46' Depressed Median) with Paved Shoulders | CF193: None | CG193: Partial | CH193: 2 | CI193: Yes | CJ193: 29 | CK193: 88948000 | CL193: 34461000 | CM193: 4135000 | CN193: 127544000 | CP193: 127544000 | CQ193: 127544000
A194: H090172-B | B194: Regional Impact | C194: R-2609 | D194: US-401 New Route - Lillington Bypass | E194: US 401 south of Lillington | F194: US 401 north of Lillington | G194: Construct Freeway on New Location | H194: 5 - Construct Roadway on New Location | I194: 91066000 | J194: N/A | K194: 24.2203274 | L194: 16.40212958 | M194: 46.82741309 | N194: 1.299641524 | O194: 67.76718653 | P194: 5.165618743 | Q194: N/A | R194: 54.11845096 | S194: N/A | T194: N/A | V194: Mid-Carolina RPO | W194: 86.98 | X194: Capital Area MPO | Y194: 13.02 | AB194: 06 | AC194: 100 | AH194: Harnett | AI194: 100 | AP194: 6 | AQ194: C | AR194: 06, , | AS194: Mid-Carolina RPO, Capital Area MPO, | AT194: Harnett, , , | AU194: 5.6 | AV194: 7.21473141 | AW194: Two Lane Highway | AX194: Freeway | AY194: 1 | AZ194: 2 | BA194: Undivided | BB194: Divided | BC194: 44 | BD194: 70 | BE194: 6.867156126 | BF194: 93.13284387 | BG194: 15044.41911 | BH194: 22118.91666 | BI194: 0.6801607575 | BJ194: 14011.29536 | BK194: 1033.123749 | BL194: 4870836.589 | BM194: 359151.4435 | BN194: 5229988.032 | BO194: 118353155 | BP194: 76.45342158 | BQ194: 57.59666732 | BR194: 69.27180287 | BW194: No | BX194: No | BY194: 12 | BZ194: 12 | CA194: No | CB194: 1 | CC194: 4 | CD194: New Roadway | CE194: 4A - 4 Lane Divided (46' Depressed Median) with Paved Shoulders | CF194: None | CG194: Full | CH194: 2 | CI194: Yes | CJ194: 27 | CK194: 75319000 | CL194: 14060000 | CM194: 1687000 | CN194: 91066000 | CP194: 91066000 | CQ194: 91066000
A195: H090172-C | B195: Regional Impact | C195: R-2609 | D195: US-401 | E195: Lillington Bypass | F195: Fuquay-Varina Bypass | G195: Widen to Multi-Lanes | H195: 1 - Widen Existing Roadway | I195: 63202000 | J195: N/A | K195: 21.59692219 | L195: 14.45345508 | M195: 39.80420486 | N195: 1.170476282 | O195: 62.5851885 | P195: 0 | Q195: N/A | R195: 50.94733058 | S195: N/A | T195: N/A | V195: Capital Area MPO | W195: 100 | AB195: 06 | AC195: 100 | AH195: Harnett | AI195: 100 | AP195: 6 | AQ195: C | AR195: 06, , | AS195: Capital Area MPO, , | AT195: Harnett, , , | AU195: 7.10593074 | AV195: 7.10593074 | AW195: Two Lane Highway | AX195: Multi-Lane Highway | AY195: 1 | AZ195: 2 | BA195: Undivided | BB195: Divided | BC195: 45 | BD195: 55 | BE195: 0 | BF195: 100 | BG195: 9355.248966 | BH195: 15565.22931 | BI195: 0.6010350879 | BJ195: 9355.248966 | BK195: 0 | BL195: 3362565.525 | BM195: 0 | BN195: 3362565.525 | BO195: 73976442 | BP195: 78.91726429 | BQ195: 56.7513639 | BR195: 52.10571475 | BW195: No | BX195: No | BY195: 12 | BZ195: 12 | CA195: No | CB195: 4 | CC195: 4 | CD195: 2 Lane Undivided | CE195: 4A - 4 Lane Divided (46' Depressed Median) with Paved Shoulders | CF195: None | CG195: Partial | CH195: 2 | CI195: Yes | CJ195: 33 | CK195: 39306000 | CL195: 21336000 | CM195: 2560000 | CN195: 63202000 | CP195: 63202000 | CQ195: 63202000
A196: H090172-D | B196: Regional Impact | C196: R-2609 | D196: US-401 New Route - Fuquay Varina Bypass | E196: US 401 south of Fuquay-Varina | F196: NC 55 southeast of Fuquay-Varina | G196: Construct Freeway on New Location | H196: 5 - Construct Roadway on New Location | I196: 97327000 | J196: N/A | K196: 26.42020023 | L196: 17.3663879 | M196: 50.39302756 | N196: 3.623812204 | O196: 65.63019944 | P196: 4.018424853 | Q196: N/A | R196: 63.5297035 | S196: N/A | T196: N/A | V196: Capital Area MPO | W196: 100 | AB196: 05 | AC196: 81.57 | AD196: 06 | AE196: 18.43 | AH196: Wake | AI196: 81.57 | AJ196: Harnett | AK196: 18.43 | AP196: 5 | AQ196: C | AR196: 05, 06, | AS196: Capital Area MPO, , | AT196: Wake, Harnett, , | AU196: 7.3 | AV196: 8.41 | AW196: Arterial | AX196: Freeway | AY196: 1 | AZ196: 2 | BA196: Undivided | BB196: Divided | BC196: 39 | BD196: 70 | BE196: 4.743938773 | BF196: 95.25606123 | BG196: 16941.3015 | BH196: 23304.89443 | BI196: 0.7269417826 | BJ196: 16137.61653 | BK196: 803.6849706 | BL196: 31606367.28 | BM196: 1574059.113 | BN196: 33180426.39 | BO196: 744403503 | BP196: 73.94879555 | BQ196: 56.12012661 | BR196: 66.8413672 | BW196: No | BX196: No | BY196: 12 | BZ196: 12 | CA196: No | CB196: 2 | CC196: 4 | CD196: New Roadway | CE196: 4A - 4 Lane Divided (46' Depressed Median) with Paved Shoulders | CF196: None | CG196: Full | CH196: 3 | CI196: Yes | CJ196: 32 | CK196: 72125000 | CL196: 22502000 | CM196: 2700000 | CN196: 97327000 | CP196: 97327000 | CQ196: 205420000
A197: H090172-E | B197: Regional Impact | C197: R-2609 | D197: US-401 New Route - Fuquay Varina Bypass | E197: NC 55 southeast of Fuquay-Varina | F197: US 401 north of Fuquay-Varina | G197: Construct Freeway on New Location | H197: 5 - Construct Roadway on New Location | I197: 108093000 | J197: N/A | K197: 26.42020023 | L197: 17.3663879 | M197: 50.39302756 | N197: 3.623812204 | O197: 65.63019944 | P197: 4.018424853 | Q197: N/A | R197: 63.5297035 | S197: N/A | T197: N/A | V197: Capital Area MPO | W197: 100 | AB197: 05 | AC197: 100 | AH197: Wake | AI197: 100 | AP197: 5 | AQ197: C | AR197: 05, , | AS197: Capital Area MPO, , | AT197: Wake, , , | AU197: 7.3 | AV197: 8.41 | AW197: Arterial | AX197: Freeway | AY197: 1 | AZ197: 2 | BA197: Undivided | BB197: Divided | BC197: 39 | BD197: 70 | BE197: 4.743938773 | BF197: 95.25606123 | BG197: 16941.3015 | BH197: 23304.89443 | BI197: 0.7269417826 | BJ197: 16137.61653 | BK197: 803.6849706 | BL197: 31606367.28 | BM197: 1574059.113 | BN197: 33180426.39 | BO197: 744403503 | BP197: 73.94879555 | BQ197: 56.12012661 | BR197: 66.8413672 | BW197: No | BX197: No | BY197: 12 | BZ197: 12 | CA197: No | CB197: 2 | CC197: 4 | CD197: New Roadway | CE197: 4A - 4 Lane Divided (46' Depressed Median) with Paved Shoulders | CF197: None | CG197: Full | CH197: 3 | CI197: Yes | CJ197: 32 | CK197: 74369000 | CL197: 30111000 | CM197: 3613000 | CN197: 108093000 | CP197: 108093000 | CQ197: 205420000
A198: H090173 | B198: Regional Impact | C198: R-3309 | D198: NC-268 | E198: SR 1966 in Wilkes County | F198: Elkin Bypass | G198: SR 1966 in Wilkes County (R-2603) to Elkin Bypass (R-2604). Upgrade Two Lanes. | H198: 16 - Modernize Roadway | I198: 124260000 | J198: N/A | K198: 16.32516093 | L198: 13.50536984 | M198: 30.22131199 | N198: 0 | O198: 74.61107441 | P198: 2.049052926 | Q198: N/A | R198: 13.08725494 | S198: N/A | T198: N/A | V198: High Country RPO | W198: 100 | AB198: 11 | AC198: 100 | AH198: Wilkes | AI198: 100 | AP198: 11 | AQ198: F | AR198: 11, , | AS198: High Country RPO, , | AT198: Wilkes, , , | AU198: 13.51958066 | AV198: 13.51958066 | AW198: Two Lane Highway | AX198: Two Lane Highway | AY198: 1 | AZ198: 1 | BA198: Undivided | BB198: Undivided | BC198: 53 | BD198: 53 | BE198: 5.782359867 | BF198: 94.21764013 | BG198: 7087.254939 | BH198: 15527.23764 | BI198: 0.4564401668 | BJ198: 6677.444354 | BK198: 409.8105852 | BL198: 0 | BM198: 0 | BN198: 0 | BO198: 0 | BP198: 83.28580859 | BQ198: 81.9505381 | BR198: 58.61926209 | BW198: No | BX198: No | BY198: 10 | BZ198: 12 | CA198: No | CB198: 0 | CC198: 2 | CD198: 2 Lane Undivided | CF198: None | CG198: None | CH198: 1 | CI198: No | CJ198: 23 | CK198: 124260000 | CL198: 0 | CM198: 0 | CN198: 124260000 | CP198: 124260000 | CQ198: 124260000
A199: H090174 | B199: Regional Impact | C199: R-4058 | D199: NC-16 | E199: US 221/NC 88 | F199: Virginia State Line | G199: US 221/NC 88 in Jefferson to the Virginia State Line. Upgrade Roadway. | H199: 16 - Modernize Roadway | I199: 54036000 | J199: N/A | K199: 7.69268838 | L199: 6.240946138 | M199: 12.97597207 | N199: 0 | O199: 36.45751724 | P199: 1.374356005 | Q199: N/A | R199: 8.029436389 | S199: N/A | T199: N/A | V199: High Country RPO | W199: 100 | AB199: 11 | AC199: 100 | AH199: Ashe | AI199: 100 | AP199: 11 | AQ199: F | AR199: 11, , | AS199: High Country RPO, , | AT199: Ashe, , , | AU199: 13.5276928 | AV199: 13.5276928 | AW199: Two Lane Highway | AX199: Two Lane Highway | AY199: 1 | AZ199: 1 | BA199: Undivided | BB199: Undivided | BC199: 54 | BD199: 54 | BE199: 9.029475787 | BF199: 90.97052421 | BG199: 3044.154583 | BH199: 15533.63292 | BI199: 0.1959718373 | BJ199: 2769.283382 | BK199: 274.871201 | BL199: 0 | BM199: 0 | BN199: 0 | BO199: 0 | BP199: 37.63870167 | BQ199: 33.64547389 | BR199: 38.0993145 | BW199: No | BX199: No | BY199: 11 | BZ199: 12 | CA199: No | CB199: 0 | CC199: 0 | CD199: 2 Lane Undivided | CF199: None | CG199: None | CH199: 2 | CI199: No | CJ199: 23 | CK199: 54036000 | CL199: 0 | CM199: 0 | CN199: 54036000 | CP199: 54036000 | CQ199: 54036000
A200: H090175 | B200: Division Needs | C200: R-2619 | D200: SR-1107 | E200: US 321A | F200: US 321 in Granite Falls | G200: US 321A to US 321 in Granite Falls. Widen to Multi-Lanes and Modify interchange. | H200: 1 - Widen Existing Roadway | I200: 15729000 | J200: N/A | K200: N/A | L200: 6.228119493 | M200: 30.22177555 | N200: 0.9188219213 | O200: 0 | P200: 0 | Q200: N/A | R200: N/A | S200: N/A | T200: N/A | V200: Greater Hickory MPO | W200: 100 | AB200: 11 | AC200: 100 | AH200: Caldwell | AI200: 100 | AP200: 11 | AQ200: F | AR200: 11, , | AS200: Greater Hickory MPO, , | AT200: Caldwell, , , | AU200: 0.47125437 | AV200: 0.47125437 | AW200: Arterial | AX200: Arterial | AY200: 1 | AZ200: 2 | BA200: Undivided | BB200: Divided | BC200: 24 | BD200: 35 | BE200: 0 | BF200: 100 | BG200: 7200.008481 | BH200: 15800.01861 | BI200: 0.4556962026 | BJ200: 7200.008481 | BK200: 0 | BL200: 656915.9012 | BM200: 0 | BN200: 656915.9012 | BO200: 14452150 | BP200: 0 | BQ200: 0 | BR200: 0 | BW200: No | BX200: No | BY200: 12 | BZ200: 12 | CA200: No | CB200: 0 | CC200: 2 | CD200: 2 Lane Undivided | CE200: 4B - 4 Lane Divided (23' Raised Median) with Paved Shoulders and Sidewalks | CF200: None | CG200: Partial | CH200: 1 | CI200: No | CJ200: 20 | CK200: 13224000 | CL200: 2237000 | CM200: 268000 | CN200: 15729000 | CP200: 15729000 | CQ200: 15729000
A201: H090176 | B201: Regional Impact | C201: R-2622 | D201: NC-90 | E201: SR 1358 | F201: Bridge Number 10 (near SR 1367) | G201: NC 90. Pave Unpaved Sections to Secondary Road Standards. | H201: 16 - Modernize Roadway | I201: 15960000 | J201: N/A | K201: 1.53512758 | L201: 0.7351275799 | M201: 0 | N201: 0 | O201: 7.351275799 | P201: 0 | Q201: N/A | R201: 8 | S201: N/A | T201: N/A | V201: Unifour RPO | W201: 100 | AB201: 11 | AC201: 100 | AH201: Caldwell | AI201: 100 | AP201: 11 | AQ201: F | AR201: 11, , | AS201: Unifour RPO, , | AT201: Caldwell, , , | AU201: 8.27692148 | AV201: 8.27692148 | AW201: Two Lane Highway | AX201: Two Lane Highway | AY201: 1 | AZ201: 1 | BA201: Undivided | BB201: Undivided | BC201: 55 | BD201: 55 | BE201: 0 | BF201: 100 | BG201: 0 | BH201: 15500.39767 | BI201: 0 | BJ201: 0 | BK201: 0 | BL201: 0 | BM201: 0 | BN201: 0 | BO201: 0 | BP201: 7.98497144 | BQ201: 5.99017454 | BR201: 8.08088702 | BW201: No | BX201: No | BY201: 8 | BZ201: 12 | CA201: No | CB201: 0 | CC201: 0 | CD201: 2 Lane Undivided | CF201: None | CG201: None | CH201: 1 | CI201: No | CJ201: 24 | CK201: 15960000 | CL201: 0 | CM201: 0 | CN201: 15960000 | CP201: 15960000 | CQ201: 15960000
A202: H090177 | B202: Regional Impact | C202: R-2628 | D202: US-15 , US-501 | E202: NC 87 | F202: US 64 | G202: Pittsboro, NC 87 to US 64. Two Lanes on Multi-Lane Right of Way, New Location. | H202: 5 - Construct Roadway on New Location | I202: 53193000 | J202: N/A | K202: 18.83553295 | L202: 14.90097761 | M202: 48.49075317 | N202: 6.533302897 | O202: 38.96166393 | P202: 3.256778274 | Q202: N/A | R202: 11.83352545 | S202: N/A | T202: N/A | V202: Triangle Area RPO | W202: 100 | AB202: 08 | AC202: 100 | AH202: Chatham | AI202: 100 | AP202: 8 | AQ202: E | AR202: 08, , | AS202: Triangle Area RPO, , | AT202: Chatham, , , | AU202: 5.7 | AV202: 4.41904627 | AW202: Arterial | AX202: Two Lane Highway | AY202: 1 | AZ202: 1 | BA202: Undivided | BB202: Undivided | BC202: 42 | BD202: 55 | BE202: 5.663678371 | BF202: 94.33632163 | BG202: 11500.57634 | BH202: 15721.72166 | BI202: 0.7315087106 | BJ202: 10849.22069 | BK202: 651.3556547 | BL202: 14558283.96 | BM202: 874037.026 | BN202: 15432320.99 | BO202: 347525981 | BP202: 50.68971227 | BQ202: 25.23767202 | BR202: 40.96929716 | BW202: No | BX202: No | BY202: 12 | BZ202: 12 | CA202: No | CB202: 2 | CC202: 4 | CD202: New Roadway | CE202: 2A - 2 Lane Undivided with Paved Shoulders, 55 mph | CF202: None | CG202: None | CH202: 3 | CI202: No | CJ202: 24 | CK202: 52098000 | CL202: 978000 | CM202: 117000 | CN202: 53193000 | CP202: 53193000 | CQ202: 53193000
A203: H090178-A | B203: Division Needs | C203: FS-1106A | D203: - Spring Lake Bypass | E203: NC 210 (Lillington Highway) South of Spring Lake | F203: NC 210 (Murchison Road) North of Spring Lake | G203: Construct Multi-Lane Facility, Part on New Location. | H203: 6 - Widen Existing Roadway and Construct Part on New Location | I203: 24959000 | J203: N/A | K203: N/A | L203: 20.12252406 | M203: 68.876596 | N203: 0 | O203: 63.4720486 | P203: 31.0810288 | Q203: N/A | R203: N/A | S203: N/A | T203: N/A | V203: Fayetteville Area MPO | W203: 100 | AB203: 06 | AC203: 100 | AH203: Cumberland | AI203: 100 | AP203: 6 | AQ203: C | AR203: 06, , | AS203: Fayetteville Area MPO, , | AT203: Cumberland, , , | AU203: 2.5 | AV203: 2.59490561 | AW203: Arterial | AX203: Arterial | AY203: 2 | AZ203: 2 | BA203: Undivided | BB203: Divided | BC203: 43 | BD203: 45 | BE203: 4.772316836 | BF203: 95.22768316 | BG203: 33112.91792 | BH203: 35713.17719 | BI203: 0.9271904805 | BJ203: 31532.66456 | BK203: 1580.253357 | BL203: 0 | BM203: 0 | BN203: 0 | BO203: 0 | BP203: 76.63849704 | BQ203: 52.00287964 | BR203: 61.79381264 | BW203: No | BX203: Yes | BY203: 12 | BZ203: 12 | CA203: Yes | CB203: 0 | CC203: 4 | CD203: New Roadway | CE203: 4D - 4 Lane Divided (23' Raised Median) with Curb & Gutter, Wide Outside Lanes, Bike Lanes, and Sidewalks | CF203: None | CG203: Partial | CH203: 2 | CI203: No | CJ203: 16 | CK203: 24403000 | CL203: 496000 | CM203: 60000 | CN203: 24959000 | CP203: 24959000 | CQ203: 24959000
A204: H090178-B | B204: Division Needs | C204: FS-1106A | D204: - Spring Lake Bypass | E204: NC 210 (Murchison Road) North of Spring Lake | F204: NC 87 (Bragg Boulevard) | G204: Construct Multi-Lane Facility, Part on New Location | H204: 6 - Widen Existing Roadway and Construct Part on New Location | I204: 10936000 | J204: N/A | K204: N/A | L204: 27.87001553 | M204: 68.876596 | N204: 38.73745666 | O204: 63.47205003 | P204: 7.901266785 | Q204: N/A | R204: N/A | S204: N/A | T204: N/A | V204: Fayetteville Area MPO | W204: 100 | AB204: 06 | AC204: 100 | AH204: Cumberland | AI204: 100 | AP204: 6 | AQ204: C | AR204: 06, , | AS204: Fayetteville Area MPO, , | AT204: Cumberland, , , | AU204: 2.5 | AV204: 1.08274067 | AW204: Arterial | AX204: Arterial | AY204: 2 | AZ204: 2 | BA204: Undivided | BB204: Divided | BC204: 43 | BD204: 45 | BE204: 4.772316836 | BF204: 95.22768316 | BG204: 33112.91792 | BH204: 35713.17719 | BI204: 0.9271904805 | BJ204: 31532.66456 | BK204: 1580.253357 | BL204: 17979433.62 | BM204: 901035.8221 | BN204: 18880469.44 | BO204: 423632826 | BP204: 76.63849894 | BQ204: 52.00288152 | BR204: 61.79381315 | BW204: No | BX204: No | BY204: 12 | BZ204: 12 | CA204: Yes | CB204: 0 | CC204: 4 | CD204: New Roadway | CE204: 4D - 4 Lane Divided (23' Raised Median) with Curb & Gutter, Wide Outside Lanes, Bike Lanes, and Sidewalks | CF204: None | CG204: Partial | CH204: 2 | CI204: No | CJ204: 16 | CK204: 8255000 | CL204: 2394000 | CM204: 287000 | CN204: 10936000 | CP204: 10936000 | CQ204: 10936000
... 358 more rows

Sheet Division
D4: Project's Score = Quantiative Score + MPO/RPO Points (25%) + Division Points (25%)
W6: Division Methodology Criteria
A7: SPOT ID | B7: Project Category | C7: TIP | D7: Route | E7: From / Cross Street | F7: To | G7: Description | H7: Specific Improvement Type | I7: Cost to NCDOT | J7: Division Needs Quantiative Score (Out of 50) | K7: First MPO/RPO | L7: First MPO/RPO % | M7: Second MPO/RPO | N7: Second MPO/RPO % | O7: Third MPO/RPO | P7: Third MPO/RPO % | Q7: Construction Cost | R7: Right-Of-Way Cost | S7: Utilities Cost | T7: Actual Project Cost | U7: Division Points | W7: Congestion | X7: Safety | Y7: Cost Effectiveness | Z7: Multi-modal | AA7: Division Methodolgy Score | AC7: Existing Congestion | AD7: Safety | AE7: Cost Effectiveness | AF7: Multi-modal | AG7: DRAFT Division Project Points | AH7: Comments
A8: B141307 | B8: Bike&Ped, Division Needs | D8: US76 Wooster Street Sidewalk | E8: (8th Street) | F8: US76 (Oleander Drive) | G8: Construct a sidewalk on US76 Wooster Street from 8th Street to US76 Oleander Drive | H8: 5. Construct Sidewalk | I8: 112904 | J8: 40.67646789 | K8: Wilmington Urban Area MPO | L8: 100 | Q8: 101224 | R8: 0 | T8: 112904 | W8: =IF(AC8<0.5,0,IF(AC8<0.75,12.5,IF(AC8>0.75,25))) -> 0 | X8: =IF(AD8<30,0,IF(AD8<50,6.25,IF(AD8<65,12.5,IF(AD8<80,18.75,IF(AD8>80,25))))) -> 0 | Y8: =IF(AE8=0,0,IF(AE8<999,25,IF(AE8<1500,18.75,IF(AE8<2000,12.5,IF(AE8<4000,6.25,IF(AE8>4000,0)))))) -> 0 | Z8: =IF(AF8="yes",25,IF(AF8="no",0)) -> 25 | AA8: =SUM(W8+X8+Y8+Z8) -> 25 | AC8: 0 | AD8: 9.38 | AE8: 0 | AF8: yes | AG8: 100 | AH8: Wilmington MPO not giving any points Non-Highway
A9: H141231 | B9: Statewide Mobility | D9: US-76 Oleander Drive | E9: US117/NC132 (College Road) | G9: Convert at-grade intersection to a SPUI | H9: 7 - Upgrade At-grade Intersection to Interchange or Grade Separation | I9: 25110000 | J9: 38.39704101 | K9: Wilmington Urban Area MPO | L9: 100 | Q9: 20250000 | R9: 4860000 | T9: 25110000 | W9: =IF(AC9<0.5,0,IF(AC9<0.75,12.5,IF(AC9>0.75,25))) -> 25 | X9: =IF(AD9<30,0,IF(AD9<50,6.25,IF(AD9<65,12.5,IF(AD9<80,18.75,IF(AD9>80,25))))) -> 25 | Y9: =IF(AE9=0,0,IF(AE9<999,25,IF(AE9<1500,18.75,IF(AE9<2000,12.5,IF(AE9<4000,6.25,IF(AE9>4000,0)))))) -> 25 | Z9: =IF(AF9="yes",25,IF(AF9="no",0)) -> 25 | AA9: =SUM(W9+X9+Y9+Z9) -> 100 | AC9: 1.06 | AD9: 83.35 | AE9: 750 | AF9: yes | AH9: Funded at Statewide Level
A10: B141312 | B10: Bike&Ped, Division Needs | D10: Peachtree Avenue Bicycle lanes | E10: (Park Avenue) | F10: (MacMillan Avenue) | G10: Construct Bicycle Lanes along Peachtree Avenue from Park Avenue to Macmillan Avenue | H10: 1. Construct dedicated on-road bike lane on state-maintained roadway | I10: 208577 | J10: 38.31722897 | K10: Wilmington Urban Area MPO | L10: 100 | Q10: 187000 | R10: 0 | T10: 208577 | W10: =IF(AC10<0.5,0,IF(AC10<0.75,12.5,IF(AC10>0.75,25))) -> 0 | X10: =IF(AD10<30,0,IF(AD10<50,6.25,IF(AD10<65,12.5,IF(AD10<80,18.75,IF(AD10>80,25))))) -> 0 | Y10: =IF(AE10=0,0,IF(AE10<999,25,IF(AE10<1500,18.75,IF(AE10<2000,12.5,IF(AE10<4000,6.25,IF(AE10>4000,0)))))) -> 0 | Z10: =IF(AF10="yes",25,IF(AF10="no",0)) -> 25 | AA10: =SUM(W10+X10+Y10+Z10) -> 25 | AC10: 0 | AD10: 7.88 | AE10: 0 | AF10: yes | AG10: 100 | AH10: Wilmington MPO gives 100 points Non-Highway
A11: A130090 | B11: Aviation Division Needs | D11: SUT-Cape Fear Regional | G11: Approach clearing at Runway 5 and Runway 23 ends to remove obstructions. Airport has had tree survey done to verify obstructions. Airport has begun negotiations with private property owner for obstructions off Runway 23 end. Several private property owners for obstructions off Runway 5 end. Surveyor to flag Airport property line prior to negotiations (includes Project Request Numbers: 2182 ) | H11: 105 - Land Acquisition - Runway Approach (easement and/or fee simple). | I11: 502200 | J11: 38.05 | K11: Cape Fear RPO | L11: 100 | Q11: 502200 | T11: 558000 | W11: =IF(AC11<0.5,0,IF(AC11<0.75,12.5,IF(AC11>0.75,25))) -> 0 | X11: =IF(AD11<30,0,IF(AD11<50,6.25,IF(AD11<65,12.5,IF(AD11<80,18.75,IF(AD11>80,25))))) -> 0 | Y11: =IF(AE11=0,0,IF(AE11<999,25,IF(AE11<1500,18.75,IF(AE11<2000,12.5,IF(AE11<4000,6.25,IF(AE11>4000,0)))))) -> 25 | Z11: =IF(AF11="yes",25,IF(AF11="no",0)) -> 0 | AA11: =SUM(W11+X11+Y11+Z11) -> 25 | AC11: 0 | AD11: 0 | AE11: 6.26 | AF11: no | AG11: 100 | AH11: Cape Fear RPO giving 100 points Non-Highway
A12: H090798 | B12: Regional Impact | C12: FS-1003A | D12: NC-53 Western Boulevard | E12: US 17 (Marine Boulevard) | F12: NC 24 (Lejeune Boulevard) | G12: Construct Median, intersection and Access Management Improvements from US Hwy 17 to NC Hwy 24 including Drainage Improvements at the NC Hwy 24 and Western Boulevard intersection. | H12: 11 - Access Management | I12: 14195000 | J12: 37.97706649 | K12: Jacksonville Urban MPO | L12: 100 | Q12: 13452000 | R12: 663000 | S12: 80000 | T12: 14195000 | W12: =IF(AC12<0.5,0,IF(AC12<0.75,12.5,IF(AC12>0.75,25))) -> 25 | X12: =IF(AD12<30,0,IF(AD12<50,6.25,IF(AD12<65,12.5,IF(AD12<80,18.75,IF(AD12>80,25))))) -> 25 | Y12: =IF(AE12=0,0,IF(AE12<999,25,IF(AE12<1500,18.75,IF(AE12<2000,12.5,IF(AE12<4000,6.25,IF(AE12>4000,0)))))) -> 25 | Z12: =IF(AF12="yes",25,IF(AF12="no",0)) -> 25 | AA12: =SUM(W12+X12+Y12+Z12) -> 100 | AC12: 1.22 | AD12: 84.6 | AE12: 937.89 | AF12: yes | AG12: 100 | AH12: JUMPO did not give any points Highway w/ Ped. Improvements
A13: H110992 | B13: Statewide Mobility | D13: US-117 South College Road | E13: Randall Parkway | F13: US 76 (Oleander Drive) | G13: Upgrade Arterial, Add Bicycle Lanes and Sidewalks. | H13: 16 - Modernize Roadway | I13: 11970000 | J13: 37.76698741 | K13: Wilmington Urban Area MPO | L13: 100 | Q13: 11970000 | T13: 11970000 | W13: 25 | X13: =IF(AD13<30,0,IF(AD13<50,6.25,IF(AD13<65,12.5,IF(AD13<80,18.75,IF(AD13>80,25))))) -> 25 | Y13: 25 | Z13: 25 | AA13: 100 | AC13: 1.09 | AD13: 88.71 | AE13: 396.4 | AF13: yes | AG13: 100 | AH13: Wilmington MPO gives 100 points to this project Highway w/ Bike & Ped. Improvements
A14: H110987 | B14: Regional Impact | D14: US-421 Carolina Beach Road | E14: US 421 (Burnett Boulevard) | F14: US 117 (Shipyard Boulevard) | G14: Upgrade Arterial with a Landscaped Median and Bulb-Outs | H14: 4 - Upgrade Arterial to Superstreet | I14: 10206000 | J14: 37.58914313 | K14: Wilmington Urban Area MPO | L14: 100 | Q14: 7638000 | R14: 2293000 | S14: 275000 | T14: 10206000 | W14: 25 | X14: 25 | Y14: 25 | Z14: 25 | AA14: 100 | AC14: 0.9214534968 | AD14: 91.79545768 | AE14: 534.58 | AF14: yes | AG14: 100 | AH14: Wilmington MPO is not giving any points Highway w/ Ped. Improvements
A15: H140364 | B15: Regional Impact | D15: NC-53 Western Blvd | E15: Jacksonville Parkway | G15: Add right turn lane on southbound NC 53; add left turn lane on northbound NC 53 | H15: 10 - Improve Intersection | I15: 698000 | J15: 36.09921106 | K15: Jacksonville Urban MPO | L15: 100 | Q15: 563000 | R15: 135000 | T15: 698000 | W15: 25 | X15: 25 | Y15: 25 | Z15: 0 | AA15: 75 | AC15: 1.104100946 | AD15: 83.35 | AE15: 4.99 | AF15: no | AG15: 100 | AH15: JUMPO is not giving any points Highway w/ Ped. Improvements
A16: H142202 | B16: Statewide Mobility | D16: NC-132 College Road | E16: SR 2048 (Gordon Road) | F16: US 421 (Carolina Beach Road) | G16: Widen NC 132 (College Road) with access improvements | H16: 1 - Widen Existing Roadway | I16: 42943000 | J16: 35.58950731 | K16: Wilmington Urban Area MPO | L16: 100 | Q16: 28940000 | R16: 12503000 | S16: 1500000 | T16: 42943000 | W16: 25 | X16: 25 | Y16: 0 | Z16: 25 | AA16: 75 | AC16: 1.09118484 | AD16: 80.1128375 | AE16: 10717.96 | AF16: yes | AH16: Funded at Statewide Level
A17: A130217 | B17: Aviation Division Needs | D17: Odell Williamson Municipal Airport | G17: Fee Acquisition of approximately 3 acres vacant land platted for residential development in the Runway 24 RPZ (Runway Protection Zone) (includes Project Request Numbers: 2285/2290 ) | H17: 305 - Land Acquisition / Obstruction removal / Easement - RPZ | I17: 1080900 | J17: 35.55 | K17: GrandStrand Area Transportation Study SC-NC | L17: 100 | Q17: 1080900 | T17: 1201000 | W17: =IF(AC17<0.5,0,IF(AC17<0.75,12.5,IF(AC17>0.75,25))) -> 0 | X17: =IF(AD17<30,0,IF(AD17<50,6.25,IF(AD17<65,12.5,IF(AD17<80,18.75,IF(AD17>80,25))))) -> 0 | Y17: =IF(AE17=0,0,IF(AE17<999,25,IF(AE17<1500,18.75,IF(AE17<2000,12.5,IF(AE17<4000,6.25,IF(AE17>4000,0)))))) -> 0 | Z17: =IF(AF17="yes",25,IF(AF17="no",0)) -> 0 | AA17: =SUM(W17+X17+Y17+Z17) -> 0 | AC17: 0 | AD17: 0 | AE17: 25105.48 | AF17: no | AG17: 100 | AH17: Non-Highway
A18: H140510 | B18: Division Needs | D18: - Trade Dr | E18: NC 53 (Western Blvd) | F18: McDaniel Dr | G18: Construct roadway | H18: 5 - Construct Roadway on New Location | I18: 3357000 | J18: 35.50807988 | K18: Jacksonville Urban MPO | L18: 100 | Q18: 1511000 | R18: 1648000 | S18: 198000 | T18: 3357000 | W18: =IF(AC18<0.5,0,IF(AC18<0.75,12.5,IF(AC18>0.75,25))) -> 25 | X18: =IF(AD18<30,0,IF(AD18<50,6.25,IF(AD18<65,12.5,IF(AD18<80,18.75,IF(AD18>80,25))))) -> 25 | Y18: =IF(AE18=0,0,IF(AE18<999,25,IF(AE18<1500,18.75,IF(AE18<2000,12.5,IF(AE18<4000,6.25,IF(AE18>4000,0)))))) -> 0 | Z18: =IF(AF18="yes",25,IF(AF18="no",0)) -> 25 | AA18: =SUM(W18+X18+Y18+Z18) -> 75 | AC18: 1.19873817 | AD18: 88.89111 | AF18: yes | AG18: 100 | AH18: JUMPO gives 100 points to this project Highway w/ Ped. Improvements
A19: H090711 | B19: Statewide Mobility | D19: US-117 College Road, NC-132 | E19: SR 2048 (Gordan Road) | F19: SR 1272 (New Centre Drive) | G19: Upgrade College Road from Gordon Road to the SR 1272 (New Centre Drive). | H19: 4 - Upgrade Arterial to Superstreet | I19: 84213000 | J19: 35.34059047 | K19: Wilmington Urban Area MPO | L19: 100 | Q19: 62700000 | R19: 19208000 | S19: 2305000 | T19: 84213000 | W19: 25 | X19: 25 | Y19: 0 | Z19: 25 | AA19: 75 | AC19: 1.017220489 | AD19: 83.30303271 | AF19: yes | AH19: Too Costly for Division Level Funding
A20: H140881 | B20: Regional Impact | D20: US-17-BUS-Main Street | E20: SR 1173 (Village Road) | F20: Wall Street | G20: Modernize bridge, extend, and include sidewalk on US 17 BUS / Main Street in Shallotte. | H20: 16 - Modernize Roadway | I20: 542000 | J20: 34.33563871 | K20: Grand Strand Transportation Study Area | L20: 100 | Q20: 542000 | T20: 542000 | W20: 25 | X20: 18.75 | Y20: 0 | Z20: 25 | AA20: 68.75 | AC20: 1.392405063 | AD20: 77.75889 | AF20: yes | AG20: 100 | AH20: GSATS gives 100 points Highway w/ Ped. Improvements
A21: H090717 | B21: Regional Impact | D21: US-421 Carolina Beach Road | E21: NC 132 | F21: Sanders Road | G21: Widen Carolina Beach Road from Sanders Road to College Road/NC 132/Piner Road | H21: 1 - Widen Existing Roadway | I21: 9574000 | J21: 33.7408187 | K21: Wilmington Urban Area MPO | L21: 100 | Q21: 7866000 | R21: 1525000 | S21: 183000 | T21: 9574000 | W21: 25 | X21: 18.75 | Y21: 0 | Z21: 25 | AA21: 68.75 | AC21: 1.19873817 | AD21: 79.10473575 | AF21: yes | AG21: 100 | AH21: Wilmington MPO is not giving any points to this project Highway w/ Ped. Improvements
A22: H090519-B | B22: Division Needs | C22: U-5106B | D22: - New Route - Northwest Loop | E22: SR 1308 (Gum Branch Road) | F22: US 17 | G22: US 258/NC 24 to US 17. Four-Lane Divided Facility, Part on New Location and Along Existing Roadway. Section B: SR 1308 (Gum Branch Road) to US 17. | H22: 6 - Widen Existing Roadway and Construct Part on New Location | I22: 31015000 | J22: 33.61618089 | K22: Jacksonville Urban MPO | L22: 100 | Q22: 24510000 | R22: 5808000 | S22: 697000 | T22: 31015000 | W22: 25 | X22: 25 | Y22: 0 | Z22: 25 | AA22: 75 | AC22: 1.073021685 | AD22: 88.70856664 | AF22: yes | AH22: JUMPO did not give any points
A23: H090499-B | B23: Regional Impact | C23: U-4902B | D23: US-17-BUS-Market Street | E23: Colonial Drive | F23: SR 1272 (New Centre Drive) | G23: Construct Access Management Improvements | H23: 11 - Access Management | I23: 3375000 | J23: 33.60007435 | K23: Wilmington Urban Area MPO | L23: 100 | Q23: 3250000 | R23: 125000 | T23: 3375000 | W23: 25 | X23: 25 | Y23: 0 | Z23: 25 | AA23: 75 | AC23: 1.018273158 | AD23: 91.62551864 | AF23: yes | AG23: 100 | AH23: Wilmington MPO gives 100 points Highway w/ Ped. Improvements
A24: A130086 | B24: Aviation Division Needs | D24: ACZ- Henderson Field | G24: The existing runway length is less than 4,200 lf. Project will extend Runway 9 by 850 linear feet. In order to accommodate a runway extension, Wallace Airport Road (SR 1307) and Powers Road (SR 1306) must be relocated. Project includes the purchase a portion of three parcels at the intersection of Wallace Airport Road (SR 1307) and Powers Road (SR 1306) totaling approximately 42 acres. (includes Project Request Numbers: 2976/2473/2473a) | H24: 515 - Land Acquisition - Runway Length | I24: 4844700 | J24: 33.23 | K24: Cape Fear RPO | L24: 100 | Q24: 4844700 | T24: 5383000 | W24: 0 | X24: 0 | Y24: 0 | Z24: 0 | AA24: 0 | AC24: 0 | AD24: 0 | AE24: 137324.72 | AF24: no | AG24: 100 | AH24: Non-Highway
A25: B140545 | B25: Bike&Ped, Division Needs | D25: SR 1308 (Gum Branch Rd) | E25: US 17B (Marine Blvd) | F25: SR 1336 (Henderson Dr) | G25: Construct sidewalk on both sides where none exists | H25: 5. Construct Sidewalk | I25: 408000 | J25: 33.06 | K25: Jacksonville Urban MPO | L25: 100 | Q25: 470000 | R25: 20000 | T25: 530000 | W25: 0 | X25: 0 | Y25: 0 | Z25: 25 | AA25: 25 | AC25: 0 | AD25: 11.25 | AE25: 0 | AF25: yes | AG25: 100 | AH25: JUMPO gives 50 points Non-Highway
A26: H110979 | B26: Statewide Mobility | D26: NC-132 South College Road | E26: US 17 Business (Market Street) | F26: Randall Parkway | G26: Upgrade Roadway, Add Bicycle Lanes and Sidewalks. | H26: 11 - Access Management | I26: 5814000 | J26: 33.03145074 | K26: Wilmington Urban Area MPO | L26: 100 | Q26: 5814000 | T26: 5814000 | W26: 25 | X26: 18.75 | Y26: 25 | Z26: 25 | AA26: 93.75 | AC26: 0.9380540239 | AD26: 76.63484373 | AE26: 149.74 | AF26: yes | AG26: 100 | AH26: Wilmington MPO gives 100 points Highway w/ Ped. Improvements
